Workbook

Sheet Notes
A1: Ayrshire & Arran
A2: Borders
A3: Dumfries & Galloway
A4: Fife
A5: Forth Valley
A6: Golden Jubilee
A7: Grampian
A8: Greater Glasgow & Clyde
A9: Highland
A10: Lanarkshire
A11: Lothian
A12: Orkney
A13: Scotland
A14: Shetland
A15: Tayside
A16: Western Isles

Sheet CDI Data and Charts
B1: Scotland | K1: =CONCATENATE("Healthcare and community rates for ",B1) -> Healthcare and community rates for Scotland
L2: CDIHCAI | N2: CDICA
D3: Healthcare associated* CDI | G3: Community associated CDI | L3: Healthcare associated* CDI | N3: Community associated CDI
C4: Cases | D4: Rate per 100 000 bed days | E4: 95% CI | F4: Cases | G4: Rate per 100 000 population | H4: 95% CI | L4: % change | N4: % change
B5: ='CDI data'!B8 -> 2014-12-19 | C5: ='CDI data'!D8 -> 321 | D5: ='CDI data'!E8 -> 18.752 | E5: =CONCATENATE("(",TEXT('CDI data'!F8,"0.0")," ,", TEXT('CDI data'!G8,"0.0"),")") -> (16.8 ,20.9) | F5: ='CDI data'!H8 -> 121 | G5: ='CDI data'!I8 -> 8.977 | H5: =IFERROR(CONCATENATE("(",TEXT('CDI data'!J8,"0.0")," ,", TEXT('CDI data'!K8,"0.0"),")"),"-") -> (7.4 ,10.7) | K5: This quarter compared to last (national only) | L5: =IFERROR(ROUND(VLOOKUP(CONCATENATE(L2,$B$1),'quarter comp'!$A1:$H21,4,FALSE),2),"-") -> -21.21 | M5: =IFERROR(VLOOKUP(CONCATENATE(L2,$B$1),'quarter comp'!$A1:$H21,8,FALSE),"-") -> Significant | N5: =IFERROR(ROUND(VLOOKUP(CONCATENATE(N2,$B$1),'quarter comp'!$A1:$H21,4,FALSE),2),"-") -> -24.14 | O5: =IFERROR(VLOOKUP(CONCATENATE(N2,$B$1),'quarter comp'!$A1:$H21,8,FALSE),"-") -> Non Significant
B6: ='CDI data'!B9 -> 2015-03-24 | C6: ='CDI data'!D9 -> 251 | D6: ='CDI data'!E9 -> 14.562 | E6: =CONCATENATE("(",TEXT('CDI data'!F9,"0.0")," ,", TEXT('CDI data'!G9,"0.0"),")") -> (12.8 ,16.5) | F6: ='CDI data'!H9 -> 92 | G6: ='CDI data'!I9 -> 6.944 | H6: =IFERROR(CONCATENATE("(",TEXT('CDI data'!J9,"0.0")," ,", TEXT('CDI data'!K9,"0.0"),")"),"-") -> (5.6 ,8.5) | K6: Year end compared to previous year end | L6: =IF(IFERROR(ROUND(VLOOKUP(CONCATENATE(L2,$B$1),'year end comp'!$A$2:$Z$1086,4,FALSE),2),"-")=-100,"-",IFERROR(ROUND(VLOOKUP(CONCATENATE(L2,$B$1),'year end comp'!$A$2:$Z$1086,4,FALSE),2),"-")) -> -3.57 | M6: =IF(IFERROR(VLOOKUP(CONCATENATE(L2,$B$1),'year end comp'!$A$2:$Z$1086,8,FALSE),"-")=0,"-",IFERROR(VLOOKUP(CONCATENATE(L2,$B$1),'year end comp'!$A$2:$Z$1086,8,FALSE),"-")) -> Non Significant | N6: =IFERROR(ROUND(VLOOKUP(CONCATENATE(N2,$B$1),'year end comp'!$A$2:$Z$1086,4,FALSE),2),"-") -> 1.47 | O6: =IF(IFERROR(VLOOKUP(CONCATENATE(N2,$B$1),'year end comp'!$A$2:$Z$1086,8,FALSE),"-")=0,"-",IFERROR(VLOOKUP(CONCATENATE(N2,$B$1),'year end comp'!$A$2:$Z$1086,8,FALSE),"-")) -> Non Significant
B7: ='CDI data'!B10 -> 2015-06-24 | C7: ='CDI data'!D10 -> 308 | D7: ='CDI data'!E10 -> 18.538 | E7: =CONCATENATE("(",TEXT('CDI data'!F10,"0.0")," ,", TEXT('CDI data'!G10,"0.0"),")") -> (16.5 ,20.7) | F7: ='CDI data'!H10 -> 98 | G7: ='CDI data'!I10 -> 7.316 | H7: =IFERROR(CONCATENATE("(",TEXT('CDI data'!J10,"0.0")," ,", TEXT('CDI data'!K10,"0.0"),")"),"-") -> (5.9 ,8.9)
B8: ='CDI data'!B11 -> 2015-09-24 | C8: ='CDI data'!D11 -> 313 | D8: ='CDI data'!E11 -> 19.31 | E8: =CONCATENATE("(",TEXT('CDI data'!F11,"0.0")," ,", TEXT('CDI data'!G11,"0.0"),")") -> (17.2 ,21.6) | F8: ='CDI data'!H11 -> 131 | G8: ='CDI data'!I11 -> 9.673 | H8: =IFERROR(CONCATENATE("(",TEXT('CDI data'!J11,"0.0")," ,", TEXT('CDI data'!K11,"0.0"),")"),"-") -> (8.1 ,11.5)
B9: ='CDI data'!B12 -> 2015-12-24 | C9: ='CDI data'!D12 -> 367 | D9: ='CDI data'!E12 -> 22.349 | E9: =CONCATENATE("(",TEXT('CDI data'!F12,"0.0")," ,", TEXT('CDI data'!G12,"0.0"),")") -> (20.1 ,24.8) | F9: ='CDI data'!H12 -> 116 | G9: ='CDI data'!I12 -> 8.565 | H9: =IFERROR(CONCATENATE("(",TEXT('CDI data'!J12,"0.0")," ,", TEXT('CDI data'!K12,"0.0"),")"),"-") -> (7.1 ,10.3)
B10: ='CDI data'!B13 -> 2016-03-24 | C10: ='CDI data'!D13 -> 252 | D10: ='CDI data'!E13 -> 15.05 | E10: =CONCATENATE("(",TEXT('CDI data'!F13,"0.0")," ,", TEXT('CDI data'!G13,"0.0"),")") -> (13.2 ,17.0) | F10: ='CDI data'!H13 -> 97 | G10: ='CDI data'!I13 -> 7.218 | H10: =IFERROR(CONCATENATE("(",TEXT('CDI data'!J13,"0.0")," ,", TEXT('CDI data'!K13,"0.0"),")"),"-") -> (5.9 ,8.8)
B11: ='CDI data'!B14 -> 2016-06-24 | C11: ='CDI data'!D14 -> 250 | D11: ='CDI data'!E14 -> 15.575 | E11: =CONCATENATE("(",TEXT('CDI data'!F14,"0.0")," ,", TEXT('CDI data'!G14,"0.0"),")") -> (13.7 ,17.6) | F11: ='CDI data'!H14 -> 91 | G11: ='CDI data'!I14 -> 6.772 | H11: =IFERROR(CONCATENATE("(",TEXT('CDI data'!J14,"0.0")," ,", TEXT('CDI data'!K14,"0.0"),")"),"-") -> (5.5 ,8.3)
B12: ='CDI data'!B15 -> 2016-09-24 | C12: ='CDI data'!D15 -> 263 | D12: ='CDI data'!E15 -> 16.563 | E12: =CONCATENATE("(",TEXT('CDI data'!F15,"0.0")," ,", TEXT('CDI data'!G15,"0.0"),")") -> (14.6 ,18.7) | F12: ='CDI data'!H15 -> 119 | G12: ='CDI data'!I15 -> 8.759 | H12: =IFERROR(CONCATENATE("(",TEXT('CDI data'!J15,"0.0")," ,", TEXT('CDI data'!K15,"0.0"),")"),"-") -> (7.3 ,10.5)
B13: ='CDI data'!B16 -> 2016-12-24 | C13: ='CDI data'!D16 -> 233 | D13: ='CDI data'!E16 -> 14.639 | E13: =CONCATENATE("(",TEXT('CDI data'!F16,"0.0")," ,", TEXT('CDI data'!G16,"0.0"),")") -> (12.8 ,16.6) | F13: ='CDI data'!H16 -> 94 | G13: ='CDI data'!I16 -> 6.919 | H13: =IFERROR(CONCATENATE("(",TEXT('CDI data'!J16,"0.0")," ,", TEXT('CDI data'!K16,"0.0"),")"),"-") -> (5.6 ,8.5)
B14: ='CDI data'!B17 -> 2017-03-01 | C14: ='CDI data'!D17 -> 257 | D14: ='CDI data'!E17 -> 16.252 | E14: =CONCATENATE("(",TEXT('CDI data'!F17,"0.0")," ,", TEXT('CDI data'!G17,"0.0"),")") -> (14.3 ,18.4) | F14: ='CDI data'!H17 -> 74 | G14: ='CDI data'!I17 -> 5.532 | H14: =IFERROR(CONCATENATE("(",TEXT('CDI data'!J17,"0.0")," ,", TEXT('CDI data'!K17,"0.0"),")"),"-") -> (4.3 ,6.9)
B15: ='CDI data'!B18 -> 2017-06-01 | C15: ='CDI data'!D18 -> 238 | D15: ='CDI data'!E18 -> 15.349 | E15: =CONCATENATE("(",TEXT('CDI data'!F18,"0.0")," ,", TEXT('CDI data'!G18,"0.0"),")") -> (13.5 ,17.4) | F15: ='CDI data'!H18 -> 100 | G15: ='CDI data'!I18 -> 7.394 | H15: =IFERROR(CONCATENATE("(",TEXT('CDI data'!J18,"0.0")," ,", TEXT('CDI data'!K18,"0.0"),")"),"-") -> (6.0 ,9.0)
B16: ='CDI data'!B19 -> 2017-09-01 | C16: ='CDI data'!D19 -> 288 | D16: ='CDI data'!E19 -> 18.716 | E16: =CONCATENATE("(",TEXT('CDI data'!F19,"0.0")," ,", TEXT('CDI data'!G19,"0.0"),")") -> (16.6 ,21.0) | F16: ='CDI data'!H19 -> 103 | G16: ='CDI data'!I19 -> 7.533 | H16: =IFERROR(CONCATENATE("(",TEXT('CDI data'!J19,"0.0")," ,", TEXT('CDI data'!K19,"0.0"),")"),"-") -> (6.1 ,9.1)
B17: ='CDI data'!B20 -> 2017-12-01 | C17: ='CDI data'!D20 -> 235 | D17: ='CDI data'!E20 -> 14.921 | E17: =CONCATENATE("(",TEXT('CDI data'!F20,"0.0")," ,", TEXT('CDI data'!G20,"0.0"),")") -> (13.1 ,17.0) | F17: ='CDI data'!H20 -> 74 | G17: ='CDI data'!I20 -> 5.412 | H17: =IFERROR(CONCATENATE("(",TEXT('CDI data'!J20,"0.0")," ,", TEXT('CDI data'!K20,"0.0"),")"),"-") -> (4.2 ,6.8)
B18: ='CDI data'!B21 -> 2018-03-01 | C18: ='CDI data'!D21 -> 228 | D18: ='CDI data'!E21 -> 14.383 | E18: =CONCATENATE("(",TEXT('CDI data'!F21,"0.0")," ,", TEXT('CDI data'!G21,"0.0"),")") -> (12.6 ,16.4) | F18: ='CDI data'!H21 -> 86 | G18: ='CDI data'!I21 -> 6.414 | H18: =IFERROR(CONCATENATE("(",TEXT('CDI data'!J21,"0.0")," ,", TEXT('CDI data'!K21,"0.0"),")"),"-") -> (5.1 ,7.9)
B19: ='CDI data'!B22 -> 2018-06-01 | C19: ='CDI data'!D22 -> 244 | D19: ='CDI data'!E22 -> 15.996 | E19: =CONCATENATE("(",TEXT('CDI data'!F22,"0.0")," ,", TEXT('CDI data'!G22,"0.0"),")") -> (14.1 ,18.1) | F19: ='CDI data'!H22 -> 102 | G19: ='CDI data'!I22 -> 7.523 | H19: =IFERROR(CONCATENATE("(",TEXT('CDI data'!J22,"0.0")," ,", TEXT('CDI data'!K22,"0.0"),")"),"-") -> (6.1 ,9.1)
B20: ='CDI data'!B23 -> 2018-09-01 | C20: ='CDI data'!D23 -> 255 | D20: ='CDI data'!E23 -> 16.869 | E20: =CONCATENATE("(",TEXT('CDI data'!F23,"0.0")," ,", TEXT('CDI data'!G23,"0.0"),")") -> (14.9 ,19.1) | F20: ='CDI data'!H23 -> 92 | G20: ='CDI data'!I23 -> 6.712 | H20: =IFERROR(CONCATENATE("(",TEXT('CDI data'!J23,"0.0")," ,", TEXT('CDI data'!K23,"0.0"),")"),"-") -> (5.4 ,8.2)
B21: ='CDI data'!B24 -> 2018-12-01 | C21: ='CDI data'!D24 -> 220 | D21: ='CDI data'!E24 -> 14.453 | E21: =CONCATENATE("(",TEXT('CDI data'!F24,"0.0")," ,", TEXT('CDI data'!G24,"0.0"),")") -> (12.6 ,16.5) | F21: ='CDI data'!H24 -> 86 | G21: ='CDI data'!I24 -> 6.274 | H21: =IFERROR(CONCATENATE("(",TEXT('CDI data'!J24,"0.0")," ,", TEXT('CDI data'!K24,"0.0"),")"),"-") -> (5.0 ,7.7)
B22: ='CDI data'!B25 -> 2019-03-01 | C22: ='CDI data'!D25 -> 186 | D22: ='CDI data'!E25 -> 12.09 | E22: =CONCATENATE("(",TEXT('CDI data'!F25,"0.0")," ,", TEXT('CDI data'!G25,"0.0"),")") -> (10.4 ,14.0) | F22: ='CDI data'!H25 -> 50 | G22: ='CDI data'!I25 -> 3.712 | H22: =IFERROR(CONCATENATE("(",TEXT('CDI data'!J25,"0.0")," ,", TEXT('CDI data'!K25,"0.0"),")"),"-") -> (2.8 ,4.9)
B23: ='CDI data'!B26 -> 2019-06-01 | C23: ='CDI data'!D26 -> 184 | D23: ='CDI data'!E26 -> 12.215 | E23: =CONCATENATE("(",TEXT('CDI data'!F26,"0.0")," ,", TEXT('CDI data'!G26,"0.0"),")") -> (10.5 ,14.1) | F23: ='CDI data'!H26 -> 66 | G23: ='CDI data'!I26 -> 4.846 | H23: =IFERROR(CONCATENATE("(",TEXT('CDI data'!J26,"0.0")," ,", TEXT('CDI data'!K26,"0.0"),")"),"-") -> (3.7 ,6.2)
B24: ='CDI data'!B27 -> 2019-09-01 | C24: ='CDI data'!D27 -> 207 | D24: ='CDI data'!E27 -> 13.736 | E24: =CONCATENATE("(",TEXT('CDI data'!F27,"0.0")," ,", TEXT('CDI data'!G27,"0.0"),")") -> (11.9 ,15.7) | F24: ='CDI data'!H27 -> 72 | G24: ='CDI data'!I27 -> 5.229 | H24: =IFERROR(CONCATENATE("(",TEXT('CDI data'!J27,"0.0")," ,", TEXT('CDI data'!K27,"0.0"),")"),"-") -> (4.1 ,6.6)
B25: ='CDI data'!B28 -> 2019-12-01 | C25: ='CDI data'!D28 -> 231 | D25: ='CDI data'!E28 -> 15.084 | E25: =CONCATENATE("(",TEXT('CDI data'!F28,"0.0")," ,", TEXT('CDI data'!G28,"0.0"),")") -> (13.2 ,17.2) | F25: ='CDI data'!H28 -> 63 | G25: ='CDI data'!I28 -> 4.575 | H25: =IFERROR(CONCATENATE("(",TEXT('CDI data'!J28,"0.0")," ,", TEXT('CDI data'!K28,"0.0"),")"),"-") -> (3.5 ,5.9)
B26: ='CDI data'!B29 -> 2020-03-01 | C26: ='CDI data'!D29 -> 201 | D26: ='CDI data'!E29 -> 13.618 | E26: =CONCATENATE("(",TEXT('CDI data'!F29,"0.0")," ,", TEXT('CDI data'!G29,"0.0"),")") -> (11.8 ,15.6) | F26: ='CDI data'!H29 -> 46 | G26: ='CDI data'!I29 -> 3.385 | H26: =IFERROR(CONCATENATE("(",TEXT('CDI data'!J29,"0.0")," ,", TEXT('CDI data'!K29,"0.0"),")"),"-") -> (2.5 ,4.5)
B27: ='CDI data'!B30 -> 2020-06-01 | C27: ='CDI data'!D30 -> 166 | D27: ='CDI data'!E30 -> 15.357 | E27: =CONCATENATE("(",TEXT('CDI data'!F30,"0.0")," ,", TEXT('CDI data'!G30,"0.0"),")") -> (13.1 ,17.9) | F27: ='CDI data'!H30 -> 80 | G27: ='CDI data'!I30 -> 5.887 | H27: =IFERROR(CONCATENATE("(",TEXT('CDI data'!J30,"0.0")," ,", TEXT('CDI data'!K30,"0.0"),")"),"-") -> (4.7 ,7.3)
B28: ='CDI data'!B31 -> 2020-09-01 | C28: ='CDI data'!D31 -> 227 | D28: ='CDI data'!E31 -> 17.4082 | E28: =CONCATENATE("(",TEXT('CDI data'!F31,"0.0")," ,", TEXT('CDI data'!G31,"0.0"),")") -> (15.2 ,19.8) | F28: ='CDI data'!H31 -> 90 | G28: ='CDI data'!I31 -> 6.5504 | H28: =IFERROR(CONCATENATE("(",TEXT('CDI data'!J31,"0.0")," ,", TEXT('CDI data'!K31,"0.0"),")"),"-") -> (5.3 ,8.1)
B29: ='CDI data'!B32 -> 2020-12-31 | C29: ='CDI data'!D32 -> 222 | D29: ='CDI data'!E32 -> 16.3501 | E29: =CONCATENATE("(",TEXT('CDI data'!F32,"0.0")," ,", TEXT('CDI data'!G32,"0.0"),")") -> (14.3 ,18.6) | F29: ='CDI data'!H32 -> 56 | G29: ='CDI data'!I32 -> 4.0758 | H29: =IFERROR(CONCATENATE("(",TEXT('CDI data'!J32,"0.0")," ,", TEXT('CDI data'!K32,"0.0"),")"),"-") -> (3.1 ,5.3)
B30: ='CDI data'!B33 -> 2021-03-31 | C30: ='CDI data'!D33 -> 213 | D30: ='CDI data'!E33 -> 15.7464 | E30: =CONCATENATE("(",TEXT('CDI data'!F33,"0.0")," ,", TEXT('CDI data'!G33,"0.0"),")") -> (13.7 ,18.0) | F30: ='CDI data'!H33 -> 49 | G30: ='CDI data'!I33 -> 3.6356 | H30: =IFERROR(CONCATENATE("(",TEXT('CDI data'!J33,"0.0")," ,", TEXT('CDI data'!K33,"0.0"),")"),"-") -> (2.7 ,4.8)
B31: ='CDI data'!B34 -> 2021-06-30 | C31: ='CDI data'!D34 -> 203 | D31: ='CDI data'!E34 -> 14.56 | E31: =CONCATENATE("(",TEXT('CDI data'!F34,"0.0")," ,", TEXT('CDI data'!G34,"0.0"),")") -> (12.6 ,16.7) | F31: ='CDI data'!H34 -> 74 | G31: ='CDI data'!I34 -> 5.4302 | H31: =IFERROR(CONCATENATE("(",TEXT('CDI data'!J34,"0.0")," ,", TEXT('CDI data'!K34,"0.0"),")"),"-") -> (4.3 ,6.8)
B32: ='CDI data'!B35 -> 2021-09-01 | C32: ='CDI data'!D35 -> 245 | D32: ='CDI data'!E35 -> 16.8227 | E32: =CONCATENATE("(",TEXT('CDI data'!F35,"0.0")," ,", TEXT('CDI data'!G35,"0.0"),")") -> (14.8 ,19.1) | F32: ='CDI data'!H35 -> 87 | G32: ='CDI data'!I35 -> 6.3147 | H32: =IFERROR(CONCATENATE("(",TEXT('CDI data'!J35,"0.0")," ,", TEXT('CDI data'!K35,"0.0"),")"),"-") -> (5.1 ,7.8)
B33: ='CDI data'!B36 -> 2021-12-31 | C33: ='CDI data'!D36 -> 198 | D33: ='CDI data'!E36 -> 13.2552 | E33: =CONCATENATE("(",TEXT('CDI data'!F36,"0.0")," ,", TEXT('CDI data'!G36,"0.0"),")") -> (11.5 ,15.2) | F33: ='CDI data'!H36 -> 66 | G33: ='CDI data'!I36 -> 4.7905 | H33: =IFERROR(CONCATENATE("(",TEXT('CDI data'!J36,"0.0")," ,", TEXT('CDI data'!K36,"0.0"),")"),"-") -> (3.7 ,6.1)

Sheet ECOLI Data and Charts
B1: Scotland | K1: =CONCATENATE("Healthcare and community rates for ",B1) -> Healthcare and community rates for Scotland
L2: ECBHCAI | N2: ECBCOM
D3: Healthcare associated ECB infection | G3: Community associated ECB infection | L3: Healthcare associated ECB | N3: Community associated ECB
C4: Cases | D4: Rate per 100 000 bed days | E4: 95% CI | F4: Cases | G4: Rate per 100 000 Population | H4: 95% CI | L4: % change | N4: % change
B5: ='ECOLI data'!B8 -> 2016-09-24 | C5: ='ECOLI data'!D8 -> 582 | D5: ='ECOLI data'!E8 -> 36.652 | E5: =CONCATENATE("(",TEXT('ECOLI data'!F8,"0.0")," ,", TEXT('ECOLI data'!G8,"0.0"),")") -> (33.7 ,39.8) | F5: ='ECOLI data'!H8 -> 719 | G5: ='ECOLI data'!I8 -> 52.924 | H5: =IFERROR(CONCATENATE("(",TEXT('ECOLI data'!J8,"0.0")," ,", TEXT('ECOLI data'!K8,"0.0"),")"),"-") -> (49.1 ,56.9) | K5: This quarter compared to last (national only) | L5: =IFERROR(ROUND(VLOOKUP(CONCATENATE(L2,$B$1),'quarter comp'!$A1:$H21,4,FALSE),2),"-") -> -17.84 | M5: =IFERROR(VLOOKUP(CONCATENATE(L2,$B$1),'quarter comp'!$A1:$H21,8,FALSE),"-") -> Significant | N5: =IFERROR(ROUND(VLOOKUP(CONCATENATE(N2,$B$1),'quarter comp'!$A1:$H21,4,FALSE),2),"-") -> -3 | O5: =IFERROR(VLOOKUP(CONCATENATE(N2,$B$1),'quarter comp'!$A1:$H21,8,FALSE),"-") -> Non Significant
B6: ='ECOLI data'!B9 -> 2016-12-24 | C6: ='ECOLI data'!D9 -> 564 | D6: ='ECOLI data'!E9 -> 35.434 | E6: =CONCATENATE("(",TEXT('ECOLI data'!F9,"0.0")," ,", TEXT('ECOLI data'!G9,"0.0"),")") -> (32.6 ,38.5) | F6: ='ECOLI data'!H9 -> 631 | G6: ='ECOLI data'!I9 -> 46.446 | H6: =IFERROR(CONCATENATE("(",TEXT('ECOLI data'!J9,"0.0")," ,", TEXT('ECOLI data'!K9,"0.0"),")"),"-") -> (42.9 ,50.2) | K6: Year end compared to previous year end | L6: =ROUND(VLOOKUP(CONCATENATE(L2,$B$1),'year end comp'!$A$2:$Z$1086,4,FALSE),2) -> -6.45 | M6: =VLOOKUP(CONCATENATE(L2,$B$1),'year end comp'!$A$2:$Z$1086,8,FALSE) -> Significant | N6: =IFERROR(ROUND(VLOOKUP(CONCATENATE(N2,$B$1),'year end comp'!$A$2:$Z$1086,4,FALSE),2),"-") -> 1.97 | O6: =IFERROR(VLOOKUP(CONCATENATE(N2,$B$1),'year end comp'!$A$2:$Z$1086,8,FALSE),"-") -> Non Significant
B7: ='ECOLI data'!B10 -> 2017-03-01 | C7: ='ECOLI data'!D10 -> 547 | D7: ='ECOLI data'!E10 -> 34.591 | E7: =CONCATENATE("(",TEXT('ECOLI data'!F10,"0.0")," ,", TEXT('ECOLI data'!G10,"0.0"),")") -> (31.8 ,37.6) | F7: ='ECOLI data'!H10 -> 571 | G7: ='ECOLI data'!I10 -> 42.688 | H7: =IFERROR(CONCATENATE("(",TEXT('ECOLI data'!J10,"0.0")," ,", TEXT('ECOLI data'!K10,"0.0"),")"),"-") -> (39.3 ,46.3)
B8: ='ECOLI data'!B11 -> 2017-06-01 | C8: ='ECOLI data'!D11 -> 539 | D8: ='ECOLI data'!E11 -> 34.761 | E8: =CONCATENATE("(",TEXT('ECOLI data'!F11,"0.0")," ,", TEXT('ECOLI data'!G11,"0.0"),")") -> (31.9 ,37.8) | F8: ='ECOLI data'!H11 -> 657 | G8: ='ECOLI data'!I11 -> 48.577 | H8: =IFERROR(CONCATENATE("(",TEXT('ECOLI data'!J11,"0.0")," ,", TEXT('ECOLI data'!K11,"0.0"),")"),"-") -> (44.9 ,52.4)
B9: ='ECOLI data'!B12 -> 2017-09-01 | C9: ='ECOLI data'!D12 -> 585 | D9: ='ECOLI data'!E12 -> 38.016 | E9: =CONCATENATE("(",TEXT('ECOLI data'!F12,"0.0")," ,", TEXT('ECOLI data'!G12,"0.0"),")") -> (35.0 ,41.2) | F9: ='ECOLI data'!H12 -> 677 | G9: ='ECOLI data'!I12 -> 49.512 | H9: =IFERROR(CONCATENATE("(",TEXT('ECOLI data'!J12,"0.0")," ,", TEXT('ECOLI data'!K12,"0.0"),")"),"-") -> (45.9 ,53.4)
B10: ='ECOLI data'!B13 -> 2017-12-01 | C10: ='ECOLI data'!D13 -> 531 | D10: ='ECOLI data'!E13 -> 33.715 | E10: =CONCATENATE("(",TEXT('ECOLI data'!F13,"0.0")," ,", TEXT('ECOLI data'!G13,"0.0"),")") -> (30.9 ,36.7) | F10: ='ECOLI data'!H13 -> 656 | G10: ='ECOLI data'!I13 -> 47.976 | H10: =IFERROR(CONCATENATE("(",TEXT('ECOLI data'!J13,"0.0")," ,", TEXT('ECOLI data'!K13,"0.0"),")"),"-") -> (44.4 ,51.8)
B11: ='ECOLI data'!B14 -> 2018-03-01 | C11: ='ECOLI data'!D14 -> 524 | D11: ='ECOLI data'!E14 -> 33.055 | E11: =CONCATENATE("(",TEXT('ECOLI data'!F14,"0.0")," ,", TEXT('ECOLI data'!G14,"0.0"),")") -> (30.3 ,36.0) | F11: ='ECOLI data'!H14 -> 578 | G11: ='ECOLI data'!I14 -> 43.105 | H11: =IFERROR(CONCATENATE("(",TEXT('ECOLI data'!J14,"0.0")," ,", TEXT('ECOLI data'!K14,"0.0"),")"),"-") -> (39.7 ,46.8)
B12: ='ECOLI data'!B15 -> 2018-06-01 | C12: ='ECOLI data'!D15 -> 580 | D12: ='ECOLI data'!E15 -> 38.024 | E12: =CONCATENATE("(",TEXT('ECOLI data'!F15,"0.0")," ,", TEXT('ECOLI data'!G15,"0.0"),")") -> (35.0 ,41.2) | F12: ='ECOLI data'!H15 -> 598 | G12: ='ECOLI data'!I15 -> 44.107 | H12: =IFERROR(CONCATENATE("(",TEXT('ECOLI data'!J15,"0.0")," ,", TEXT('ECOLI data'!K15,"0.0"),")"),"-") -> (40.6 ,47.8)
B13: ='ECOLI data'!B16 -> 2018-09-01 | C13: ='ECOLI data'!D16 -> 606 | D13: ='ECOLI data'!E16 -> 40.089 | E13: =CONCATENATE("(",TEXT('ECOLI data'!F16,"0.0")," ,", TEXT('ECOLI data'!G16,"0.0"),")") -> (37.0 ,43.4) | F13: ='ECOLI data'!H16 -> 667 | G13: ='ECOLI data'!I16 -> 48.661 | H13: =IFERROR(CONCATENATE("(",TEXT('ECOLI data'!J16,"0.0")," ,", TEXT('ECOLI data'!K16,"0.0"),")"),"-") -> (45.0 ,52.5)
B14: ='ECOLI data'!B17 -> 2018-12-01 | C14: ='ECOLI data'!D17 -> 582 | D14: ='ECOLI data'!E17 -> 38.234 | E14: =CONCATENATE("(",TEXT('ECOLI data'!F17,"0.0")," ,", TEXT('ECOLI data'!G17,"0.0"),")") -> (35.2 ,41.5) | F14: ='ECOLI data'!H17 -> 603 | G14: ='ECOLI data'!I17 -> 43.992 | H14: =IFERROR(CONCATENATE("(",TEXT('ECOLI data'!J17,"0.0")," ,", TEXT('ECOLI data'!K17,"0.0"),")"),"-") -> (40.6 ,47.6)
B15: ='ECOLI data'!B18 -> 2019-03-01 | C15: ='ECOLI data'!D18 -> 573 | D15: ='ECOLI data'!E18 -> 37.244 | E15: =CONCATENATE("(",TEXT('ECOLI data'!F18,"0.0")," ,", TEXT('ECOLI data'!G18,"0.0"),")") -> (34.3 ,40.4) | F15: ='ECOLI data'!H18 -> 598 | G15: ='ECOLI data'!I18 -> 44.391 | H15: =IFERROR(CONCATENATE("(",TEXT('ECOLI data'!J18,"0.0")," ,", TEXT('ECOLI data'!K18,"0.0"),")"),"-") -> (40.9 ,48.1)
B16: ='ECOLI data'!B19 -> 2019-06-01 | C16: ='ECOLI data'!D19 -> 584 | D16: ='ECOLI data'!E19 -> 38.771 | E16: =CONCATENATE("(",TEXT('ECOLI data'!F19,"0.0")," ,", TEXT('ECOLI data'!G19,"0.0"),")") -> (35.7 ,42.0) | F16: ='ECOLI data'!H19 -> 604 | G16: ='ECOLI data'!I19 -> 44.344 | H16: =IFERROR(CONCATENATE("(",TEXT('ECOLI data'!J19,"0.0")," ,", TEXT('ECOLI data'!K19,"0.0"),")"),"-") -> (40.9 ,48.0)
B17: ='ECOLI data'!B20 -> 2019-09-01 | C17: ='ECOLI data'!D20 -> 608 | D17: ='ECOLI data'!E20 -> 40.346 | E17: =CONCATENATE("(",TEXT('ECOLI data'!F20,"0.0")," ,", TEXT('ECOLI data'!G20,"0.0"),")") -> (37.2 ,43.7) | F17: ='ECOLI data'!H20 -> 606 | G17: ='ECOLI data'!I20 -> 44.007 | H17: =IFERROR(CONCATENATE("(",TEXT('ECOLI data'!J20,"0.0")," ,", TEXT('ECOLI data'!K20,"0.0"),")"),"-") -> (40.6 ,47.7)
B18: ='ECOLI data'!B21 -> 2019-12-01 | C18: ='ECOLI data'!D21 -> 626 | D18: ='ECOLI data'!E21 -> 40.876 | E18: =CONCATENATE("(",TEXT('ECOLI data'!F21,"0.0")," ,", TEXT('ECOLI data'!G21,"0.0"),")") -> (37.7 ,44.2) | F18: ='ECOLI data'!H21 -> 568 | G18: ='ECOLI data'!I21 -> 41.248 | H18: =IFERROR(CONCATENATE("(",TEXT('ECOLI data'!J21,"0.0")," ,", TEXT('ECOLI data'!K21,"0.0"),")"),"-") -> (37.9 ,44.8)
B19: ='ECOLI data'!B22 -> 2020-03-01 | C19: ='ECOLI data'!D22 -> 538 | D19: ='ECOLI data'!E22 -> 36.451 | E19: =CONCATENATE("(",TEXT('ECOLI data'!F22,"0.0")," ,", TEXT('ECOLI data'!G22,"0.0"),")") -> (33.4 ,39.7) | F19: ='ECOLI data'!H22 -> 514 | G19: ='ECOLI data'!I22 -> 37.821 | H19: =IFERROR(CONCATENATE("(",TEXT('ECOLI data'!J22,"0.0")," ,", TEXT('ECOLI data'!K22,"0.0"),")"),"-") -> (34.6 ,41.2)
B20: ='ECOLI data'!B23 -> 2020-06-01 | C20: ='ECOLI data'!D23 -> 429 | D20: ='ECOLI data'!E23 -> 39.687 | E20: =CONCATENATE("(",TEXT('ECOLI data'!F23,"0.0")," ,", TEXT('ECOLI data'!G23,"0.0"),")") -> (36.0 ,43.6) | F20: ='ECOLI data'!H23 -> 488 | G20: ='ECOLI data'!I23 -> 35.908 | H20: =IFERROR(CONCATENATE("(",TEXT('ECOLI data'!J23,"0.0")," ,", TEXT('ECOLI data'!K23,"0.0"),")"),"-") -> (32.8 ,39.2)
B21: ='ECOLI data'!B24 -> 2020-09-01 | C21: ='ECOLI data'!D24 -> 547 | D21: ='ECOLI data'!E24 -> 41.9484 | E21: =CONCATENATE("(",TEXT('ECOLI data'!F24,"0.0")," ,", TEXT('ECOLI data'!G24,"0.0"),")") -> (38.5 ,45.6) | F21: ='ECOLI data'!H24 -> 614 | G21: ='ECOLI data'!I24 -> 44.6881 | H21: =IFERROR(CONCATENATE("(",TEXT('ECOLI data'!J24,"0.0")," ,", TEXT('ECOLI data'!K24,"0.0"),")"),"-") -> (41.2 ,48.4)
B22: ='ECOLI data'!B25 -> 2020-12-31 | C22: ='ECOLI data'!D25 -> 555 | D22: ='ECOLI data'!E25 -> 40.8752 | E22: =CONCATENATE("(",TEXT('ECOLI data'!F25,"0.0")," ,", TEXT('ECOLI data'!G25,"0.0"),")") -> (37.5 ,44.4) | F22: ='ECOLI data'!H25 -> 521 | G22: ='ECOLI data'!I25 -> 37.9194 | H22: =IFERROR(CONCATENATE("(",TEXT('ECOLI data'!J25,"0.0")," ,", TEXT('ECOLI data'!K25,"0.0"),")"),"-") -> (34.7 ,41.3)
B23: ='ECOLI data'!B26 -> 2021-03-31 | C23: ='ECOLI data'!D26 -> 468 | D23: ='ECOLI data'!E26 -> 34.5978 | E23: =CONCATENATE("(",TEXT('ECOLI data'!F26,"0.0")," ,", TEXT('ECOLI data'!G26,"0.0"),")") -> (31.5 ,37.9) | F23: ='ECOLI data'!H26 -> 493 | G23: ='ECOLI data'!I26 -> 36.5786 | H23: =IFERROR(CONCATENATE("(",TEXT('ECOLI data'!J26,"0.0")," ,", TEXT('ECOLI data'!K26,"0.0"),")"),"-") -> (33.4 ,40.0)
B24: ='ECOLI data'!B27 -> 2021-06-30 | C24: ='ECOLI data'!D27 -> 532 | D24: ='ECOLI data'!E27 -> 38.1573 | E24: =CONCATENATE("(",TEXT('ECOLI data'!F27,"0.0")," ,", TEXT('ECOLI data'!G27,"0.0"),")") -> (35.0 ,41.5) | F24: ='ECOLI data'!H27 -> 571 | G24: ='ECOLI data'!I27 -> 41.9004 | H24: =IFERROR(CONCATENATE("(",TEXT('ECOLI data'!J27,"0.0")," ,", TEXT('ECOLI data'!K27,"0.0"),")"),"-") -> (38.5 ,45.5)
B25: ='ECOLI data'!B28 -> 2021-09-01 | C25: ='ECOLI data'!D28 -> 604 | D25: ='ECOLI data'!E28 -> 41.4731 | E25: =CONCATENATE("(",TEXT('ECOLI data'!F28,"0.0")," ,", TEXT('ECOLI data'!G28,"0.0"),")") -> (38.2 ,44.9) | F25: ='ECOLI data'!H28 -> 566 | G25: ='ECOLI data'!I28 -> 41.082 | H25: =IFERROR(CONCATENATE("(",TEXT('ECOLI data'!J28,"0.0")," ,", TEXT('ECOLI data'!K28,"0.0"),")"),"-") -> (37.8 ,44.6)
B26: ='ECOLI data'!B29 -> 2021-12-01 | C26: ='ECOLI data'!D29 -> 509 | D26: ='ECOLI data'!E29 -> 34.0753 | E26: =CONCATENATE("(",TEXT('ECOLI data'!F29,"0.0")," ,", TEXT('ECOLI data'!G29,"0.0"),")") -> (31.2 ,37.2) | F26: ='ECOLI data'!H29 -> 549 | G26: ='ECOLI data'!I29 -> 39.8481 | H26: =IFERROR(CONCATENATE("(",TEXT('ECOLI data'!J29,"0.0")," ,", TEXT('ECOLI data'!K29,"0.0"),")"),"-") -> (36.6 ,43.3)

Sheet ECOLI data (hidden)
A1: Trend data | R1: u-chart data
A3: add a new line for current quarter
U4: change this
D5: ECBHCAI | E5: ECBHCAI | F5: ECBHCAI | G5: ECBHCAI | H5: ECBCOM | I5: ECBCOM | J5: ECBCOM | K5: ECBCOM | L5: ECBHCAI | M5: ECBCOM | T5: current quarter end | U5: 2021-12-31 | V5: 3 | W5: 4 | X5: 5 | Y5: 6 | AA5: 3 | AB5: 4 | AC5: 5 | AD5: 6
D6: 2 | E6: 4 | F6: 5 | G6: 6 | H6: 2 | I6: 4 | J6: 5 | K6: 6 | L6: 3 | M6: 3
C7: ref | D7: Healthcare associated Cases | E7: Healthcare associated rate | F7: Healthcare associated lower CI | G7: Healthcare associated upper CI | H7: Community associatedCases | I7: Community associatedrate | J7: Community associated lower CI | K7: Community associated upper CI | L7: ALL beds | M7: Pop | V7: ECBHCAI | AA7: ECBCOM
A8: 201603 | B8: 2016-09-24 | C8: =CONCATENATE(A8,'ECOLI Data and Charts'!B$1) -> 201603Scotland | D8: =VLOOKUP(CONCATENATE(D$5,$C8),'trend data'!$A$2:$O$11161,D$6,FALSE) -> 582 | E8: =ROUND(VLOOKUP(CONCATENATE(E$5,$C8),'trend data'!$A$2:$O$11161,E$6,FALSE),3) -> 36.652 | F8: =ROUND(VLOOKUP(CONCATENATE(F$5,$C8),'trend data'!$A$2:$O$11161,F$6,FALSE),3) -> 33.735 | G8: =ROUND(VLOOKUP(CONCATENATE(G$5,$C8),'trend data'!$A$2:$O$11161,G$6,FALSE),3) -> 39.755 | H8: =IFERROR(VLOOKUP(CONCATENATE(H$5,$C8),'trend data'!$A$2:$O$11161,H$6,FALSE),"-") -> 719 | I8: =IFERROR(ROUND(VLOOKUP(CONCATENATE(I$5,$C8),'trend data'!$A$2:$O$11161,I$6,FALSE),3),"-") -> 52.924 | J8: =IFERROR(ROUND(VLOOKUP(CONCATENATE(J$5,$C8),'trend data'!$A$2:$O$11161,J$6,FALSE),3),"-") -> 49.125 | K8: =IFERROR(ROUND(VLOOKUP(CONCATENATE(K$5,$C8),'trend data'!$A$2:$O$11161,K$6,FALSE),3),"-") -> 56.938 | L8: =VLOOKUP(CONCATENATE(L$5,$C8),'trend data'!$A$2:$O$11161,L$6,FALSE) -> 1587890 | M8: =ROUND(VLOOKUP(CONCATENATE(M$5,$C8),'trend data'!$A$2:$O$11161,M$6,FALSE),2) -> 1358558.47 | R8: change to last 12 quarters | V8: Healthcare associated rate | W8: Healthcare associated av rate | X8: Healthcare associated UWL 2sd | Y8: Healthcare associated UWL 3sd | AA8: Community associated rate | AB8: Community associated av rate | AC8: Community associated UWL 2sd | AD8: Community associated UWL 3 sd
A9: 201604 | B9: 2016-12-24 | C9: =CONCATENATE(A9,'ECOLI Data and Charts'!B$1) -> 201604Scotland | D9: =VLOOKUP(CONCATENATE(D$5,$C9),'trend data'!$A$2:$O$11161,D$6,FALSE) -> 564 | E9: =ROUND(VLOOKUP(CONCATENATE(E$5,$C9),'trend data'!$A$2:$O$11161,E$6,FALSE),3) -> 35.434 | F9: =ROUND(VLOOKUP(CONCATENATE(F$5,$C9),'trend data'!$A$2:$O$11161,F$6,FALSE),3) -> 32.57 | G9: =ROUND(VLOOKUP(CONCATENATE(G$5,$C9),'trend data'!$A$2:$O$11161,G$6,FALSE),3) -> 38.483 | H9: =IFERROR(VLOOKUP(CONCATENATE(H$5,$C9),'trend data'!$A$2:$O$11161,H$6,FALSE),"-") -> 631 | I9: =IFERROR(ROUND(VLOOKUP(CONCATENATE(I$5,$C9),'trend data'!$A$2:$O$11161,I$6,FALSE),3),"-") -> 46.446 | J9: =IFERROR(ROUND(VLOOKUP(CONCATENATE(J$5,$C9),'trend data'!$A$2:$O$11161,J$6,FALSE),3),"-") -> 42.892 | K9: =IFERROR(ROUND(VLOOKUP(CONCATENATE(K$5,$C9),'trend data'!$A$2:$O$11161,K$6,FALSE),3),"-") -> 50.216 | L9: =VLOOKUP(CONCATENATE(L$5,$C9),'trend data'!$A$2:$O$11161,L$6,FALSE) -> 1591683 | M9: =ROUND(VLOOKUP(CONCATENATE(M$5,$C9),'trend data'!$A$2:$O$11161,M$6,FALSE),2) -> 1358558.47 | R9: =YEAR(U9)&"0"&IF(MONTH(U9)<4,1,IF(MONTH(U9)<7,2,IF(MONTH(U9)<10,3,4))) -> 201901 | S9: =CONCATENATE(V$7,$R9,'ECOLI Data and Charts'!B$1) -> ECBHCAI201901Scotland | T9: 1 | U9: =U10-92 -> 2019-03-25 | V9: =ROUND(VLOOKUP($S9,'data for u-p-charts'!$A$2:$F$5000,V$5,FALSE),2) -> 37.24 | W9: =ROUND(VLOOKUP($S9,'data for u-p-charts'!$A$2:$F$5000,W$5,FALSE),2) -> 39.03 | X9: =ROUND(VLOOKUP($S9,'data for u-p-charts'!$A$2:$F$5000,X$5,FALSE),2) -> 42.22 | Y9: =ROUND(VLOOKUP($S9,'data for u-p-charts'!$A$2:$F$5000,Y$5,FALSE),2) -> 43.81 | Z9: =CONCATENATE(AA$7,$R9,'ECOLI Data and Charts'!$B$1) -> ECBCOM201901Scotland | AA9: =ROUND(VLOOKUP($Z9,'data for u-p-charts'!$A$2:$F$5000,AA$5,FALSE),2) -> 44.39 | AB9: =ROUND(VLOOKUP($Z9,'data for u-p-charts'!$A$2:$F$5000,AB$5,FALSE),2) -> 41.16 | AC9: =ROUND(VLOOKUP($Z9,'data for u-p-charts'!$A$2:$F$5000,AC$5,FALSE),2) -> 44.66 | AD9: =ROUND(VLOOKUP($Z9,'data for u-p-charts'!$A$2:$F$5000,AD$5,FALSE),2) -> 46.41
A10: 201701 | B10: 2017-03-01 | C10: =CONCATENATE(A10,'ECOLI Data and Charts'!B$1) -> 201701Scotland | D10: =VLOOKUP(CONCATENATE(D$5,$C10),'trend data'!$A$2:$O$11161,D$6,FALSE) -> 547 | E10: =ROUND(VLOOKUP(CONCATENATE(E$5,$C10),'trend data'!$A$2:$O$11161,E$6,FALSE),3) -> 34.591 | F10: =ROUND(VLOOKUP(CONCATENATE(F$5,$C10),'trend data'!$A$2:$O$11161,F$6,FALSE),3) -> 31.752 | G10: =ROUND(VLOOKUP(CONCATENATE(G$5,$C10),'trend data'!$A$2:$O$11161,G$6,FALSE),3) -> 37.615 | H10: =IFERROR(VLOOKUP(CONCATENATE(H$5,$C10),'trend data'!$A$2:$O$11161,H$6,FALSE),"-") -> 571 | I10: =IFERROR(ROUND(VLOOKUP(CONCATENATE(I$5,$C10),'trend data'!$A$2:$O$11161,I$6,FALSE),3),"-") -> 42.688 | J10: =IFERROR(ROUND(VLOOKUP(CONCATENATE(J$5,$C10),'trend data'!$A$2:$O$11161,J$6,FALSE),3),"-") -> 39.258 | K10: =IFERROR(ROUND(VLOOKUP(CONCATENATE(K$5,$C10),'trend data'!$A$2:$O$11161,K$6,FALSE),3),"-") -> 46.337 | L10: =VLOOKUP(CONCATENATE(L$5,$C10),'trend data'!$A$2:$O$11161,L$6,FALSE) -> 1581339 | M10: =ROUND(VLOOKUP(CONCATENATE(M$5,$C10),'trend data'!$A$2:$O$11161,M$6,FALSE),2) -> 1337621.92 | R10: =YEAR(U10)&"0"&IF(MONTH(U10)<4,1,IF(MONTH(U10)<7,2,IF(MONTH(U10)<10,3,4))) -> 201902 | S10: =CONCATENATE(V$7,R10,'ECOLI Data and Charts'!B$1) -> ECBHCAI201902Scotland | T10: 2 | U10: 2019-06-25 | V10: =ROUND(VLOOKUP($S10,'data for u-p-charts'!$A$2:$F$5000,V$5,FALSE),2) -> 38.77 | W10: =ROUND(VLOOKUP($S10,'data for u-p-charts'!$A$2:$F$5000,W$5,FALSE),2) -> 39.03 | X10: =ROUND(VLOOKUP($S10,'data for u-p-charts'!$A$2:$F$5000,X$5,FALSE),2) -> 42.25 | Y10: =ROUND(VLOOKUP($S10,'data for u-p-charts'!$A$2:$F$5000,Y$5,FALSE),2) -> 43.86 | Z10: =CONCATENATE(AA$7,$R10,'ECOLI Data and Charts'!$B$1) -> ECBCOM201902Scotland | AA10: =ROUND(VLOOKUP($Z10,'data for u-p-charts'!$A$2:$F$5000,AA$5,FALSE),2) -> 44.34 | AB10: =ROUND(VLOOKUP($Z10,'data for u-p-charts'!$A$2:$F$5000,AB$5,FALSE),2) -> 41.16 | AC10: =ROUND(VLOOKUP($Z10,'data for u-p-charts'!$A$2:$F$5000,AC$5,FALSE),2) -> 44.64 | AD10: =ROUND(VLOOKUP($Z10,'data for u-p-charts'!$A$2:$F$5000,AD$5,FALSE),2) -> 46.38
A11: 201702 | B11: 2017-06-01 | C11: =CONCATENATE(A11,'ECOLI Data and Charts'!B$1) -> 201702Scotland | D11: =VLOOKUP(CONCATENATE(D$5,$C11),'trend data'!$A$2:$O$11161,D$6,FALSE) -> 539 | E11: =ROUND(VLOOKUP(CONCATENATE(E$5,$C11),'trend data'!$A$2:$O$11161,E$6,FALSE),3) -> 34.761 | F11: =ROUND(VLOOKUP(CONCATENATE(F$5,$C11),'trend data'!$A$2:$O$11161,F$6,FALSE),3) -> 31.888 | G11: =ROUND(VLOOKUP(CONCATENATE(G$5,$C11),'trend data'!$A$2:$O$11161,G$6,FALSE),3) -> 37.824 | H11: =IFERROR(VLOOKUP(CONCATENATE(H$5,$C11),'trend data'!$A$2:$O$11161,H$6,FALSE),"-") -> 657 | I11: =IFERROR(ROUND(VLOOKUP(CONCATENATE(I$5,$C11),'trend data'!$A$2:$O$11161,I$6,FALSE),3),"-") -> 48.577 | J11: =IFERROR(ROUND(VLOOKUP(CONCATENATE(J$5,$C11),'trend data'!$A$2:$O$11161,J$6,FALSE),3),"-") -> 44.933 | K11: =IFERROR(ROUND(VLOOKUP(CONCATENATE(K$5,$C11),'trend data'!$A$2:$O$11161,K$6,FALSE),3),"-") -> 52.438 | L11: =VLOOKUP(CONCATENATE(L$5,$C11),'trend data'!$A$2:$O$11161,L$6,FALSE) -> 1550567 | M11: =ROUND(VLOOKUP(CONCATENATE(M$5,$C11),'trend data'!$A$2:$O$11161,M$6,FALSE),2) -> 1352484.38 | R11: =YEAR(U11)&"0"&IF(MONTH(U11)<4,1,IF(MONTH(U11)<7,2,IF(MONTH(U11)<10,3,4))) -> 201903 | S11: =CONCATENATE(V$7,R11,'ECOLI Data and Charts'!B$1) -> ECBHCAI201903Scotland | T11: 3 | U11: 2019-09-25 | V11: =ROUND(VLOOKUP($S11,'data for u-p-charts'!$A$2:$F$5000,V$5,FALSE),2) -> 40.35 | W11: =ROUND(VLOOKUP($S11,'data for u-p-charts'!$A$2:$F$5000,W$5,FALSE),2) -> 39.03 | X11: =ROUND(VLOOKUP($S11,'data for u-p-charts'!$A$2:$F$5000,X$5,FALSE),2) -> 42.25 | Y11: =ROUND(VLOOKUP($S11,'data for u-p-charts'!$A$2:$F$5000,Y$5,FALSE),2) -> 43.86 | Z11: =CONCATENATE(AA$7,$R11,'ECOLI Data and Charts'!$B$1) -> ECBCOM201903Scotland | AA11: =ROUND(VLOOKUP($Z11,'data for u-p-charts'!$A$2:$F$5000,AA$5,FALSE),2) -> 44.01 | AB11: =ROUND(VLOOKUP($Z11,'data for u-p-charts'!$A$2:$F$5000,AB$5,FALSE),2) -> 41.16 | AC11: =ROUND(VLOOKUP($Z11,'data for u-p-charts'!$A$2:$F$5000,AC$5,FALSE),2) -> 44.62 | AD11: =ROUND(VLOOKUP($Z11,'data for u-p-charts'!$A$2:$F$5000,AD$5,FALSE),2) -> 46.35
A12: 201703 | B12: 2017-09-01 | C12: =CONCATENATE(A12,'ECOLI Data and Charts'!B$1) -> 201703Scotland | D12: =VLOOKUP(CONCATENATE(D$5,$C12),'trend data'!$A$2:$O$11161,D$6,FALSE) -> 585 | E12: =ROUND(VLOOKUP(CONCATENATE(E$5,$C12),'trend data'!$A$2:$O$11161,E$6,FALSE),3) -> 38.016 | F12: =ROUND(VLOOKUP(CONCATENATE(F$5,$C12),'trend data'!$A$2:$O$11161,F$6,FALSE),3) -> 34.997 | G12: =ROUND(VLOOKUP(CONCATENATE(G$5,$C12),'trend data'!$A$2:$O$11161,G$6,FALSE),3) -> 41.225 | H12: =IFERROR(VLOOKUP(CONCATENATE(H$5,$C12),'trend data'!$A$2:$O$11161,H$6,FALSE),"-") -> 677 | I12: =IFERROR(ROUND(VLOOKUP(CONCATENATE(I$5,$C12),'trend data'!$A$2:$O$11161,I$6,FALSE),3),"-") -> 49.512 | J12: =IFERROR(ROUND(VLOOKUP(CONCATENATE(J$5,$C12),'trend data'!$A$2:$O$11161,J$6,FALSE),3),"-") -> 45.852 | K12: =IFERROR(ROUND(VLOOKUP(CONCATENATE(K$5,$C12),'trend data'!$A$2:$O$11161,K$6,FALSE),3),"-") -> 53.386 | L12: =VLOOKUP(CONCATENATE(L$5,$C12),'trend data'!$A$2:$O$11161,L$6,FALSE) -> 1538826 | M12: =ROUND(VLOOKUP(CONCATENATE(M$5,$C12),'trend data'!$A$2:$O$11161,M$6,FALSE),2) -> 1367346.85 | R12: 201904 | S12: =CONCATENATE(V$7,R12,'ECOLI Data and Charts'!B$1) -> ECBHCAI201904Scotland | T12: 4 | U12: 2019-12-26 | V12: =ROUND(VLOOKUP($S12,'data for u-p-charts'!$A$2:$F$5000,V$5,FALSE),2) -> 40.88 | W12: =ROUND(VLOOKUP($S12,'data for u-p-charts'!$A$2:$F$5000,W$5,FALSE),2) -> 39.03 | X12: =ROUND(VLOOKUP($S12,'data for u-p-charts'!$A$2:$F$5000,X$5,FALSE),2) -> 42.22 | Y12: =ROUND(VLOOKUP($S12,'data for u-p-charts'!$A$2:$F$5000,Y$5,FALSE),2) -> 43.82 | Z12: =CONCATENATE(AA$7,$R12,'ECOLI Data and Charts'!$B$1) -> ECBCOM201904Scotland | AA12: =ROUND(VLOOKUP($Z12,'data for u-p-charts'!$A$2:$F$5000,AA$5,FALSE),2) -> 41.25 | AB12: =ROUND(VLOOKUP($Z12,'data for u-p-charts'!$A$2:$F$5000,AB$5,FALSE),2) -> 41.16 | AC12: =ROUND(VLOOKUP($Z12,'data for u-p-charts'!$A$2:$F$5000,AC$5,FALSE),2) -> 44.62 | AD12: =ROUND(VLOOKUP($Z12,'data for u-p-charts'!$A$2:$F$5000,AD$5,FALSE),2) -> 46.35
A13: 201704 | B13: 2017-12-01 | C13: =CONCATENATE(A13,'ECOLI Data and Charts'!B$1) -> 201704Scotland | D13: =VLOOKUP(CONCATENATE(D$5,$C13),'trend data'!$A$2:$O$11161,D$6,FALSE) -> 531 | E13: =ROUND(VLOOKUP(CONCATENATE(E$5,$C13),'trend data'!$A$2:$O$11161,E$6,FALSE),3) -> 33.715 | F13: =ROUND(VLOOKUP(CONCATENATE(F$5,$C13),'trend data'!$A$2:$O$11161,F$6,FALSE),3) -> 30.908 | G13: =ROUND(VLOOKUP(CONCATENATE(G$5,$C13),'trend data'!$A$2:$O$11161,G$6,FALSE),3) -> 36.709 | H13: =IFERROR(VLOOKUP(CONCATENATE(H$5,$C13),'trend data'!$A$2:$O$11161,H$6,FALSE),"-") -> 656 | I13: =IFERROR(ROUND(VLOOKUP(CONCATENATE(I$5,$C13),'trend data'!$A$2:$O$11161,I$6,FALSE),3),"-") -> 47.976 | J13: =IFERROR(ROUND(VLOOKUP(CONCATENATE(J$5,$C13),'trend data'!$A$2:$O$11161,J$6,FALSE),3),"-") -> 44.374 | K13: =IFERROR(ROUND(VLOOKUP(CONCATENATE(K$5,$C13),'trend data'!$A$2:$O$11161,K$6,FALSE),3),"-") -> 51.792 | L13: =VLOOKUP(CONCATENATE(L$5,$C13),'trend data'!$A$2:$O$11161,L$6,FALSE) -> 1574967 | M13: =ROUND(VLOOKUP(CONCATENATE(M$5,$C13),'trend data'!$A$2:$O$11161,M$6,FALSE),2) -> 1367346.85 | R13: 202001 | S13: =CONCATENATE(V$7,R13,'ECOLI Data and Charts'!B$1) -> ECBHCAI202001Scotland | T13: 5 | U13: 2020-03-27 | V13: =ROUND(VLOOKUP($S13,'data for u-p-charts'!$A$2:$F$5000,V$5,FALSE),2) -> 36.45 | W13: =ROUND(VLOOKUP($S13,'data for u-p-charts'!$A$2:$F$5000,W$5,FALSE),2) -> 39.03 | X13: =ROUND(VLOOKUP($S13,'data for u-p-charts'!$A$2:$F$5000,X$5,FALSE),2) -> 42.28 | Y13: =ROUND(VLOOKUP($S13,'data for u-p-charts'!$A$2:$F$5000,Y$5,FALSE),2) -> 43.91 | Z13: =CONCATENATE(AA$7,$R13,'ECOLI Data and Charts'!$B$1) -> ECBCOM202001Scotland | AA13: =ROUND(VLOOKUP($Z13,'data for u-p-charts'!$A$2:$F$5000,AA$5,FALSE),2) -> 37.82 | AB13: =ROUND(VLOOKUP($Z13,'data for u-p-charts'!$A$2:$F$5000,AB$5,FALSE),2) -> 41.16 | AC13: =ROUND(VLOOKUP($Z13,'data for u-p-charts'!$A$2:$F$5000,AC$5,FALSE),2) -> 44.64 | AD13: =ROUND(VLOOKUP($Z13,'data for u-p-charts'!$A$2:$F$5000,AD$5,FALSE),2) -> 46.38
A14: 201801 | B14: 2018-03-01 | C14: =CONCATENATE(A14,'ECOLI Data and Charts'!B$1) -> 201801Scotland | D14: =IFERROR(VLOOKUP(CONCATENATE(D$5,$C14),'trend data'!$A$2:$O$11161,D$6,FALSE),"-") -> 524 | E14: =ROUND(VLOOKUP(CONCATENATE(E$5,$C14),'trend data'!$A$2:$O$11161,E$6,FALSE),3) -> 33.055 | F14: =ROUND(VLOOKUP(CONCATENATE(F$5,$C14),'trend data'!$A$2:$O$11161,F$6,FALSE),3) -> 30.285 | G14: =ROUND(VLOOKUP(CONCATENATE(G$5,$C14),'trend data'!$A$2:$O$11161,G$6,FALSE),3) -> 36.01 | H14: =IFERROR(VLOOKUP(CONCATENATE(H$5,$C14),'trend data'!$A$2:$O$11161,H$6,FALSE),"-") -> 578 | I14: =IFERROR(ROUND(VLOOKUP(CONCATENATE(I$5,$C14),'trend data'!$A$2:$O$11161,I$6,FALSE),3),"-") -> 43.105 | J14: =IFERROR(ROUND(VLOOKUP(CONCATENATE(J$5,$C14),'trend data'!$A$2:$O$11161,J$6,FALSE),3),"-") -> 39.662 | K14: =IFERROR(ROUND(VLOOKUP(CONCATENATE(K$5,$C14),'trend data'!$A$2:$O$11161,K$6,FALSE),3),"-") -> 46.767 | L14: =VLOOKUP(CONCATENATE(L$5,$C14),'trend data'!$A$2:$O$11161,L$6,FALSE) -> 1585233 | M14: =ROUND(VLOOKUP(CONCATENATE(M$5,$C14),'trend data'!$A$2:$O$11161,M$6,FALSE),2) -> 1340901.37 | R14: 202002 | S14: =CONCATENATE(V$7,R14,'ECOLI Data and Charts'!B$1) -> ECBHCAI202002Scotland | T14: 6 | U14: 2020-06-27 | V14: =ROUND(VLOOKUP($S14,'data for u-p-charts'!$A$2:$F$5000,V$5,FALSE),2) -> 39.69 | W14: =ROUND(VLOOKUP($S14,'data for u-p-charts'!$A$2:$F$5000,W$5,FALSE),2) -> 39.03 | X14: =ROUND(VLOOKUP($S14,'data for u-p-charts'!$A$2:$F$5000,X$5,FALSE),2) -> 42.83 | Y14: =ROUND(VLOOKUP($S14,'data for u-p-charts'!$A$2:$F$5000,Y$5,FALSE),2) -> 44.73 | Z14: =CONCATENATE(AA$7,$R14,'ECOLI Data and Charts'!$B$1) -> ECBCOM202002Scotland | AA14: =ROUND(VLOOKUP($Z14,'data for u-p-charts'!$A$2:$F$5000,AA$5,FALSE),2) -> 35.91 | AB14: =ROUND(VLOOKUP($Z14,'data for u-p-charts'!$A$2:$F$5000,AB$5,FALSE),2) -> 41.16 | AC14: =ROUND(VLOOKUP($Z14,'data for u-p-charts'!$A$2:$F$5000,AC$5,FALSE),2) -> 44.64 | AD14: =ROUND(VLOOKUP($Z14,'data for u-p-charts'!$A$2:$F$5000,AD$5,FALSE),2) -> 46.38
A15: 201802 | B15: 2018-06-01 | C15: =CONCATENATE(A15,'ECOLI Data and Charts'!B$1) -> 201802Scotland | D15: =IFERROR(VLOOKUP(CONCATENATE(D$5,$C15),'trend data'!$A$2:$O$11161,D$6,FALSE),"-") -> 580 | E15: =ROUND(VLOOKUP(CONCATENATE(E$5,$C15),'trend data'!$A$2:$O$11161,E$6,FALSE),3) -> 38.024 | F15: =ROUND(VLOOKUP(CONCATENATE(F$5,$C15),'trend data'!$A$2:$O$11161,F$6,FALSE),3) -> 34.992 | G15: =ROUND(VLOOKUP(CONCATENATE(G$5,$C15),'trend data'!$A$2:$O$11161,G$6,FALSE),3) -> 41.249 | H15: =IFERROR(VLOOKUP(CONCATENATE(H$5,$C15),'trend data'!$A$2:$O$11161,H$6,FALSE),"-") -> 598 | I15: =IFERROR(ROUND(VLOOKUP(CONCATENATE(I$5,$C15),'trend data'!$A$2:$O$11161,I$6,FALSE),3),"-") -> 44.107 | J15: =IFERROR(ROUND(VLOOKUP(CONCATENATE(J$5,$C15),'trend data'!$A$2:$O$11161,J$6,FALSE),3),"-") -> 40.642 | K15: =IFERROR(ROUND(VLOOKUP(CONCATENATE(K$5,$C15),'trend data'!$A$2:$O$11161,K$6,FALSE),3),"-") -> 47.788 | L15: =VLOOKUP(CONCATENATE(L$5,$C15),'trend data'!$A$2:$O$11161,L$6,FALSE) -> 1525345 | M15: =ROUND(VLOOKUP(CONCATENATE(M$5,$C15),'trend data'!$A$2:$O$11161,M$6,FALSE),2) -> 1355800.27 | R15: 202003 | S15: =CONCATENATE(V$7,R15,'ECOLI Data and Charts'!B$1) -> ECBHCAI202003Scotland | T15: 7 | U15: 2020-09-27 | V15: =ROUND(VLOOKUP($S15,'data for u-p-charts'!$A$2:$F$5000,V$5,FALSE),2) -> 41.95 | W15: =ROUND(VLOOKUP($S15,'data for u-p-charts'!$A$2:$F$5000,W$5,FALSE),2) -> 39.03 | X15: =ROUND(VLOOKUP($S15,'data for u-p-charts'!$A$2:$F$5000,X$5,FALSE),2) -> 42.49 | Y15: =ROUND(VLOOKUP($S15,'data for u-p-charts'!$A$2:$F$5000,Y$5,FALSE),2) -> 44.22 | Z15: =CONCATENATE(AA$7,$R15,'ECOLI Data and Charts'!$B$1) -> ECBCOM202003Scotland | AA15: =ROUND(VLOOKUP($Z15,'data for u-p-charts'!$A$2:$F$5000,AA$5,FALSE),2) -> 44.69 | AB15: =ROUND(VLOOKUP($Z15,'data for u-p-charts'!$A$2:$F$5000,AB$5,FALSE),2) -> 41.16 | AC15: =ROUND(VLOOKUP($Z15,'data for u-p-charts'!$A$2:$F$5000,AC$5,FALSE),2) -> 44.63 | AD15: =ROUND(VLOOKUP($Z15,'data for u-p-charts'!$A$2:$F$5000,AD$5,FALSE),2) -> 46.36
A16: 201803 | B16: 2018-09-01 | C16: =CONCATENATE(A16,'ECOLI Data and Charts'!B$1) -> 201803Scotland | D16: =IFERROR(VLOOKUP(CONCATENATE(D$5,$C16),'trend data'!$A$2:$O$11161,D$6,FALSE),"-") -> 606 | E16: =ROUND(VLOOKUP(CONCATENATE(E$5,$C16),'trend data'!$A$2:$O$11161,E$6,FALSE),3) -> 40.089 | F16: =ROUND(VLOOKUP(CONCATENATE(F$5,$C16),'trend data'!$A$2:$O$11161,F$6,FALSE),3) -> 36.961 | G16: =ROUND(VLOOKUP(CONCATENATE(G$5,$C16),'trend data'!$A$2:$O$11161,G$6,FALSE),3) -> 43.412 | H16: =IFERROR(VLOOKUP(CONCATENATE(H$5,$C16),'trend data'!$A$2:$O$11161,H$6,FALSE),"-") -> 667 | I16: =IFERROR(ROUND(VLOOKUP(CONCATENATE(I$5,$C16),'trend data'!$A$2:$O$11161,I$6,FALSE),3),"-") -> 48.661 | J16: =IFERROR(ROUND(VLOOKUP(CONCATENATE(J$5,$C16),'trend data'!$A$2:$O$11161,J$6,FALSE),3),"-") -> 45.038 | K16: =IFERROR(ROUND(VLOOKUP(CONCATENATE(K$5,$C16),'trend data'!$A$2:$O$11161,K$6,FALSE),3),"-") -> 52.499 | L16: =VLOOKUP(CONCATENATE(L$5,$C16),'trend data'!$A$2:$O$11161,L$6,FALSE) -> 1511620 | M16: =ROUND(VLOOKUP(CONCATENATE(M$5,$C16),'trend data'!$A$2:$O$11161,M$6,FALSE),2) -> 1370699.18 | R16: 202004 | S16: =CONCATENATE(V$7,R16,'ECOLI Data and Charts'!B$1) -> ECBHCAI202004Scotland | T16: 8 | U16: 2020-12-28 | V16: =ROUND(VLOOKUP($S16,'data for u-p-charts'!$A$2:$F$5000,V$5,FALSE),2) -> 40.88 | W16: =ROUND(VLOOKUP($S16,'data for u-p-charts'!$A$2:$F$5000,W$5,FALSE),2) -> 39.03 | X16: =ROUND(VLOOKUP($S16,'data for u-p-charts'!$A$2:$F$5000,X$5,FALSE),2) -> 42.42 | Y16: =ROUND(VLOOKUP($S16,'data for u-p-charts'!$A$2:$F$5000,Y$5,FALSE),2) -> 44.12 | Z16: =CONCATENATE(AA$7,$R16,'ECOLI Data and Charts'!$B$1) -> ECBCOM202004Scotland | AA16: =ROUND(VLOOKUP($Z16,'data for u-p-charts'!$A$2:$F$5000,AA$5,FALSE),2) -> 37.92 | AB16: =ROUND(VLOOKUP($Z16,'data for u-p-charts'!$A$2:$F$5000,AB$5,FALSE),2) -> 41.16 | AC16: =ROUND(VLOOKUP($Z16,'data for u-p-charts'!$A$2:$F$5000,AC$5,FALSE),2) -> 44.63 | AD16: =ROUND(VLOOKUP($Z16,'data for u-p-charts'!$A$2:$F$5000,AD$5,FALSE),2) -> 46.36
A17: 201804 | B17: 2018-12-01 | C17: =CONCATENATE(A17,'ECOLI Data and Charts'!B$1) -> 201804Scotland | D17: =IFERROR(VLOOKUP(CONCATENATE(D$5,$C17),'trend data'!$A$2:$O$11161,D$6,FALSE),"-") -> 582 | E17: =ROUND(VLOOKUP(CONCATENATE(E$5,$C17),'trend data'!$A$2:$O$11161,E$6,FALSE),3) -> 38.234 | F17: =ROUND(VLOOKUP(CONCATENATE(F$5,$C17),'trend data'!$A$2:$O$11161,F$6,FALSE),3) -> 35.19 | G17: =ROUND(VLOOKUP(CONCATENATE(G$5,$C17),'trend data'!$A$2:$O$11161,G$6,FALSE),3) -> 41.47 | H17: =IFERROR(VLOOKUP(CONCATENATE(H$5,$C17),'trend data'!$A$2:$O$11161,H$6,FALSE),"-") -> 603 | I17: =IFERROR(ROUND(VLOOKUP(CONCATENATE(I$5,$C17),'trend data'!$A$2:$O$11161,I$6,FALSE),3),"-") -> 43.992 | J17: =IFERROR(ROUND(VLOOKUP(CONCATENATE(J$5,$C17),'trend data'!$A$2:$O$11161,J$6,FALSE),3),"-") -> 40.55 | K17: =IFERROR(ROUND(VLOOKUP(CONCATENATE(K$5,$C17),'trend data'!$A$2:$O$11161,K$6,FALSE),3),"-") -> 47.648 | L17: =VLOOKUP(CONCATENATE(L$5,$C17),'trend data'!$A$2:$O$11161,L$6,FALSE) -> 1522217 | M17: =ROUND(VLOOKUP(CONCATENATE(M$5,$C17),'trend data'!$A$2:$O$11161,M$6,FALSE),2) -> 1370699.18 | R17: 202101 | S17: =CONCATENATE(V$7,R17,'ECOLI Data and Charts'!B$1) -> ECBHCAI202101Scotland | T17: 9 | U17: 2021-03-30 | V17: =ROUND(VLOOKUP($S17,'data for u-p-charts'!$A$2:$F$5000,V$5,FALSE),2) -> 34.6 | W17: =ROUND(VLOOKUP($S17,'data for u-p-charts'!$A$2:$F$5000,W$5,FALSE),2) -> 39.03 | X17: =ROUND(VLOOKUP($S17,'data for u-p-charts'!$A$2:$F$5000,X$5,FALSE),2) -> 42.43 | Y17: =ROUND(VLOOKUP($S17,'data for u-p-charts'!$A$2:$F$5000,Y$5,FALSE),2) -> 44.13 | Z17: =CONCATENATE(AA$7,$R17,'ECOLI Data and Charts'!$B$1) -> ECBCOM202101Scotland | AA17: =ROUND(VLOOKUP($Z17,'data for u-p-charts'!$A$2:$F$5000,AA$5,FALSE),2) -> 36.58 | AB17: =ROUND(VLOOKUP($Z17,'data for u-p-charts'!$A$2:$F$5000,AB$5,FALSE),2) -> 41.16 | AC17: =ROUND(VLOOKUP($Z17,'data for u-p-charts'!$A$2:$F$5000,AC$5,FALSE),2) -> 44.66 | AD17: =ROUND(VLOOKUP($Z17,'data for u-p-charts'!$A$2:$F$5000,AD$5,FALSE),2) -> 46.41
A18: 201901 | B18: 2019-03-01 | C18: =CONCATENATE(A18,'ECOLI Data and Charts'!B$1) -> 201901Scotland | D18: =IFERROR(VLOOKUP(CONCATENATE(D$5,$C18),'trend data'!$A$2:$O$11161,D$6,FALSE),"-") -> 573 | E18: =ROUND(VLOOKUP(CONCATENATE(E$5,$C18),'trend data'!$A$2:$O$11161,E$6,FALSE),3) -> 37.244 | F18: =ROUND(VLOOKUP(CONCATENATE(F$5,$C18),'trend data'!$A$2:$O$11161,F$6,FALSE),3) -> 34.256 | G18: =ROUND(VLOOKUP(CONCATENATE(G$5,$C18),'trend data'!$A$2:$O$11161,G$6,FALSE),3) -> 40.422 | H18: =IFERROR(VLOOKUP(CONCATENATE(H$5,$C18),'trend data'!$A$2:$O$11161,H$6,FALSE),"-") -> 598 | I18: =IFERROR(ROUND(VLOOKUP(CONCATENATE(I$5,$C18),'trend data'!$A$2:$O$11161,I$6,FALSE),3),"-") -> 44.391 | J18: =IFERROR(ROUND(VLOOKUP(CONCATENATE(J$5,$C18),'trend data'!$A$2:$O$11161,J$6,FALSE),3),"-") -> 40.904 | K18: =IFERROR(ROUND(VLOOKUP(CONCATENATE(K$5,$C18),'trend data'!$A$2:$O$11161,K$6,FALSE),3),"-") -> 48.096 | L18: =VLOOKUP(CONCATENATE(L$5,$C18),'trend data'!$A$2:$O$11161,L$6,FALSE) -> 1538510 | M18: =ROUND(VLOOKUP(CONCATENATE(M$5,$C18),'trend data'!$A$2:$O$11161,M$6,FALSE),2) -> 1347115.07 | R18: 202102 | S18: =CONCATENATE(V$7,R18,'ECOLI Data and Charts'!B$1) -> ECBHCAI202102Scotland | T18: 10 | U18: 2021-06-30 | V18: =ROUND(VLOOKUP($S18,'data for u-p-charts'!$A$2:$F$5000,V$5,FALSE),2) -> 38.16 | W18: =ROUND(VLOOKUP($S18,'data for u-p-charts'!$A$2:$F$5000,W$5,FALSE),2) -> 39.03 | X18: =ROUND(VLOOKUP($S18,'data for u-p-charts'!$A$2:$F$5000,X$5,FALSE),2) -> 42.38 | Y18: =ROUND(VLOOKUP($S18,'data for u-p-charts'!$A$2:$F$5000,Y$5,FALSE),2) -> 44.05 | Z18: =CONCATENATE(AA$7,$R18,'ECOLI Data and Charts'!$B$1) -> ECBCOM202102Scotland | AA18: =ROUND(VLOOKUP($Z18,'data for u-p-charts'!$A$2:$F$5000,AA$5,FALSE),2) -> 41.9 | AB18: =ROUND(VLOOKUP($Z18,'data for u-p-charts'!$A$2:$F$5000,AB$5,FALSE),2) -> 41.16 | AC18: =ROUND(VLOOKUP($Z18,'data for u-p-charts'!$A$2:$F$5000,AC$5,FALSE),2) -> 44.64 | AD18: =ROUND(VLOOKUP($Z18,'data for u-p-charts'!$A$2:$F$5000,AD$5,FALSE),2) -> 46.38
A19: 201902 | B19: 2019-06-01 | C19: =CONCATENATE(A19,'ECOLI Data and Charts'!B$1) -> 201902Scotland | D19: =IFERROR(VLOOKUP(CONCATENATE(D$5,$C19),'trend data'!$A$2:$O$11161,D$6,FALSE),"-") -> 584 | E19: =ROUND(VLOOKUP(CONCATENATE(E$5,$C19),'trend data'!$A$2:$O$11161,E$6,FALSE),3) -> 38.771 | F19: =ROUND(VLOOKUP(CONCATENATE(F$5,$C19),'trend data'!$A$2:$O$11161,F$6,FALSE),3) -> 35.69 | G19: =ROUND(VLOOKUP(CONCATENATE(G$5,$C19),'trend data'!$A$2:$O$11161,G$6,FALSE),3) -> 42.047 | H19: =IFERROR(VLOOKUP(CONCATENATE(H$5,$C19),'trend data'!$A$2:$O$11161,H$6,FALSE),"-") -> 604 | I19: =IFERROR(ROUND(VLOOKUP(CONCATENATE(I$5,$C19),'trend data'!$A$2:$O$11161,I$6,FALSE),3),"-") -> 44.344 | J19: =IFERROR(ROUND(VLOOKUP(CONCATENATE(J$5,$C19),'trend data'!$A$2:$O$11161,J$6,FALSE),3),"-") -> 40.877 | K19: =IFERROR(ROUND(VLOOKUP(CONCATENATE(K$5,$C19),'trend data'!$A$2:$O$11161,K$6,FALSE),3),"-") -> 48.026 | L19: =VLOOKUP(CONCATENATE(L$5,$C19),'trend data'!$A$2:$O$11161,L$6,FALSE) -> 1506284 | M19: =ROUND(VLOOKUP(CONCATENATE(M$5,$C19),'trend data'!$A$2:$O$11161,M$6,FALSE),2) -> 1362083.01 | R19: 202103 | S19: =CONCATENATE(V$7,R19,'ECOLI Data and Charts'!B$1) -> ECBHCAI202103Scotland | T19: 11 | U19: =U20-92 -> 2021-09-30 | V19: =ROUND(VLOOKUP($S19,'data for u-p-charts'!$A$2:$F$5000,V$5,FALSE),2) -> 41.47 | W19: =ROUND(VLOOKUP($S19,'data for u-p-charts'!$A$2:$F$5000,W$5,FALSE),2) -> 39.03 | X19: =ROUND(VLOOKUP($S19,'data for u-p-charts'!$A$2:$F$5000,X$5,FALSE),2) -> 42.31 | Y19: =ROUND(VLOOKUP($S19,'data for u-p-charts'!$A$2:$F$5000,Y$5,FALSE),2) -> 43.94 | Z19: =CONCATENATE(AA$7,$R19,'ECOLI Data and Charts'!$B$1) -> ECBCOM202103Scotland | AA19: =ROUND(VLOOKUP($Z19,'data for u-p-charts'!$A$2:$F$5000,AA$5,FALSE),2) -> 41.08 | AB19: =ROUND(VLOOKUP($Z19,'data for u-p-charts'!$A$2:$F$5000,AB$5,FALSE),2) -> 41.16 | AC19: =ROUND(VLOOKUP($Z19,'data for u-p-charts'!$A$2:$F$5000,AC$5,FALSE),2) -> 44.62 | AD19: =ROUND(VLOOKUP($Z19,'data for u-p-charts'!$A$2:$F$5000,AD$5,FALSE),2) -> 46.35
A20: 201903 | B20: 2019-09-01 | C20: =CONCATENATE(A20,'ECOLI Data and Charts'!B$1) -> 201903Scotland | D20: =IFERROR(VLOOKUP(CONCATENATE(D$5,$C20),'trend data'!$A$2:$O$11161,D$6,FALSE),"-") -> 608 | E20: =ROUND(VLOOKUP(CONCATENATE(E$5,$C20),'trend data'!$A$2:$O$11161,E$6,FALSE),3) -> 40.346 | F20: =ROUND(VLOOKUP(CONCATENATE(F$5,$C20),'trend data'!$A$2:$O$11161,F$6,FALSE),3) -> 37.202 | G20: =ROUND(VLOOKUP(CONCATENATE(G$5,$C20),'trend data'!$A$2:$O$11161,G$6,FALSE),3) -> 43.684 | H20: =IFERROR(VLOOKUP(CONCATENATE(H$5,$C20),'trend data'!$A$2:$O$11161,H$6,FALSE),"-") -> 606 | I20: =IFERROR(ROUND(VLOOKUP(CONCATENATE(I$5,$C20),'trend data'!$A$2:$O$11161,I$6,FALSE),3),"-") -> 44.007 | J20: =IFERROR(ROUND(VLOOKUP(CONCATENATE(J$5,$C20),'trend data'!$A$2:$O$11161,J$6,FALSE),3),"-") -> 40.572 | K20: =IFERROR(ROUND(VLOOKUP(CONCATENATE(K$5,$C20),'trend data'!$A$2:$O$11161,K$6,FALSE),3),"-") -> 47.655 | L20: =VLOOKUP(CONCATENATE(L$5,$C20),'trend data'!$A$2:$O$11161,L$6,FALSE) -> 1506970 | M20: =ROUND(VLOOKUP(CONCATENATE(M$5,$C20),'trend data'!$A$2:$O$11161,M$6,FALSE),2) -> 1377050.96 | R20: 202104 | S20: =CONCATENATE(V$7,R20,'ECOLI Data and Charts'!B$1) -> ECBHCAI202104Scotland | T20: 12 | U20: =U5 -> 2021-12-31 | V20: =ROUND(VLOOKUP($S20,'data for u-p-charts'!$A$2:$F$5000,V$5,FALSE),2) -> 34.08 | W20: =ROUND(VLOOKUP($S20,'data for u-p-charts'!$A$2:$F$5000,W$5,FALSE),2) -> 39.03 | X20: =ROUND(VLOOKUP($S20,'data for u-p-charts'!$A$2:$F$5000,X$5,FALSE),2) -> 42.26 | Y20: =ROUND(VLOOKUP($S20,'data for u-p-charts'!$A$2:$F$5000,Y$5,FALSE),2) -> 43.88 | Z20: =CONCATENATE(AA$7,$R20,'ECOLI Data and Charts'!$B$1) -> ECBCOM202104Scotland | AA20: =ROUND(VLOOKUP($Z20,'data for u-p-charts'!$A$2:$F$5000,AA$5,FALSE),2) -> 39.85 | AB20: =ROUND(VLOOKUP($Z20,'data for u-p-charts'!$A$2:$F$5000,AB$5,FALSE),2) -> 41.16 | AC20: =ROUND(VLOOKUP($Z20,'data for u-p-charts'!$A$2:$F$5000,AC$5,FALSE),2) -> 44.62 | AD20: =ROUND(VLOOKUP($Z20,'data for u-p-charts'!$A$2:$F$5000,AD$5,FALSE),2) -> 46.35
A21: 201904 | B21: 2019-12-01 | C21: =CONCATENATE(A21,'ECOLI Data and Charts'!B$1) -> 201904Scotland | D21: =IFERROR(VLOOKUP(CONCATENATE(D$5,$C21),'trend data'!$A$2:$O$11161,D$6,FALSE),"-") -> 626 | E21: =ROUND(VLOOKUP(CONCATENATE(E$5,$C21),'trend data'!$A$2:$O$11161,E$6,FALSE),3) -> 40.876 | F21: =ROUND(VLOOKUP(CONCATENATE(F$5,$C21),'trend data'!$A$2:$O$11161,F$6,FALSE),3) -> 37.736 | G21: =ROUND(VLOOKUP(CONCATENATE(G$5,$C21),'trend data'!$A$2:$O$11161,G$6,FALSE),3) -> 44.207 | H21: =IFERROR(VLOOKUP(CONCATENATE(H$5,$C21),'trend data'!$A$2:$O$11161,H$6,FALSE),"-") -> 568 | I21: =IFERROR(ROUND(VLOOKUP(CONCATENATE(I$5,$C21),'trend data'!$A$2:$O$11161,I$6,FALSE),3),"-") -> 41.248 | J21: =IFERROR(ROUND(VLOOKUP(CONCATENATE(J$5,$C21),'trend data'!$A$2:$O$11161,J$6,FALSE),3),"-") -> 37.925 | K21: =IFERROR(ROUND(VLOOKUP(CONCATENATE(K$5,$C21),'trend data'!$A$2:$O$11161,K$6,FALSE),3),"-") -> 44.784 | L21: =VLOOKUP(CONCATENATE(L$5,$C21),'trend data'!$A$2:$O$11161,L$6,FALSE) -> 1531462 | M21: =ROUND(VLOOKUP(CONCATENATE(M$5,$C21),'trend data'!$A$2:$O$11161,M$6,FALSE),2) -> 1377050.96
A22: 202001 | B22: 2020-03-01 | C22: =CONCATENATE(A22,'ECOLI Data and Charts'!B$1) -> 202001Scotland | D22: =IFERROR(VLOOKUP(CONCATENATE(D$5,$C22),'trend data'!$A$2:$O$11161,D$6,FALSE),"-") -> 538 | E22: =ROUND(VLOOKUP(CONCATENATE(E$5,$C22),'trend data'!$A$2:$O$11161,E$6,FALSE),3) -> 36.451 | F22: =ROUND(VLOOKUP(CONCATENATE(F$5,$C22),'trend data'!$A$2:$O$11161,F$6,FALSE),3) -> 33.436 | G22: =ROUND(VLOOKUP(CONCATENATE(G$5,$C22),'trend data'!$A$2:$O$11161,G$6,FALSE),3) -> 39.666 | H22: =IFERROR(VLOOKUP(CONCATENATE(H$5,$C22),'trend data'!$A$2:$O$11161,H$6,FALSE),"-") -> 514 | I22: =IFERROR(ROUND(VLOOKUP(CONCATENATE(I$5,$C22),'trend data'!$A$2:$O$11161,I$6,FALSE),3),"-") -> 37.821 | J22: =IFERROR(ROUND(VLOOKUP(CONCATENATE(J$5,$C22),'trend data'!$A$2:$O$11161,J$6,FALSE),3),"-") -> 34.622 | K22: =IFERROR(ROUND(VLOOKUP(CONCATENATE(K$5,$C22),'trend data'!$A$2:$O$11161,K$6,FALSE),3),"-") -> 41.237 | L22: =VLOOKUP(CONCATENATE(L$5,$C22),'trend data'!$A$2:$O$11161,L$6,FALSE) -> 1475950 | M22: =ROUND(VLOOKUP(CONCATENATE(M$5,$C22),'trend data'!$A$2:$O$11161,M$6,FALSE),2) -> 1359032.79
A23: 202002 | B23: 2020-06-01 | C23: =CONCATENATE(A23,'ECOLI Data and Charts'!B$1) -> 202002Scotland | D23: =IFERROR(VLOOKUP(CONCATENATE(D$5,$C23),'trend data'!$A$2:$O$11161,D$6,FALSE),"-") -> 429 | E23: =ROUND(VLOOKUP(CONCATENATE(E$5,$C23),'trend data'!$A$2:$O$11161,E$6,FALSE),3) -> 39.687 | F23: =ROUND(VLOOKUP(CONCATENATE(F$5,$C23),'trend data'!$A$2:$O$11161,F$6,FALSE),3) -> 36.02 | G23: =ROUND(VLOOKUP(CONCATENATE(G$5,$C23),'trend data'!$A$2:$O$11161,G$6,FALSE),3) -> 43.627 | H23: =IFERROR(VLOOKUP(CONCATENATE(H$5,$C23),'trend data'!$A$2:$O$11161,H$6,FALSE),"-") -> 488 | I23: =IFERROR(ROUND(VLOOKUP(CONCATENATE(I$5,$C23),'trend data'!$A$2:$O$11161,I$6,FALSE),3),"-") -> 35.908 | J23: =IFERROR(ROUND(VLOOKUP(CONCATENATE(J$5,$C23),'trend data'!$A$2:$O$11161,J$6,FALSE),3),"-") -> 32.792 | K23: =IFERROR(ROUND(VLOOKUP(CONCATENATE(K$5,$C23),'trend data'!$A$2:$O$11161,K$6,FALSE),3),"-") -> 39.24 | L23: =VLOOKUP(CONCATENATE(L$5,$C23),'trend data'!$A$2:$O$11161,L$6,FALSE) -> 1080949 | M23: =ROUND(VLOOKUP(CONCATENATE(M$5,$C23),'trend data'!$A$2:$O$11161,M$6,FALSE),2) -> 1359032.79
A24: 202003 | B24: 2020-09-01 | C24: =CONCATENATE(A24,'ECOLI Data and Charts'!B$1) -> 202003Scotland | D24: =IFERROR(VLOOKUP(CONCATENATE(D$5,$C24),'trend data'!$A$2:$O$11161,D$6,FALSE),"-") -> 547 | E24: =ROUND(VLOOKUP(CONCATENATE(E$5,$C24),'trend data'!$A$2:$O$11161,E$6,FALSE),4) -> 41.9484 | F24: =ROUND(VLOOKUP(CONCATENATE(F$5,$C24),'trend data'!$A$2:$O$11161,F$6,FALSE),4) -> 38.5061 | G24: =ROUND(VLOOKUP(CONCATENATE(G$5,$C24),'trend data'!$A$2:$O$11161,G$6,FALSE),4) -> 45.6158 | H24: =IFERROR(VLOOKUP(CONCATENATE(H$5,$C24),'trend data'!$A$2:$O$11161,H$6,FALSE),"-") -> 614 | I24: =IFERROR(ROUND(VLOOKUP(CONCATENATE(I$5,$C24),'trend data'!$A$2:$O$11161,I$6,FALSE),4),"-") -> 44.6881 | J24: =IFERROR(ROUND(VLOOKUP(CONCATENATE(J$5,$C24),'trend data'!$A$2:$O$11161,J$6,FALSE),4),"-") -> 41.2227 | K24: =IFERROR(ROUND(VLOOKUP(CONCATENATE(K$5,$C24),'trend data'!$A$2:$O$11161,K$6,FALSE),4),"-") -> 48.367 | L24: =VLOOKUP(CONCATENATE(L$5,$C24),'trend data'!$A$2:$O$11161,L$6,FALSE) -> 1303983 | M24: =ROUND(VLOOKUP(CONCATENATE(M$5,$C24),'trend data'!$A$2:$O$11161,M$6,FALSE),2) -> 1373967.21
A25: 202004 | B25: 2020-12-31 | C25: =CONCATENATE(A25,'ECOLI Data and Charts'!B$1) -> 202004Scotland | D25: =IFERROR(VLOOKUP(CONCATENATE(D$5,$C25),'trend data'!$A$2:$O$11161,D$6,FALSE),"-") -> 555 | E25: =ROUND(VLOOKUP(CONCATENATE(E$5,$C25),'trend data'!$A$2:$O$11161,E$6,FALSE),4) -> 40.8752 | F25: =ROUND(VLOOKUP(CONCATENATE(F$5,$C25),'trend data'!$A$2:$O$11161,F$6,FALSE),4) -> 37.5447 | G25: =ROUND(VLOOKUP(CONCATENATE(G$5,$C25),'trend data'!$A$2:$O$11161,G$6,FALSE),4) -> 44.4218 | H25: =IFERROR(VLOOKUP(CONCATENATE(H$5,$C25),'trend data'!$A$2:$O$11161,H$6,FALSE),"-") -> 521 | I25: =IFERROR(ROUND(VLOOKUP(CONCATENATE(I$5,$C25),'trend data'!$A$2:$O$11161,I$6,FALSE),4),"-") -> 37.9194 | J25: =IFERROR(ROUND(VLOOKUP(CONCATENATE(J$5,$C25),'trend data'!$A$2:$O$11161,J$6,FALSE),4),"-") -> 34.7327 | K25: =IFERROR(ROUND(VLOOKUP(CONCATENATE(K$5,$C25),'trend data'!$A$2:$O$11161,K$6,FALSE),4),"-") -> 41.3198 | L25: =VLOOKUP(CONCATENATE(L$5,$C25),'trend data'!$A$2:$O$11161,L$6,FALSE) -> 1357793 | M25: =ROUND(VLOOKUP(CONCATENATE(M$5,$C25),'trend data'!$A$2:$O$11161,M$6,FALSE),2) -> 1373967.21
A26: 202101 | B26: 2021-03-31 | C26: =CONCATENATE(A26,'ECOLI Data and Charts'!B$1) -> 202101Scotland | D26: =IFERROR(VLOOKUP(CONCATENATE(D$5,$C26),'trend data'!$A$2:$O$11161,D$6,FALSE),"-") -> 468 | E26: =ROUND(VLOOKUP(CONCATENATE(E$5,$C26),'trend data'!$A$2:$O$11161,E$6,FALSE),4) -> 34.5978 | F26: =ROUND(VLOOKUP(CONCATENATE(F$5,$C26),'trend data'!$A$2:$O$11161,F$6,FALSE),4) -> 31.5337 | G26: =ROUND(VLOOKUP(CONCATENATE(G$5,$C26),'trend data'!$A$2:$O$11161,G$6,FALSE),4) -> 37.8791 | H26: =IFERROR(VLOOKUP(CONCATENATE(H$5,$C26),'trend data'!$A$2:$O$11161,H$6,FALSE),"-") -> 493 | I26: =IFERROR(ROUND(VLOOKUP(CONCATENATE(I$5,$C26),'trend data'!$A$2:$O$11161,I$6,FALSE),4),"-") -> 36.5786 | J26: =IFERROR(ROUND(VLOOKUP(CONCATENATE(J$5,$C26),'trend data'!$A$2:$O$11161,J$6,FALSE),4),"-") -> 33.4205 | K26: =IFERROR(ROUND(VLOOKUP(CONCATENATE(K$5,$C26),'trend data'!$A$2:$O$11161,K$6,FALSE),4),"-") -> 39.9548 | L26: =VLOOKUP(CONCATENATE(L$5,$C26),'trend data'!$A$2:$O$11161,L$6,FALSE) -> 1352687 | M26: =ROUND(VLOOKUP(CONCATENATE(M$5,$C26),'trend data'!$A$2:$O$11161,M$6,FALSE),2) -> 1347780.82
A27: 202102 | B27: 2021-06-30 | C27: =CONCATENATE(A27,'ECOLI Data and Charts'!B$1) -> 202102Scotland | D27: =IFERROR(VLOOKUP(CONCATENATE(D$5,$C27),'trend data'!$A$2:$O$11161,D$6,FALSE),"-") -> 532 | E27: =ROUND(VLOOKUP(CONCATENATE(E$5,$C27),'trend data'!$A$2:$O$11161,E$6,FALSE),4) -> 38.1573 | F27: =ROUND(VLOOKUP(CONCATENATE(F$5,$C27),'trend data'!$A$2:$O$11161,F$6,FALSE),4) -> 34.9832 | G27: =ROUND(VLOOKUP(CONCATENATE(G$5,$C27),'trend data'!$A$2:$O$11161,G$6,FALSE),4) -> 41.542 | H27: =IFERROR(VLOOKUP(CONCATENATE(H$5,$C27),'trend data'!$A$2:$O$11161,H$6,FALSE),"-") -> 571 | I27: =IFERROR(ROUND(VLOOKUP(CONCATENATE(I$5,$C27),'trend data'!$A$2:$O$11161,I$6,FALSE),4),"-") -> 41.9004 | J27: =IFERROR(ROUND(VLOOKUP(CONCATENATE(J$5,$C27),'trend data'!$A$2:$O$11161,J$6,FALSE),4),"-") -> 38.5335 | K27: =IFERROR(ROUND(VLOOKUP(CONCATENATE(K$5,$C27),'trend data'!$A$2:$O$11161,K$6,FALSE),4),"-") -> 45.4826 | L27: =VLOOKUP(CONCATENATE(L$5,$C27),'trend data'!$A$2:$O$11161,L$6,FALSE) -> 1394228 | M27: =ROUND(VLOOKUP(CONCATENATE(M$5,$C27),'trend data'!$A$2:$O$11161,M$6,FALSE),2) -> 1362756.16
A28: 202103 | B28: 2021-09-01 | C28: =CONCATENATE(A28,'ECOLI Data and Charts'!B$1) -> 202103Scotland | D28: =IFERROR(VLOOKUP(CONCATENATE(D$5,$C28),'trend data'!$A$2:$O$11161,D$6,FALSE),"-") -> 604 | E28: =ROUND(VLOOKUP(CONCATENATE(E$5,$C28),'trend data'!$A$2:$O$11161,E$6,FALSE),4) -> 41.4731 | F28: =ROUND(VLOOKUP(CONCATENATE(F$5,$C28),'trend data'!$A$2:$O$11161,F$6,FALSE),4) -> 38.2311 | G28: =ROUND(VLOOKUP(CONCATENATE(G$5,$C28),'trend data'!$A$2:$O$11161,G$6,FALSE),4) -> 44.9167 | H28: =IFERROR(VLOOKUP(CONCATENATE(H$5,$C28),'trend data'!$A$2:$O$11161,H$6,FALSE),"-") -> 566 | I28: =IFERROR(ROUND(VLOOKUP(CONCATENATE(I$5,$C28),'trend data'!$A$2:$O$11161,I$6,FALSE),4),"-") -> 41.082 | J28: =IFERROR(ROUND(VLOOKUP(CONCATENATE(J$5,$C28),'trend data'!$A$2:$O$11161,J$6,FALSE),4),"-") -> 37.7667 | K28: =IFERROR(ROUND(VLOOKUP(CONCATENATE(K$5,$C28),'trend data'!$A$2:$O$11161,K$6,FALSE),4),"-") -> 44.6104 | L28: =VLOOKUP(CONCATENATE(L$5,$C28),'trend data'!$A$2:$O$11161,L$6,FALSE) -> 1456364 | M28: =ROUND(VLOOKUP(CONCATENATE(M$5,$C28),'trend data'!$A$2:$O$11161,M$6,FALSE),2) -> 1377731.51
A29: 202104 | B29: 2021-12-01 | C29: =CONCATENATE(A29,'ECOLI Data and Charts'!B$1) -> 202104Scotland | D29: =IFERROR(VLOOKUP(CONCATENATE(D$5,$C29),'trend data'!$A$2:$O$11161,D$6,FALSE),"-") -> 509 | E29: =ROUND(VLOOKUP(CONCATENATE(E$5,$C29),'trend data'!$A$2:$O$11161,E$6,FALSE),4) -> 34.0753 | F29: =ROUND(VLOOKUP(CONCATENATE(F$5,$C29),'trend data'!$A$2:$O$11161,F$6,FALSE),4) -> 31.1788 | G29: =ROUND(VLOOKUP(CONCATENATE(G$5,$C29),'trend data'!$A$2:$O$11161,G$6,FALSE),4) -> 37.1684 | H29: =IFERROR(VLOOKUP(CONCATENATE(H$5,$C29),'trend data'!$A$2:$O$11161,H$6,FALSE),"-") -> 549 | I29: =IFERROR(ROUND(VLOOKUP(CONCATENATE(I$5,$C29),'trend data'!$A$2:$O$11161,I$6,FALSE),4),"-") -> 39.8481 | J29: =IFERROR(ROUND(VLOOKUP(CONCATENATE(J$5,$C29),'trend data'!$A$2:$O$11161,J$6,FALSE),4),"-") -> 36.584 | K29: =IFERROR(ROUND(VLOOKUP(CONCATENATE(K$5,$C29),'trend data'!$A$2:$O$11161,K$6,FALSE),4),"-") -> 43.3253 | L29: =VLOOKUP(CONCATENATE(L$5,$C29),'trend data'!$A$2:$O$11161,L$6,FALSE) -> 1493751 | M29: =ROUND(VLOOKUP(CONCATENATE(M$5,$C29),'trend data'!$A$2:$O$11161,M$6,FALSE),2) -> 1377731.51

Sheet SAB Data and Charts
B1: Scotland | J1: =CONCATENATE("Healthcare and community rates for ",B1) -> Healthcare and community rates for Scotland
K2: SABHCAI | M2: SABCAUN
D3: Healthcare associated SAB infection | G3: Community associated SAB infection | K3: Healthcare associated SAB infection | M3: Community associated SAB infection
C4: Cases | D4: Rate per 100 000 bed days | E4: 95% CI | F4: Cases | G4: Rate per 100 000 population | H4: 95% CI | K4: % change | M4: % change
B5: ='SAB data'!B8 -> 2014-12-19 | C5: ='SAB data'!D8 -> 275 | D5: ='SAB data'!E8 -> 16.065 | E5: =CONCATENATE("(",TEXT('SAB data'!F8,"0.0")," ,", TEXT('SAB data'!G8,"0.0"),")") -> (14.2 ,18.1) | F5: ='SAB data'!H8 -> 119 | G5: ='SAB data'!I8 -> 8.829 | H5: =IFERROR(CONCATENATE("(",TEXT('SAB data'!J8,"0.0")," ,", TEXT('SAB data'!K8,"0.0"),")"),"-") -> (7.3 ,10.6) | J5: This quarter compared to last (national only) | K5: =IFERROR(ROUND(VLOOKUP(CONCATENATE(K2,$B$1),'quarter comp'!$A1:$H21,4,FALSE),2),"-") -> -5.42 | L5: =IFERROR(VLOOKUP(CONCATENATE(K2,$B$1),'quarter comp'!$A1:$H21,8,FALSE),"-") -> Non Significant | M5: =IFERROR(ROUND(VLOOKUP(CONCATENATE(M2,$B$1),'quarter comp'!$A1:$H21,4,FALSE),2),"-") -> 3.03 | N5: =IFERROR(VLOOKUP(CONCATENATE(M2,$B$1),'quarter comp'!$A1:$H21,8,FALSE),"-") -> Non Significant
B6: ='SAB data'!B9 -> 2015-03-24 | C6: ='SAB data'!D9 -> 263 | D6: ='SAB data'!E9 -> 15.258 | E6: =CONCATENATE("(",TEXT('SAB data'!F9,"0.0")," ,", TEXT('SAB data'!G9,"0.0"),")") -> (13.5 ,17.2) | F6: ='SAB data'!H9 -> 126 | G6: ='SAB data'!I9 -> 9.511 | H6: =IFERROR(CONCATENATE("(",TEXT('SAB data'!J9,"0.0")," ,", TEXT('SAB data'!K9,"0.0"),")"),"-") -> (7.9 ,11.3) | J6: Year end compared to previous year end | K6: =ROUND(VLOOKUP(CONCATENATE(K2,$B$1),'year end comp'!$A$2:$Z$1086,4,FALSE),2) -> 0.76 | L6: =VLOOKUP(CONCATENATE(K2,$B$1),'year end comp'!$A$2:$Z$1086,8,FALSE) -> Non Significant | M6: =IF(IFERROR(ROUND(VLOOKUP(CONCATENATE(M2,$B$1),'year end comp'!$A$2:$Z$1086,4,FALSE),2),"-")=-100,"-",IFERROR(ROUND(VLOOKUP(CONCATENATE(M2,$B$1),'year end comp'!$A$2:$Z$1086,4,FALSE),2),"-")) -> -0.89 | N6: =IF(IFERROR(VLOOKUP(CONCATENATE(M2,$B$1),'year end comp'!$A$2:$Z$1086,8,FALSE),"-")=0,"-",IFERROR(VLOOKUP(CONCATENATE(M2,$B$1),'year end comp'!$A$2:$Z$1086,8,FALSE),"-")) -> Non Significant
B7: ='SAB data'!B10 -> 2015-06-24 | C7: ='SAB data'!D10 -> 284 | D7: ='SAB data'!E10 -> 17.094 | E7: =CONCATENATE("(",TEXT('SAB data'!F10,"0.0")," ,", TEXT('SAB data'!G10,"0.0"),")") -> (15.2 ,19.2) | F7: ='SAB data'!H10 -> 131 | G7: ='SAB data'!I10 -> 9.779 | H7: =IFERROR(CONCATENATE("(",TEXT('SAB data'!J10,"0.0")," ,", TEXT('SAB data'!K10,"0.0"),")"),"-") -> (8.2 ,11.6)
B8: ='SAB data'!B11 -> 2015-09-24 | C8: ='SAB data'!D11 -> 275 | D8: ='SAB data'!E11 -> 16.966 | E8: =CONCATENATE("(",TEXT('SAB data'!F11,"0.0")," ,", TEXT('SAB data'!G11,"0.0"),")") -> (15.0 ,19.1) | F8: ='SAB data'!H11 -> 113 | G8: ='SAB data'!I11 -> 8.344 | H8: =IFERROR(CONCATENATE("(",TEXT('SAB data'!J11,"0.0")," ,", TEXT('SAB data'!K11,"0.0"),")"),"-") -> (6.9 ,10.0)
B9: ='SAB data'!B12 -> 2015-12-24 | C9: ='SAB data'!D12 -> 303 | D9: ='SAB data'!E12 -> 18.451 | E9: =CONCATENATE("(",TEXT('SAB data'!F12,"0.0")," ,", TEXT('SAB data'!G12,"0.0"),")") -> (16.4 ,20.7) | F9: ='SAB data'!H12 -> 104 | G9: ='SAB data'!I12 -> 7.679 | H9: =IFERROR(CONCATENATE("(",TEXT('SAB data'!J12,"0.0")," ,", TEXT('SAB data'!K12,"0.0"),")"),"-") -> (6.3 ,9.3)
B10: ='SAB data'!B13 -> 2016-03-24 | C10: ='SAB data'!D13 -> 279 | D10: ='SAB data'!E13 -> 16.662 | E10: =CONCATENATE("(",TEXT('SAB data'!F13,"0.0")," ,", TEXT('SAB data'!G13,"0.0"),")") -> (14.8 ,18.7) | F10: ='SAB data'!H13 -> 139 | G10: ='SAB data'!I13 -> 10.344 | H10: =IFERROR(CONCATENATE("(",TEXT('SAB data'!J13,"0.0")," ,", TEXT('SAB data'!K13,"0.0"),")"),"-") -> (8.7 ,12.2)
B11: ='SAB data'!B14 -> 2016-06-24 | C11: ='SAB data'!D14 -> 260 | D11: ='SAB data'!E14 -> 16.198 | E11: =CONCATENATE("(",TEXT('SAB data'!F14,"0.0")," ,", TEXT('SAB data'!G14,"0.0"),")") -> (14.3 ,18.3) | F11: ='SAB data'!H14 -> 121 | G11: ='SAB data'!I14 -> 9.004 | H11: =IFERROR(CONCATENATE("(",TEXT('SAB data'!J14,"0.0")," ,", TEXT('SAB data'!K14,"0.0"),")"),"-") -> (7.5 ,10.8)
B12: ='SAB data'!B15 -> 2016-09-24 | C12: ='SAB data'!D15 -> 273 | D12: ='SAB data'!E15 -> 17.193 | E12: =CONCATENATE("(",TEXT('SAB data'!F15,"0.0")," ,", TEXT('SAB data'!G15,"0.0"),")") -> (15.2 ,19.4) | F12: ='SAB data'!H15 -> 127 | G12: ='SAB data'!I15 -> 9.348 | H12: =IFERROR(CONCATENATE("(",TEXT('SAB data'!J15,"0.0")," ,", TEXT('SAB data'!K15,"0.0"),")"),"-") -> (7.8 ,11.1)
B13: ='SAB data'!B16 -> 2016-12-24 | C13: ='SAB data'!D16 -> 265 | D13: ='SAB data'!E16 -> 16.649 | E13: =CONCATENATE("(",TEXT('SAB data'!F16,"0.0")," ,", TEXT('SAB data'!G16,"0.0"),")") -> (14.7 ,18.8) | F13: ='SAB data'!H16 -> 135 | G13: ='SAB data'!I16 -> 9.937 | H13: =IFERROR(CONCATENATE("(",TEXT('SAB data'!J16,"0.0")," ,", TEXT('SAB data'!K16,"0.0"),")"),"-") -> (8.3 ,11.8)
B14: ='SAB data'!B17 -> 2017-03-01 | C14: ='SAB data'!D17 -> 259 | D14: ='SAB data'!E17 -> 16.379 | E14: =CONCATENATE("(",TEXT('SAB data'!F17,"0.0")," ,", TEXT('SAB data'!G17,"0.0"),")") -> (14.4 ,18.5) | F14: ='SAB data'!H17 -> 142 | G14: ='SAB data'!I17 -> 10.616 | H14: =IFERROR(CONCATENATE("(",TEXT('SAB data'!J17,"0.0")," ,", TEXT('SAB data'!K17,"0.0"),")"),"-") -> (8.9 ,12.5)
B15: ='SAB data'!B18 -> 2017-06-01 | C15: ='SAB data'!D18 -> 248 | D15: ='SAB data'!E18 -> 15.994 | E15: =CONCATENATE("(",TEXT('SAB data'!F18,"0.0")," ,", TEXT('SAB data'!G18,"0.0"),")") -> (14.1 ,18.1) | F15: ='SAB data'!H18 -> 126 | G15: ='SAB data'!I18 -> 9.316 | H15: =IFERROR(CONCATENATE("(",TEXT('SAB data'!J18,"0.0")," ,", TEXT('SAB data'!K18,"0.0"),")"),"-") -> (7.8 ,11.1)
B16: ='SAB data'!B19 -> 2017-09-01 | C16: ='SAB data'!D19 -> 278 | D16: ='SAB data'!E19 -> 18.066 | E16: =CONCATENATE("(",TEXT('SAB data'!F19,"0.0")," ,", TEXT('SAB data'!G19,"0.0"),")") -> (16.0 ,20.3) | F16: ='SAB data'!H19 -> 127 | G16: ='SAB data'!I19 -> 9.288 | H16: =IFERROR(CONCATENATE("(",TEXT('SAB data'!J19,"0.0")," ,", TEXT('SAB data'!K19,"0.0"),")"),"-") -> (7.7 ,11.1)
B17: ='SAB data'!B20 -> 2017-12-01 | C17: ='SAB data'!D20 -> 262 | D17: ='SAB data'!E20 -> 16.635 | E17: =CONCATENATE("(",TEXT('SAB data'!F20,"0.0")," ,", TEXT('SAB data'!G20,"0.0"),")") -> (14.7 ,18.8) | F17: ='SAB data'!H20 -> 132 | G17: ='SAB data'!I20 -> 9.654 | H17: =IFERROR(CONCATENATE("(",TEXT('SAB data'!J20,"0.0")," ,", TEXT('SAB data'!K20,"0.0"),")"),"-") -> (8.1 ,11.4)
B18: ='SAB data'!B21 -> 2018-03-01 | C18: ='SAB data'!D21 -> 296 | D18: ='SAB data'!E21 -> 18.672 | E18: =CONCATENATE("(",TEXT('SAB data'!F21,"0.0")," ,", TEXT('SAB data'!G21,"0.0"),")") -> (16.6 ,20.9) | F18: ='SAB data'!H21 -> 135 | G18: ='SAB data'!I21 -> 10.068 | H18: =IFERROR(CONCATENATE("(",TEXT('SAB data'!J21,"0.0")," ,", TEXT('SAB data'!K21,"0.0"),")"),"-") -> (8.4 ,11.9)
B19: ='SAB data'!B22 -> 2018-06-01 | C19: ='SAB data'!D22 -> 264 | D19: ='SAB data'!E22 -> 17.308 | E19: =CONCATENATE("(",TEXT('SAB data'!F22,"0.0")," ,", TEXT('SAB data'!G22,"0.0"),")") -> (15.3 ,19.5) | F19: ='SAB data'!H22 -> 123 | G19: ='SAB data'!I22 -> 9.072 | H19: =IFERROR(CONCATENATE("(",TEXT('SAB data'!J22,"0.0")," ,", TEXT('SAB data'!K22,"0.0"),")"),"-") -> (7.5 ,10.8)
B20: ='SAB data'!B23 -> 2018-09-01 | C20: ='SAB data'!D23 -> 253 | D20: ='SAB data'!E23 -> 16.737 | E20: =CONCATENATE("(",TEXT('SAB data'!F23,"0.0")," ,", TEXT('SAB data'!G23,"0.0"),")") -> (14.7 ,18.9) | F20: ='SAB data'!H23 -> 132 | G20: ='SAB data'!I23 -> 9.63 | H20: =IFERROR(CONCATENATE("(",TEXT('SAB data'!J23,"0.0")," ,", TEXT('SAB data'!K23,"0.0"),")"),"-") -> (8.1 ,11.4)
B21: ='SAB data'!B24 -> 2018-12-01 | C21: ='SAB data'!D24 -> 269 | D21: ='SAB data'!E24 -> 17.672 | E21: =CONCATENATE("(",TEXT('SAB data'!F24,"0.0")," ,", TEXT('SAB data'!G24,"0.0"),")") -> (15.6 ,19.9) | F21: ='SAB data'!H24 -> 113 | G21: ='SAB data'!I24 -> 8.244 | H21: =IFERROR(CONCATENATE("(",TEXT('SAB data'!J24,"0.0")," ,", TEXT('SAB data'!K24,"0.0"),")"),"-") -> (6.8 ,9.9)
B22: ='SAB data'!B25 -> 2019-03-01 | C22: ='SAB data'!D25 -> 240 | D22: ='SAB data'!E25 -> 15.6 | E22: =CONCATENATE("(",TEXT('SAB data'!F25,"0.0")," ,", TEXT('SAB data'!G25,"0.0"),")") -> (13.7 ,17.7) | F22: ='SAB data'!H25 -> 144 | G22: ='SAB data'!I25 -> 10.69 | H22: =IFERROR(CONCATENATE("(",TEXT('SAB data'!J25,"0.0")," ,", TEXT('SAB data'!K25,"0.0"),")"),"-") -> (9.0 ,12.6)
B23: ='SAB data'!B26 -> 2019-06-01 | C23: ='SAB data'!D26 -> 251 | D23: ='SAB data'!E26 -> 16.664 | E23: =CONCATENATE("(",TEXT('SAB data'!F26,"0.0")," ,", TEXT('SAB data'!G26,"0.0"),")") -> (14.7 ,18.9) | F23: ='SAB data'!H26 -> 133 | G23: ='SAB data'!I26 -> 9.764 | H23: =IFERROR(CONCATENATE("(",TEXT('SAB data'!J26,"0.0")," ,", TEXT('SAB data'!K26,"0.0"),")"),"-") -> (8.2 ,11.6)
B24: ='SAB data'!B27 -> 2019-09-01 | C24: ='SAB data'!D27 -> 264 | D24: ='SAB data'!E27 -> 17.519 | E24: =CONCATENATE("(",TEXT('SAB data'!F27,"0.0")," ,", TEXT('SAB data'!G27,"0.0"),")") -> (15.5 ,19.8) | F24: ='SAB data'!H27 -> 102 | G24: ='SAB data'!I27 -> 7.407 | H24: =IFERROR(CONCATENATE("(",TEXT('SAB data'!J27,"0.0")," ,", TEXT('SAB data'!K27,"0.0"),")"),"-") -> (6.0 ,9.0)
B25: ='SAB data'!B28 -> 2019-12-01 | C25: ='SAB data'!D28 -> 233 | D25: ='SAB data'!E28 -> 15.214 | E25: =CONCATENATE("(",TEXT('SAB data'!F28,"0.0")," ,", TEXT('SAB data'!G28,"0.0"),")") -> (13.3 ,17.3) | F25: ='SAB data'!H28 -> 132 | G25: ='SAB data'!I28 -> 9.586 | H25: =IFERROR(CONCATENATE("(",TEXT('SAB data'!J28,"0.0")," ,", TEXT('SAB data'!K28,"0.0"),")"),"-") -> (8.0 ,11.4)
B26: ='SAB data'!B29 -> 2020-03-01 | C26: ='SAB data'!D29 -> 241 | D26: ='SAB data'!E29 -> 16.328 | E26: =CONCATENATE("(",TEXT('SAB data'!F29,"0.0")," ,", TEXT('SAB data'!G29,"0.0"),")") -> (14.3 ,18.5) | F26: ='SAB data'!H29 -> 149 | G26: ='SAB data'!I29 -> 10.964 | H26: =IFERROR(CONCATENATE("(",TEXT('SAB data'!J29,"0.0")," ,", TEXT('SAB data'!K29,"0.0"),")"),"-") -> (9.3 ,12.9)
B27: ='SAB data'!B30 -> 2020-06-01 | C27: ='SAB data'!D30 -> 219 | D27: ='SAB data'!E30 -> 20.26 | E27: =CONCATENATE("(",TEXT('SAB data'!F30,"0.0")," ,", TEXT('SAB data'!G30,"0.0"),")") -> (17.7 ,23.1) | F27: ='SAB data'!H30 -> 132 | G27: ='SAB data'!I30 -> 9.713 | H27: =IFERROR(CONCATENATE("(",TEXT('SAB data'!J30,"0.0")," ,", TEXT('SAB data'!K30,"0.0"),")"),"-") -> (8.1 ,11.5)
B28: ='SAB data'!B31 -> 2020-09-01 | C28: ='SAB data'!D31 -> 224 | D28: ='SAB data'!E31 -> 17.1781 | E28: =CONCATENATE("(",TEXT('SAB data'!F31,"0.0")," ,", TEXT('SAB data'!G31,"0.0"),")") -> (15.0 ,19.6) | F28: ='SAB data'!H31 -> 149 | G28: ='SAB data'!I31 -> 10.8445 | H28: =IFERROR(CONCATENATE("(",TEXT('SAB data'!J31,"0.0")," ,", TEXT('SAB data'!K31,"0.0"),")"),"-") -> (9.2 ,12.7)
B29: ='SAB data'!B32 -> 2020-12-01 | C29: ='SAB data'!D32 -> 256 | D29: ='SAB data'!E32 -> 18.8541 | E29: =CONCATENATE("(",TEXT('SAB data'!F32,"0.0")," ,", TEXT('SAB data'!G32,"0.0"),")") -> (16.6 ,21.3) | F29: ='SAB data'!H32 -> 131 | G29: ='SAB data'!I32 -> 9.5344 | H29: =IFERROR(CONCATENATE("(",TEXT('SAB data'!J32,"0.0")," ,", TEXT('SAB data'!K32,"0.0"),")"),"-") -> (8.0 ,11.3)
B30: ='SAB data'!B33 -> 2021-03-31 | C30: ='SAB data'!D33 -> 248 | D30: ='SAB data'!E33 -> 18.3339 | E30: =CONCATENATE("(",TEXT('SAB data'!F33,"0.0")," ,", TEXT('SAB data'!G33,"0.0"),")") -> (16.1 ,20.8) | F30: ='SAB data'!H33 -> 140 | G30: ='SAB data'!I33 -> 10.3874 | H30: =IFERROR(CONCATENATE("(",TEXT('SAB data'!J33,"0.0")," ,", TEXT('SAB data'!K33,"0.0"),")"),"-") -> (8.7 ,12.3)
B31: ='SAB data'!B34 -> 2021-06-30 | C31: ='SAB data'!D34 -> 260 | D31: ='SAB data'!E34 -> 18.6483 | E31: =CONCATENATE("(",TEXT('SAB data'!F34,"0.0")," ,", TEXT('SAB data'!G34,"0.0"),")") -> (16.5 ,21.1) | F31: ='SAB data'!H34 -> 148 | G31: ='SAB data'!I34 -> 10.8603 | H31: =IFERROR(CONCATENATE("(",TEXT('SAB data'!J34,"0.0")," ,", TEXT('SAB data'!K34,"0.0"),")"),"-") -> (9.2 ,12.8)
B32: ='SAB data'!B35 -> 2021-09-30 | C32: ='SAB data'!D35 -> 267 | D32: ='SAB data'!E35 -> 18.3333 | E32: =CONCATENATE("(",TEXT('SAB data'!F35,"0.0")," ,", TEXT('SAB data'!G35,"0.0"),")") -> (16.2 ,20.7) | F32: ='SAB data'!H35 -> 132 | G32: ='SAB data'!I35 -> 9.581 | H32: =IFERROR(CONCATENATE("(",TEXT('SAB data'!J35,"0.0")," ,", TEXT('SAB data'!K35,"0.0"),")"),"-") -> (8.0 ,11.4)
B33: ='SAB data'!B36 -> 2021-12-31 | C33: ='SAB data'!D36 -> 259 | D33: ='SAB data'!E36 -> 17.3389 | E33: =CONCATENATE("(",TEXT('SAB data'!F36,"0.0")," ,", TEXT('SAB data'!G36,"0.0"),")") -> (15.3 ,19.6) | F33: ='SAB data'!H36 -> 136 | G33: ='SAB data'!I36 -> 9.8713 | H33: =IFERROR(CONCATENATE("(",TEXT('SAB data'!J36,"0.0")," ,", TEXT('SAB data'!K36,"0.0"),")"),"-") -> (8.3 ,11.7)

Sheet SSI Data and Charts
B1: Scotland | M1: =CONCATENATE("% SSI for ",B1) -> % SSI for Scotland
D3: Casesarean Section | H3: Hip Arthroplasty | N3: SSICSEC | P3: SSIHIP
C4: SSI to day 10 | D4: Procedures | E4: SSI Incidence (%) | F4: 95% CI | G4: SSI inpatient & readmission to day 30 | H4: Procedures | I4: SSI Incidence (%) | J4: 95% CI | N4: % change | P4: % change
B5: ='SSI data'!B8 -> 2014-03-24 | C5: ='SSI data'!D8 -> 61 | D5: ='SSI data'!L8 -> 3998 | E5: ='SSI data'!E8 -> 1.526 | F5: =IFERROR(CONCATENATE("(",TEXT('SSI data'!F8,"0.0")," ,", TEXT('SSI data'!G8,"0.0"),")"),"-") -> (1.2 ,2.0) | G5: ='SSI data'!H8 -> 16 | H5: ='SSI data'!M8 -> 2106 | I5: ='SSI data'!I8 -> 0.76 | J5: =IFERROR(CONCATENATE("(",TEXT('SSI data'!J8,"0.0"),", ", TEXT('SSI data'!K8,"0.0"),")"),"-") -> (0.5, 1.2) | M5: Year end compared to previous year end | N5: =IFERROR(ROUND(VLOOKUP(CONCATENATE(N3,$B$1),'year end comp'!$A$2:$Z$1086,4,FALSE),2),"-") -> - | O5: =IF(IFERROR(VLOOKUP(CONCATENATE(N3,$B$1),'year end comp'!$A$2:$Z$1086,8,FALSE),"-")=0,"-",IFERROR(VLOOKUP(CONCATENATE(N3,$B$1),'year end comp'!$A$2:$Z$1086,8,FALSE),"-")) -> - | P5: =IFERROR(ROUND(VLOOKUP(CONCATENATE(P3,$B$1),'year end comp'!$A$2:$Z$1086,4,FALSE),2),"-") -> - | Q5: =IF(IFERROR(VLOOKUP(CONCATENATE(P3,$B$1),'year end comp'!$A$2:$Z$1086,8,FALSE),"-")=0,"-",IFERROR(VLOOKUP(CONCATENATE(P3,$B$1),'year end comp'!$A$2:$Z$1086,8,FALSE),"-")) -> -
B6: ='SSI data'!B9 -> 2014-06-27 | C6: ='SSI data'!D9 -> 58 | D6: ='SSI data'!L9 -> 4103 | E6: ='SSI data'!E9 -> 1.414 | F6: =IFERROR(CONCATENATE("(",TEXT('SSI data'!F9,"0.0")," ,", TEXT('SSI data'!G9,"0.0"),")"),"-") -> (1.1 ,1.8) | G6: ='SSI data'!H9 -> 13 | H6: ='SSI data'!M9 -> 2098 | I6: ='SSI data'!I9 -> 0.62 | J6: =IFERROR(CONCATENATE("(",TEXT('SSI data'!J9,"0.0")," ,", TEXT('SSI data'!K9,"0.0"),")"),"-") -> (0.4 ,1.1)
B7: ='SSI data'!B10 -> 2014-09-30 | C7: ='SSI data'!D10 -> 58 | D7: ='SSI data'!L10 -> 4563 | E7: ='SSI data'!E10 -> 1.271 | F7: =IFERROR(CONCATENATE("(",TEXT('SSI data'!F10,"0.0")," ,", TEXT('SSI data'!G10,"0.0"),")"),"-") -> (1.0 ,1.6) | G7: ='SSI data'!H10 -> 16 | H7: ='SSI data'!M10 -> 2125 | I7: ='SSI data'!I10 -> 0.753 | J7: =IFERROR(CONCATENATE("(",TEXT('SSI data'!J10,"0.0")," ,", TEXT('SSI data'!K10,"0.0"),")"),"-") -> (0.5 ,1.2)
B8: ='SSI data'!B11 -> 2014-12-19 | C8: ='SSI data'!D11 -> 61 | D8: ='SSI data'!L11 -> 4261 | E8: ='SSI data'!E11 -> 1.432 | F8: =IFERROR(CONCATENATE("(",TEXT('SSI data'!F11,"0.0")," ,", TEXT('SSI data'!G11,"0.0"),")"),"-") -> (1.1 ,1.8) | G8: ='SSI data'!H11 -> 12 | H8: ='SSI data'!M11 -> 1974 | I8: ='SSI data'!I11 -> 0.608 | J8: =IFERROR(CONCATENATE("(",TEXT('SSI data'!J11,"0.0")," ,", TEXT('SSI data'!K11,"0.0"),")"),"-") -> (0.3 ,1.1)
B9: ='SSI data'!B12 -> 2015-03-24 | C9: ='SSI data'!D12 -> 47 | D9: ='SSI data'!L12 -> 3966 | E9: ='SSI data'!E12 -> 1.185 | F9: =IFERROR(CONCATENATE("(",TEXT('SSI data'!F12,"0.0")," ,", TEXT('SSI data'!G12,"0.0"),")"),"-") -> (0.9 ,1.6) | G9: ='SSI data'!H12 -> 18 | H9: ='SSI data'!M12 -> 1959 | I9: ='SSI data'!I12 -> 0.919 | J9: =IFERROR(CONCATENATE("(",TEXT('SSI data'!J12,"0.0")," ,", TEXT('SSI data'!K12,"0.0"),")"),"-") -> (0.6 ,1.4)
B10: ='SSI data'!B13 -> 2015-06-24 | C10: ='SSI data'!D13 -> 56 | D10: ='SSI data'!L13 -> 4358 | E10: ='SSI data'!E13 -> 1.285 | F10: =IFERROR(CONCATENATE("(",TEXT('SSI data'!F13,"0.0")," ,", TEXT('SSI data'!G13,"0.0"),")"),"-") -> (1.0 ,1.7) | G10: ='SSI data'!H13 -> 18 | H10: ='SSI data'!M13 -> 2159 | I10: ='SSI data'!I13 -> 0.834 | J10: =IFERROR(CONCATENATE("(",TEXT('SSI data'!J13,"0.0")," ,", TEXT('SSI data'!K13,"0.0"),")"),"-") -> (0.5 ,1.3)
B11: ='SSI data'!B14 -> 2015-09-24 | C11: ='SSI data'!D14 -> 56 | D11: ='SSI data'!L14 -> 4511 | E11: ='SSI data'!E14 -> 1.241 | F11: =IFERROR(CONCATENATE("(",TEXT('SSI data'!F14,"0.0")," ,", TEXT('SSI data'!G14,"0.0"),")"),"-") -> (1.0 ,1.6) | G11: ='SSI data'!H14 -> 10 | H11: ='SSI data'!M14 -> 2135 | I11: ='SSI data'!I14 -> 0.468 | J11: =IFERROR(CONCATENATE("(",TEXT('SSI data'!J14,"0.0")," ,", TEXT('SSI data'!K14,"0.0"),")"),"-") -> (0.3 ,0.9)
B12: ='SSI data'!B15 -> 2015-12-24 | C12: ='SSI data'!D15 -> 60 | D12: ='SSI data'!L15 -> 4300 | E12: ='SSI data'!E15 -> 1.395 | F12: =IFERROR(CONCATENATE("(",TEXT('SSI data'!F15,"0.0")," ,", TEXT('SSI data'!G15,"0.0"),")"),"-") -> (1.1 ,1.8) | G12: ='SSI data'!H15 -> 15 | H12: ='SSI data'!M15 -> 2191 | I12: ='SSI data'!I15 -> 0.685 | J12: =IFERROR(CONCATENATE("(",TEXT('SSI data'!J15,"0.0")," ,", TEXT('SSI data'!K15,"0.0"),")"),"-") -> (0.4 ,1.1)
B13: ='SSI data'!B16 -> 2016-03-24 | C13: ='SSI data'!D16 -> 58 | D13: ='SSI data'!L16 -> 4023 | E13: ='SSI data'!E16 -> 1.442 | F13: =IFERROR(CONCATENATE("(",TEXT('SSI data'!F16,"0.0")," ,", TEXT('SSI data'!G16,"0.0"),")"),"-") -> (1.1 ,1.9) | G13: ='SSI data'!H16 -> 7 | H13: ='SSI data'!M16 -> 2173 | I13: ='SSI data'!I16 -> 0.322 | J13: =IFERROR(CONCATENATE("(",TEXT('SSI data'!J16,"0.0")," ,", TEXT('SSI data'!K16,"0.0"),")"),"-") -> (0.2 ,0.7)
B14: ='SSI data'!B17 -> 2016-06-24 | C14: ='SSI data'!D17 -> 78 | D14: ='SSI data'!L17 -> 4448 | E14: ='SSI data'!E17 -> 1.754 | F14: =IFERROR(CONCATENATE("(",TEXT('SSI data'!F17,"0.0")," ,", TEXT('SSI data'!G17,"0.0"),")"),"-") -> (1.4 ,2.2) | G14: ='SSI data'!H17 -> 17 | H14: ='SSI data'!M17 -> 2318 | I14: ='SSI data'!I17 -> 0.733 | J14: =IFERROR(CONCATENATE("(",TEXT('SSI data'!J17,"0.0")," ,", TEXT('SSI data'!K17,"0.0"),")"),"-") -> (0.5 ,1.2)
B15: ='SSI data'!B18 -> 2016-09-24 | C15: ='SSI data'!D18 -> 71 | D15: ='SSI data'!L18 -> 4446 | E15: ='SSI data'!E18 -> 1.597 | F15: =IFERROR(CONCATENATE("(",TEXT('SSI data'!F18,"0.0")," ,", TEXT('SSI data'!G18,"0.0"),")"),"-") -> (1.3 ,2.0) | G15: ='SSI data'!H18 -> 14 | H15: ='SSI data'!M18 -> 2153 | I15: ='SSI data'!I18 -> 0.65 | J15: =IFERROR(CONCATENATE("(",TEXT('SSI data'!J18,"0.0")," ,", TEXT('SSI data'!K18,"0.0"),")"),"-") -> (0.4 ,1.1)
B16: ='SSI data'!B19 -> 2016-12-24 | C16: ='SSI data'!D19 -> 51 | D16: ='SSI data'!L19 -> 4258 | E16: ='SSI data'!E19 -> 1.198 | F16: =IFERROR(CONCATENATE("(",TEXT('SSI data'!F19,"0.0")," ,", TEXT('SSI data'!G19,"0.0"),")"),"-") -> (0.9 ,1.6) | G16: ='SSI data'!H19 -> 17 | H16: ='SSI data'!M19 -> 2226 | I16: ='SSI data'!I19 -> 0.764 | J16: =IFERROR(CONCATENATE("(",TEXT('SSI data'!J19,"0.0")," ,", TEXT('SSI data'!K19,"0.0"),")"),"-") -> (0.5 ,1.2)
B17: ='SSI data'!B20 -> 2017-03-01 | C17: ='SSI data'!D20 -> 58 | D17: ='SSI data'!L20 -> 4047 | E17: ='SSI data'!E20 -> 1.433 | F17: =IFERROR(CONCATENATE("(",TEXT('SSI data'!F20,"0.0")," ,", TEXT('SSI data'!G20,"0.0"),")"),"-") -> (1.1 ,1.8) | G17: ='SSI data'!H20 -> 12 | H17: ='SSI data'!M20 -> 2164 | I17: ='SSI data'!I20 -> 0.555 | J17: =IFERROR(CONCATENATE("(",TEXT('SSI data'!J20,"0.0")," ,", TEXT('SSI data'!K20,"0.0"),")"),"-") -> (0.3 ,1.0)
B18: ='SSI data'!B21 -> 2017-06-01 | C18: ='SSI data'!D21 -> 51 | D18: ='SSI data'!L21 -> 4115 | E18: ='SSI data'!E21 -> 1.239 | F18: =IFERROR(CONCATENATE("(",TEXT('SSI data'!F21,"0.0")," ,", TEXT('SSI data'!G21,"0.0"),")"),"-") -> (0.9 ,1.6) | G18: ='SSI data'!H21 -> 19 | H18: ='SSI data'!M21 -> 2301 | I18: ='SSI data'!I21 -> 0.826 | J18: =IFERROR(CONCATENATE("(",TEXT('SSI data'!J21,"0.0")," ,", TEXT('SSI data'!K21,"0.0"),")"),"-") -> (0.5 ,1.3)
B19: ='SSI data'!B22 -> 2017-09-01 | C19: ='SSI data'!D22 -> 58 | D19: ='SSI data'!L22 -> 4514 | E19: ='SSI data'!E22 -> 1.285 | F19: =IFERROR(CONCATENATE("(",TEXT('SSI data'!F22,"0.0")," ,", TEXT('SSI data'!G22,"0.0"),")"),"-") -> (1.0 ,1.7) | G19: ='SSI data'!H22 -> 9 | H19: ='SSI data'!M22 -> 2077 | I19: ='SSI data'!I22 -> 0.433 | J19: =IFERROR(CONCATENATE("(",TEXT('SSI data'!J22,"0.0")," ,", TEXT('SSI data'!K22,"0.0"),")"),"-") -> (0.2 ,0.8)
B20: ='SSI data'!B23 -> 2017-12-01 | C20: ='SSI data'!D23 -> 66 | D20: ='SSI data'!L23 -> 4224 | E20: ='SSI data'!E23 -> 1.563 | F20: =IFERROR(CONCATENATE("(",TEXT('SSI data'!F23,"0.0")," ,", TEXT('SSI data'!G23,"0.0"),")"),"-") -> (1.2 ,2.0) | G20: ='SSI data'!H23 -> 16 | H20: ='SSI data'!M23 -> 2071 | I20: ='SSI data'!I23 -> 0.773 | J20: =IFERROR(CONCATENATE("(",TEXT('SSI data'!J23,"0.0")," ,", TEXT('SSI data'!K23,"0.0"),")"),"-") -> (0.5 ,1.3)
B21: ='SSI data'!B24 -> 2018-03-01 | C21: ='SSI data'!D24 -> 64 | D21: ='SSI data'!L24 -> 3975 | E21: ='SSI data'!E24 -> 1.61 | F21: =IFERROR(CONCATENATE("(",TEXT('SSI data'!F24,"0.0")," ,", TEXT('SSI data'!G24,"0.0"),")"),"-") -> (1.3 ,2.1) | G21: ='SSI data'!H24 -> 17 | H21: ='SSI data'!M24 -> 2008 | I21: ='SSI data'!I24 -> 0.847 | J21: =IFERROR(CONCATENATE("(",TEXT('SSI data'!J24,"0.0")," ,", TEXT('SSI data'!K24,"0.0"),")"),"-") -> (0.5 ,1.4)
B22: ='SSI data'!B25 -> 2018-06-01 | C22: ='SSI data'!D25 -> 61 | D22: ='SSI data'!L25 -> 4191 | E22: ='SSI data'!E25 -> 1.455 | F22: =IFERROR(CONCATENATE("(",TEXT('SSI data'!F25,"0.0")," ,", TEXT('SSI data'!G25,"0.0"),")"),"-") -> (1.1 ,1.9) | G22: ='SSI data'!H25 -> 18 | H22: ='SSI data'!M25 -> 2270 | I22: ='SSI data'!I25 -> 0.793 | J22: =IFERROR(CONCATENATE("(",TEXT('SSI data'!J25,"0.0")," ,", TEXT('SSI data'!K25,"0.0"),")"),"-") -> (0.5 ,1.3)
B23: ='SSI data'!B26 -> 2018-09-01 | C23: ='SSI data'!D26 -> 66 | D23: ='SSI data'!L26 -> 4293 | E23: ='SSI data'!E26 -> 1.537 | F23: =IFERROR(CONCATENATE("(",TEXT('SSI data'!F26,"0.0")," ,", TEXT('SSI data'!G26,"0.0"),")"),"-") -> (1.2 ,2.0) | G23: ='SSI data'!H26 -> 13 | H23: ='SSI data'!M26 -> 2155 | I23: ='SSI data'!I26 -> 0.603 | J23: =IFERROR(CONCATENATE("(",TEXT('SSI data'!J26,"0.0")," ,", TEXT('SSI data'!K26,"0.0"),")"),"-") -> (0.4 ,1.0)
B24: ='SSI data'!B27 -> 2018-12-01 | C24: ='SSI data'!D27 -> 59 | D24: ='SSI data'!L27 -> 4346 | E24: ='SSI data'!E27 -> 1.358 | F24: =IFERROR(CONCATENATE("(",TEXT('SSI data'!F27,"0.0")," ,", TEXT('SSI data'!G27,"0.0"),")"),"-") -> (1.1 ,1.7) | G24: ='SSI data'!H27 -> 16 | H24: ='SSI data'!M27 -> 2276 | I24: ='SSI data'!I27 -> 0.703 | J24: =IFERROR(CONCATENATE("(",TEXT('SSI data'!J27,"0.0")," ,", TEXT('SSI data'!K27,"0.0"),")"),"-") -> (0.4 ,1.1)
B25: ='SSI data'!B28 -> 2019-03-01 | C25: ='SSI data'!D28 -> 64 | D25: ='SSI data'!L28 -> 4051 | E25: ='SSI data'!E28 -> 1.58 | F25: =IFERROR(CONCATENATE("(",TEXT('SSI data'!F28,"0.0")," ,", TEXT('SSI data'!G28,"0.0"),")"),"-") -> (1.2 ,2.0) | G25: ='SSI data'!H28 -> 8 | H25: ='SSI data'!M28 -> 2146 | I25: ='SSI data'!I28 -> 0.373 | J25: =IFERROR(CONCATENATE("(",TEXT('SSI data'!J28,"0.0")," ,", TEXT('SSI data'!K28,"0.0"),")"),"-") -> (0.2 ,0.7)
B26: ='SSI data'!B29 -> 2019-06-01 | C26: ='SSI data'!D29 -> 43 | D26: ='SSI data'!L29 -> 4118 | E26: ='SSI data'!E29 -> 1.044 | F26: =IFERROR(CONCATENATE("(",TEXT('SSI data'!F29,"0.0")," ,", TEXT('SSI data'!G29,"0.0"),")"),"-") -> (0.8 ,1.4) | G26: ='SSI data'!H29 -> 10 | H26: ='SSI data'!M29 -> 2257 | I26: ='SSI data'!I29 -> 0.443 | J26: =IFERROR(CONCATENATE("(",TEXT('SSI data'!J29,"0.0")," ,", TEXT('SSI data'!K29,"0.0"),")"),"-") -> (0.2 ,0.8)
B27: ='SSI data'!B30 -> 2019-09-01 | C27: ='SSI data'!D30 -> 51 | D27: ='SSI data'!L30 -> 4408 | E27: ='SSI data'!E30 -> 1.157 | F27: =IFERROR(CONCATENATE("(",TEXT('SSI data'!F30,"0.0")," ,", TEXT('SSI data'!G30,"0.0"),")"),"-") -> (0.9 ,1.5) | G27: ='SSI data'!H30 -> 17 | H27: ='SSI data'!M30 -> 2121 | I27: ='SSI data'!I30 -> 0.802 | J27: =IFERROR(CONCATENATE("(",TEXT('SSI data'!J30,"0.0")," ,", TEXT('SSI data'!K30,"0.0"),")"),"-") -> (0.5 ,1.3)
B28: ='SSI data'!B31 -> 2019-12-01 | C28: ='SSI data'!D31 -> 35 | D28: ='SSI data'!L31 -> 4112 | E28: ='SSI data'!E31 -> 0.851 | F28: =IFERROR(CONCATENATE("(",TEXT('SSI data'!F31,"0.0")," ,", TEXT('SSI data'!G31,"0.0"),")"),"-") -> (0.6 ,1.2) | G28: ='SSI data'!H31 -> 17 | H28: ='SSI data'!M31 -> 2145 | I28: ='SSI data'!I31 -> 0.793 | J28: =IFERROR(CONCATENATE("(",TEXT('SSI data'!J31,"0.0")," ,", TEXT('SSI data'!K31,"0.0"),")"),"-") -> (0.5 ,1.3)
B29: ='SSI data'!B32 -> 2020-03-01 | C29: ='SSI data'!D32 -> - | D29: ='SSI data'!L32 -> - | E29: ='SSI data'!E32 -> - | F29: =IFERROR(CONCATENATE("(",TEXT('SSI data'!F32,"0.0")," ,", TEXT('SSI data'!G32,"0.0"),")"),"-") -> (- ,-) | G29: ='SSI data'!H32 -> - | H29: ='SSI data'!M32 -> - | I29: ='SSI data'!I32 -> - | J29: =IFERROR(CONCATENATE("(",TEXT('SSI data'!J32,"0.0")," ,", TEXT('SSI data'!K32,"0.0"),")"),"-") -> (- ,-)
B30: ='SSI data'!B33 -> 2020-06-01 | C30: ='SSI data'!D33 -> - | D30: ='SSI data'!L33 -> - | E30: ='SSI data'!E33 -> - | F30: =IFERROR(CONCATENATE("(",TEXT('SSI data'!F33,"0.0")," ,", TEXT('SSI data'!G33,"0.0"),")"),"-") -> (- ,-) | G30: ='SSI data'!H33 -> - | H30: ='SSI data'!M33 -> - | I30: ='SSI data'!I33 -> - | J30: =IFERROR(CONCATENATE("(",TEXT('SSI data'!J33,"0.0")," ,", TEXT('SSI data'!K33,"0.0"),")"),"-") -> (- ,-)
B31: ='SSI data'!B34 -> 2020-09-01 | C31: ='SSI data'!D34 -> - | D31: ='SSI data'!L34 -> - | E31: ='SSI data'!E34 -> - | F31: =IFERROR(CONCATENATE("(",TEXT('SSI data'!F34,"0.0")," ,", TEXT('SSI data'!G34,"0.0"),")"),"-") -> (- ,-) | G31: ='SSI data'!H34 -> - | H31: ='SSI data'!M34 -> - | I31: ='SSI data'!I34 -> - | J31: =IFERROR(CONCATENATE("(",TEXT('SSI data'!J34,"0.0")," ,", TEXT('SSI data'!K34,"0.0"),")"),"-") -> (- ,-)
B32: ='SSI data'!B35 -> 2020-12-31 | C32: ='SSI data'!D35 -> - | D32: ='SSI data'!L35 -> - | E32: ='SSI data'!E35 -> - | F32: =IFERROR(CONCATENATE("(",TEXT('SSI data'!F35,"0.0")," ,", TEXT('SSI data'!G35,"0.0"),")"),"-") -> (- ,-) | G32: ='SSI data'!H35 -> - | H32: ='SSI data'!M35 -> - | I32: ='SSI data'!I35 -> - | J32: =IFERROR(CONCATENATE("(",TEXT('SSI data'!J35,"0.0")," ,", TEXT('SSI data'!K35,"0.0"),")"),"-") -> (- ,-)
B33: ='SSI data'!B36 -> 2021-03-31 | C33: ='SSI data'!D36 -> - | D33: ='SSI data'!L36 -> - | E33: ='SSI data'!E36 -> - | F33: =IFERROR(CONCATENATE("(",TEXT('SSI data'!F36,"0.0")," ,", TEXT('SSI data'!G36,"0.0"),")"),"-") -> (- ,-) | G33: ='SSI data'!H36 -> - | H33: ='SSI data'!M36 -> - | I33: ='SSI data'!I36 -> - | J33: =IFERROR(CONCATENATE("(",TEXT('SSI data'!J36,"0.0")," ,", TEXT('SSI data'!K36,"0.0"),")"),"-") -> (- ,-)
B34: ='SSI data'!B37 -> 2021-06-30 | C34: ='SSI data'!D37 -> - | D34: ='SSI data'!L37 -> - | E34: ='SSI data'!E37 -> - | F34: =IFERROR(CONCATENATE("(",TEXT('SSI data'!F37,"0.0")," ,", TEXT('SSI data'!G37,"0.0"),")"),"-") -> (- ,-) | G34: ='SSI data'!H37 -> - | H34: ='SSI data'!M37 -> - | I34: ='SSI data'!I37 -> - | J34: =IFERROR(CONCATENATE("(",TEXT('SSI data'!J37,"0.0")," ,", TEXT('SSI data'!K37,"0.0"),")"),"-") -> (- ,-)
B35: ='SSI data'!B38 -> 2021-09-30 | C35: ='SSI data'!D38 -> - | D35: ='SSI data'!L38 -> - | E35: ='SSI data'!E38 -> - | F35: =IFERROR(CONCATENATE("(",TEXT('SSI data'!F38,"0.0")," ,", TEXT('SSI data'!G38,"0.0"),")"),"-") -> (- ,-) | G35: ='SSI data'!H38 -> - | H35: ='SSI data'!M38 -> - | I35: ='SSI data'!I38 -> - | J35: =IFERROR(CONCATENATE("(",TEXT('SSI data'!J38,"0.0")," ,", TEXT('SSI data'!K38,"0.0"),")"),"-") -> (- ,-)
B36: ='SSI data'!B39 -> 2021-12-31 | C36: ='SSI data'!D39 -> - | D36: ='SSI data'!L39 -> - | E36: ='SSI data'!E39 -> - | F36: =IFERROR(CONCATENATE("(",TEXT('SSI data'!F39,"0.0")," ,", TEXT('SSI data'!G39,"0.0"),")"),"-") -> (- ,-) | G36: ='SSI data'!H39 -> - | H36: ='SSI data'!M39 -> - | I36: ='SSI data'!I39 -> - | J36: =IFERROR(CONCATENATE("(",TEXT('SSI data'!J39,"0.0")," ,", TEXT('SSI data'!K39,"0.0"),")"),"-") -> (- ,-)

Sheet SSI data (hidden)
A1: Trend data | Q1: data for u-charts
A3: add a new line for current quarter
T4: change this
D5: SSICSEC | E5: SSICSEC | F5: SSICSEC | G5: SSICSEC | H5: SSIHIP | I5: SSIHIP | J5: SSIHIP | K5: SSIHIP | L5: SSICSEC | M5: SSIHIP | S5: current quarter end | T5: 2021-12-31 | U5: 3 | V5: 4 | W5: 5 | X5: 6 | Z5: 3 | AA5: 4 | AB5: 5 | AC5: 6
D6: 2 | E6: 4 | F6: 5 | G6: 6 | H6: 2 | I6: 4 | J6: 5 | K6: 6 | L6: 3 | M6: 3
C7: ref | D7: C SEC cases | E7: C SEC prop | F7: C SEC_lower_CI | G7: C SEC_upper_CI | H7: HIP cases | I7: HIP prop | J7: HIP_lower_CI | K7: HIP_upper_CI | L7: C SEC OPS | M7: HIP OPS | U7: SSICSEC | Z7: SSIHIP
A8: 201401 | B8: 2014-03-24 | C8: =CONCATENATE(A8,'SSI Data and Charts'!B$1) -> 201401Scotland | D8: =IFERROR(VLOOKUP(CONCATENATE(D$5,$C8),'trend data'!$A$2:$O$11161,D$6,FALSE),"-") -> 61 | E8: =IFERROR(ROUND(VLOOKUP(CONCATENATE(E$5,$C8),'trend data'!$A$2:$O$11161,E$6,FALSE),3),"-") -> 1.526 | F8: =IFERROR(ROUND(VLOOKUP(CONCATENATE(F$5,$C8),'trend data'!$A$2:$O$11161,F$6,FALSE),3),"-") -> 1.19 | G8: =IFERROR(ROUND(VLOOKUP(CONCATENATE(G$5,$C8),'trend data'!$A$2:$O$11161,G$6,FALSE),3),"-") -> 1.955 | H8: =IFERROR(VLOOKUP(CONCATENATE(H$5,$C8),'trend data'!$A$2:$O$11161,H$6,FALSE),"-") -> 16 | I8: =IFERROR(ROUND(VLOOKUP(CONCATENATE(I$5,$C8),'trend data'!$A$2:$O$11161,I$6,FALSE),3),"-") -> 0.76 | J8: =IFERROR(ROUND(VLOOKUP(CONCATENATE(J$5,$C8),'trend data'!$A$2:$O$11161,J$6,FALSE),3),"-") -> 0.468 | K8: =IFERROR(ROUND(VLOOKUP(CONCATENATE(K$5,$C8),'trend data'!$A$2:$O$11161,K$6,FALSE),3),"-") -> 1.231 | L8: =IFERROR(VLOOKUP(CONCATENATE(L$5,$C8),'trend data'!$A$2:$O$11161,L$6,FALSE),"-") -> 3998 | M8: =IFERROR(VLOOKUP(CONCATENATE(M$5,$C8),'trend data'!$A$2:$O$11161,M$6,FALSE),"-") -> 2106 | Q8: change to last 12 quarters | U8: C SEC prop | V8: C SEC av prop | W8: C SEC UWL 2sd | X8: C SEC UWL 3sd | Z8: HIP prop | AA8: HIP av prop | AB8: HIP UWL 2sd | AC8: HIP UWL 3 sd
A9: 201402 | B9: 2014-06-27 | C9: =CONCATENATE(A9,'SSI Data and Charts'!B$1) -> 201402Scotland | D9: =IFERROR(VLOOKUP(CONCATENATE(D$5,$C9),'trend data'!$A$2:$O$11161,D$6,FALSE),"-") -> 58 | E9: =IFERROR(ROUND(VLOOKUP(CONCATENATE(E$5,$C9),'trend data'!$A$2:$O$11161,E$6,FALSE),3),"-") -> 1.414 | F9: =IFERROR(ROUND(VLOOKUP(CONCATENATE(F$5,$C9),'trend data'!$A$2:$O$11161,F$6,FALSE),3),"-") -> 1.095 | G9: =IFERROR(ROUND(VLOOKUP(CONCATENATE(G$5,$C9),'trend data'!$A$2:$O$11161,G$6,FALSE),3),"-") -> 1.823 | H9: =IFERROR(VLOOKUP(CONCATENATE(H$5,$C9),'trend data'!$A$2:$O$11161,H$6,FALSE),"-") -> 13 | I9: =IFERROR(ROUND(VLOOKUP(CONCATENATE(I$5,$C9),'trend data'!$A$2:$O$11161,I$6,FALSE),3),"-") -> 0.62 | J9: =IFERROR(ROUND(VLOOKUP(CONCATENATE(J$5,$C9),'trend data'!$A$2:$O$11161,J$6,FALSE),3),"-") -> 0.362 | K9: =IFERROR(ROUND(VLOOKUP(CONCATENATE(K$5,$C9),'trend data'!$A$2:$O$11161,K$6,FALSE),3),"-") -> 1.057 | L9: =IFERROR(VLOOKUP(CONCATENATE(L$5,$C9),'trend data'!$A$2:$O$11161,L$6,FALSE),"-") -> 4103 | M9: =IFERROR(VLOOKUP(CONCATENATE(M$5,$C9),'trend data'!$A$2:$O$11161,M$6,FALSE),"-") -> 2098 | Q9: =YEAR(T9)&"0"&IF(MONTH(T9)<4,1,IF(MONTH(T9)<7,2,IF(MONTH(T9)<10,3,4))) -> 201901 | R9: =CONCATENATE(U$7,$Q9,'SSI Data and Charts'!B$1) -> SSICSEC201901Scotland | S9: 1 | T9: =T10-92 -> 2019-03-25 | U9: =ROUND(VLOOKUP($R9,'data for u-p-charts'!$A$2:$F$5000,U$5,FALSE),2) -> 1.58 | V9: =ROUND(VLOOKUP($R9,'data for u-p-charts'!$A$2:$F$5000,V$5,FALSE),2) -> 1.2 | W9: =ROUND(VLOOKUP($R9,'data for u-p-charts'!$A$2:$F$5000,W$5,FALSE),2) -> 1.54 | X9: =ROUND(VLOOKUP($R9,'data for u-p-charts'!$A$2:$F$5000,X$5,FALSE),2) -> 1.71 | Y9: =CONCATENATE(Z$7,$Q9,'SSI Data and Charts'!$B$1) -> SSIHIP201901Scotland | Z9: =ROUND(VLOOKUP($Y9,'data for u-p-charts'!$A$2:$F$5000,Z$5,FALSE),2) -> 0.37 | AA9: =ROUND(VLOOKUP($Y9,'data for u-p-charts'!$A$2:$F$5000,AA$5,FALSE),2) -> 0.62 | AB9: =ROUND(VLOOKUP($Y9,'data for u-p-charts'!$A$2:$F$5000,AB$5,FALSE),2) -> 0.96 | AC9: =ROUND(VLOOKUP($Y9,'data for u-p-charts'!$A$2:$F$5000,AC$5,FALSE),2) -> 1.13
A10: 201403 | B10: 2014-09-30 | C10: =CONCATENATE(A10,'SSI Data and Charts'!B$1) -> 201403Scotland | D10: =IFERROR(VLOOKUP(CONCATENATE(D$5,$C10),'trend data'!$A$2:$O$11161,D$6,FALSE),"-") -> 58 | E10: =IFERROR(ROUND(VLOOKUP(CONCATENATE(E$5,$C10),'trend data'!$A$2:$O$11161,E$6,FALSE),3),"-") -> 1.271 | F10: =IFERROR(ROUND(VLOOKUP(CONCATENATE(F$5,$C10),'trend data'!$A$2:$O$11161,F$6,FALSE),3),"-") -> 0.985 | G10: =IFERROR(ROUND(VLOOKUP(CONCATENATE(G$5,$C10),'trend data'!$A$2:$O$11161,G$6,FALSE),3),"-") -> 1.64 | H10: =IFERROR(VLOOKUP(CONCATENATE(H$5,$C10),'trend data'!$A$2:$O$11161,H$6,FALSE),"-") -> 16 | I10: =IFERROR(ROUND(VLOOKUP(CONCATENATE(I$5,$C10),'trend data'!$A$2:$O$11161,I$6,FALSE),3),"-") -> 0.753 | J10: =IFERROR(ROUND(VLOOKUP(CONCATENATE(J$5,$C10),'trend data'!$A$2:$O$11161,J$6,FALSE),3),"-") -> 0.464 | K10: =IFERROR(ROUND(VLOOKUP(CONCATENATE(K$5,$C10),'trend data'!$A$2:$O$11161,K$6,FALSE),3),"-") -> 1.22 | L10: =IFERROR(VLOOKUP(CONCATENATE(L$5,$C10),'trend data'!$A$2:$O$11161,L$6,FALSE),"-") -> 4563 | M10: =IFERROR(VLOOKUP(CONCATENATE(M$5,$C10),'trend data'!$A$2:$O$11161,M$6,FALSE),"-") -> 2125 | Q10: =YEAR(T10)&"0"&IF(MONTH(T10)<4,1,IF(MONTH(T10)<7,2,IF(MONTH(T10)<10,3,4))) -> 201902 | R10: =CONCATENATE(U$7,$Q10,'SSI Data and Charts'!B$1) -> SSICSEC201902Scotland | S10: 2 | T10: 2019-06-25 | U10: =ROUND(VLOOKUP($R10,'data for u-p-charts'!$A$2:$F$5000,U$5,FALSE),2) -> 1.04 | V10: =ROUND(VLOOKUP($R10,'data for u-p-charts'!$A$2:$F$5000,V$5,FALSE),2) -> 1.2 | W10: =ROUND(VLOOKUP($R10,'data for u-p-charts'!$A$2:$F$5000,W$5,FALSE),2) -> 1.54 | X10: =ROUND(VLOOKUP($R10,'data for u-p-charts'!$A$2:$F$5000,X$5,FALSE),2) -> 1.71 | Y10: =CONCATENATE(Z$7,$Q10,'SSI Data and Charts'!$B$1) -> SSIHIP201902Scotland | Z10: =ROUND(VLOOKUP($Y10,'data for u-p-charts'!$A$2:$F$5000,Z$5,FALSE),2) -> 0.44 | AA10: =ROUND(VLOOKUP($Y10,'data for u-p-charts'!$A$2:$F$5000,AA$5,FALSE),2) -> 0.62 | AB10: =ROUND(VLOOKUP($Y10,'data for u-p-charts'!$A$2:$F$5000,AB$5,FALSE),2) -> 0.95 | AC10: =ROUND(VLOOKUP($Y10,'data for u-p-charts'!$A$2:$F$5000,AC$5,FALSE),2) -> 1.12
A11: 201404 | B11: 2014-12-19 | C11: =CONCATENATE(A11,'SSI Data and Charts'!B$1) -> 201404Scotland | D11: =IFERROR(VLOOKUP(CONCATENATE(D$5,$C11),'trend data'!$A$2:$O$11161,D$6,FALSE),"-") -> 61 | E11: =IFERROR(ROUND(VLOOKUP(CONCATENATE(E$5,$C11),'trend data'!$A$2:$O$11161,E$6,FALSE),3),"-") -> 1.432 | F11: =IFERROR(ROUND(VLOOKUP(CONCATENATE(F$5,$C11),'trend data'!$A$2:$O$11161,F$6,FALSE),3),"-") -> 1.116 | G11: =IFERROR(ROUND(VLOOKUP(CONCATENATE(G$5,$C11),'trend data'!$A$2:$O$11161,G$6,FALSE),3),"-") -> 1.835 | H11: =IFERROR(VLOOKUP(CONCATENATE(H$5,$C11),'trend data'!$A$2:$O$11161,H$6,FALSE),"-") -> 12 | I11: =IFERROR(ROUND(VLOOKUP(CONCATENATE(I$5,$C11),'trend data'!$A$2:$O$11161,I$6,FALSE),3),"-") -> 0.608 | J11: =IFERROR(ROUND(VLOOKUP(CONCATENATE(J$5,$C11),'trend data'!$A$2:$O$11161,J$6,FALSE),3),"-") -> 0.348 | K11: =IFERROR(ROUND(VLOOKUP(CONCATENATE(K$5,$C11),'trend data'!$A$2:$O$11161,K$6,FALSE),3),"-") -> 1.06 | L11: =IFERROR(VLOOKUP(CONCATENATE(L$5,$C11),'trend data'!$A$2:$O$11161,L$6,FALSE),"-") -> 4261 | M11: =IFERROR(VLOOKUP(CONCATENATE(M$5,$C11),'trend data'!$A$2:$O$11161,M$6,FALSE),"-") -> 1974 | Q11: 201903 | R11: =CONCATENATE(U$7,$Q11,'SSI Data and Charts'!B$1) -> SSICSEC201903Scotland | S11: 3 | T11: 2019-09-25 | U11: =ROUND(VLOOKUP($R11,'data for u-p-charts'!$A$2:$F$5000,U$5,FALSE),2) -> 1.16 | V11: =ROUND(VLOOKUP($R11,'data for u-p-charts'!$A$2:$F$5000,V$5,FALSE),2) -> 1.2 | W11: =ROUND(VLOOKUP($R11,'data for u-p-charts'!$A$2:$F$5000,W$5,FALSE),2) -> 1.53 | X11: =ROUND(VLOOKUP($R11,'data for u-p-charts'!$A$2:$F$5000,X$5,FALSE),2) -> 1.69 | Y11: =CONCATENATE(Z$7,$Q11,'SSI Data and Charts'!$B$1) -> SSIHIP201903Scotland | Z11: =ROUND(VLOOKUP($Y11,'data for u-p-charts'!$A$2:$F$5000,Z$5,FALSE),2) -> 0.8 | AA11: =ROUND(VLOOKUP($Y11,'data for u-p-charts'!$A$2:$F$5000,AA$5,FALSE),2) -> 0.62 | AB11: =ROUND(VLOOKUP($Y11,'data for u-p-charts'!$A$2:$F$5000,AB$5,FALSE),2) -> 0.96 | AC11: =ROUND(VLOOKUP($Y11,'data for u-p-charts'!$A$2:$F$5000,AC$5,FALSE),2) -> 1.13
A12: 201501 | B12: 2015-03-24 | C12: =CONCATENATE(A12,'SSI Data and Charts'!B$1) -> 201501Scotland | D12: =IFERROR(VLOOKUP(CONCATENATE(D$5,$C12),'trend data'!$A$2:$O$11161,D$6,FALSE),"-") -> 47 | E12: =IFERROR(ROUND(VLOOKUP(CONCATENATE(E$5,$C12),'trend data'!$A$2:$O$11161,E$6,FALSE),3),"-") -> 1.185 | F12: =IFERROR(ROUND(VLOOKUP(CONCATENATE(F$5,$C12),'trend data'!$A$2:$O$11161,F$6,FALSE),3),"-") -> 0.892 | G12: =IFERROR(ROUND(VLOOKUP(CONCATENATE(G$5,$C12),'trend data'!$A$2:$O$11161,G$6,FALSE),3),"-") -> 1.572 | H12: =IFERROR(VLOOKUP(CONCATENATE(H$5,$C12),'trend data'!$A$2:$O$11161,H$6,FALSE),"-") -> 18 | I12: =IFERROR(ROUND(VLOOKUP(CONCATENATE(I$5,$C12),'trend data'!$A$2:$O$11161,I$6,FALSE),3),"-") -> 0.919 | J12: =IFERROR(ROUND(VLOOKUP(CONCATENATE(J$5,$C12),'trend data'!$A$2:$O$11161,J$6,FALSE),3),"-") -> 0.582 | K12: =IFERROR(ROUND(VLOOKUP(CONCATENATE(K$5,$C12),'trend data'!$A$2:$O$11161,K$6,FALSE),3),"-") -> 1.448 | L12: =IFERROR(VLOOKUP(CONCATENATE(L$5,$C12),'trend data'!$A$2:$O$11161,L$6,FALSE),"-") -> 3966 | M12: =IFERROR(VLOOKUP(CONCATENATE(M$5,$C12),'trend data'!$A$2:$O$11161,M$6,FALSE),"-") -> 1959 | Q12: 201904 | R12: =CONCATENATE(U$7,$Q12,'SSI Data and Charts'!B$1) -> SSICSEC201904Scotland | S12: 4 | T12: 2019-12-26 | U12: =ROUND(VLOOKUP($R12,'data for u-p-charts'!$A$2:$F$5000,U$5,FALSE),2) -> 0.85 | V12: =ROUND(VLOOKUP($R12,'data for u-p-charts'!$A$2:$F$5000,V$5,FALSE),2) -> 1.2 | W12: =ROUND(VLOOKUP($R12,'data for u-p-charts'!$A$2:$F$5000,W$5,FALSE),2) -> 1.54 | X12: =ROUND(VLOOKUP($R12,'data for u-p-charts'!$A$2:$F$5000,X$5,FALSE),2) -> 1.71 | Y12: =CONCATENATE(Z$7,$Q12,'SSI Data and Charts'!$B$1) -> SSIHIP201904Scotland | Z12: =ROUND(VLOOKUP($Y12,'data for u-p-charts'!$A$2:$F$5000,Z$5,FALSE),2) -> 0.79 | AA12: =ROUND(VLOOKUP($Y12,'data for u-p-charts'!$A$2:$F$5000,AA$5,FALSE),2) -> 0.62 | AB12: =ROUND(VLOOKUP($Y12,'data for u-p-charts'!$A$2:$F$5000,AB$5,FALSE),2) -> 0.96 | AC12: =ROUND(VLOOKUP($Y12,'data for u-p-charts'!$A$2:$F$5000,AC$5,FALSE),2) -> 1.13
A13: 201502 | B13: 2015-06-24 | C13: =CONCATENATE(A13,'SSI Data and Charts'!B$1) -> 201502Scotland | D13: =IFERROR(VLOOKUP(CONCATENATE(D$5,$C13),'trend data'!$A$2:$O$11161,D$6,FALSE),"-") -> 56 | E13: =IFERROR(ROUND(VLOOKUP(CONCATENATE(E$5,$C13),'trend data'!$A$2:$O$11161,E$6,FALSE),3),"-") -> 1.285 | F13: =IFERROR(ROUND(VLOOKUP(CONCATENATE(F$5,$C13),'trend data'!$A$2:$O$11161,F$6,FALSE),3),"-") -> 0.991 | G13: =IFERROR(ROUND(VLOOKUP(CONCATENATE(G$5,$C13),'trend data'!$A$2:$O$11161,G$6,FALSE),3),"-") -> 1.665 | H13: =IFERROR(VLOOKUP(CONCATENATE(H$5,$C13),'trend data'!$A$2:$O$11161,H$6,FALSE),"-") -> 18 | I13: =IFERROR(ROUND(VLOOKUP(CONCATENATE(I$5,$C13),'trend data'!$A$2:$O$11161,I$6,FALSE),3),"-") -> 0.834 | J13: =IFERROR(ROUND(VLOOKUP(CONCATENATE(J$5,$C13),'trend data'!$A$2:$O$11161,J$6,FALSE),3),"-") -> 0.528 | K13: =IFERROR(ROUND(VLOOKUP(CONCATENATE(K$5,$C13),'trend data'!$A$2:$O$11161,K$6,FALSE),3),"-") -> 1.314 | L13: =IFERROR(VLOOKUP(CONCATENATE(L$5,$C13),'trend data'!$A$2:$O$11161,L$6,FALSE),"-") -> 4358 | M13: =IFERROR(VLOOKUP(CONCATENATE(M$5,$C13),'trend data'!$A$2:$O$11161,M$6,FALSE),"-") -> 2159 | Q13: 202001 | R13: =CONCATENATE(U$7,$Q13,'SSI Data and Charts'!B$1) -> SSICSEC202001Scotland | S13: 5 | T13: 2020-03-27 | U13: =ROUND(VLOOKUP($R13,'data for u-p-charts'!$A$2:$F$5000,U$5,FALSE),2) ->  | V13: =ROUND(VLOOKUP($R13,'data for u-p-charts'!$A$2:$F$5000,V$5,FALSE),2) ->  | W13: =ROUND(VLOOKUP($R13,'data for u-p-charts'!$A$2:$F$5000,W$5,FALSE),2) ->  | X13: =ROUND(VLOOKUP($R13,'data for u-p-charts'!$A$2:$F$5000,X$5,FALSE),2) ->  | Y13: =CONCATENATE(Z$7,$Q13,'SSI Data and Charts'!$B$1) -> SSIHIP202001Scotland | Z13: =ROUND(VLOOKUP($Y13,'data for u-p-charts'!$A$2:$F$5000,Z$5,FALSE),2) ->  | AA13: =ROUND(VLOOKUP($Y13,'data for u-p-charts'!$A$2:$F$5000,AA$5,FALSE),2) ->  | AB13: =ROUND(VLOOKUP($Y13,'data for u-p-charts'!$A$2:$F$5000,AB$5,FALSE),2) ->  | AC13: =ROUND(VLOOKUP($Y13,'data for u-p-charts'!$A$2:$F$5000,AC$5,FALSE),2) -> 
A14: 201503 | B14: 2015-09-24 | C14: =CONCATENATE(A14,'SSI Data and Charts'!B$1) -> 201503Scotland | D14: =IFERROR(VLOOKUP(CONCATENATE(D$5,$C14),'trend data'!$A$2:$O$11161,D$6,FALSE),"-") -> 56 | E14: =IFERROR(ROUND(VLOOKUP(CONCATENATE(E$5,$C14),'trend data'!$A$2:$O$11161,E$6,FALSE),3),"-") -> 1.241 | F14: =IFERROR(ROUND(VLOOKUP(CONCATENATE(F$5,$C14),'trend data'!$A$2:$O$11161,F$6,FALSE),3),"-") -> 0.957 | G14: =IFERROR(ROUND(VLOOKUP(CONCATENATE(G$5,$C14),'trend data'!$A$2:$O$11161,G$6,FALSE),3),"-") -> 1.609 | H14: =IFERROR(VLOOKUP(CONCATENATE(H$5,$C14),'trend data'!$A$2:$O$11161,H$6,FALSE),"-") -> 10 | I14: =IFERROR(ROUND(VLOOKUP(CONCATENATE(I$5,$C14),'trend data'!$A$2:$O$11161,I$6,FALSE),3),"-") -> 0.468 | J14: =IFERROR(ROUND(VLOOKUP(CONCATENATE(J$5,$C14),'trend data'!$A$2:$O$11161,J$6,FALSE),3),"-") -> 0.255 | K14: =IFERROR(ROUND(VLOOKUP(CONCATENATE(K$5,$C14),'trend data'!$A$2:$O$11161,K$6,FALSE),3),"-") -> 0.86 | L14: =IFERROR(VLOOKUP(CONCATENATE(L$5,$C14),'trend data'!$A$2:$O$11161,L$6,FALSE),"-") -> 4511 | M14: =IFERROR(VLOOKUP(CONCATENATE(M$5,$C14),'trend data'!$A$2:$O$11161,M$6,FALSE),"-") -> 2135 | Q14: 202002 | R14: =CONCATENATE(U$7,$Q14,'SSI Data and Charts'!B$1) -> SSICSEC202002Scotland | S14: 6 | T14: 2020-06-27 | U14: =ROUND(VLOOKUP($R14,'data for u-p-charts'!$A$2:$F$5000,U$5,FALSE),2) ->  | V14: =ROUND(VLOOKUP($R14,'data for u-p-charts'!$A$2:$F$5000,V$5,FALSE),2) ->  | W14: =ROUND(VLOOKUP($R14,'data for u-p-charts'!$A$2:$F$5000,W$5,FALSE),2) ->  | X14: =ROUND(VLOOKUP($R14,'data for u-p-charts'!$A$2:$F$5000,X$5,FALSE),2) ->  | Y14: =CONCATENATE(Z$7,$Q14,'SSI Data and Charts'!$B$1) -> SSIHIP202002Scotland | Z14: =ROUND(VLOOKUP($Y14,'data for u-p-charts'!$A$2:$F$5000,Z$5,FALSE),2) ->  | AA14: =ROUND(VLOOKUP($Y14,'data for u-p-charts'!$A$2:$F$5000,AA$5,FALSE),2) ->  | AB14: =ROUND(VLOOKUP($Y14,'data for u-p-charts'!$A$2:$F$5000,AB$5,FALSE),2) ->  | AC14: =ROUND(VLOOKUP($Y14,'data for u-p-charts'!$A$2:$F$5000,AC$5,FALSE),2) -> 
A15: 201504 | B15: 2015-12-24 | C15: =CONCATENATE(A15,'SSI Data and Charts'!B$1) -> 201504Scotland | D15: =IFERROR(VLOOKUP(CONCATENATE(D$5,$C15),'trend data'!$A$2:$O$11161,D$6,FALSE),"-") -> 60 | E15: =IFERROR(ROUND(VLOOKUP(CONCATENATE(E$5,$C15),'trend data'!$A$2:$O$11161,E$6,FALSE),3),"-") -> 1.395 | F15: =IFERROR(ROUND(VLOOKUP(CONCATENATE(F$5,$C15),'trend data'!$A$2:$O$11161,F$6,FALSE),3),"-") -> 1.086 | G15: =IFERROR(ROUND(VLOOKUP(CONCATENATE(G$5,$C15),'trend data'!$A$2:$O$11161,G$6,FALSE),3),"-") -> 1.792 | H15: =IFERROR(VLOOKUP(CONCATENATE(H$5,$C15),'trend data'!$A$2:$O$11161,H$6,FALSE),"-") -> 15 | I15: =IFERROR(ROUND(VLOOKUP(CONCATENATE(I$5,$C15),'trend data'!$A$2:$O$11161,I$6,FALSE),3),"-") -> 0.685 | J15: =IFERROR(ROUND(VLOOKUP(CONCATENATE(J$5,$C15),'trend data'!$A$2:$O$11161,J$6,FALSE),3),"-") -> 0.415 | K15: =IFERROR(ROUND(VLOOKUP(CONCATENATE(K$5,$C15),'trend data'!$A$2:$O$11161,K$6,FALSE),3),"-") -> 1.127 | L15: =IFERROR(VLOOKUP(CONCATENATE(L$5,$C15),'trend data'!$A$2:$O$11161,L$6,FALSE),"-") -> 4300 | M15: =IFERROR(VLOOKUP(CONCATENATE(M$5,$C15),'trend data'!$A$2:$O$11161,M$6,FALSE),"-") -> 2191 | Q15: 202003 | R15: =CONCATENATE(U$7,$Q15,'SSI Data and Charts'!B$1) -> SSICSEC202003Scotland | S15: 7 | T15: 2020-09-27 | U15: =ROUND(VLOOKUP($R15,'data for u-p-charts'!$A$2:$F$5000,U$5,FALSE),2) ->  | V15: =ROUND(VLOOKUP($R15,'data for u-p-charts'!$A$2:$F$5000,V$5,FALSE),2) ->  | W15: =ROUND(VLOOKUP($R15,'data for u-p-charts'!$A$2:$F$5000,W$5,FALSE),2) ->  | X15: =ROUND(VLOOKUP($R15,'data for u-p-charts'!$A$2:$F$5000,X$5,FALSE),2) ->  | Y15: =CONCATENATE(Z$7,$Q15,'SSI Data and Charts'!$B$1) -> SSIHIP202003Scotland | Z15: =ROUND(VLOOKUP($Y15,'data for u-p-charts'!$A$2:$F$5000,Z$5,FALSE),2) ->  | AA15: =ROUND(VLOOKUP($Y15,'data for u-p-charts'!$A$2:$F$5000,AA$5,FALSE),2) ->  | AB15: =ROUND(VLOOKUP($Y15,'data for u-p-charts'!$A$2:$F$5000,AB$5,FALSE),2) ->  | AC15: =ROUND(VLOOKUP($Y15,'data for u-p-charts'!$A$2:$F$5000,AC$5,FALSE),2) -> 
A16: 201601 | B16: 2016-03-24 | C16: =CONCATENATE(A16,'SSI Data and Charts'!B$1) -> 201601Scotland | D16: =IFERROR(VLOOKUP(CONCATENATE(D$5,$C16),'trend data'!$A$2:$O$11161,D$6,FALSE),"-") -> 58 | E16: =IFERROR(ROUND(VLOOKUP(CONCATENATE(E$5,$C16),'trend data'!$A$2:$O$11161,E$6,FALSE),3),"-") -> 1.442 | F16: =IFERROR(ROUND(VLOOKUP(CONCATENATE(F$5,$C16),'trend data'!$A$2:$O$11161,F$6,FALSE),3),"-") -> 1.117 | G16: =IFERROR(ROUND(VLOOKUP(CONCATENATE(G$5,$C16),'trend data'!$A$2:$O$11161,G$6,FALSE),3),"-") -> 1.859 | H16: =IFERROR(VLOOKUP(CONCATENATE(H$5,$C16),'trend data'!$A$2:$O$11161,H$6,FALSE),"-") -> 7 | I16: =IFERROR(ROUND(VLOOKUP(CONCATENATE(I$5,$C16),'trend data'!$A$2:$O$11161,I$6,FALSE),3),"-") -> 0.322 | J16: =IFERROR(ROUND(VLOOKUP(CONCATENATE(J$5,$C16),'trend data'!$A$2:$O$11161,J$6,FALSE),3),"-") -> 0.156 | K16: =IFERROR(ROUND(VLOOKUP(CONCATENATE(K$5,$C16),'trend data'!$A$2:$O$11161,K$6,FALSE),3),"-") -> 0.663 | L16: =IFERROR(VLOOKUP(CONCATENATE(L$5,$C16),'trend data'!$A$2:$O$11161,L$6,FALSE),"-") -> 4023 | M16: =IFERROR(VLOOKUP(CONCATENATE(M$5,$C16),'trend data'!$A$2:$O$11161,M$6,FALSE),"-") -> 2173 | Q16: 202004 | R16: =CONCATENATE(U$7,$Q16,'SSI Data and Charts'!B$1) -> SSICSEC202004Scotland | S16: 8 | T16: 2020-12-28 | U16: =ROUND(VLOOKUP($R16,'data for u-p-charts'!$A$2:$F$5000,U$5,FALSE),2) ->  | V16: =ROUND(VLOOKUP($R16,'data for u-p-charts'!$A$2:$F$5000,V$5,FALSE),2) ->  | W16: =ROUND(VLOOKUP($R16,'data for u-p-charts'!$A$2:$F$5000,W$5,FALSE),2) ->  | X16: =ROUND(VLOOKUP($R16,'data for u-p-charts'!$A$2:$F$5000,X$5,FALSE),2) ->  | Y16: =CONCATENATE(Z$7,$Q16,'SSI Data and Charts'!$B$1) -> SSIHIP202004Scotland | Z16: =ROUND(VLOOKUP($Y16,'data for u-p-charts'!$A$2:$F$5000,Z$5,FALSE),2) ->  | AA16: =ROUND(VLOOKUP($Y16,'data for u-p-charts'!$A$2:$F$5000,AA$5,FALSE),2) ->  | AB16: =ROUND(VLOOKUP($Y16,'data for u-p-charts'!$A$2:$F$5000,AB$5,FALSE),2) ->  | AC16: =ROUND(VLOOKUP($Y16,'data for u-p-charts'!$A$2:$F$5000,AC$5,FALSE),2) -> 
A17: 201602 | B17: 2016-06-24 | C17: =CONCATENATE(A17,'SSI Data and Charts'!B$1) -> 201602Scotland | D17: =IFERROR(VLOOKUP(CONCATENATE(D$5,$C17),'trend data'!$A$2:$O$11161,D$6,FALSE),"-") -> 78 | E17: =IFERROR(ROUND(VLOOKUP(CONCATENATE(E$5,$C17),'trend data'!$A$2:$O$11161,E$6,FALSE),3),"-") -> 1.754 | F17: =IFERROR(ROUND(VLOOKUP(CONCATENATE(F$5,$C17),'trend data'!$A$2:$O$11161,F$6,FALSE),3),"-") -> 1.407 | G17: =IFERROR(ROUND(VLOOKUP(CONCATENATE(G$5,$C17),'trend data'!$A$2:$O$11161,G$6,FALSE),3),"-") -> 2.183 | H17: =IFERROR(VLOOKUP(CONCATENATE(H$5,$C17),'trend data'!$A$2:$O$11161,H$6,FALSE),"-") -> 17 | I17: =IFERROR(ROUND(VLOOKUP(CONCATENATE(I$5,$C17),'trend data'!$A$2:$O$11161,I$6,FALSE),3),"-") -> 0.733 | J17: =IFERROR(ROUND(VLOOKUP(CONCATENATE(J$5,$C17),'trend data'!$A$2:$O$11161,J$6,FALSE),3),"-") -> 0.458 | K17: =IFERROR(ROUND(VLOOKUP(CONCATENATE(K$5,$C17),'trend data'!$A$2:$O$11161,K$6,FALSE),3),"-") -> 1.171 | L17: =IFERROR(VLOOKUP(CONCATENATE(L$5,$C17),'trend data'!$A$2:$O$11161,L$6,FALSE),"-") -> 4448 | M17: =IFERROR(VLOOKUP(CONCATENATE(M$5,$C17),'trend data'!$A$2:$O$11161,M$6,FALSE),"-") -> 2318 | Q17: 202101 | R17: =CONCATENATE(U$7,$Q17,'SSI Data and Charts'!B$1) -> SSICSEC202101Scotland | S17: 9 | T17: 2021-03-30 | U17: =ROUND(VLOOKUP($R17,'data for u-p-charts'!$A$2:$F$5000,U$5,FALSE),2) ->  | V17: =ROUND(VLOOKUP($R17,'data for u-p-charts'!$A$2:$F$5000,V$5,FALSE),2) ->  | W17: =ROUND(VLOOKUP($R17,'data for u-p-charts'!$A$2:$F$5000,W$5,FALSE),2) ->  | X17: =ROUND(VLOOKUP($R17,'data for u-p-charts'!$A$2:$F$5000,X$5,FALSE),2) ->  | Y17: =CONCATENATE(Z$7,$Q17,'SSI Data and Charts'!$B$1) -> SSIHIP202101Scotland | Z17: =ROUND(VLOOKUP($Y17,'data for u-p-charts'!$A$2:$F$5000,Z$5,FALSE),2) ->  | AA17: =ROUND(VLOOKUP($Y17,'data for u-p-charts'!$A$2:$F$5000,AA$5,FALSE),2) ->  | AB17: =ROUND(VLOOKUP($Y17,'data for u-p-charts'!$A$2:$F$5000,AB$5,FALSE),2) ->  | AC17: =ROUND(VLOOKUP($Y17,'data for u-p-charts'!$A$2:$F$5000,AC$5,FALSE),2) -> 
A18: 201603 | B18: 2016-09-24 | C18: =CONCATENATE(A18,'SSI Data and Charts'!B$1) -> 201603Scotland | D18: =IFERROR(VLOOKUP(CONCATENATE(D$5,$C18),'trend data'!$A$2:$O$11161,D$6,FALSE),"-") -> 71 | E18: =IFERROR(ROUND(VLOOKUP(CONCATENATE(E$5,$C18),'trend data'!$A$2:$O$11161,E$6,FALSE),3),"-") -> 1.597 | F18: =IFERROR(ROUND(VLOOKUP(CONCATENATE(F$5,$C18),'trend data'!$A$2:$O$11161,F$6,FALSE),3),"-") -> 1.268 | G18: =IFERROR(ROUND(VLOOKUP(CONCATENATE(G$5,$C18),'trend data'!$A$2:$O$11161,G$6,FALSE),3),"-") -> 2.009 | H18: =IFERROR(VLOOKUP(CONCATENATE(H$5,$C18),'trend data'!$A$2:$O$11161,H$6,FALSE),"-") -> 14 | I18: =IFERROR(ROUND(VLOOKUP(CONCATENATE(I$5,$C18),'trend data'!$A$2:$O$11161,I$6,FALSE),3),"-") -> 0.65 | J18: =IFERROR(ROUND(VLOOKUP(CONCATENATE(J$5,$C18),'trend data'!$A$2:$O$11161,J$6,FALSE),3),"-") -> 0.388 | K18: =IFERROR(ROUND(VLOOKUP(CONCATENATE(K$5,$C18),'trend data'!$A$2:$O$11161,K$6,FALSE),3),"-") -> 1.089 | L18: =IFERROR(VLOOKUP(CONCATENATE(L$5,$C18),'trend data'!$A$2:$O$11161,L$6,FALSE),"-") -> 4446 | M18: =IFERROR(VLOOKUP(CONCATENATE(M$5,$C18),'trend data'!$A$2:$O$11161,M$6,FALSE),"-") -> 2153 | Q18: 202102 | R18: =CONCATENATE(U$7,$Q18,'SSI Data and Charts'!B$1) -> SSICSEC202102Scotland | S18: 10 | T18: 2021-06-30 | U18: =ROUND(VLOOKUP($R18,'data for u-p-charts'!$A$2:$F$5000,U$5,FALSE),2) ->  | V18: =ROUND(VLOOKUP($R18,'data for u-p-charts'!$A$2:$F$5000,V$5,FALSE),2) ->  | W18: =ROUND(VLOOKUP($R18,'data for u-p-charts'!$A$2:$F$5000,W$5,FALSE),2) ->  | X18: =ROUND(VLOOKUP($R18,'data for u-p-charts'!$A$2:$F$5000,X$5,FALSE),2) ->  | Y18: =CONCATENATE(Z$7,$Q18,'SSI Data and Charts'!$B$1) -> SSIHIP202102Scotland | Z18: =ROUND(VLOOKUP($Y18,'data for u-p-charts'!$A$2:$F$5000,Z$5,FALSE),2) ->  | AA18: =ROUND(VLOOKUP($Y18,'data for u-p-charts'!$A$2:$F$5000,AA$5,FALSE),2) ->  | AB18: =ROUND(VLOOKUP($Y18,'data for u-p-charts'!$A$2:$F$5000,AB$5,FALSE),2) ->  | AC18: =ROUND(VLOOKUP($Y18,'data for u-p-charts'!$A$2:$F$5000,AC$5,FALSE),2) -> 
A19: 201604 | B19: 2016-12-24 | C19: =CONCATENATE(A19,'SSI Data and Charts'!B$1) -> 201604Scotland | D19: =IFERROR(VLOOKUP(CONCATENATE(D$5,$C19),'trend data'!$A$2:$O$11161,D$6,FALSE),"-") -> 51 | E19: =IFERROR(ROUND(VLOOKUP(CONCATENATE(E$5,$C19),'trend data'!$A$2:$O$11161,E$6,FALSE),3),"-") -> 1.198 | F19: =IFERROR(ROUND(VLOOKUP(CONCATENATE(F$5,$C19),'trend data'!$A$2:$O$11161,F$6,FALSE),3),"-") -> 0.912 | G19: =IFERROR(ROUND(VLOOKUP(CONCATENATE(G$5,$C19),'trend data'!$A$2:$O$11161,G$6,FALSE),3),"-") -> 1.571 | H19: =IFERROR(VLOOKUP(CONCATENATE(H$5,$C19),'trend data'!$A$2:$O$11161,H$6,FALSE),"-") -> 17 | I19: =IFERROR(ROUND(VLOOKUP(CONCATENATE(I$5,$C19),'trend data'!$A$2:$O$11161,I$6,FALSE),3),"-") -> 0.764 | J19: =IFERROR(ROUND(VLOOKUP(CONCATENATE(J$5,$C19),'trend data'!$A$2:$O$11161,J$6,FALSE),3),"-") -> 0.477 | K19: =IFERROR(ROUND(VLOOKUP(CONCATENATE(K$5,$C19),'trend data'!$A$2:$O$11161,K$6,FALSE),3),"-") -> 1.22 | L19: =IFERROR(VLOOKUP(CONCATENATE(L$5,$C19),'trend data'!$A$2:$O$11161,L$6,FALSE),"-") -> 4258 | M19: =IFERROR(VLOOKUP(CONCATENATE(M$5,$C19),'trend data'!$A$2:$O$11161,M$6,FALSE),"-") -> 2226 | Q19: 202103 | R19: =CONCATENATE(U$7,$Q19,'SSI Data and Charts'!B$1) -> SSICSEC202103Scotland | S19: 11 | T19: =T20-92 -> 2021-09-30 | U19: =ROUND(VLOOKUP($R19,'data for u-p-charts'!$A$2:$F$5000,U$5,FALSE),2) ->  | V19: =ROUND(VLOOKUP($R19,'data for u-p-charts'!$A$2:$F$5000,V$5,FALSE),2) ->  | W19: =ROUND(VLOOKUP($R19,'data for u-p-charts'!$A$2:$F$5000,W$5,FALSE),2) ->  | X19: =ROUND(VLOOKUP($R19,'data for u-p-charts'!$A$2:$F$5000,X$5,FALSE),2) ->  | Y19: =CONCATENATE(Z$7,$Q19,'SSI Data and Charts'!$B$1) -> SSIHIP202103Scotland | Z19: =ROUND(VLOOKUP($Y19,'data for u-p-charts'!$A$2:$F$5000,Z$5,FALSE),2) ->  | AA19: =ROUND(VLOOKUP($Y19,'data for u-p-charts'!$A$2:$F$5000,AA$5,FALSE),2) ->  | AB19: =ROUND(VLOOKUP($Y19,'data for u-p-charts'!$A$2:$F$5000,AB$5,FALSE),2) ->  | AC19: =ROUND(VLOOKUP($Y19,'data for u-p-charts'!$A$2:$F$5000,AC$5,FALSE),2) -> 
A20: 201701 | B20: 2017-03-01 | C20: =CONCATENATE(A20,'SSI Data and Charts'!B$1) -> 201701Scotland | D20: =IFERROR(VLOOKUP(CONCATENATE(D$5,$C20),'trend data'!$A$2:$O$11161,D$6,FALSE),"-") -> 58 | E20: =IFERROR(ROUND(VLOOKUP(CONCATENATE(E$5,$C20),'trend data'!$A$2:$O$11161,E$6,FALSE),3),"-") -> 1.433 | F20: =IFERROR(ROUND(VLOOKUP(CONCATENATE(F$5,$C20),'trend data'!$A$2:$O$11161,F$6,FALSE),3),"-") -> 1.11 | G20: =IFERROR(ROUND(VLOOKUP(CONCATENATE(G$5,$C20),'trend data'!$A$2:$O$11161,G$6,FALSE),3),"-") -> 1.848 | H20: =IFERROR(VLOOKUP(CONCATENATE(H$5,$C20),'trend data'!$A$2:$O$11161,H$6,FALSE),"-") -> 12 | I20: =IFERROR(ROUND(VLOOKUP(CONCATENATE(I$5,$C20),'trend data'!$A$2:$O$11161,I$6,FALSE),3),"-") -> 0.555 | J20: =IFERROR(ROUND(VLOOKUP(CONCATENATE(J$5,$C20),'trend data'!$A$2:$O$11161,J$6,FALSE),3),"-") -> 0.317 | K20: =IFERROR(ROUND(VLOOKUP(CONCATENATE(K$5,$C20),'trend data'!$A$2:$O$11161,K$6,FALSE),3),"-") -> 0.967 | L20: =IFERROR(VLOOKUP(CONCATENATE(L$5,$C20),'trend data'!$A$2:$O$11161,L$6,FALSE),"-") -> 4047 | M20: =IFERROR(VLOOKUP(CONCATENATE(M$5,$C20),'trend data'!$A$2:$O$11161,M$6,FALSE),"-") -> 2164 | Q20: 202104 | R20: =CONCATENATE(U$7,$Q20,'SSI Data and Charts'!B$1) -> SSICSEC202104Scotland | S20: 12 | T20: =T5 -> 2021-12-31 | U20: =ROUND(VLOOKUP($R20,'data for u-p-charts'!$A$2:$F$5000,U$5,FALSE),2) ->  | V20: =ROUND(VLOOKUP($R20,'data for u-p-charts'!$A$2:$F$5000,V$5,FALSE),2) ->  | W20: =ROUND(VLOOKUP($R20,'data for u-p-charts'!$A$2:$F$5000,W$5,FALSE),2) ->  | X20: =ROUND(VLOOKUP($R20,'data for u-p-charts'!$A$2:$F$5000,X$5,FALSE),2) ->  | Y20: =CONCATENATE(Z$7,$Q20,'SSI Data and Charts'!$B$1) -> SSIHIP202104Scotland | Z20: =ROUND(VLOOKUP($Y20,'data for u-p-charts'!$A$2:$F$5000,Z$5,FALSE),2) ->  | AA20: =ROUND(VLOOKUP($Y20,'data for u-p-charts'!$A$2:$F$5000,AA$5,FALSE),2) ->  | AB20: =ROUND(VLOOKUP($Y20,'data for u-p-charts'!$A$2:$F$5000,AB$5,FALSE),2) ->  | AC20: =ROUND(VLOOKUP($Y20,'data for u-p-charts'!$A$2:$F$5000,AC$5,FALSE),2) -> 
A21: 201702 | B21: 2017-06-01 | C21: =CONCATENATE(A21,'SSI Data and Charts'!B$1) -> 201702Scotland | D21: =IFERROR(VLOOKUP(CONCATENATE(D$5,$C21),'trend data'!$A$2:$O$11161,D$6,FALSE),"-") -> 51 | E21: =IFERROR(ROUND(VLOOKUP(CONCATENATE(E$5,$C21),'trend data'!$A$2:$O$11161,E$6,FALSE),3),"-") -> 1.239 | F21: =IFERROR(ROUND(VLOOKUP(CONCATENATE(F$5,$C21),'trend data'!$A$2:$O$11161,F$6,FALSE),3),"-") -> 0.944 | G21: =IFERROR(ROUND(VLOOKUP(CONCATENATE(G$5,$C21),'trend data'!$A$2:$O$11161,G$6,FALSE),3),"-") -> 1.626 | H21: =IFERROR(VLOOKUP(CONCATENATE(H$5,$C21),'trend data'!$A$2:$O$11161,H$6,FALSE),"-") -> 19 | I21: =IFERROR(ROUND(VLOOKUP(CONCATENATE(I$5,$C21),'trend data'!$A$2:$O$11161,I$6,FALSE),3),"-") -> 0.826 | J21: =IFERROR(ROUND(VLOOKUP(CONCATENATE(J$5,$C21),'trend data'!$A$2:$O$11161,J$6,FALSE),3),"-") -> 0.529 | K21: =IFERROR(ROUND(VLOOKUP(CONCATENATE(K$5,$C21),'trend data'!$A$2:$O$11161,K$6,FALSE),3),"-") -> 1.286 | L21: =IFERROR(VLOOKUP(CONCATENATE(L$5,$C21),'trend data'!$A$2:$O$11161,L$6,FALSE),"-") -> 4115 | M21: =IFERROR(VLOOKUP(CONCATENATE(M$5,$C21),'trend data'!$A$2:$O$11161,M$6,FALSE),"-") -> 2301
A22: 201703 | B22: 2017-09-01 | C22: =CONCATENATE(A22,'SSI Data and Charts'!B$1) -> 201703Scotland | D22: =IFERROR(VLOOKUP(CONCATENATE(D$5,$C22),'trend data'!$A$2:$O$11161,D$6,FALSE),"-") -> 58 | E22: =IFERROR(ROUND(VLOOKUP(CONCATENATE(E$5,$C22),'trend data'!$A$2:$O$11161,E$6,FALSE),3),"-") -> 1.285 | F22: =IFERROR(ROUND(VLOOKUP(CONCATENATE(F$5,$C22),'trend data'!$A$2:$O$11161,F$6,FALSE),3),"-") -> 0.995 | G22: =IFERROR(ROUND(VLOOKUP(CONCATENATE(G$5,$C22),'trend data'!$A$2:$O$11161,G$6,FALSE),3),"-") -> 1.657 | H22: =IFERROR(VLOOKUP(CONCATENATE(H$5,$C22),'trend data'!$A$2:$O$11161,H$6,FALSE),"-") -> 9 | I22: =IFERROR(ROUND(VLOOKUP(CONCATENATE(I$5,$C22),'trend data'!$A$2:$O$11161,I$6,FALSE),3),"-") -> 0.433 | J22: =IFERROR(ROUND(VLOOKUP(CONCATENATE(J$5,$C22),'trend data'!$A$2:$O$11161,J$6,FALSE),3),"-") -> 0.228 | K22: =IFERROR(ROUND(VLOOKUP(CONCATENATE(K$5,$C22),'trend data'!$A$2:$O$11161,K$6,FALSE),3),"-") -> 0.822 | L22: =IFERROR(VLOOKUP(CONCATENATE(L$5,$C22),'trend data'!$A$2:$O$11161,L$6,FALSE),"-") -> 4514 | M22: =IFERROR(VLOOKUP(CONCATENATE(M$5,$C22),'trend data'!$A$2:$O$11161,M$6,FALSE),"-") -> 2077
A23: 201704 | B23: 2017-12-01 | C23: =CONCATENATE(A23,'SSI Data and Charts'!B$1) -> 201704Scotland | D23: =IFERROR(VLOOKUP(CONCATENATE(D$5,$C23),'trend data'!$A$2:$O$11161,D$6,FALSE),"-") -> 66 | E23: =IFERROR(ROUND(VLOOKUP(CONCATENATE(E$5,$C23),'trend data'!$A$2:$O$11161,E$6,FALSE),3),"-") -> 1.563 | F23: =IFERROR(ROUND(VLOOKUP(CONCATENATE(F$5,$C23),'trend data'!$A$2:$O$11161,F$6,FALSE),3),"-") -> 1.23 | G23: =IFERROR(ROUND(VLOOKUP(CONCATENATE(G$5,$C23),'trend data'!$A$2:$O$11161,G$6,FALSE),3),"-") -> 1.983 | H23: =IFERROR(VLOOKUP(CONCATENATE(H$5,$C23),'trend data'!$A$2:$O$11161,H$6,FALSE),"-") -> 16 | I23: =IFERROR(ROUND(VLOOKUP(CONCATENATE(I$5,$C23),'trend data'!$A$2:$O$11161,I$6,FALSE),3),"-") -> 0.773 | J23: =IFERROR(ROUND(VLOOKUP(CONCATENATE(J$5,$C23),'trend data'!$A$2:$O$11161,J$6,FALSE),3),"-") -> 0.476 | K23: =IFERROR(ROUND(VLOOKUP(CONCATENATE(K$5,$C23),'trend data'!$A$2:$O$11161,K$6,FALSE),3),"-") -> 1.251 | L23: =IFERROR(VLOOKUP(CONCATENATE(L$5,$C23),'trend data'!$A$2:$O$11161,L$6,FALSE),"-") -> 4224 | M23: =IFERROR(VLOOKUP(CONCATENATE(M$5,$C23),'trend data'!$A$2:$O$11161,M$6,FALSE),"-") -> 2071
A24: 201801 | B24: 2018-03-01 | C24: =CONCATENATE(A24,'SSI Data and Charts'!B$1) -> 201801Scotland | D24: =IFERROR(VLOOKUP(CONCATENATE(D$5,$C24),'trend data'!$A$2:$O$11161,D$6,FALSE),"-") -> 64 | E24: =IFERROR(ROUND(VLOOKUP(CONCATENATE(E$5,$C24),'trend data'!$A$2:$O$11161,E$6,FALSE),3),"-") -> 1.61 | F24: =IFERROR(ROUND(VLOOKUP(CONCATENATE(F$5,$C24),'trend data'!$A$2:$O$11161,F$6,FALSE),3),"-") -> 1.263 | G24: =IFERROR(ROUND(VLOOKUP(CONCATENATE(G$5,$C24),'trend data'!$A$2:$O$11161,G$6,FALSE),3),"-") -> 2.051 | H24: =IFERROR(VLOOKUP(CONCATENATE(H$5,$C24),'trend data'!$A$2:$O$11161,H$6,FALSE),"-") -> 17 | I24: =IFERROR(ROUND(VLOOKUP(CONCATENATE(I$5,$C24),'trend data'!$A$2:$O$11161,I$6,FALSE),3),"-") -> 0.847 | J24: =IFERROR(ROUND(VLOOKUP(CONCATENATE(J$5,$C24),'trend data'!$A$2:$O$11161,J$6,FALSE),3),"-") -> 0.529 | K24: =IFERROR(ROUND(VLOOKUP(CONCATENATE(K$5,$C24),'trend data'!$A$2:$O$11161,K$6,FALSE),3),"-") -> 1.352 | L24: =IFERROR(VLOOKUP(CONCATENATE(L$5,$C24),'trend data'!$A$2:$O$11161,L$6,FALSE),"-") -> 3975 | M24: =IFERROR(VLOOKUP(CONCATENATE(M$5,$C24),'trend data'!$A$2:$O$11161,M$6,FALSE),"-") -> 2008
A25: 201802 | B25: 2018-06-01 | C25: =CONCATENATE(A25,'SSI Data and Charts'!B$1) -> 201802Scotland | D25: =IFERROR(VLOOKUP(CONCATENATE(D$5,$C25),'trend data'!$A$2:$O$11161,D$6,FALSE),"-") -> 61 | E25: =IFERROR(ROUND(VLOOKUP(CONCATENATE(E$5,$C25),'trend data'!$A$2:$O$11161,E$6,FALSE),3),"-") -> 1.455 | F25: =IFERROR(ROUND(VLOOKUP(CONCATENATE(F$5,$C25),'trend data'!$A$2:$O$11161,F$6,FALSE),3),"-") -> 1.135 | G25: =IFERROR(ROUND(VLOOKUP(CONCATENATE(G$5,$C25),'trend data'!$A$2:$O$11161,G$6,FALSE),3),"-") -> 1.865 | H25: =IFERROR(VLOOKUP(CONCATENATE(H$5,$C25),'trend data'!$A$2:$O$11161,H$6,FALSE),"-") -> 18 | I25: =IFERROR(ROUND(VLOOKUP(CONCATENATE(I$5,$C25),'trend data'!$A$2:$O$11161,I$6,FALSE),3),"-") -> 0.793 | J25: =IFERROR(ROUND(VLOOKUP(CONCATENATE(J$5,$C25),'trend data'!$A$2:$O$11161,J$6,FALSE),3),"-") -> 0.502 | K25: =IFERROR(ROUND(VLOOKUP(CONCATENATE(K$5,$C25),'trend data'!$A$2:$O$11161,K$6,FALSE),3),"-") -> 1.25 | L25: =IFERROR(VLOOKUP(CONCATENATE(L$5,$C25),'trend data'!$A$2:$O$11161,L$6,FALSE),"-") -> 4191 | M25: =IFERROR(VLOOKUP(CONCATENATE(M$5,$C25),'trend data'!$A$2:$O$11161,M$6,FALSE),"-") -> 2270
A26: 201803 | B26: 2018-09-01 | C26: =CONCATENATE(A26,'SSI Data and Charts'!B$1) -> 201803Scotland | D26: =IFERROR(VLOOKUP(CONCATENATE(D$5,$C26),'trend data'!$A$2:$O$11161,D$6,FALSE),"-") -> 66 | E26: =IFERROR(ROUND(VLOOKUP(CONCATENATE(E$5,$C26),'trend data'!$A$2:$O$11161,E$6,FALSE),3),"-") -> 1.537 | F26: =IFERROR(ROUND(VLOOKUP(CONCATENATE(F$5,$C26),'trend data'!$A$2:$O$11161,F$6,FALSE),3),"-") -> 1.21 | G26: =IFERROR(ROUND(VLOOKUP(CONCATENATE(G$5,$C26),'trend data'!$A$2:$O$11161,G$6,FALSE),3),"-") -> 1.951 | H26: =IFERROR(VLOOKUP(CONCATENATE(H$5,$C26),'trend data'!$A$2:$O$11161,H$6,FALSE),"-") -> 13 | I26: =IFERROR(ROUND(VLOOKUP(CONCATENATE(I$5,$C26),'trend data'!$A$2:$O$11161,I$6,FALSE),3),"-") -> 0.603 | J26: =IFERROR(ROUND(VLOOKUP(CONCATENATE(J$5,$C26),'trend data'!$A$2:$O$11161,J$6,FALSE),3),"-") -> 0.353 | K26: =IFERROR(ROUND(VLOOKUP(CONCATENATE(K$5,$C26),'trend data'!$A$2:$O$11161,K$6,FALSE),3),"-") -> 1.029 | L26: =IFERROR(VLOOKUP(CONCATENATE(L$5,$C26),'trend data'!$A$2:$O$11161,L$6,FALSE),"-") -> 4293 | M26: =IFERROR(VLOOKUP(CONCATENATE(M$5,$C26),'trend data'!$A$2:$O$11161,M$6,FALSE),"-") -> 2155
A27: 201804 | B27: 2018-12-01 | C27: =CONCATENATE(A27,'SSI Data and Charts'!B$1) -> 201804Scotland | D27: =IFERROR(VLOOKUP(CONCATENATE(D$5,$C27),'trend data'!$A$2:$O$11161,D$6,FALSE),"-") -> 59 | E27: =IFERROR(ROUND(VLOOKUP(CONCATENATE(E$5,$C27),'trend data'!$A$2:$O$11161,E$6,FALSE),3),"-") -> 1.358 | F27: =IFERROR(ROUND(VLOOKUP(CONCATENATE(F$5,$C27),'trend data'!$A$2:$O$11161,F$6,FALSE),3),"-") -> 1.054 | G27: =IFERROR(ROUND(VLOOKUP(CONCATENATE(G$5,$C27),'trend data'!$A$2:$O$11161,G$6,FALSE),3),"-") -> 1.747 | H27: =IFERROR(VLOOKUP(CONCATENATE(H$5,$C27),'trend data'!$A$2:$O$11161,H$6,FALSE),"-") -> 16 | I27: =IFERROR(ROUND(VLOOKUP(CONCATENATE(I$5,$C27),'trend data'!$A$2:$O$11161,I$6,FALSE),3),"-") -> 0.703 | J27: =IFERROR(ROUND(VLOOKUP(CONCATENATE(J$5,$C27),'trend data'!$A$2:$O$11161,J$6,FALSE),3),"-") -> 0.433 | K27: =IFERROR(ROUND(VLOOKUP(CONCATENATE(K$5,$C27),'trend data'!$A$2:$O$11161,K$6,FALSE),3),"-") -> 1.139 | L27: =IFERROR(VLOOKUP(CONCATENATE(L$5,$C27),'trend data'!$A$2:$O$11161,L$6,FALSE),"-") -> 4346 | M27: =IFERROR(VLOOKUP(CONCATENATE(M$5,$C27),'trend data'!$A$2:$O$11161,M$6,FALSE),"-") -> 2276
A28: 201901 | B28: 2019-03-01 | C28: =CONCATENATE(A28,'SSI Data and Charts'!B$1) -> 201901Scotland | D28: =IFERROR(VLOOKUP(CONCATENATE(D$5,$C28),'trend data'!$A$2:$O$11161,D$6,FALSE),"-") -> 64 | E28: =IFERROR(ROUND(VLOOKUP(CONCATENATE(E$5,$C28),'trend data'!$A$2:$O$11161,E$6,FALSE),3),"-") -> 1.58 | F28: =IFERROR(ROUND(VLOOKUP(CONCATENATE(F$5,$C28),'trend data'!$A$2:$O$11161,F$6,FALSE),3),"-") -> 1.239 | G28: =IFERROR(ROUND(VLOOKUP(CONCATENATE(G$5,$C28),'trend data'!$A$2:$O$11161,G$6,FALSE),3),"-") -> 2.012 | H28: =IFERROR(VLOOKUP(CONCATENATE(H$5,$C28),'trend data'!$A$2:$O$11161,H$6,FALSE),"-") -> 8 | I28: =IFERROR(ROUND(VLOOKUP(CONCATENATE(I$5,$C28),'trend data'!$A$2:$O$11161,I$6,FALSE),3),"-") -> 0.373 | J28: =IFERROR(ROUND(VLOOKUP(CONCATENATE(J$5,$C28),'trend data'!$A$2:$O$11161,J$6,FALSE),3),"-") -> 0.189 | K28: =IFERROR(ROUND(VLOOKUP(CONCATENATE(K$5,$C28),'trend data'!$A$2:$O$11161,K$6,FALSE),3),"-") -> 0.734 | L28: =IFERROR(VLOOKUP(CONCATENATE(L$5,$C28),'trend data'!$A$2:$O$11161,L$6,FALSE),"-") -> 4051 | M28: =IFERROR(VLOOKUP(CONCATENATE(M$5,$C28),'trend data'!$A$2:$O$11161,M$6,FALSE),"-") -> 2146
A29: 201902 | B29: 2019-06-01 | C29: =CONCATENATE(A29,'SSI Data and Charts'!B$1) -> 201902Scotland | D29: =IFERROR(VLOOKUP(CONCATENATE(D$5,$C29),'trend data'!$A$2:$O$11161,D$6,FALSE),"-") -> 43 | E29: =IFERROR(ROUND(VLOOKUP(CONCATENATE(E$5,$C29),'trend data'!$A$2:$O$11161,E$6,FALSE),3),"-") -> 1.044 | F29: =IFERROR(ROUND(VLOOKUP(CONCATENATE(F$5,$C29),'trend data'!$A$2:$O$11161,F$6,FALSE),3),"-") -> 0.776 | G29: =IFERROR(ROUND(VLOOKUP(CONCATENATE(G$5,$C29),'trend data'!$A$2:$O$11161,G$6,FALSE),3),"-") -> 1.403 | H29: =IFERROR(VLOOKUP(CONCATENATE(H$5,$C29),'trend data'!$A$2:$O$11161,H$6,FALSE),"-") -> 10 | I29: =IFERROR(ROUND(VLOOKUP(CONCATENATE(I$5,$C29),'trend data'!$A$2:$O$11161,I$6,FALSE),3),"-") -> 0.443 | J29: =IFERROR(ROUND(VLOOKUP(CONCATENATE(J$5,$C29),'trend data'!$A$2:$O$11161,J$6,FALSE),3),"-") -> 0.241 | K29: =IFERROR(ROUND(VLOOKUP(CONCATENATE(K$5,$C29),'trend data'!$A$2:$O$11161,K$6,FALSE),3),"-") -> 0.814 | L29: =IFERROR(VLOOKUP(CONCATENATE(L$5,$C29),'trend data'!$A$2:$O$11161,L$6,FALSE),"-") -> 4118 | M29: =IFERROR(VLOOKUP(CONCATENATE(M$5,$C29),'trend data'!$A$2:$O$11161,M$6,FALSE),"-") -> 2257
A30: 201903 | B30: 2019-09-01 | C30: =CONCATENATE(A30,'SSI Data and Charts'!B$1) -> 201903Scotland | D30: =IFERROR(VLOOKUP(CONCATENATE(D$5,$C30),'trend data'!$A$2:$O$11161,D$6,FALSE),"-") -> 51 | E30: =IFERROR(ROUND(VLOOKUP(CONCATENATE(E$5,$C30),'trend data'!$A$2:$O$11161,E$6,FALSE),3),"-") -> 1.157 | F30: =IFERROR(ROUND(VLOOKUP(CONCATENATE(F$5,$C30),'trend data'!$A$2:$O$11161,F$6,FALSE),3),"-") -> 0.881 | G30: =IFERROR(ROUND(VLOOKUP(CONCATENATE(G$5,$C30),'trend data'!$A$2:$O$11161,G$6,FALSE),3),"-") -> 1.518 | H30: =IFERROR(VLOOKUP(CONCATENATE(H$5,$C30),'trend data'!$A$2:$O$11161,H$6,FALSE),"-") -> 17 | I30: =IFERROR(ROUND(VLOOKUP(CONCATENATE(I$5,$C30),'trend data'!$A$2:$O$11161,I$6,FALSE),3),"-") -> 0.802 | J30: =IFERROR(ROUND(VLOOKUP(CONCATENATE(J$5,$C30),'trend data'!$A$2:$O$11161,J$6,FALSE),3),"-") -> 0.501 | K30: =IFERROR(ROUND(VLOOKUP(CONCATENATE(K$5,$C30),'trend data'!$A$2:$O$11161,K$6,FALSE),3),"-") -> 1.28 | L30: =IFERROR(VLOOKUP(CONCATENATE(L$5,$C30),'trend data'!$A$2:$O$11161,L$6,FALSE),"-") -> 4408 | M30: =IFERROR(VLOOKUP(CONCATENATE(M$5,$C30),'trend data'!$A$2:$O$11161,M$6,FALSE),"-") -> 2121
A31: 201904 | B31: 2019-12-01 | C31: =CONCATENATE(A31,'SSI Data and Charts'!B$1) -> 201904Scotland | D31: =IFERROR(VLOOKUP(CONCATENATE(D$5,$C31),'trend data'!$A$2:$O$11161,D$6,FALSE),"-") -> 35 | E31: =IFERROR(ROUND(VLOOKUP(CONCATENATE(E$5,$C31),'trend data'!$A$2:$O$11161,E$6,FALSE),3),"-") -> 0.851 | F31: =IFERROR(ROUND(VLOOKUP(CONCATENATE(F$5,$C31),'trend data'!$A$2:$O$11161,F$6,FALSE),3),"-") -> 0.613 | G31: =IFERROR(ROUND(VLOOKUP(CONCATENATE(G$5,$C31),'trend data'!$A$2:$O$11161,G$6,FALSE),3),"-") -> 1.181 | H31: =IFERROR(VLOOKUP(CONCATENATE(H$5,$C31),'trend data'!$A$2:$O$11161,H$6,FALSE),"-") -> 17 | I31: =IFERROR(ROUND(VLOOKUP(CONCATENATE(I$5,$C31),'trend data'!$A$2:$O$11161,I$6,FALSE),3),"-") -> 0.793 | J31: =IFERROR(ROUND(VLOOKUP(CONCATENATE(J$5,$C31),'trend data'!$A$2:$O$11161,J$6,FALSE),3),"-") -> 0.495 | K31: =IFERROR(ROUND(VLOOKUP(CONCATENATE(K$5,$C31),'trend data'!$A$2:$O$11161,K$6,FALSE),3),"-") -> 1.266 | L31: =IFERROR(VLOOKUP(CONCATENATE(L$5,$C31),'trend data'!$A$2:$O$11161,L$6,FALSE),"-") -> 4112 | M31: =IFERROR(VLOOKUP(CONCATENATE(M$5,$C31),'trend data'!$A$2:$O$11161,M$6,FALSE),"-") -> 2145
A32: 202001 | B32: 2020-03-01 | C32: =CONCATENATE(A32,'SSI Data and Charts'!B$1) -> 202001Scotland | D32: =IFERROR(VLOOKUP(CONCATENATE(D$5,$C32),'trend data'!$A$2:$O$11161,D$6,FALSE),"-") -> - | E32: =IFERROR(ROUND(VLOOKUP(CONCATENATE(E$5,$C32),'trend data'!$A$2:$O$11161,E$6,FALSE),3),"-") -> - | F32: =IFERROR(ROUND(VLOOKUP(CONCATENATE(F$5,$C32),'trend data'!$A$2:$O$11161,F$6,FALSE),3),"-") -> - | G32: =IFERROR(ROUND(VLOOKUP(CONCATENATE(G$5,$C32),'trend data'!$A$2:$O$11161,G$6,FALSE),3),"-") -> - | H32: =IFERROR(VLOOKUP(CONCATENATE(H$5,$C32),'trend data'!$A$2:$O$11161,H$6,FALSE),"-") -> - | I32: =IFERROR(ROUND(VLOOKUP(CONCATENATE(I$5,$C32),'trend data'!$A$2:$O$11161,I$6,FALSE),3),"-") -> - | J32: =IFERROR(ROUND(VLOOKUP(CONCATENATE(J$5,$C32),'trend data'!$A$2:$O$11161,J$6,FALSE),3),"-") -> - | K32: =IFERROR(ROUND(VLOOKUP(CONCATENATE(K$5,$C32),'trend data'!$A$2:$O$11161,K$6,FALSE),3),"-") -> - | L32: =IFERROR(VLOOKUP(CONCATENATE(L$5,$C32),'trend data'!$A$2:$O$11161,L$6,FALSE),"-") -> - | M32: =IFERROR(VLOOKUP(CONCATENATE(M$5,$C32),'trend data'!$A$2:$O$11161,M$6,FALSE),"-") -> -
A33: 202002 | B33: 2020-06-01 | C33: =CONCATENATE(A33,'SSI Data and Charts'!B$1) -> 202002Scotland | D33: =IFERROR(VLOOKUP(CONCATENATE(D$5,$C33),'trend data'!$A$2:$O$11161,D$6,FALSE),"-") -> - | E33: =IFERROR(ROUND(VLOOKUP(CONCATENATE(E$5,$C33),'trend data'!$A$2:$O$11161,E$6,FALSE),3),"-") -> - | F33: =IFERROR(ROUND(VLOOKUP(CONCATENATE(F$5,$C33),'trend data'!$A$2:$O$11161,F$6,FALSE),3),"-") -> - | G33: =IFERROR(ROUND(VLOOKUP(CONCATENATE(G$5,$C33),'trend data'!$A$2:$O$11161,G$6,FALSE),3),"-") -> - | H33: =IFERROR(VLOOKUP(CONCATENATE(H$5,$C33),'trend data'!$A$2:$O$11161,H$6,FALSE),"-") -> - | I33: =IFERROR(ROUND(VLOOKUP(CONCATENATE(I$5,$C33),'trend data'!$A$2:$O$11161,I$6,FALSE),3),"-") -> - | J33: =IFERROR(ROUND(VLOOKUP(CONCATENATE(J$5,$C33),'trend data'!$A$2:$O$11161,J$6,FALSE),3),"-") -> - | K33: =IFERROR(ROUND(VLOOKUP(CONCATENATE(K$5,$C33),'trend data'!$A$2:$O$11161,K$6,FALSE),3),"-") -> - | L33: =IFERROR(VLOOKUP(CONCATENATE(L$5,$C33),'trend data'!$A$2:$O$11161,L$6,FALSE),"-") -> - | M33: =IFERROR(VLOOKUP(CONCATENATE(M$5,$C33),'trend data'!$A$2:$O$11161,M$6,FALSE),"-") -> -
A34: 202003 | B34: 2020-09-01 | C34: =CONCATENATE(A34,'SSI Data and Charts'!B$1) -> 202003Scotland | D34: =IFERROR(VLOOKUP(CONCATENATE(D$5,$C34),'trend data'!$A$2:$O$11161,D$6,FALSE),"-") -> - | E34: =IFERROR(ROUND(VLOOKUP(CONCATENATE(E$5,$C34),'trend data'!$A$2:$O$11161,E$6,FALSE),4),"-") -> - | F34: =IFERROR(ROUND(VLOOKUP(CONCATENATE(F$5,$C34),'trend data'!$A$2:$O$11161,F$6,FALSE),4),"-") -> - | G34: =IFERROR(ROUND(VLOOKUP(CONCATENATE(G$5,$C34),'trend data'!$A$2:$O$11161,G$6,FALSE),4),"-") -> - | H34: =IFERROR(VLOOKUP(CONCATENATE(H$5,$C34),'trend data'!$A$2:$O$11161,H$6,FALSE),"-") -> - | I34: =IFERROR(ROUND(VLOOKUP(CONCATENATE(I$5,$C34),'trend data'!$A$2:$O$11161,I$6,FALSE),4),"-") -> - | J34: =IFERROR(ROUND(VLOOKUP(CONCATENATE(J$5,$C34),'trend data'!$A$2:$O$11161,J$6,FALSE),4),"-") -> - | K34: =IFERROR(ROUND(VLOOKUP(CONCATENATE(K$5,$C34),'trend data'!$A$2:$O$11161,K$6,FALSE),4),"-") -> - | L34: =IFERROR(VLOOKUP(CONCATENATE(L$5,$C34),'trend data'!$A$2:$O$11161,L$6,FALSE),"-") -> - | M34: =IFERROR(VLOOKUP(CONCATENATE(M$5,$C34),'trend data'!$A$2:$O$11161,M$6,FALSE),"-") -> -
A35: 202004 | B35: 2020-12-31 | C35: =CONCATENATE(A35,'SSI Data and Charts'!B$1) -> 202004Scotland | D35: =IFERROR(VLOOKUP(CONCATENATE(D$5,$C35),'trend data'!$A$2:$O$11161,D$6,FALSE),"-") -> - | E35: =IFERROR(ROUND(VLOOKUP(CONCATENATE(E$5,$C35),'trend data'!$A$2:$O$11161,E$6,FALSE),4),"-") -> - | F35: =IFERROR(ROUND(VLOOKUP(CONCATENATE(F$5,$C35),'trend data'!$A$2:$O$11161,F$6,FALSE),4),"-") -> - | G35: =IFERROR(ROUND(VLOOKUP(CONCATENATE(G$5,$C35),'trend data'!$A$2:$O$11161,G$6,FALSE),4),"-") -> - | H35: =IFERROR(VLOOKUP(CONCATENATE(H$5,$C35),'trend data'!$A$2:$O$11161,H$6,FALSE),"-") -> - | I35: =IFERROR(ROUND(VLOOKUP(CONCATENATE(I$5,$C35),'trend data'!$A$2:$O$11161,I$6,FALSE),4),"-") -> - | J35: =IFERROR(ROUND(VLOOKUP(CONCATENATE(J$5,$C35),'trend data'!$A$2:$O$11161,J$6,FALSE),4),"-") -> - | K35: =IFERROR(ROUND(VLOOKUP(CONCATENATE(K$5,$C35),'trend data'!$A$2:$O$11161,K$6,FALSE),4),"-") -> - | L35: =IFERROR(VLOOKUP(CONCATENATE(L$5,$C35),'trend data'!$A$2:$O$11161,L$6,FALSE),"-") -> - | M35: =IFERROR(VLOOKUP(CONCATENATE(M$5,$C35),'trend data'!$A$2:$O$11161,M$6,FALSE),"-") -> -
A36: 202101 | B36: 2021-03-31 | C36: =CONCATENATE(A36,'SSI Data and Charts'!B$1) -> 202101Scotland | D36: =IFERROR(VLOOKUP(CONCATENATE(D$5,$C36),'trend data'!$A$2:$O$11161,D$6,FALSE),"-") -> - | E36: =IFERROR(ROUND(VLOOKUP(CONCATENATE(E$5,$C36),'trend data'!$A$2:$O$11161,E$6,FALSE),4),"-") -> - | F36: =IFERROR(ROUND(VLOOKUP(CONCATENATE(F$5,$C36),'trend data'!$A$2:$O$11161,F$6,FALSE),4),"-") -> - | G36: =IFERROR(ROUND(VLOOKUP(CONCATENATE(G$5,$C36),'trend data'!$A$2:$O$11161,G$6,FALSE),4),"-") -> - | H36: =IFERROR(VLOOKUP(CONCATENATE(H$5,$C36),'trend data'!$A$2:$O$11161,H$6,FALSE),"-") -> - | I36: =IFERROR(ROUND(VLOOKUP(CONCATENATE(I$5,$C36),'trend data'!$A$2:$O$11161,I$6,FALSE),4),"-") -> - | J36: =IFERROR(ROUND(VLOOKUP(CONCATENATE(J$5,$C36),'trend data'!$A$2:$O$11161,J$6,FALSE),4),"-") -> - | K36: =IFERROR(ROUND(VLOOKUP(CONCATENATE(K$5,$C36),'trend data'!$A$2:$O$11161,K$6,FALSE),4),"-") -> - | L36: =IFERROR(VLOOKUP(CONCATENATE(L$5,$C36),'trend data'!$A$2:$O$11161,L$6,FALSE),"-") -> - | M36: =IFERROR(VLOOKUP(CONCATENATE(M$5,$C36),'trend data'!$A$2:$O$11161,M$6,FALSE),"-") -> -
A37: 202102 | B37: 2021-06-30 | C37: =CONCATENATE(A37,'SSI Data and Charts'!B$1) -> 202102Scotland | D37: =IFERROR(VLOOKUP(CONCATENATE(D$5,$C37),'trend data'!$A$2:$O$11161,D$6,FALSE),"-") -> - | E37: =IFERROR(ROUND(VLOOKUP(CONCATENATE(E$5,$C37),'trend data'!$A$2:$O$11161,E$6,FALSE),4),"-") -> - | F37: =IFERROR(ROUND(VLOOKUP(CONCATENATE(F$5,$C37),'trend data'!$A$2:$O$11161,F$6,FALSE),4),"-") -> - | G37: =IFERROR(ROUND(VLOOKUP(CONCATENATE(G$5,$C37),'trend data'!$A$2:$O$11161,G$6,FALSE),4),"-") -> - | H37: =IFERROR(VLOOKUP(CONCATENATE(H$5,$C37),'trend data'!$A$2:$O$11161,H$6,FALSE),"-") -> - | I37: =IFERROR(ROUND(VLOOKUP(CONCATENATE(I$5,$C37),'trend data'!$A$2:$O$11161,I$6,FALSE),4),"-") -> - | J37: =IFERROR(ROUND(VLOOKUP(CONCATENATE(J$5,$C37),'trend data'!$A$2:$O$11161,J$6,FALSE),4),"-") -> - | K37: =IFERROR(ROUND(VLOOKUP(CONCATENATE(K$5,$C37),'trend data'!$A$2:$O$11161,K$6,FALSE),4),"-") -> - | L37: =IFERROR(VLOOKUP(CONCATENATE(L$5,$C37),'trend data'!$A$2:$O$11161,L$6,FALSE),"-") -> - | M37: =IFERROR(VLOOKUP(CONCATENATE(M$5,$C37),'trend data'!$A$2:$O$11161,M$6,FALSE),"-") -> -
A38: 202103 | B38: 2021-09-30 | C38: =CONCATENATE(A38,'SSI Data and Charts'!B$1) -> 202103Scotland | D38: =IFERROR(VLOOKUP(CONCATENATE(D$5,$C38),'trend data'!$A$2:$O$11161,D$6,FALSE),"-") -> - | E38: =IFERROR(ROUND(VLOOKUP(CONCATENATE(E$5,$C38),'trend data'!$A$2:$O$11161,E$6,FALSE),4),"-") -> - | F38: =IFERROR(ROUND(VLOOKUP(CONCATENATE(F$5,$C38),'trend data'!$A$2:$O$11161,F$6,FALSE),4),"-") -> - | G38: =IFERROR(ROUND(VLOOKUP(CONCATENATE(G$5,$C38),'trend data'!$A$2:$O$11161,G$6,FALSE),4),"-") -> - | H38: =IFERROR(VLOOKUP(CONCATENATE(H$5,$C38),'trend data'!$A$2:$O$11161,H$6,FALSE),"-") -> - | I38: =IFERROR(ROUND(VLOOKUP(CONCATENATE(I$5,$C38),'trend data'!$A$2:$O$11161,I$6,FALSE),4),"-") -> - | J38: =IFERROR(ROUND(VLOOKUP(CONCATENATE(J$5,$C38),'trend data'!$A$2:$O$11161,J$6,FALSE),4),"-") -> - | K38: =IFERROR(ROUND(VLOOKUP(CONCATENATE(K$5,$C38),'trend data'!$A$2:$O$11161,K$6,FALSE),4),"-") -> - | L38: =IFERROR(VLOOKUP(CONCATENATE(L$5,$C38),'trend data'!$A$2:$O$11161,L$6,FALSE),"-") -> - | M38: =IFERROR(VLOOKUP(CONCATENATE(M$5,$C38),'trend data'!$A$2:$O$11161,M$6,FALSE),"-") -> -
A39: 202104 | B39: 2021-12-31 | C39: =CONCATENATE(A39,'SSI Data and Charts'!B$1) -> 202104Scotland | D39: =IFERROR(VLOOKUP(CONCATENATE(D$5,$C39),'trend data'!$A$2:$O$11161,D$6,FALSE),"-") -> - | E39: =IFERROR(ROUND(VLOOKUP(CONCATENATE(E$5,$C39),'trend data'!$A$2:$O$11161,E$6,FALSE),4),"-") -> - | F39: =IFERROR(ROUND(VLOOKUP(CONCATENATE(F$5,$C39),'trend data'!$A$2:$O$11161,F$6,FALSE),4),"-") -> - | G39: =IFERROR(ROUND(VLOOKUP(CONCATENATE(G$5,$C39),'trend data'!$A$2:$O$11161,G$6,FALSE),4),"-") -> - | H39: =IFERROR(VLOOKUP(CONCATENATE(H$5,$C39),'trend data'!$A$2:$O$11161,H$6,FALSE),"-") -> - | I39: =IFERROR(ROUND(VLOOKUP(CONCATENATE(I$5,$C39),'trend data'!$A$2:$O$11161,I$6,FALSE),4),"-") -> - | J39: =IFERROR(ROUND(VLOOKUP(CONCATENATE(J$5,$C39),'trend data'!$A$2:$O$11161,J$6,FALSE),4),"-") -> - | K39: =IFERROR(ROUND(VLOOKUP(CONCATENATE(K$5,$C39),'trend data'!$A$2:$O$11161,K$6,FALSE),4),"-") -> - | L39: =IFERROR(VLOOKUP(CONCATENATE(L$5,$C39),'trend data'!$A$2:$O$11161,L$6,FALSE),"-") -> - | M39: =IFERROR(VLOOKUP(CONCATENATE(M$5,$C39),'trend data'!$A$2:$O$11161,M$6,FALSE),"-") -> -

Sheet SAB data (hidden)
A1: Trend data | T1: data for u-charts
A3: always last 3 years
W4: change this
D5: SABHCAI | E5: SABHCAI | F5: SABHCAI | G5: SABHCAI | H5: SABCAUN | I5: SABCAUN | J5: SABCAUN | K5: SABCAUN | L5: SAB | M5: SAB | N5: SAB | O5: SAB | P5: SAB | V5: current quarter end | W5: 2021-12-31 | X5: 3 | Y5: 4 | Z5: 5 | AA5: 6 | AC5: 3 | AD5: 4 | AE5: 5 | AF5: 6 | AH5: 3 | AI5: 4 | AJ5: 5 | AK5: 6
D6: 2 | E6: 4 | F6: 5 | G6: 6 | H6: 2 | I6: 4 | J6: 5 | K6: 6 | L6: 2 | M6: 4 | N6: 5 | O6: 6 | P6: 3
C7: ref | D7: HCAI Cases | E7: Healthcare associated rate | F7: Healthcare associated lower CI | G7: Healthcare associated upper CI | H7: Community associatedCases | I7: Community associated rate | J7: Community associated lower CI | K7: Community associated upper CI | L7: CASES | M7: RATE | N7: LOWER | O7: UPPER | P7: beds | X7: SABHCAI | AC7: SABCAUN | AH7: SAB
A8: 201404 | B8: 2014-12-19 | C8: =CONCATENATE(A8,'SAB Data and Charts'!B$1) -> 201404Scotland | D8: =VLOOKUP(CONCATENATE(D$5,$C8),'trend data'!$A$2:$O$11161,D$6,FALSE) -> 275 | E8: =ROUND(VLOOKUP(CONCATENATE(E$5,$C8),'trend data'!$A$2:$O$11161,E$6,FALSE),3) -> 16.065 | F8: =ROUND(VLOOKUP(CONCATENATE(F$5,$C8),'trend data'!$A$2:$O$11161,F$6,FALSE),3) -> 14.222 | G8: =ROUND(VLOOKUP(CONCATENATE(G$5,$C8),'trend data'!$A$2:$O$11161,G$6,FALSE),3) -> 18.08 | H8: =IFERROR(VLOOKUP(CONCATENATE(H$5,$C8),'trend data'!$A$2:$O$11161,H$6,FALSE),"-") -> 119 | I8: =IFERROR(ROUND(VLOOKUP(CONCATENATE(I$5,$C8),'trend data'!$A$2:$O$11161,I$6,FALSE),3),"-") -> 8.829 | J8: =IFERROR(ROUND(VLOOKUP(CONCATENATE(J$5,$C8),'trend data'!$A$2:$O$11161,J$6,FALSE),3),"-") -> 7.314 | K8: =IFERROR(ROUND(VLOOKUP(CONCATENATE(K$5,$C8),'trend data'!$A$2:$O$11161,K$6,FALSE),3),"-") -> 10.565 | L8: =IFERROR(VLOOKUP(CONCATENATE(L$5,$C8),'trend data'!$A$2:$O$11161,L$6,FALSE),"-") -> - | M8: =IFERROR(VLOOKUP(CONCATENATE(M$5,$C8),'trend data'!$A$2:$O$11161,M$6,FALSE),"-") -> - | N8: =IFERROR(VLOOKUP(CONCATENATE(N$5,$C8),'trend data'!$A$2:$O$11161,N$6,FALSE),"-") -> - | O8: =IFERROR(VLOOKUP(CONCATENATE(O$5,$C8),'trend data'!$A$2:$O$11161,O$6,FALSE),"-") -> - | P8: =IFERROR(VLOOKUP(CONCATENATE(P$5,$C8),'trend data'!$A$2:$O$11161,P$6,FALSE),"-") -> - | T8: change to last 12 quarters | X8: Healthcare associated rate | Y8: Healthcare associated av rate | Z8: Healthcare associated UWL 2sd | AA8: Healthcare associated UWL 3sd | AC8: Community associated rate | AD8: Community associated av rate | AE8: Community associated UWL 2sd | AF8: Community associated UWL 3 sd | AH8: sa rate | AI8: sa av rate | AJ8: sa UWL 2 sd | AK8: sa UWL 3 sd
A9: 201501 | B9: 2015-03-24 | C9: =CONCATENATE(A9,'SAB Data and Charts'!B$1) -> 201501Scotland | D9: =VLOOKUP(CONCATENATE(D$5,$C9),'trend data'!$A$2:$O$11161,D$6,FALSE) -> 263 | E9: =ROUND(VLOOKUP(CONCATENATE(E$5,$C9),'trend data'!$A$2:$O$11161,E$6,FALSE),3) -> 15.258 | F9: =ROUND(VLOOKUP(CONCATENATE(F$5,$C9),'trend data'!$A$2:$O$11161,F$6,FALSE),3) -> 13.469 | G9: =ROUND(VLOOKUP(CONCATENATE(G$5,$C9),'trend data'!$A$2:$O$11161,G$6,FALSE),3) -> 17.218 | H9: =IFERROR(VLOOKUP(CONCATENATE(H$5,$C9),'trend data'!$A$2:$O$11161,H$6,FALSE),"-") -> 126 | I9: =IFERROR(ROUND(VLOOKUP(CONCATENATE(I$5,$C9),'trend data'!$A$2:$O$11161,I$6,FALSE),3),"-") -> 9.511 | J9: =IFERROR(ROUND(VLOOKUP(CONCATENATE(J$5,$C9),'trend data'!$A$2:$O$11161,J$6,FALSE),3),"-") -> 7.922 | K9: =IFERROR(ROUND(VLOOKUP(CONCATENATE(K$5,$C9),'trend data'!$A$2:$O$11161,K$6,FALSE),3),"-") -> 11.324 | L9: =IFERROR(VLOOKUP(CONCATENATE(L$5,$C9),'trend data'!$A$2:$O$11161,L$6,FALSE),"-") -> - | M9: =IFERROR(VLOOKUP(CONCATENATE(M$5,$C9),'trend data'!$A$2:$O$11161,M$6,FALSE),"-") -> - | N9: =IFERROR(VLOOKUP(CONCATENATE(N$5,$C9),'trend data'!$A$2:$O$11161,N$6,FALSE),"-") -> - | O9: =IFERROR(VLOOKUP(CONCATENATE(O$5,$C9),'trend data'!$A$2:$O$11161,O$6,FALSE),"-") -> - | P9: =IFERROR(VLOOKUP(CONCATENATE(P$5,$C9),'trend data'!$A$2:$O$11161,P$6,FALSE),"-") -> - | T9: =YEAR(W9)&"0"&IF(MONTH(W9)<4,1,IF(MONTH(W9)<7,2,IF(MONTH(W9)<10,3,4))) -> 201901 | U9: =CONCATENATE(X$7,$T9,'SAB Data and Charts'!B$1) -> SABHCAI201901Scotland | V9: 1 | W9: =W10-92 -> 2019-03-25 | X9: =ROUND(VLOOKUP($U9,'data for u-p-charts'!$A$2:$F$5000,X$5,FALSE),2) -> 15.6 | Y9: =ROUND(VLOOKUP($U9,'data for u-p-charts'!$A$2:$F$5000,Y$5,FALSE),2) -> 17.45 | Z9: =ROUND(VLOOKUP($U9,'data for u-p-charts'!$A$2:$F$5000,Z$5,FALSE),2) -> 19.58 | AA9: =ROUND(VLOOKUP($U9,'data for u-p-charts'!$A$2:$F$5000,AA$5,FALSE),2) -> 20.65 | AB9: =CONCATENATE(AC$7,$T9,'SAB Data and Charts'!$B$1) -> SABCAUN201901Scotland | AC9: =ROUND(VLOOKUP($AB9,'data for u-p-charts'!$A$2:$F$5000,AC$5,FALSE),2) -> 10.69 | AD9: =ROUND(VLOOKUP($AB9,'data for u-p-charts'!$A$2:$F$5000,AD$5,FALSE),2) -> 9.79 | AE9: =ROUND(VLOOKUP($AB9,'data for u-p-charts'!$A$2:$F$5000,AE$5,FALSE),2) -> 11.5 | AF9: =ROUND(VLOOKUP($AB9,'data for u-p-charts'!$A$2:$F$5000,AF$5,FALSE),2) -> 12.35 | AG9: =CONCATENATE(AH$7,$T9,'SAB Data and Charts'!$B$1) -> SAB 201901Scotland | AH9: =VLOOKUP($AG9,'data for u-p-charts'!$A$2:$F$5000,AH$5,FALSE) ->  | AI9: =VLOOKUP($AG9,'data for u-p-charts'!$A$2:$F$5000,AI$5,FALSE) ->  | AJ9: =VLOOKUP($AG9,'data for u-p-charts'!$A$2:$F$5000,AJ$5,FALSE) ->  | AK9: =VLOOKUP($AG9,'data for u-p-charts'!$A$2:$F$5000,AK$5,FALSE) -> 
A10: 201502 | B10: 2015-06-24 | C10: =CONCATENATE(A10,'SAB Data and Charts'!B$1) -> 201502Scotland | D10: =VLOOKUP(CONCATENATE(D$5,$C10),'trend data'!$A$2:$O$11161,D$6,FALSE) -> 284 | E10: =ROUND(VLOOKUP(CONCATENATE(E$5,$C10),'trend data'!$A$2:$O$11161,E$6,FALSE),3) -> 17.094 | F10: =ROUND(VLOOKUP(CONCATENATE(F$5,$C10),'trend data'!$A$2:$O$11161,F$6,FALSE),3) -> 15.163 | G10: =ROUND(VLOOKUP(CONCATENATE(G$5,$C10),'trend data'!$A$2:$O$11161,G$6,FALSE),3) -> 19.202 | H10: =IFERROR(VLOOKUP(CONCATENATE(H$5,$C10),'trend data'!$A$2:$O$11161,H$6,FALSE),"-") -> 131 | I10: =IFERROR(ROUND(VLOOKUP(CONCATENATE(I$5,$C10),'trend data'!$A$2:$O$11161,I$6,FALSE),3),"-") -> 9.779 | J10: =IFERROR(ROUND(VLOOKUP(CONCATENATE(J$5,$C10),'trend data'!$A$2:$O$11161,J$6,FALSE),3),"-") -> 8.176 | K10: =IFERROR(ROUND(VLOOKUP(CONCATENATE(K$5,$C10),'trend data'!$A$2:$O$11161,K$6,FALSE),3),"-") -> 11.605 | L10: =IFERROR(VLOOKUP(CONCATENATE(L$5,$C10),'trend data'!$A$2:$O$11161,L$6,FALSE),"-") -> - | M10: =IFERROR(VLOOKUP(CONCATENATE(M$5,$C10),'trend data'!$A$2:$O$11161,M$6,FALSE),"-") -> - | N10: =IFERROR(VLOOKUP(CONCATENATE(N$5,$C10),'trend data'!$A$2:$O$11161,N$6,FALSE),"-") -> - | O10: =IFERROR(VLOOKUP(CONCATENATE(O$5,$C10),'trend data'!$A$2:$O$11161,O$6,FALSE),"-") -> - | P10: =IFERROR(VLOOKUP(CONCATENATE(P$5,$C10),'trend data'!$A$2:$O$11161,P$6,FALSE),"-") -> - | T10: =YEAR(W10)&"0"&IF(MONTH(W10)<4,1,IF(MONTH(W10)<7,2,IF(MONTH(W10)<10,3,4))) -> 201902 | U10: =CONCATENATE(X$7,T10,'SAB Data and Charts'!B$1) -> SABHCAI201902Scotland | V10: 2 | W10: 2019-06-25 | X10: =ROUND(VLOOKUP($U10,'data for u-p-charts'!$A$2:$F$5000,X$5,FALSE),2) -> 16.66 | Y10: =ROUND(VLOOKUP($U10,'data for u-p-charts'!$A$2:$F$5000,Y$5,FALSE),2) -> 17.45 | Z10: =ROUND(VLOOKUP($U10,'data for u-p-charts'!$A$2:$F$5000,Z$5,FALSE),2) -> 19.61 | AA10: =ROUND(VLOOKUP($U10,'data for u-p-charts'!$A$2:$F$5000,AA$5,FALSE),2) -> 20.68 | AB10: =CONCATENATE(AC$7,$T10,'SAB Data and Charts'!$B$1) -> SABCAUN201902Scotland | AC10: =ROUND(VLOOKUP($AB10,'data for u-p-charts'!$A$2:$F$5000,AC$5,FALSE),2) -> 9.76 | AD10: =ROUND(VLOOKUP($AB10,'data for u-p-charts'!$A$2:$F$5000,AD$5,FALSE),2) -> 9.79 | AE10: =ROUND(VLOOKUP($AB10,'data for u-p-charts'!$A$2:$F$5000,AE$5,FALSE),2) -> 11.49 | AF10: =ROUND(VLOOKUP($AB10,'data for u-p-charts'!$A$2:$F$5000,AF$5,FALSE),2) -> 12.34 | AG10: =CONCATENATE(AH$7,$T10,'SAB Data and Charts'!$B$1) -> SAB 201902Scotland | AH10: =VLOOKUP($AG10,'data for u-p-charts'!$A$2:$F$5000,AH$5,FALSE) ->  | AI10: =VLOOKUP($AG10,'data for u-p-charts'!$A$2:$F$5000,AI$5,FALSE) ->  | AJ10: =VLOOKUP($AG10,'data for u-p-charts'!$A$2:$F$5000,AJ$5,FALSE) ->  | AK10: =VLOOKUP($AG10,'data for u-p-charts'!$A$2:$F$5000,AK$5,FALSE) -> 
A11: 201503 | B11: 2015-09-24 | C11: =CONCATENATE(A11,'SAB Data and Charts'!B$1) -> 201503Scotland | D11: =VLOOKUP(CONCATENATE(D$5,$C11),'trend data'!$A$2:$O$11161,D$6,FALSE) -> 275 | E11: =ROUND(VLOOKUP(CONCATENATE(E$5,$C11),'trend data'!$A$2:$O$11161,E$6,FALSE),3) -> 16.966 | F11: =ROUND(VLOOKUP(CONCATENATE(F$5,$C11),'trend data'!$A$2:$O$11161,F$6,FALSE),3) -> 15.02 | G11: =ROUND(VLOOKUP(CONCATENATE(G$5,$C11),'trend data'!$A$2:$O$11161,G$6,FALSE),3) -> 19.094 | H11: =IFERROR(VLOOKUP(CONCATENATE(H$5,$C11),'trend data'!$A$2:$O$11161,H$6,FALSE),"-") -> 113 | I11: =IFERROR(ROUND(VLOOKUP(CONCATENATE(I$5,$C11),'trend data'!$A$2:$O$11161,I$6,FALSE),3),"-") -> 8.344 | J11: =IFERROR(ROUND(VLOOKUP(CONCATENATE(J$5,$C11),'trend data'!$A$2:$O$11161,J$6,FALSE),3),"-") -> 6.876 | K11: =IFERROR(ROUND(VLOOKUP(CONCATENATE(K$5,$C11),'trend data'!$A$2:$O$11161,K$6,FALSE),3),"-") -> 10.032 | L11: =IFERROR(VLOOKUP(CONCATENATE(L$5,$C11),'trend data'!$A$2:$O$11161,L$6,FALSE),"-") -> - | M11: =IFERROR(VLOOKUP(CONCATENATE(M$5,$C11),'trend data'!$A$2:$O$11161,M$6,FALSE),"-") -> - | N11: =IFERROR(VLOOKUP(CONCATENATE(N$5,$C11),'trend data'!$A$2:$O$11161,N$6,FALSE),"-") -> - | O11: =IFERROR(VLOOKUP(CONCATENATE(O$5,$C11),'trend data'!$A$2:$O$11161,O$6,FALSE),"-") -> - | P11: =IFERROR(VLOOKUP(CONCATENATE(P$5,$C11),'trend data'!$A$2:$O$11161,P$6,FALSE),"-") -> - | T11: =YEAR(W11)&"0"&IF(MONTH(W11)<4,1,IF(MONTH(W11)<7,2,IF(MONTH(W11)<10,3,4))) -> 201903 | U11: =CONCATENATE(X$7,T11,'SAB Data and Charts'!B$1) -> SABHCAI201903Scotland | V11: 3 | W11: 2019-09-25 | X11: =ROUND(VLOOKUP($U11,'data for u-p-charts'!$A$2:$F$5000,X$5,FALSE),2) -> 17.52 | Y11: =ROUND(VLOOKUP($U11,'data for u-p-charts'!$A$2:$F$5000,Y$5,FALSE),2) -> 17.45 | Z11: =ROUND(VLOOKUP($U11,'data for u-p-charts'!$A$2:$F$5000,Z$5,FALSE),2) -> 19.61 | AA11: =ROUND(VLOOKUP($U11,'data for u-p-charts'!$A$2:$F$5000,AA$5,FALSE),2) -> 20.68 | AB11: =CONCATENATE(AC$7,$T11,'SAB Data and Charts'!$B$1) -> SABCAUN201903Scotland | AC11: =ROUND(VLOOKUP($AB11,'data for u-p-charts'!$A$2:$F$5000,AC$5,FALSE),2) -> 7.41 | AD11: =ROUND(VLOOKUP($AB11,'data for u-p-charts'!$A$2:$F$5000,AD$5,FALSE),2) -> 9.79 | AE11: =ROUND(VLOOKUP($AB11,'data for u-p-charts'!$A$2:$F$5000,AE$5,FALSE),2) -> 11.48 | AF11: =ROUND(VLOOKUP($AB11,'data for u-p-charts'!$A$2:$F$5000,AF$5,FALSE),2) -> 12.32 | AG11: =CONCATENATE(AH$7,$T11,'SAB Data and Charts'!$B$1) -> SAB 201903Scotland | AH11: =VLOOKUP($AG11,'data for u-p-charts'!$A$2:$F$5000,AH$5,FALSE) ->  | AI11: =VLOOKUP($AG11,'data for u-p-charts'!$A$2:$F$5000,AI$5,FALSE) ->  | AJ11: =VLOOKUP($AG11,'data for u-p-charts'!$A$2:$F$5000,AJ$5,FALSE) ->  | AK11: =VLOOKUP($AG11,'data for u-p-charts'!$A$2:$F$5000,AK$5,FALSE) -> 
A12: 201504 | B12: 2015-12-24 | C12: =CONCATENATE(A12,'SAB Data and Charts'!B$1) -> 201504Scotland | D12: =VLOOKUP(CONCATENATE(D$5,$C12),'trend data'!$A$2:$O$11161,D$6,FALSE) -> 303 | E12: =ROUND(VLOOKUP(CONCATENATE(E$5,$C12),'trend data'!$A$2:$O$11161,E$6,FALSE),3) -> 18.451 | F12: =ROUND(VLOOKUP(CONCATENATE(F$5,$C12),'trend data'!$A$2:$O$11161,F$6,FALSE),3) -> 16.432 | G12: =ROUND(VLOOKUP(CONCATENATE(G$5,$C12),'trend data'!$A$2:$O$11161,G$6,FALSE),3) -> 20.65 | H12: =IFERROR(VLOOKUP(CONCATENATE(H$5,$C12),'trend data'!$A$2:$O$11161,H$6,FALSE),"-") -> 104 | I12: =IFERROR(ROUND(VLOOKUP(CONCATENATE(I$5,$C12),'trend data'!$A$2:$O$11161,I$6,FALSE),3),"-") -> 7.679 | J12: =IFERROR(ROUND(VLOOKUP(CONCATENATE(J$5,$C12),'trend data'!$A$2:$O$11161,J$6,FALSE),3),"-") -> 6.274 | K12: =IFERROR(ROUND(VLOOKUP(CONCATENATE(K$5,$C12),'trend data'!$A$2:$O$11161,K$6,FALSE),3),"-") -> 9.305 | L12: =IFERROR(VLOOKUP(CONCATENATE(L$5,$C12),'trend data'!$A$2:$O$11161,L$6,FALSE),"-") -> - | M12: =IFERROR(VLOOKUP(CONCATENATE(M$5,$C12),'trend data'!$A$2:$O$11161,M$6,FALSE),"-") -> - | N12: =IFERROR(VLOOKUP(CONCATENATE(N$5,$C12),'trend data'!$A$2:$O$11161,N$6,FALSE),"-") -> - | O12: =IFERROR(VLOOKUP(CONCATENATE(O$5,$C12),'trend data'!$A$2:$O$11161,O$6,FALSE),"-") -> - | P12: =IFERROR(VLOOKUP(CONCATENATE(P$5,$C12),'trend data'!$A$2:$O$11161,P$6,FALSE),"-") -> - | T12: 201904 | U12: =CONCATENATE(X$7,T12,'SAB Data and Charts'!B$1) -> SABHCAI201904Scotland | V12: 4 | W12: 2019-12-26 | X12: =ROUND(VLOOKUP($U12,'data for u-p-charts'!$A$2:$F$5000,X$5,FALSE),2) -> 15.21 | Y12: =ROUND(VLOOKUP($U12,'data for u-p-charts'!$A$2:$F$5000,Y$5,FALSE),2) -> 17.45 | Z12: =ROUND(VLOOKUP($U12,'data for u-p-charts'!$A$2:$F$5000,Z$5,FALSE),2) -> 19.59 | AA12: =ROUND(VLOOKUP($U12,'data for u-p-charts'!$A$2:$F$5000,AA$5,FALSE),2) -> 20.66 | AB12: =CONCATENATE(AC$7,$T12,'SAB Data and Charts'!$B$1) -> SABCAUN201904Scotland | AC12: =ROUND(VLOOKUP($AB12,'data for u-p-charts'!$A$2:$F$5000,AC$5,FALSE),2) -> 9.59 | AD12: =ROUND(VLOOKUP($AB12,'data for u-p-charts'!$A$2:$F$5000,AD$5,FALSE),2) -> 9.79 | AE12: =ROUND(VLOOKUP($AB12,'data for u-p-charts'!$A$2:$F$5000,AE$5,FALSE),2) -> 11.48 | AF12: =ROUND(VLOOKUP($AB12,'data for u-p-charts'!$A$2:$F$5000,AF$5,FALSE),2) -> 12.32 | AG12: =CONCATENATE(AH$7,$T12,'SAB Data and Charts'!$B$1) -> SAB 201904Scotland | AH12: =VLOOKUP($AG12,'data for u-p-charts'!$A$2:$F$5000,AH$5,FALSE) ->  | AI12: =VLOOKUP($AG12,'data for u-p-charts'!$A$2:$F$5000,AI$5,FALSE) ->  | AJ12: =VLOOKUP($AG12,'data for u-p-charts'!$A$2:$F$5000,AJ$5,FALSE) ->  | AK12: =VLOOKUP($AG12,'data for u-p-charts'!$A$2:$F$5000,AK$5,FALSE) -> 
A13: 201601 | B13: 2016-03-24 | C13: =CONCATENATE(A13,'SAB Data and Charts'!B$1) -> 201601Scotland | D13: =VLOOKUP(CONCATENATE(D$5,$C13),'trend data'!$A$2:$O$11161,D$6,FALSE) -> 279 | E13: =ROUND(VLOOKUP(CONCATENATE(E$5,$C13),'trend data'!$A$2:$O$11161,E$6,FALSE),3) -> 16.662 | F13: =ROUND(VLOOKUP(CONCATENATE(F$5,$C13),'trend data'!$A$2:$O$11161,F$6,FALSE),3) -> 14.764 | G13: =ROUND(VLOOKUP(CONCATENATE(G$5,$C13),'trend data'!$A$2:$O$11161,G$6,FALSE),3) -> 18.737 | H13: =IFERROR(VLOOKUP(CONCATENATE(H$5,$C13),'trend data'!$A$2:$O$11161,H$6,FALSE),"-") -> 139 | I13: =IFERROR(ROUND(VLOOKUP(CONCATENATE(I$5,$C13),'trend data'!$A$2:$O$11161,I$6,FALSE),3),"-") -> 10.344 | J13: =IFERROR(ROUND(VLOOKUP(CONCATENATE(J$5,$C13),'trend data'!$A$2:$O$11161,J$6,FALSE),3),"-") -> 8.696 | K13: =IFERROR(ROUND(VLOOKUP(CONCATENATE(K$5,$C13),'trend data'!$A$2:$O$11161,K$6,FALSE),3),"-") -> 12.214 | L13: =IFERROR(VLOOKUP(CONCATENATE(L$5,$C13),'trend data'!$A$2:$O$11161,L$6,FALSE),"-") -> - | M13: =IFERROR(VLOOKUP(CONCATENATE(M$5,$C13),'trend data'!$A$2:$O$11161,M$6,FALSE),"-") -> - | N13: =IFERROR(VLOOKUP(CONCATENATE(N$5,$C13),'trend data'!$A$2:$O$11161,N$6,FALSE),"-") -> - | O13: =IFERROR(VLOOKUP(CONCATENATE(O$5,$C13),'trend data'!$A$2:$O$11161,O$6,FALSE),"-") -> - | P13: =IFERROR(VLOOKUP(CONCATENATE(P$5,$C13),'trend data'!$A$2:$O$11161,P$6,FALSE),"-") -> - | T13: 202001 | U13: =CONCATENATE(X$7,T13,'SAB Data and Charts'!B$1) -> SABHCAI202001Scotland | V13: 5 | W13: 2020-03-27 | X13: =ROUND(VLOOKUP($U13,'data for u-p-charts'!$A$2:$F$5000,X$5,FALSE),2) -> 16.33 | Y13: =ROUND(VLOOKUP($U13,'data for u-p-charts'!$A$2:$F$5000,Y$5,FALSE),2) -> 17.45 | Z13: =ROUND(VLOOKUP($U13,'data for u-p-charts'!$A$2:$F$5000,Z$5,FALSE),2) -> 19.63 | AA13: =ROUND(VLOOKUP($U13,'data for u-p-charts'!$A$2:$F$5000,AA$5,FALSE),2) -> 20.72 | AB13: =CONCATENATE(AC$7,$T13,'SAB Data and Charts'!$B$1) -> SABCAUN202001Scotland | AC13: =ROUND(VLOOKUP($AB13,'data for u-p-charts'!$A$2:$F$5000,AC$5,FALSE),2) -> 10.96 | AD13: =ROUND(VLOOKUP($AB13,'data for u-p-charts'!$A$2:$F$5000,AD$5,FALSE),2) -> 9.79 | AE13: =ROUND(VLOOKUP($AB13,'data for u-p-charts'!$A$2:$F$5000,AE$5,FALSE),2) -> 11.49 | AF13: =ROUND(VLOOKUP($AB13,'data for u-p-charts'!$A$2:$F$5000,AF$5,FALSE),2) -> 12.34 | AG13: =CONCATENATE(AH$7,$T13,'SAB Data and Charts'!$B$1) -> SAB 202001Scotland | AH13: =VLOOKUP($AG13,'data for u-p-charts'!$A$2:$F$5000,AH$5,FALSE) ->  | AI13: =VLOOKUP($AG13,'data for u-p-charts'!$A$2:$F$5000,AI$5,FALSE) ->  | AJ13: =VLOOKUP($AG13,'data for u-p-charts'!$A$2:$F$5000,AJ$5,FALSE) ->  | AK13: =VLOOKUP($AG13,'data for u-p-charts'!$A$2:$F$5000,AK$5,FALSE) -> 
A14: 201602 | B14: 2016-06-24 | C14: =CONCATENATE(A14,'SAB Data and Charts'!B$1) -> 201602Scotland | D14: =VLOOKUP(CONCATENATE(D$5,$C14),'trend data'!$A$2:$O$11161,D$6,FALSE) -> 260 | E14: =ROUND(VLOOKUP(CONCATENATE(E$5,$C14),'trend data'!$A$2:$O$11161,E$6,FALSE),3) -> 16.198 | F14: =ROUND(VLOOKUP(CONCATENATE(F$5,$C14),'trend data'!$A$2:$O$11161,F$6,FALSE),3) -> 14.289 | G14: =ROUND(VLOOKUP(CONCATENATE(G$5,$C14),'trend data'!$A$2:$O$11161,G$6,FALSE),3) -> 18.292 | H14: =IFERROR(VLOOKUP(CONCATENATE(H$5,$C14),'trend data'!$A$2:$O$11161,H$6,FALSE),"-") -> 121 | I14: =IFERROR(ROUND(VLOOKUP(CONCATENATE(I$5,$C14),'trend data'!$A$2:$O$11161,I$6,FALSE),3),"-") -> 9.004 | J14: =IFERROR(ROUND(VLOOKUP(CONCATENATE(J$5,$C14),'trend data'!$A$2:$O$11161,J$6,FALSE),3),"-") -> 7.471 | K14: =IFERROR(ROUND(VLOOKUP(CONCATENATE(K$5,$C14),'trend data'!$A$2:$O$11161,K$6,FALSE),3),"-") -> 10.759 | L14: =IFERROR(VLOOKUP(CONCATENATE(L$5,$C14),'trend data'!$A$2:$O$11161,L$6,FALSE),"-") -> - | M14: =IFERROR(VLOOKUP(CONCATENATE(M$5,$C14),'trend data'!$A$2:$O$11161,M$6,FALSE),"-") -> - | N14: =IFERROR(VLOOKUP(CONCATENATE(N$5,$C14),'trend data'!$A$2:$O$11161,N$6,FALSE),"-") -> - | O14: =IFERROR(VLOOKUP(CONCATENATE(O$5,$C14),'trend data'!$A$2:$O$11161,O$6,FALSE),"-") -> - | P14: =IFERROR(VLOOKUP(CONCATENATE(P$5,$C14),'trend data'!$A$2:$O$11161,P$6,FALSE),"-") -> - | T14: 202002 | U14: =CONCATENATE(X$7,T14,'SAB Data and Charts'!B$1) -> SABHCAI202002Scotland | V14: 6 | W14: 2020-06-27 | X14: =ROUND(VLOOKUP($U14,'data for u-p-charts'!$A$2:$F$5000,X$5,FALSE),2) -> 20.26 | Y14: =ROUND(VLOOKUP($U14,'data for u-p-charts'!$A$2:$F$5000,Y$5,FALSE),2) -> 17.45 | Z14: =ROUND(VLOOKUP($U14,'data for u-p-charts'!$A$2:$F$5000,Z$5,FALSE),2) -> 20 | AA14: =ROUND(VLOOKUP($U14,'data for u-p-charts'!$A$2:$F$5000,AA$5,FALSE),2) -> 21.27 | AB14: =CONCATENATE(AC$7,$T14,'SAB Data and Charts'!$B$1) -> SABCAUN202002Scotland | AC14: =ROUND(VLOOKUP($AB14,'data for u-p-charts'!$A$2:$F$5000,AC$5,FALSE),2) -> 9.71 | AD14: =ROUND(VLOOKUP($AB14,'data for u-p-charts'!$A$2:$F$5000,AD$5,FALSE),2) -> 9.79 | AE14: =ROUND(VLOOKUP($AB14,'data for u-p-charts'!$A$2:$F$5000,AE$5,FALSE),2) -> 11.49 | AF14: =ROUND(VLOOKUP($AB14,'data for u-p-charts'!$A$2:$F$5000,AF$5,FALSE),2) -> 12.34 | AG14: =CONCATENATE(AH$7,$T14,'SAB Data and Charts'!$B$1) -> SAB 202002Scotland | AH14: =VLOOKUP($AG14,'data for u-p-charts'!$A$2:$F$5000,AH$5,FALSE) ->  | AI14: =VLOOKUP($AG14,'data for u-p-charts'!$A$2:$F$5000,AI$5,FALSE) ->  | AJ14: =VLOOKUP($AG14,'data for u-p-charts'!$A$2:$F$5000,AJ$5,FALSE) ->  | AK14: =VLOOKUP($AG14,'data for u-p-charts'!$A$2:$F$5000,AK$5,FALSE) -> 
A15: 201603 | B15: 2016-09-24 | C15: =CONCATENATE(A15,'SAB Data and Charts'!B$1) -> 201603Scotland | D15: =VLOOKUP(CONCATENATE(D$5,$C15),'trend data'!$A$2:$O$11161,D$6,FALSE) -> 273 | E15: =ROUND(VLOOKUP(CONCATENATE(E$5,$C15),'trend data'!$A$2:$O$11161,E$6,FALSE),3) -> 17.193 | F15: =ROUND(VLOOKUP(CONCATENATE(F$5,$C15),'trend data'!$A$2:$O$11161,F$6,FALSE),3) -> 15.213 | G15: =ROUND(VLOOKUP(CONCATENATE(G$5,$C15),'trend data'!$A$2:$O$11161,G$6,FALSE),3) -> 19.358 | H15: =IFERROR(VLOOKUP(CONCATENATE(H$5,$C15),'trend data'!$A$2:$O$11161,H$6,FALSE),"-") -> 127 | I15: =IFERROR(ROUND(VLOOKUP(CONCATENATE(I$5,$C15),'trend data'!$A$2:$O$11161,I$6,FALSE),3),"-") -> 9.348 | J15: =IFERROR(ROUND(VLOOKUP(CONCATENATE(J$5,$C15),'trend data'!$A$2:$O$11161,J$6,FALSE),3),"-") -> 7.793 | K15: =IFERROR(ROUND(VLOOKUP(CONCATENATE(K$5,$C15),'trend data'!$A$2:$O$11161,K$6,FALSE),3),"-") -> 11.123 | L15: =IFERROR(VLOOKUP(CONCATENATE(L$5,$C15),'trend data'!$A$2:$O$11161,L$6,FALSE),"-") -> - | M15: =IFERROR(VLOOKUP(CONCATENATE(M$5,$C15),'trend data'!$A$2:$O$11161,M$6,FALSE),"-") -> - | N15: =IFERROR(VLOOKUP(CONCATENATE(N$5,$C15),'trend data'!$A$2:$O$11161,N$6,FALSE),"-") -> - | O15: =IFERROR(VLOOKUP(CONCATENATE(O$5,$C15),'trend data'!$A$2:$O$11161,O$6,FALSE),"-") -> - | P15: =IFERROR(VLOOKUP(CONCATENATE(P$5,$C15),'trend data'!$A$2:$O$11161,P$6,FALSE),"-") -> - | T15: 202003 | U15: =CONCATENATE(X$7,T15,'SAB Data and Charts'!B$1) -> SABHCAI202003Scotland | V15: 7 | W15: 2020-09-27 | X15: =ROUND(VLOOKUP($U15,'data for u-p-charts'!$A$2:$F$5000,X$5,FALSE),2) -> 17.18 | Y15: =ROUND(VLOOKUP($U15,'data for u-p-charts'!$A$2:$F$5000,Y$5,FALSE),2) -> 17.45 | Z15: =ROUND(VLOOKUP($U15,'data for u-p-charts'!$A$2:$F$5000,Z$5,FALSE),2) -> 19.77 | AA15: =ROUND(VLOOKUP($U15,'data for u-p-charts'!$A$2:$F$5000,AA$5,FALSE),2) -> 20.93 | AB15: =CONCATENATE(AC$7,$T15,'SAB Data and Charts'!$B$1) -> SABCAUN202003Scotland | AC15: =ROUND(VLOOKUP($AB15,'data for u-p-charts'!$A$2:$F$5000,AC$5,FALSE),2) -> 10.84 | AD15: =ROUND(VLOOKUP($AB15,'data for u-p-charts'!$A$2:$F$5000,AD$5,FALSE),2) -> 9.79 | AE15: =ROUND(VLOOKUP($AB15,'data for u-p-charts'!$A$2:$F$5000,AE$5,FALSE),2) -> 11.48 | AF15: =ROUND(VLOOKUP($AB15,'data for u-p-charts'!$A$2:$F$5000,AF$5,FALSE),2) -> 12.33 | AG15: =CONCATENATE(AH$7,$T15,'SAB Data and Charts'!$B$1) -> SAB 202003Scotland | AH15: =VLOOKUP($AG15,'data for u-p-charts'!$A$2:$F$5000,AH$5,FALSE) ->  | AI15: =VLOOKUP($AG15,'data for u-p-charts'!$A$2:$F$5000,AI$5,FALSE) ->  | AJ15: =VLOOKUP($AG15,'data for u-p-charts'!$A$2:$F$5000,AJ$5,FALSE) ->  | AK15: =VLOOKUP($AG15,'data for u-p-charts'!$A$2:$F$5000,AK$5,FALSE) -> 
A16: 201604 | B16: 2016-12-24 | C16: =CONCATENATE(A16,'SAB Data and Charts'!B$1) -> 201604Scotland | D16: =VLOOKUP(CONCATENATE(D$5,$C16),'trend data'!$A$2:$O$11161,D$6,FALSE) -> 265 | E16: =ROUND(VLOOKUP(CONCATENATE(E$5,$C16),'trend data'!$A$2:$O$11161,E$6,FALSE),3) -> 16.649 | F16: =ROUND(VLOOKUP(CONCATENATE(F$5,$C16),'trend data'!$A$2:$O$11161,F$6,FALSE),3) -> 14.705 | G16: =ROUND(VLOOKUP(CONCATENATE(G$5,$C16),'trend data'!$A$2:$O$11161,G$6,FALSE),3) -> 18.779 | H16: =IFERROR(VLOOKUP(CONCATENATE(H$5,$C16),'trend data'!$A$2:$O$11161,H$6,FALSE),"-") -> 135 | I16: =IFERROR(ROUND(VLOOKUP(CONCATENATE(I$5,$C16),'trend data'!$A$2:$O$11161,I$6,FALSE),3),"-") -> 9.937 | J16: =IFERROR(ROUND(VLOOKUP(CONCATENATE(J$5,$C16),'trend data'!$A$2:$O$11161,J$6,FALSE),3),"-") -> 8.331 | K16: =IFERROR(ROUND(VLOOKUP(CONCATENATE(K$5,$C16),'trend data'!$A$2:$O$11161,K$6,FALSE),3),"-") -> 11.762 | L16: =IFERROR(VLOOKUP(CONCATENATE(L$5,$C16),'trend data'!$A$2:$O$11161,L$6,FALSE),"-") -> - | M16: =IFERROR(VLOOKUP(CONCATENATE(M$5,$C16),'trend data'!$A$2:$O$11161,M$6,FALSE),"-") -> - | N16: =IFERROR(VLOOKUP(CONCATENATE(N$5,$C16),'trend data'!$A$2:$O$11161,N$6,FALSE),"-") -> - | O16: =IFERROR(VLOOKUP(CONCATENATE(O$5,$C16),'trend data'!$A$2:$O$11161,O$6,FALSE),"-") -> - | P16: =IFERROR(VLOOKUP(CONCATENATE(P$5,$C16),'trend data'!$A$2:$O$11161,P$6,FALSE),"-") -> - | T16: 202004 | U16: =CONCATENATE(X$7,T16,'SAB Data and Charts'!B$1) -> SABHCAI202004Scotland | V16: 8 | W16: 2020-12-28 | X16: =ROUND(VLOOKUP($U16,'data for u-p-charts'!$A$2:$F$5000,X$5,FALSE),2) -> 18.85 | Y16: =ROUND(VLOOKUP($U16,'data for u-p-charts'!$A$2:$F$5000,Y$5,FALSE),2) -> 17.45 | Z16: =ROUND(VLOOKUP($U16,'data for u-p-charts'!$A$2:$F$5000,Z$5,FALSE),2) -> 19.72 | AA16: =ROUND(VLOOKUP($U16,'data for u-p-charts'!$A$2:$F$5000,AA$5,FALSE),2) -> 20.86 | AB16: =CONCATENATE(AC$7,$T16,'SAB Data and Charts'!$B$1) -> SABCAUN202004Scotland | AC16: =ROUND(VLOOKUP($AB16,'data for u-p-charts'!$A$2:$F$5000,AC$5,FALSE),2) -> 9.53 | AD16: =ROUND(VLOOKUP($AB16,'data for u-p-charts'!$A$2:$F$5000,AD$5,FALSE),2) -> 9.79 | AE16: =ROUND(VLOOKUP($AB16,'data for u-p-charts'!$A$2:$F$5000,AE$5,FALSE),2) -> 11.48 | AF16: =ROUND(VLOOKUP($AB16,'data for u-p-charts'!$A$2:$F$5000,AF$5,FALSE),2) -> 12.33 | AG16: =CONCATENATE(AH$7,$T16,'SAB Data and Charts'!$B$1) -> SAB 202004Scotland | AH16: =VLOOKUP($AG16,'data for u-p-charts'!$A$2:$F$5000,AH$5,FALSE) ->  | AI16: =VLOOKUP($AG16,'data for u-p-charts'!$A$2:$F$5000,AI$5,FALSE) ->  | AJ16: =VLOOKUP($AG16,'data for u-p-charts'!$A$2:$F$5000,AJ$5,FALSE) ->  | AK16: =VLOOKUP($AG16,'data for u-p-charts'!$A$2:$F$5000,AK$5,FALSE) -> 
A17: 201701 | B17: 2017-03-01 | C17: =CONCATENATE(A17,'SAB Data and Charts'!B$1) -> 201701Scotland | D17: =VLOOKUP(CONCATENATE(D$5,$C17),'trend data'!$A$2:$O$11161,D$6,FALSE) -> 259 | E17: =ROUND(VLOOKUP(CONCATENATE(E$5,$C17),'trend data'!$A$2:$O$11161,E$6,FALSE),3) -> 16.379 | F17: =ROUND(VLOOKUP(CONCATENATE(F$5,$C17),'trend data'!$A$2:$O$11161,F$6,FALSE),3) -> 14.444 | G17: =ROUND(VLOOKUP(CONCATENATE(G$5,$C17),'trend data'!$A$2:$O$11161,G$6,FALSE),3) -> 18.5 | H17: =IFERROR(VLOOKUP(CONCATENATE(H$5,$C17),'trend data'!$A$2:$O$11161,H$6,FALSE),"-") -> 142 | I17: =IFERROR(ROUND(VLOOKUP(CONCATENATE(I$5,$C17),'trend data'!$A$2:$O$11161,I$6,FALSE),3),"-") -> 10.616 | J17: =IFERROR(ROUND(VLOOKUP(CONCATENATE(J$5,$C17),'trend data'!$A$2:$O$11161,J$6,FALSE),3),"-") -> 8.942 | K17: =IFERROR(ROUND(VLOOKUP(CONCATENATE(K$5,$C17),'trend data'!$A$2:$O$11161,K$6,FALSE),3),"-") -> 12.513 | L17: =IFERROR(VLOOKUP(CONCATENATE(L$5,$C17),'trend data'!$A$2:$O$11161,L$6,FALSE),"-") -> - | M17: =IFERROR(VLOOKUP(CONCATENATE(M$5,$C17),'trend data'!$A$2:$O$11161,M$6,FALSE),"-") -> - | N17: =IFERROR(VLOOKUP(CONCATENATE(N$5,$C17),'trend data'!$A$2:$O$11161,N$6,FALSE),"-") -> - | O17: =IFERROR(VLOOKUP(CONCATENATE(O$5,$C17),'trend data'!$A$2:$O$11161,O$6,FALSE),"-") -> - | P17: =IFERROR(VLOOKUP(CONCATENATE(P$5,$C17),'trend data'!$A$2:$O$11161,P$6,FALSE),"-") -> - | T17: 202101 | U17: =CONCATENATE(X$7,T17,'SAB Data and Charts'!B$1) -> SABHCAI202101Scotland | V17: 9 | W17: 2021-03-30 | X17: =ROUND(VLOOKUP($U17,'data for u-p-charts'!$A$2:$F$5000,X$5,FALSE),2) -> 18.33 | Y17: =ROUND(VLOOKUP($U17,'data for u-p-charts'!$A$2:$F$5000,Y$5,FALSE),2) -> 17.45 | Z17: =ROUND(VLOOKUP($U17,'data for u-p-charts'!$A$2:$F$5000,Z$5,FALSE),2) -> 19.73 | AA17: =ROUND(VLOOKUP($U17,'data for u-p-charts'!$A$2:$F$5000,AA$5,FALSE),2) -> 20.86 | AB17: =CONCATENATE(AC$7,$T17,'SAB Data and Charts'!$B$1) -> SABCAUN202101Scotland | AC17: =ROUND(VLOOKUP($AB17,'data for u-p-charts'!$A$2:$F$5000,AC$5,FALSE),2) -> 10.39 | AD17: =ROUND(VLOOKUP($AB17,'data for u-p-charts'!$A$2:$F$5000,AD$5,FALSE),2) -> 9.79 | AE17: =ROUND(VLOOKUP($AB17,'data for u-p-charts'!$A$2:$F$5000,AE$5,FALSE),2) -> 11.5 | AF17: =ROUND(VLOOKUP($AB17,'data for u-p-charts'!$A$2:$F$5000,AF$5,FALSE),2) -> 12.35 | AG17: =CONCATENATE(AH$7,$T17,'SAB Data and Charts'!$B$1) -> SAB 202101Scotland | AH17: =VLOOKUP($AG17,'data for u-p-charts'!$A$2:$F$5000,AH$5,FALSE) ->  | AI17: =VLOOKUP($AG17,'data for u-p-charts'!$A$2:$F$5000,AI$5,FALSE) ->  | AJ17: =VLOOKUP($AG17,'data for u-p-charts'!$A$2:$F$5000,AJ$5,FALSE) ->  | AK17: =VLOOKUP($AG17,'data for u-p-charts'!$A$2:$F$5000,AK$5,FALSE) -> 
A18: 201702 | B18: 2017-06-01 | C18: =CONCATENATE(A18,'SAB Data and Charts'!B$1) -> 201702Scotland | D18: =VLOOKUP(CONCATENATE(D$5,$C18),'trend data'!$A$2:$O$11161,D$6,FALSE) -> 248 | E18: =ROUND(VLOOKUP(CONCATENATE(E$5,$C18),'trend data'!$A$2:$O$11161,E$6,FALSE),3) -> 15.994 | F18: =ROUND(VLOOKUP(CONCATENATE(F$5,$C18),'trend data'!$A$2:$O$11161,F$6,FALSE),3) -> 14.065 | G18: =ROUND(VLOOKUP(CONCATENATE(G$5,$C18),'trend data'!$A$2:$O$11161,G$6,FALSE),3) -> 18.114 | H18: =IFERROR(VLOOKUP(CONCATENATE(H$5,$C18),'trend data'!$A$2:$O$11161,H$6,FALSE),"-") -> 126 | I18: =IFERROR(ROUND(VLOOKUP(CONCATENATE(I$5,$C18),'trend data'!$A$2:$O$11161,I$6,FALSE),3),"-") -> 9.316 | J18: =IFERROR(ROUND(VLOOKUP(CONCATENATE(J$5,$C18),'trend data'!$A$2:$O$11161,J$6,FALSE),3),"-") -> 7.76 | K18: =IFERROR(ROUND(VLOOKUP(CONCATENATE(K$5,$C18),'trend data'!$A$2:$O$11161,K$6,FALSE),3),"-") -> 11.092 | L18: =IFERROR(VLOOKUP(CONCATENATE(L$5,$C18),'trend data'!$A$2:$O$11161,L$6,FALSE),"-") -> - | M18: =IFERROR(VLOOKUP(CONCATENATE(M$5,$C18),'trend data'!$A$2:$O$11161,M$6,FALSE),"-") -> - | N18: =IFERROR(VLOOKUP(CONCATENATE(N$5,$C18),'trend data'!$A$2:$O$11161,N$6,FALSE),"-") -> - | O18: =IFERROR(VLOOKUP(CONCATENATE(O$5,$C18),'trend data'!$A$2:$O$11161,O$6,FALSE),"-") -> - | P18: =IFERROR(VLOOKUP(CONCATENATE(P$5,$C18),'trend data'!$A$2:$O$11161,P$6,FALSE),"-") -> - | T18: 202102 | U18: =CONCATENATE(X$7,T18,'SAB Data and Charts'!B$1) -> SABHCAI202102Scotland | V18: 10 | W18: 2021-06-30 | X18: =ROUND(VLOOKUP($U18,'data for u-p-charts'!$A$2:$F$5000,X$5,FALSE),2) -> 18.65 | Y18: =ROUND(VLOOKUP($U18,'data for u-p-charts'!$A$2:$F$5000,Y$5,FALSE),2) -> 17.45 | Z18: =ROUND(VLOOKUP($U18,'data for u-p-charts'!$A$2:$F$5000,Z$5,FALSE),2) -> 19.69 | AA18: =ROUND(VLOOKUP($U18,'data for u-p-charts'!$A$2:$F$5000,AA$5,FALSE),2) -> 20.81 | AB18: =CONCATENATE(AC$7,$T18,'SAB Data and Charts'!$B$1) -> SABCAUN202102Scotland | AC18: =ROUND(VLOOKUP($AB18,'data for u-p-charts'!$A$2:$F$5000,AC$5,FALSE),2) -> 10.86 | AD18: =ROUND(VLOOKUP($AB18,'data for u-p-charts'!$A$2:$F$5000,AD$5,FALSE),2) -> 9.79 | AE18: =ROUND(VLOOKUP($AB18,'data for u-p-charts'!$A$2:$F$5000,AE$5,FALSE),2) -> 11.49 | AF18: =ROUND(VLOOKUP($AB18,'data for u-p-charts'!$A$2:$F$5000,AF$5,FALSE),2) -> 12.34 | AG18: =CONCATENATE(AH$7,$T18,'SAB Data and Charts'!$B$1) -> SAB 202102Scotland | AH18: =VLOOKUP($AG18,'data for u-p-charts'!$A$2:$F$5000,AH$5,FALSE) ->  | AI18: =VLOOKUP($AG18,'data for u-p-charts'!$A$2:$F$5000,AI$5,FALSE) ->  | AJ18: =VLOOKUP($AG18,'data for u-p-charts'!$A$2:$F$5000,AJ$5,FALSE) ->  | AK18: =VLOOKUP($AG18,'data for u-p-charts'!$A$2:$F$5000,AK$5,FALSE) -> 
A19: 201703 | B19: 2017-09-01 | C19: =CONCATENATE(A19,'SAB Data and Charts'!B$1) -> 201703Scotland | D19: =VLOOKUP(CONCATENATE(D$5,$C19),'trend data'!$A$2:$O$11161,D$6,FALSE) -> 278 | E19: =ROUND(VLOOKUP(CONCATENATE(E$5,$C19),'trend data'!$A$2:$O$11161,E$6,FALSE),3) -> 18.066 | F19: =ROUND(VLOOKUP(CONCATENATE(F$5,$C19),'trend data'!$A$2:$O$11161,F$6,FALSE),3) -> 16.004 | G19: =ROUND(VLOOKUP(CONCATENATE(G$5,$C19),'trend data'!$A$2:$O$11161,G$6,FALSE),3) -> 20.319 | H19: =IFERROR(VLOOKUP(CONCATENATE(H$5,$C19),'trend data'!$A$2:$O$11161,H$6,FALSE),"-") -> 127 | I19: =IFERROR(ROUND(VLOOKUP(CONCATENATE(I$5,$C19),'trend data'!$A$2:$O$11161,I$6,FALSE),3),"-") -> 9.288 | J19: =IFERROR(ROUND(VLOOKUP(CONCATENATE(J$5,$C19),'trend data'!$A$2:$O$11161,J$6,FALSE),3),"-") -> 7.743 | K19: =IFERROR(ROUND(VLOOKUP(CONCATENATE(K$5,$C19),'trend data'!$A$2:$O$11161,K$6,FALSE),3),"-") -> 11.051 | L19: =IFERROR(VLOOKUP(CONCATENATE(L$5,$C19),'trend data'!$A$2:$O$11161,L$6,FALSE),"-") -> - | M19: =IFERROR(VLOOKUP(CONCATENATE(M$5,$C19),'trend data'!$A$2:$O$11161,M$6,FALSE),"-") -> - | N19: =IFERROR(VLOOKUP(CONCATENATE(N$5,$C19),'trend data'!$A$2:$O$11161,N$6,FALSE),"-") -> - | O19: =IFERROR(VLOOKUP(CONCATENATE(O$5,$C19),'trend data'!$A$2:$O$11161,O$6,FALSE),"-") -> - | P19: =IFERROR(VLOOKUP(CONCATENATE(P$5,$C19),'trend data'!$A$2:$O$11161,P$6,FALSE),"-") -> - | T19: 202103 | U19: =CONCATENATE(X$7,T19,'SAB Data and Charts'!B$1) -> SABHCAI202103Scotland | V19: 11 | W19: =W20-92 -> 2021-09-30 | X19: =ROUND(VLOOKUP($U19,'data for u-p-charts'!$A$2:$F$5000,X$5,FALSE),2) -> 18.33 | Y19: =ROUND(VLOOKUP($U19,'data for u-p-charts'!$A$2:$F$5000,Y$5,FALSE),2) -> 17.45 | Z19: =ROUND(VLOOKUP($U19,'data for u-p-charts'!$A$2:$F$5000,Z$5,FALSE),2) -> 19.64 | AA19: =ROUND(VLOOKUP($U19,'data for u-p-charts'!$A$2:$F$5000,AA$5,FALSE),2) -> 20.74 | AB19: =CONCATENATE(AC$7,$T19,'SAB Data and Charts'!$B$1) -> SABCAUN202103Scotland | AC19: =ROUND(VLOOKUP($AB19,'data for u-p-charts'!$A$2:$F$5000,AC$5,FALSE),2) -> 9.58 | AD19: =ROUND(VLOOKUP($AB19,'data for u-p-charts'!$A$2:$F$5000,AD$5,FALSE),2) -> 9.79 | AE19: =ROUND(VLOOKUP($AB19,'data for u-p-charts'!$A$2:$F$5000,AE$5,FALSE),2) -> 11.48 | AF19: =ROUND(VLOOKUP($AB19,'data for u-p-charts'!$A$2:$F$5000,AF$5,FALSE),2) -> 12.32 | AG19: =CONCATENATE(AH$7,$T19,'SAB Data and Charts'!$B$1) -> SAB 202103Scotland | AH19: =VLOOKUP($AG19,'data for u-p-charts'!$A$2:$F$5000,AH$5,FALSE) ->  | AI19: =VLOOKUP($AG19,'data for u-p-charts'!$A$2:$F$5000,AI$5,FALSE) ->  | AJ19: =VLOOKUP($AG19,'data for u-p-charts'!$A$2:$F$5000,AJ$5,FALSE) ->  | AK19: =VLOOKUP($AG19,'data for u-p-charts'!$A$2:$F$5000,AK$5,FALSE) -> 
A20: 201704 | B20: 2017-12-01 | C20: =CONCATENATE(A20,'SAB Data and Charts'!B$1) -> 201704Scotland | D20: =VLOOKUP(CONCATENATE(D$5,$C20),'trend data'!$A$2:$O$11161,D$6,FALSE) -> 262 | E20: =ROUND(VLOOKUP(CONCATENATE(E$5,$C20),'trend data'!$A$2:$O$11161,E$6,FALSE),3) -> 16.635 | F20: =ROUND(VLOOKUP(CONCATENATE(F$5,$C20),'trend data'!$A$2:$O$11161,F$6,FALSE),3) -> 14.682 | G20: =ROUND(VLOOKUP(CONCATENATE(G$5,$C20),'trend data'!$A$2:$O$11161,G$6,FALSE),3) -> 18.776 | H20: =IFERROR(VLOOKUP(CONCATENATE(H$5,$C20),'trend data'!$A$2:$O$11161,H$6,FALSE),"-") -> 132 | I20: =IFERROR(ROUND(VLOOKUP(CONCATENATE(I$5,$C20),'trend data'!$A$2:$O$11161,I$6,FALSE),3),"-") -> 9.654 | J20: =IFERROR(ROUND(VLOOKUP(CONCATENATE(J$5,$C20),'trend data'!$A$2:$O$11161,J$6,FALSE),3),"-") -> 8.077 | K20: =IFERROR(ROUND(VLOOKUP(CONCATENATE(K$5,$C20),'trend data'!$A$2:$O$11161,K$6,FALSE),3),"-") -> 11.448 | L20: =IFERROR(VLOOKUP(CONCATENATE(L$5,$C20),'trend data'!$A$2:$O$11161,L$6,FALSE),"-") -> - | M20: =IFERROR(VLOOKUP(CONCATENATE(M$5,$C20),'trend data'!$A$2:$O$11161,M$6,FALSE),"-") -> - | N20: =IFERROR(VLOOKUP(CONCATENATE(N$5,$C20),'trend data'!$A$2:$O$11161,N$6,FALSE),"-") -> - | O20: =IFERROR(VLOOKUP(CONCATENATE(O$5,$C20),'trend data'!$A$2:$O$11161,O$6,FALSE),"-") -> - | P20: =IFERROR(VLOOKUP(CONCATENATE(P$5,$C20),'trend data'!$A$2:$O$11161,P$6,FALSE),"-") -> - | T20: 202104 | U20: =CONCATENATE(X$7,T20,'SAB Data and Charts'!B$1) -> SABHCAI202104Scotland | V20: 12 | W20: =W5 -> 2021-12-31 | X20: =ROUND(VLOOKUP($U20,'data for u-p-charts'!$A$2:$F$5000,X$5,FALSE),2) -> 17.34 | Y20: =ROUND(VLOOKUP($U20,'data for u-p-charts'!$A$2:$F$5000,Y$5,FALSE),2) -> 17.45 | Z20: =ROUND(VLOOKUP($U20,'data for u-p-charts'!$A$2:$F$5000,Z$5,FALSE),2) -> 19.62 | AA20: =ROUND(VLOOKUP($U20,'data for u-p-charts'!$A$2:$F$5000,AA$5,FALSE),2) -> 20.7 | AB20: =CONCATENATE(AC$7,$T20,'SAB Data and Charts'!$B$1) -> SABCAUN202104Scotland | AC20: =ROUND(VLOOKUP($AB20,'data for u-p-charts'!$A$2:$F$5000,AC$5,FALSE),2) -> 9.87 | AD20: =ROUND(VLOOKUP($AB20,'data for u-p-charts'!$A$2:$F$5000,AD$5,FALSE),2) -> 9.79 | AE20: =ROUND(VLOOKUP($AB20,'data for u-p-charts'!$A$2:$F$5000,AE$5,FALSE),2) -> 11.48 | AF20: =ROUND(VLOOKUP($AB20,'data for u-p-charts'!$A$2:$F$5000,AF$5,FALSE),2) -> 12.32 | AG20: =CONCATENATE(AH$7,$T20,'SAB Data and Charts'!$B$1) -> SAB 202104Scotland | AH20: =VLOOKUP($AG20,'data for u-p-charts'!$A$2:$F$5000,AH$5,FALSE) ->  | AI20: =VLOOKUP($AG20,'data for u-p-charts'!$A$2:$F$5000,AI$5,FALSE) ->  | AJ20: =VLOOKUP($AG20,'data for u-p-charts'!$A$2:$F$5000,AJ$5,FALSE) ->  | AK20: =VLOOKUP($AG20,'data for u-p-charts'!$A$2:$F$5000,AK$5,FALSE) -> 
A21: 201801 | B21: 2018-03-01 | C21: =CONCATENATE(A21,'SAB Data and Charts'!B$1) -> 201801Scotland | D21: =IFERROR(VLOOKUP(CONCATENATE(D$5,$C21),'trend data'!$A$2:$O$11161,D$6,FALSE),"-") -> 296 | E21: =ROUND(VLOOKUP(CONCATENATE(E$5,$C21),'trend data'!$A$2:$O$11161,E$6,FALSE),3) -> 18.672 | F21: =ROUND(VLOOKUP(CONCATENATE(F$5,$C21),'trend data'!$A$2:$O$11161,F$6,FALSE),3) -> 16.605 | G21: =ROUND(VLOOKUP(CONCATENATE(G$5,$C21),'trend data'!$A$2:$O$11161,G$6,FALSE),3) -> 20.925 | H21: =IFERROR(VLOOKUP(CONCATENATE(H$5,$C21),'trend data'!$A$2:$O$11161,H$6,FALSE),"-") -> 135 | I21: =IFERROR(ROUND(VLOOKUP(CONCATENATE(I$5,$C21),'trend data'!$A$2:$O$11161,I$6,FALSE),3),"-") -> 10.068 | J21: =IFERROR(ROUND(VLOOKUP(CONCATENATE(J$5,$C21),'trend data'!$A$2:$O$11161,J$6,FALSE),3),"-") -> 8.441 | K21: =IFERROR(ROUND(VLOOKUP(CONCATENATE(K$5,$C21),'trend data'!$A$2:$O$11161,K$6,FALSE),3),"-") -> 11.917 | L21: =IFERROR(VLOOKUP(CONCATENATE(L$5,$C21),'trend data'!$A$2:$O$11161,L$6,FALSE),"-") -> - | M21: =IFERROR(VLOOKUP(CONCATENATE(M$5,$C21),'trend data'!$A$2:$O$11161,M$6,FALSE),"-") -> - | N21: =IFERROR(VLOOKUP(CONCATENATE(N$5,$C21),'trend data'!$A$2:$O$11161,N$6,FALSE),"-") -> - | O21: =IFERROR(VLOOKUP(CONCATENATE(O$5,$C21),'trend data'!$A$2:$O$11161,O$6,FALSE),"-") -> - | P21: =IFERROR(VLOOKUP(CONCATENATE(P$5,$C21),'trend data'!$A$2:$O$11161,P$6,FALSE),"-") -> -
A22: 201802 | B22: 2018-06-01 | C22: =CONCATENATE(A22,'SAB Data and Charts'!B$1) -> 201802Scotland | D22: =IFERROR(VLOOKUP(CONCATENATE(D$5,$C22),'trend data'!$A$2:$O$11161,D$6,FALSE),"-") -> 264 | E22: =ROUND(VLOOKUP(CONCATENATE(E$5,$C22),'trend data'!$A$2:$O$11161,E$6,FALSE),3) -> 17.308 | F22: =ROUND(VLOOKUP(CONCATENATE(F$5,$C22),'trend data'!$A$2:$O$11161,F$6,FALSE),3) -> 15.282 | G22: =ROUND(VLOOKUP(CONCATENATE(G$5,$C22),'trend data'!$A$2:$O$11161,G$6,FALSE),3) -> 19.526 | H22: =IFERROR(VLOOKUP(CONCATENATE(H$5,$C22),'trend data'!$A$2:$O$11161,H$6,FALSE),"-") -> 123 | I22: =IFERROR(ROUND(VLOOKUP(CONCATENATE(I$5,$C22),'trend data'!$A$2:$O$11161,I$6,FALSE),3),"-") -> 9.072 | J22: =IFERROR(ROUND(VLOOKUP(CONCATENATE(J$5,$C22),'trend data'!$A$2:$O$11161,J$6,FALSE),3),"-") -> 7.54 | K22: =IFERROR(ROUND(VLOOKUP(CONCATENATE(K$5,$C22),'trend data'!$A$2:$O$11161,K$6,FALSE),3),"-") -> 10.824 | L22: =IFERROR(VLOOKUP(CONCATENATE(L$5,$C22),'trend data'!$A$2:$O$11161,L$6,FALSE),"-") -> - | M22: =IFERROR(VLOOKUP(CONCATENATE(M$5,$C22),'trend data'!$A$2:$O$11161,M$6,FALSE),"-") -> - | N22: =IFERROR(VLOOKUP(CONCATENATE(N$5,$C22),'trend data'!$A$2:$O$11161,N$6,FALSE),"-") -> - | O22: =IFERROR(VLOOKUP(CONCATENATE(O$5,$C22),'trend data'!$A$2:$O$11161,O$6,FALSE),"-") -> - | P22: =IFERROR(VLOOKUP(CONCATENATE(P$5,$C22),'trend data'!$A$2:$O$11161,P$6,FALSE),"-") -> -
A23: 201803 | B23: 2018-09-01 | C23: =CONCATENATE(A23,'SAB Data and Charts'!B$1) -> 201803Scotland | D23: =IFERROR(VLOOKUP(CONCATENATE(D$5,$C23),'trend data'!$A$2:$O$11161,D$6,FALSE),"-") -> 253 | E23: =ROUND(VLOOKUP(CONCATENATE(E$5,$C23),'trend data'!$A$2:$O$11161,E$6,FALSE),3) -> 16.737 | F23: =ROUND(VLOOKUP(CONCATENATE(F$5,$C23),'trend data'!$A$2:$O$11161,F$6,FALSE),3) -> 14.738 | G23: =ROUND(VLOOKUP(CONCATENATE(G$5,$C23),'trend data'!$A$2:$O$11161,G$6,FALSE),3) -> 18.932 | H23: =IFERROR(VLOOKUP(CONCATENATE(H$5,$C23),'trend data'!$A$2:$O$11161,H$6,FALSE),"-") -> 132 | I23: =IFERROR(ROUND(VLOOKUP(CONCATENATE(I$5,$C23),'trend data'!$A$2:$O$11161,I$6,FALSE),3),"-") -> 9.63 | J23: =IFERROR(ROUND(VLOOKUP(CONCATENATE(J$5,$C23),'trend data'!$A$2:$O$11161,J$6,FALSE),3),"-") -> 8.057 | K23: =IFERROR(ROUND(VLOOKUP(CONCATENATE(K$5,$C23),'trend data'!$A$2:$O$11161,K$6,FALSE),3),"-") -> 11.42 | L23: =IFERROR(VLOOKUP(CONCATENATE(L$5,$C23),'trend data'!$A$2:$O$11161,L$6,FALSE),"-") -> - | M23: =IFERROR(VLOOKUP(CONCATENATE(M$5,$C23),'trend data'!$A$2:$O$11161,M$6,FALSE),"-") -> - | N23: =IFERROR(VLOOKUP(CONCATENATE(N$5,$C23),'trend data'!$A$2:$O$11161,N$6,FALSE),"-") -> - | O23: =IFERROR(VLOOKUP(CONCATENATE(O$5,$C23),'trend data'!$A$2:$O$11161,O$6,FALSE),"-") -> - | P23: =IFERROR(VLOOKUP(CONCATENATE(P$5,$C23),'trend data'!$A$2:$O$11161,P$6,FALSE),"-") -> -
A24: 201804 | B24: 2018-12-01 | C24: =CONCATENATE(A24,'SAB Data and Charts'!B$1) -> 201804Scotland | D24: =IFERROR(VLOOKUP(CONCATENATE(D$5,$C24),'trend data'!$A$2:$O$11161,D$6,FALSE),"-") -> 269 | E24: =ROUND(VLOOKUP(CONCATENATE(E$5,$C24),'trend data'!$A$2:$O$11161,E$6,FALSE),3) -> 17.672 | F24: =ROUND(VLOOKUP(CONCATENATE(F$5,$C24),'trend data'!$A$2:$O$11161,F$6,FALSE),3) -> 15.623 | G24: =ROUND(VLOOKUP(CONCATENATE(G$5,$C24),'trend data'!$A$2:$O$11161,G$6,FALSE),3) -> 19.915 | H24: =IFERROR(VLOOKUP(CONCATENATE(H$5,$C24),'trend data'!$A$2:$O$11161,H$6,FALSE),"-") -> 113 | I24: =IFERROR(ROUND(VLOOKUP(CONCATENATE(I$5,$C24),'trend data'!$A$2:$O$11161,I$6,FALSE),3),"-") -> 8.244 | J24: =IFERROR(ROUND(VLOOKUP(CONCATENATE(J$5,$C24),'trend data'!$A$2:$O$11161,J$6,FALSE),3),"-") -> 6.794 | K24: =IFERROR(ROUND(VLOOKUP(CONCATENATE(K$5,$C24),'trend data'!$A$2:$O$11161,K$6,FALSE),3),"-") -> 9.912 | L24: =IFERROR(VLOOKUP(CONCATENATE(L$5,$C24),'trend data'!$A$2:$O$11161,L$6,FALSE),"-") -> - | M24: =IFERROR(VLOOKUP(CONCATENATE(M$5,$C24),'trend data'!$A$2:$O$11161,M$6,FALSE),"-") -> - | N24: =IFERROR(VLOOKUP(CONCATENATE(N$5,$C24),'trend data'!$A$2:$O$11161,N$6,FALSE),"-") -> - | O24: =IFERROR(VLOOKUP(CONCATENATE(O$5,$C24),'trend data'!$A$2:$O$11161,O$6,FALSE),"-") -> - | P24: =IFERROR(VLOOKUP(CONCATENATE(P$5,$C24),'trend data'!$A$2:$O$11161,P$6,FALSE),"-") -> -
A25: 201901 | B25: 2019-03-01 | C25: =CONCATENATE(A25,'SAB Data and Charts'!B$1) -> 201901Scotland | D25: =IFERROR(VLOOKUP(CONCATENATE(D$5,$C25),'trend data'!$A$2:$O$11161,D$6,FALSE),"-") -> 240 | E25: =ROUND(VLOOKUP(CONCATENATE(E$5,$C25),'trend data'!$A$2:$O$11161,E$6,FALSE),3) -> 15.6 | F25: =ROUND(VLOOKUP(CONCATENATE(F$5,$C25),'trend data'!$A$2:$O$11161,F$6,FALSE),3) -> 13.688 | G25: =ROUND(VLOOKUP(CONCATENATE(G$5,$C25),'trend data'!$A$2:$O$11161,G$6,FALSE),3) -> 17.703 | H25: =IFERROR(VLOOKUP(CONCATENATE(H$5,$C25),'trend data'!$A$2:$O$11161,H$6,FALSE),"-") -> 144 | I25: =IFERROR(ROUND(VLOOKUP(CONCATENATE(I$5,$C25),'trend data'!$A$2:$O$11161,I$6,FALSE),3),"-") -> 10.69 | J25: =IFERROR(ROUND(VLOOKUP(CONCATENATE(J$5,$C25),'trend data'!$A$2:$O$11161,J$6,FALSE),3),"-") -> 9.015 | K25: =IFERROR(ROUND(VLOOKUP(CONCATENATE(K$5,$C25),'trend data'!$A$2:$O$11161,K$6,FALSE),3),"-") -> 12.585 | L25: =IFERROR(VLOOKUP(CONCATENATE(L$5,$C25),'trend data'!$A$2:$O$11161,L$6,FALSE),"-") -> - | M25: =IFERROR(VLOOKUP(CONCATENATE(M$5,$C25),'trend data'!$A$2:$O$11161,M$6,FALSE),"-") -> - | N25: =IFERROR(VLOOKUP(CONCATENATE(N$5,$C25),'trend data'!$A$2:$O$11161,N$6,FALSE),"-") -> - | O25: =IFERROR(VLOOKUP(CONCATENATE(O$5,$C25),'trend data'!$A$2:$O$11161,O$6,FALSE),"-") -> - | P25: =IFERROR(VLOOKUP(CONCATENATE(P$5,$C25),'trend data'!$A$2:$O$11161,P$6,FALSE),"-") -> -
A26: 201902 | B26: 2019-06-01 | C26: =CONCATENATE(A26,'SAB Data and Charts'!B$1) -> 201902Scotland | D26: =IFERROR(VLOOKUP(CONCATENATE(D$5,$C26),'trend data'!$A$2:$O$11161,D$6,FALSE),"-") -> 251 | E26: =ROUND(VLOOKUP(CONCATENATE(E$5,$C26),'trend data'!$A$2:$O$11161,E$6,FALSE),3) -> 16.664 | F26: =ROUND(VLOOKUP(CONCATENATE(F$5,$C26),'trend data'!$A$2:$O$11161,F$6,FALSE),3) -> 14.666 | G26: =ROUND(VLOOKUP(CONCATENATE(G$5,$C26),'trend data'!$A$2:$O$11161,G$6,FALSE),3) -> 18.858 | H26: =IFERROR(VLOOKUP(CONCATENATE(H$5,$C26),'trend data'!$A$2:$O$11161,H$6,FALSE),"-") -> 133 | I26: =IFERROR(ROUND(VLOOKUP(CONCATENATE(I$5,$C26),'trend data'!$A$2:$O$11161,I$6,FALSE),3),"-") -> 9.764 | J26: =IFERROR(ROUND(VLOOKUP(CONCATENATE(J$5,$C26),'trend data'!$A$2:$O$11161,J$6,FALSE),3),"-") -> 8.175 | K26: =IFERROR(ROUND(VLOOKUP(CONCATENATE(K$5,$C26),'trend data'!$A$2:$O$11161,K$6,FALSE),3),"-") -> 11.572 | L26: =IFERROR(VLOOKUP(CONCATENATE(L$5,$C26),'trend data'!$A$2:$O$11161,L$6,FALSE),"-") -> - | M26: =IFERROR(VLOOKUP(CONCATENATE(M$5,$C26),'trend data'!$A$2:$O$11161,M$6,FALSE),"-") -> - | N26: =IFERROR(VLOOKUP(CONCATENATE(N$5,$C26),'trend data'!$A$2:$O$11161,N$6,FALSE),"-") -> - | O26: =IFERROR(VLOOKUP(CONCATENATE(O$5,$C26),'trend data'!$A$2:$O$11161,O$6,FALSE),"-") -> - | P26: =IFERROR(VLOOKUP(CONCATENATE(P$5,$C26),'trend data'!$A$2:$O$11161,P$6,FALSE),"-") -> -
A27: 201903 | B27: 2019-09-01 | C27: =CONCATENATE(A27,'SAB Data and Charts'!B$1) -> 201903Scotland | D27: =IFERROR(VLOOKUP(CONCATENATE(D$5,$C27),'trend data'!$A$2:$O$11161,D$6,FALSE),"-") -> 264 | E27: =ROUND(VLOOKUP(CONCATENATE(E$5,$C27),'trend data'!$A$2:$O$11161,E$6,FALSE),3) -> 17.519 | F27: =ROUND(VLOOKUP(CONCATENATE(F$5,$C27),'trend data'!$A$2:$O$11161,F$6,FALSE),3) -> 15.469 | G27: =ROUND(VLOOKUP(CONCATENATE(G$5,$C27),'trend data'!$A$2:$O$11161,G$6,FALSE),3) -> 19.764 | H27: =IFERROR(VLOOKUP(CONCATENATE(H$5,$C27),'trend data'!$A$2:$O$11161,H$6,FALSE),"-") -> 102 | I27: =IFERROR(ROUND(VLOOKUP(CONCATENATE(I$5,$C27),'trend data'!$A$2:$O$11161,I$6,FALSE),3),"-") -> 7.407 | J27: =IFERROR(ROUND(VLOOKUP(CONCATENATE(J$5,$C27),'trend data'!$A$2:$O$11161,J$6,FALSE),3),"-") -> 6.039 | K27: =IFERROR(ROUND(VLOOKUP(CONCATENATE(K$5,$C27),'trend data'!$A$2:$O$11161,K$6,FALSE),3),"-") -> 8.992 | L27: =IFERROR(VLOOKUP(CONCATENATE(L$5,$C27),'trend data'!$A$2:$O$11161,L$6,FALSE),"-") -> - | M27: =IFERROR(VLOOKUP(CONCATENATE(M$5,$C27),'trend data'!$A$2:$O$11161,M$6,FALSE),"-") -> - | N27: =IFERROR(VLOOKUP(CONCATENATE(N$5,$C27),'trend data'!$A$2:$O$11161,N$6,FALSE),"-") -> - | O27: =IFERROR(VLOOKUP(CONCATENATE(O$5,$C27),'trend data'!$A$2:$O$11161,O$6,FALSE),"-") -> - | P27: =IFERROR(VLOOKUP(CONCATENATE(P$5,$C27),'trend data'!$A$2:$O$11161,P$6,FALSE),"-") -> -
A28: 201904 | B28: 2019-12-01 | C28: =CONCATENATE(A28,'SAB Data and Charts'!B$1) -> 201904Scotland | D28: =IFERROR(VLOOKUP(CONCATENATE(D$5,$C28),'trend data'!$A$2:$O$11161,D$6,FALSE),"-") -> 233 | E28: =ROUND(VLOOKUP(CONCATENATE(E$5,$C28),'trend data'!$A$2:$O$11161,E$6,FALSE),3) -> 15.214 | F28: =ROUND(VLOOKUP(CONCATENATE(F$5,$C28),'trend data'!$A$2:$O$11161,F$6,FALSE),3) -> 13.323 | G28: =ROUND(VLOOKUP(CONCATENATE(G$5,$C28),'trend data'!$A$2:$O$11161,G$6,FALSE),3) -> 17.298 | H28: =IFERROR(VLOOKUP(CONCATENATE(H$5,$C28),'trend data'!$A$2:$O$11161,H$6,FALSE),"-") -> 132 | I28: =IFERROR(ROUND(VLOOKUP(CONCATENATE(I$5,$C28),'trend data'!$A$2:$O$11161,I$6,FALSE),3),"-") -> 9.586 | J28: =IFERROR(ROUND(VLOOKUP(CONCATENATE(J$5,$C28),'trend data'!$A$2:$O$11161,J$6,FALSE),3),"-") -> 8.02 | K28: =IFERROR(ROUND(VLOOKUP(CONCATENATE(K$5,$C28),'trend data'!$A$2:$O$11161,K$6,FALSE),3),"-") -> 11.368 | L28: =IFERROR(VLOOKUP(CONCATENATE(L$5,$C28),'trend data'!$A$2:$O$11161,L$6,FALSE),"-") -> - | M28: =IFERROR(VLOOKUP(CONCATENATE(M$5,$C28),'trend data'!$A$2:$O$11161,M$6,FALSE),"-") -> - | N28: =IFERROR(VLOOKUP(CONCATENATE(N$5,$C28),'trend data'!$A$2:$O$11161,N$6,FALSE),"-") -> - | O28: =IFERROR(VLOOKUP(CONCATENATE(O$5,$C28),'trend data'!$A$2:$O$11161,O$6,FALSE),"-") -> - | P28: =IFERROR(VLOOKUP(CONCATENATE(P$5,$C28),'trend data'!$A$2:$O$11161,P$6,FALSE),"-") -> -
A29: 202001 | B29: 2020-03-01 | C29: =CONCATENATE(A29,'SAB Data and Charts'!B$1) -> 202001Scotland | D29: =IFERROR(VLOOKUP(CONCATENATE(D$5,$C29),'trend data'!$A$2:$O$11161,D$6,FALSE),"-") -> 241 | E29: =ROUND(VLOOKUP(CONCATENATE(E$5,$C29),'trend data'!$A$2:$O$11161,E$6,FALSE),3) -> 16.328 | F29: =ROUND(VLOOKUP(CONCATENATE(F$5,$C29),'trend data'!$A$2:$O$11161,F$6,FALSE),3) -> 14.332 | G29: =ROUND(VLOOKUP(CONCATENATE(G$5,$C29),'trend data'!$A$2:$O$11161,G$6,FALSE),3) -> 18.526 | H29: =IFERROR(VLOOKUP(CONCATENATE(H$5,$C29),'trend data'!$A$2:$O$11161,H$6,FALSE),"-") -> 149 | I29: =IFERROR(ROUND(VLOOKUP(CONCATENATE(I$5,$C29),'trend data'!$A$2:$O$11161,I$6,FALSE),3),"-") -> 10.964 | J29: =IFERROR(ROUND(VLOOKUP(CONCATENATE(J$5,$C29),'trend data'!$A$2:$O$11161,J$6,FALSE),3),"-") -> 9.274 | K29: =IFERROR(ROUND(VLOOKUP(CONCATENATE(K$5,$C29),'trend data'!$A$2:$O$11161,K$6,FALSE),3),"-") -> 12.872 | L29: =IFERROR(VLOOKUP(CONCATENATE(L$5,$C29),'trend data'!$A$2:$O$11161,L$6,FALSE),"-") -> - | M29: =IFERROR(VLOOKUP(CONCATENATE(M$5,$C29),'trend data'!$A$2:$O$11161,M$6,FALSE),"-") -> - | N29: =IFERROR(VLOOKUP(CONCATENATE(N$5,$C29),'trend data'!$A$2:$O$11161,N$6,FALSE),"-") -> - | O29: =IFERROR(VLOOKUP(CONCATENATE(O$5,$C29),'trend data'!$A$2:$O$11161,O$6,FALSE),"-") -> - | P29: =IFERROR(VLOOKUP(CONCATENATE(P$5,$C29),'trend data'!$A$2:$O$11161,P$6,FALSE),"-") -> -
A30: 202002 | B30: 2020-06-01 | C30: =CONCATENATE(A30,'SAB Data and Charts'!B$1) -> 202002Scotland | D30: =IFERROR(VLOOKUP(CONCATENATE(D$5,$C30),'trend data'!$A$2:$O$11161,D$6,FALSE),"-") -> 219 | E30: =ROUND(VLOOKUP(CONCATENATE(E$5,$C30),'trend data'!$A$2:$O$11161,E$6,FALSE),3) -> 20.26 | F30: =ROUND(VLOOKUP(CONCATENATE(F$5,$C30),'trend data'!$A$2:$O$11161,F$6,FALSE),3) -> 17.665 | G30: =ROUND(VLOOKUP(CONCATENATE(G$5,$C30),'trend data'!$A$2:$O$11161,G$6,FALSE),3) -> 23.129 | H30: =IFERROR(VLOOKUP(CONCATENATE(H$5,$C30),'trend data'!$A$2:$O$11161,H$6,FALSE),"-") -> 132 | I30: =IFERROR(ROUND(VLOOKUP(CONCATENATE(I$5,$C30),'trend data'!$A$2:$O$11161,I$6,FALSE),3),"-") -> 9.713 | J30: =IFERROR(ROUND(VLOOKUP(CONCATENATE(J$5,$C30),'trend data'!$A$2:$O$11161,J$6,FALSE),3),"-") -> 8.126 | K30: =IFERROR(ROUND(VLOOKUP(CONCATENATE(K$5,$C30),'trend data'!$A$2:$O$11161,K$6,FALSE),3),"-") -> 11.518 | L30: =IFERROR(VLOOKUP(CONCATENATE(L$5,$C30),'trend data'!$A$2:$O$11161,L$6,FALSE),"-") -> - | M30: =IFERROR(VLOOKUP(CONCATENATE(M$5,$C30),'trend data'!$A$2:$O$11161,M$6,FALSE),"-") -> - | N30: =IFERROR(VLOOKUP(CONCATENATE(N$5,$C30),'trend data'!$A$2:$O$11161,N$6,FALSE),"-") -> - | O30: =IFERROR(VLOOKUP(CONCATENATE(O$5,$C30),'trend data'!$A$2:$O$11161,O$6,FALSE),"-") -> - | P30: =IFERROR(VLOOKUP(CONCATENATE(P$5,$C30),'trend data'!$A$2:$O$11161,P$6,FALSE),"-") -> -
A31: 202003 | B31: 2020-09-01 | C31: =CONCATENATE(A31,'SAB Data and Charts'!B$1) -> 202003Scotland | D31: =IFERROR(VLOOKUP(CONCATENATE(D$5,$C31),'trend data'!$A$2:$O$11161,D$6,FALSE),"-") -> 224 | E31: =ROUND(VLOOKUP(CONCATENATE(E$5,$C31),'trend data'!$A$2:$O$11161,E$6,FALSE),4) -> 17.1781 | F31: =ROUND(VLOOKUP(CONCATENATE(F$5,$C31),'trend data'!$A$2:$O$11161,F$6,FALSE),4) -> 15.0019 | G31: =ROUND(VLOOKUP(CONCATENATE(G$5,$C31),'trend data'!$A$2:$O$11161,G$6,FALSE),4) -> 19.5813 | H31: =IFERROR(VLOOKUP(CONCATENATE(H$5,$C31),'trend data'!$A$2:$O$11161,H$6,FALSE),"-") -> 149 | I31: =IFERROR(ROUND(VLOOKUP(CONCATENATE(I$5,$C31),'trend data'!$A$2:$O$11161,I$6,FALSE),4),"-") -> 10.8445 | J31: =IFERROR(ROUND(VLOOKUP(CONCATENATE(J$5,$C31),'trend data'!$A$2:$O$11161,J$6,FALSE),4),"-") -> 9.173 | K31: =IFERROR(ROUND(VLOOKUP(CONCATENATE(K$5,$C31),'trend data'!$A$2:$O$11161,K$6,FALSE),4),"-") -> 12.7324 | L31: =IFERROR(VLOOKUP(CONCATENATE(L$5,$C31),'trend data'!$A$2:$O$11161,L$6,FALSE),"-") -> - | M31: =IFERROR(VLOOKUP(CONCATENATE(M$5,$C31),'trend data'!$A$2:$O$11161,M$6,FALSE),"-") -> - | N31: =IFERROR(VLOOKUP(CONCATENATE(N$5,$C31),'trend data'!$A$2:$O$11161,N$6,FALSE),"-") -> - | O31: =IFERROR(VLOOKUP(CONCATENATE(O$5,$C31),'trend data'!$A$2:$O$11161,O$6,FALSE),"-") -> -
A32: 202004 | B32: 2020-12-01 | C32: =CONCATENATE(A32,'SAB Data and Charts'!B$1) -> 202004Scotland | D32: =IFERROR(VLOOKUP(CONCATENATE(D$5,$C32),'trend data'!$A$2:$O$11161,D$6,FALSE),"-") -> 256 | E32: =ROUND(VLOOKUP(CONCATENATE(E$5,$C32),'trend data'!$A$2:$O$11161,E$6,FALSE),4) -> 18.8541 | F32: =ROUND(VLOOKUP(CONCATENATE(F$5,$C32),'trend data'!$A$2:$O$11161,F$6,FALSE),4) -> 16.6149 | G32: =ROUND(VLOOKUP(CONCATENATE(G$5,$C32),'trend data'!$A$2:$O$11161,G$6,FALSE),4) -> 21.3109 | H32: =IFERROR(VLOOKUP(CONCATENATE(H$5,$C32),'trend data'!$A$2:$O$11161,H$6,FALSE),"-") -> 131 | I32: =IFERROR(ROUND(VLOOKUP(CONCATENATE(I$5,$C32),'trend data'!$A$2:$O$11161,I$6,FALSE),4),"-") -> 9.5344 | J32: =IFERROR(ROUND(VLOOKUP(CONCATENATE(J$5,$C32),'trend data'!$A$2:$O$11161,J$6,FALSE),4),"-") -> 7.9716 | K32: =IFERROR(ROUND(VLOOKUP(CONCATENATE(K$5,$C32),'trend data'!$A$2:$O$11161,K$6,FALSE),4),"-") -> 11.3141 | L32: =IFERROR(VLOOKUP(CONCATENATE(L$5,$C32),'trend data'!$A$2:$O$11161,L$6,FALSE),"-") -> - | M32: =IFERROR(VLOOKUP(CONCATENATE(M$5,$C32),'trend data'!$A$2:$O$11161,M$6,FALSE),"-") -> - | N32: =IFERROR(VLOOKUP(CONCATENATE(N$5,$C32),'trend data'!$A$2:$O$11161,N$6,FALSE),"-") -> - | O32: =IFERROR(VLOOKUP(CONCATENATE(O$5,$C32),'trend data'!$A$2:$O$11161,O$6,FALSE),"-") -> -
A33: 202101 | B33: 2021-03-31 | C33: =CONCATENATE(A33,'SAB Data and Charts'!B$1) -> 202101Scotland | D33: =IFERROR(VLOOKUP(CONCATENATE(D$5,$C33),'trend data'!$A$2:$O$11161,D$6,FALSE),"-") -> 248 | E33: =ROUND(VLOOKUP(CONCATENATE(E$5,$C33),'trend data'!$A$2:$O$11161,E$6,FALSE),4) -> 18.3339 | F33: =ROUND(VLOOKUP(CONCATENATE(F$5,$C33),'trend data'!$A$2:$O$11161,F$6,FALSE),4) -> 16.1228 | G33: =ROUND(VLOOKUP(CONCATENATE(G$5,$C33),'trend data'!$A$2:$O$11161,G$6,FALSE),4) -> 20.7635 | H33: =IFERROR(VLOOKUP(CONCATENATE(H$5,$C33),'trend data'!$A$2:$O$11161,H$6,FALSE),"-") -> 140 | I33: =IFERROR(ROUND(VLOOKUP(CONCATENATE(I$5,$C33),'trend data'!$A$2:$O$11161,I$6,FALSE),4),"-") -> 10.3874 | J33: =IFERROR(ROUND(VLOOKUP(CONCATENATE(J$5,$C33),'trend data'!$A$2:$O$11161,J$6,FALSE),4),"-") -> 8.738 | K33: =IFERROR(ROUND(VLOOKUP(CONCATENATE(K$5,$C33),'trend data'!$A$2:$O$11161,K$6,FALSE),4),"-") -> 12.2577 | L33: =IFERROR(VLOOKUP(CONCATENATE(L$5,$C33),'trend data'!$A$2:$O$11161,L$6,FALSE),"-") -> - | M33: =IFERROR(VLOOKUP(CONCATENATE(M$5,$C33),'trend data'!$A$2:$O$11161,M$6,FALSE),"-") -> - | N33: =IFERROR(VLOOKUP(CONCATENATE(N$5,$C33),'trend data'!$A$2:$O$11161,N$6,FALSE),"-") -> - | O33: =IFERROR(VLOOKUP(CONCATENATE(O$5,$C33),'trend data'!$A$2:$O$11161,O$6,FALSE),"-") -> -
A34: 202102 | B34: 2021-06-30 | C34: =CONCATENATE(A34,'SAB Data and Charts'!B$1) -> 202102Scotland | D34: =IFERROR(VLOOKUP(CONCATENATE(D$5,$C34),'trend data'!$A$2:$O$11161,D$6,FALSE),"-") -> 260 | E34: =ROUND(VLOOKUP(CONCATENATE(E$5,$C34),'trend data'!$A$2:$O$11161,E$6,FALSE),4) -> 18.6483 | F34: =ROUND(VLOOKUP(CONCATENATE(F$5,$C34),'trend data'!$A$2:$O$11161,F$6,FALSE),4) -> 16.4501 | G34: =ROUND(VLOOKUP(CONCATENATE(G$5,$C34),'trend data'!$A$2:$O$11161,G$6,FALSE),4) -> 21.0584 | H34: =IFERROR(VLOOKUP(CONCATENATE(H$5,$C34),'trend data'!$A$2:$O$11161,H$6,FALSE),"-") -> 148 | I34: =IFERROR(ROUND(VLOOKUP(CONCATENATE(I$5,$C34),'trend data'!$A$2:$O$11161,I$6,FALSE),4),"-") -> 10.8603 | J34: =IFERROR(ROUND(VLOOKUP(CONCATENATE(J$5,$C34),'trend data'!$A$2:$O$11161,J$6,FALSE),4),"-") -> 9.181 | K34: =IFERROR(ROUND(VLOOKUP(CONCATENATE(K$5,$C34),'trend data'!$A$2:$O$11161,K$6,FALSE),4),"-") -> 12.7579 | L34: =IFERROR(VLOOKUP(CONCATENATE(L$5,$C34),'trend data'!$A$2:$O$11161,L$6,FALSE),"-") -> - | M34: =IFERROR(VLOOKUP(CONCATENATE(M$5,$C34),'trend data'!$A$2:$O$11161,M$6,FALSE),"-") -> - | N34: =IFERROR(VLOOKUP(CONCATENATE(N$5,$C34),'trend data'!$A$2:$O$11161,N$6,FALSE),"-") -> - | O34: =IFERROR(VLOOKUP(CONCATENATE(O$5,$C34),'trend data'!$A$2:$O$11161,O$6,FALSE),"-") -> -
A35: 202103 | B35: 2021-09-30 | C35: =CONCATENATE(A35,'SAB Data and Charts'!B$1) -> 202103Scotland | D35: =IFERROR(VLOOKUP(CONCATENATE(D$5,$C35),'trend data'!$A$2:$O$11161,D$6,FALSE),"-") -> 267 | E35: =ROUND(VLOOKUP(CONCATENATE(E$5,$C35),'trend data'!$A$2:$O$11161,E$6,FALSE),4) -> 18.3333 | F35: =ROUND(VLOOKUP(CONCATENATE(F$5,$C35),'trend data'!$A$2:$O$11161,F$6,FALSE),4) -> 16.1999 | G35: =ROUND(VLOOKUP(CONCATENATE(G$5,$C35),'trend data'!$A$2:$O$11161,G$6,FALSE),4) -> 20.6695 | H35: =IFERROR(VLOOKUP(CONCATENATE(H$5,$C35),'trend data'!$A$2:$O$11161,H$6,FALSE),"-") -> 132 | I35: =IFERROR(ROUND(VLOOKUP(CONCATENATE(I$5,$C35),'trend data'!$A$2:$O$11161,I$6,FALSE),4),"-") -> 9.581 | J35: =IFERROR(ROUND(VLOOKUP(CONCATENATE(J$5,$C35),'trend data'!$A$2:$O$11161,J$6,FALSE),4),"-") -> 8.0162 | K35: =IFERROR(ROUND(VLOOKUP(CONCATENATE(K$5,$C35),'trend data'!$A$2:$O$11161,K$6,FALSE),4),"-") -> 11.3619 | L35: =IFERROR(VLOOKUP(CONCATENATE(L$5,$C35),'trend data'!$A$2:$O$11161,L$6,FALSE),"-") -> - | M35: =IFERROR(VLOOKUP(CONCATENATE(M$5,$C35),'trend data'!$A$2:$O$11161,M$6,FALSE),"-") -> - | N35: =IFERROR(VLOOKUP(CONCATENATE(N$5,$C35),'trend data'!$A$2:$O$11161,N$6,FALSE),"-") -> - | O35: =IFERROR(VLOOKUP(CONCATENATE(O$5,$C35),'trend data'!$A$2:$O$11161,O$6,FALSE),"-") -> -
A36: 202104 | B36: 2021-12-31 | C36: =CONCATENATE(A36,'SAB Data and Charts'!B$1) -> 202104Scotland | D36: =IFERROR(VLOOKUP(CONCATENATE(D$5,$C36),'trend data'!$A$2:$O$11161,D$6,FALSE),"-") -> 259 | E36: =ROUND(VLOOKUP(CONCATENATE(E$5,$C36),'trend data'!$A$2:$O$11161,E$6,FALSE),4) -> 17.3389 | F36: =ROUND(VLOOKUP(CONCATENATE(F$5,$C36),'trend data'!$A$2:$O$11161,F$6,FALSE),4) -> 15.2913 | G36: =ROUND(VLOOKUP(CONCATENATE(G$5,$C36),'trend data'!$A$2:$O$11161,G$6,FALSE),4) -> 19.5843 | H36: =IFERROR(VLOOKUP(CONCATENATE(H$5,$C36),'trend data'!$A$2:$O$11161,H$6,FALSE),"-") -> 136 | I36: =IFERROR(ROUND(VLOOKUP(CONCATENATE(I$5,$C36),'trend data'!$A$2:$O$11161,I$6,FALSE),4),"-") -> 9.8713 | J36: =IFERROR(ROUND(VLOOKUP(CONCATENATE(J$5,$C36),'trend data'!$A$2:$O$11161,J$6,FALSE),4),"-") -> 8.2819 | K36: =IFERROR(ROUND(VLOOKUP(CONCATENATE(K$5,$C36),'trend data'!$A$2:$O$11161,K$6,FALSE),4),"-") -> 11.6768 | L36: =IFERROR(VLOOKUP(CONCATENATE(L$5,$C36),'trend data'!$A$2:$O$11161,L$6,FALSE),"-") -> - | M36: =IFERROR(VLOOKUP(CONCATENATE(M$5,$C36),'trend data'!$A$2:$O$11161,M$6,FALSE),"-") -> - | N36: =IFERROR(VLOOKUP(CONCATENATE(N$5,$C36),'trend data'!$A$2:$O$11161,N$6,FALSE),"-") -> - | O36: =IFERROR(VLOOKUP(CONCATENATE(O$5,$C36),'trend data'!$A$2:$O$11161,O$6,FALSE),"-") -> -

Sheet CDI data (hidden)
A1: Trend data | O1: u-chart data
A3: always last 3 years
Q4: change this
D5: CDIHCAI | E5: CDIHCAI | F5: CDIHCAI | G5: CDIHCAI | H5: CDICA | I5: CDICA | J5: CDICA | K5: CDICA | P5: current quarter end | Q5: 2021-12-31 | S5: 3 | T5: 4 | U5: 5 | V5: 6 | X5: 3 | Y5: 4 | Z5: 5 | AA5: 6
D6: 2 | E6: 4 | F6: 5 | G6: 6 | H6: 2 | I6: 4 | J6: 5 | K6: 6
C7: ref | D7: Healthcare associated Cases | E7: Healthcare associated rate | F7: Healthcare associated lower CI | G7: Healthcare associated upper CI | H7: Community associated Cases | I7: Community associated rate | J7: Community associated lower CI | K7: Community associated upper CI | S7: CDIHCAI | X7: CDICA
A8: 201404 | B8: 2014-12-19 | C8: =CONCATENATE(A8,'CDI Data and Charts'!B$1) -> 201404Scotland | D8: =VLOOKUP(CONCATENATE(D$5,$C8),'trend data'!$A$2:$O$11161,D$6,FALSE) -> 321 | E8: =ROUND(VLOOKUP(CONCATENATE(E$5,$C8),'trend data'!$A$2:$O$11161,E$6,FALSE),3) -> 18.752 | F8: =ROUND(VLOOKUP(CONCATENATE(F$5,$C8),'trend data'!$A$2:$O$11161,F$6,FALSE),3) -> 16.756 | G8: =ROUND(VLOOKUP(CONCATENATE(G$5,$C8),'trend data'!$A$2:$O$11161,G$6,FALSE),3) -> 20.92 | H8: =IFERROR(VLOOKUP(CONCATENATE(H$5,$C8),'trend data'!$A$2:$O$11161,H$6,FALSE),"-") -> 121 | I8: =IFERROR(ROUND(VLOOKUP(CONCATENATE(I$5,$C8),'trend data'!$A$2:$O$11161,I$6,FALSE),3),"-") -> 8.977 | J8: =IFERROR(ROUND(VLOOKUP(CONCATENATE(J$5,$C8),'trend data'!$A$2:$O$11161,J$6,FALSE),3),"-") -> 7.449 | K8: =IFERROR(ROUND(VLOOKUP(CONCATENATE(K$5,$C8),'trend data'!$A$2:$O$11161,K$6,FALSE),3),"-") -> 10.726 | S8: Healthcare associated rate | T8: Healthcare associated av rate | U8: Healthcare associated UWL 2sd | V8: Healthcare associated UWL 3sd | X8: Community associatedrate | Y8: Community associatedav rate | Z8: Community associatedUWL 2sd | AA8: Community associatedUWL 3 sd
A9: 201501 | B9: 2015-03-24 | C9: =CONCATENATE(A9,'CDI Data and Charts'!B$1) -> 201501Scotland | D9: =VLOOKUP(CONCATENATE(D$5,$C9),'trend data'!$A$2:$O$11161,D$6,FALSE) -> 251 | E9: =ROUND(VLOOKUP(CONCATENATE(E$5,$C9),'trend data'!$A$2:$O$11161,E$6,FALSE),3) -> 14.562 | F9: =ROUND(VLOOKUP(CONCATENATE(F$5,$C9),'trend data'!$A$2:$O$11161,F$6,FALSE),3) -> 12.816 | G9: =ROUND(VLOOKUP(CONCATENATE(G$5,$C9),'trend data'!$A$2:$O$11161,G$6,FALSE),3) -> 16.479 | H9: =IFERROR(VLOOKUP(CONCATENATE(H$5,$C9),'trend data'!$A$2:$O$11161,H$6,FALSE),"-") -> 92 | I9: =IFERROR(ROUND(VLOOKUP(CONCATENATE(I$5,$C9),'trend data'!$A$2:$O$11161,I$6,FALSE),3),"-") -> 6.944 | J9: =IFERROR(ROUND(VLOOKUP(CONCATENATE(J$5,$C9),'trend data'!$A$2:$O$11161,J$6,FALSE),3),"-") -> 5.598 | K9: =IFERROR(ROUND(VLOOKUP(CONCATENATE(K$5,$C9),'trend data'!$A$2:$O$11161,K$6,FALSE),3),"-") -> 8.517 | O9: =YEAR(Q9)&"0"&IF(MONTH(Q9)<4,1,IF(MONTH(Q9)<7,2,IF(MONTH(Q9)<10,3,4))) -> 201901 | P9: 1 | Q9: =Q10-92 -> 2019-03-25 | R9: =CONCATENATE(S$7,$O9,'CDI Data and Charts'!B$1) -> CDIHCAI201901Scotland | S9: =ROUND(VLOOKUP($R9,'data for u-p-charts'!$A$2:$F$5000,S$5,FALSE),2) -> 12.09 | T9: =ROUND(VLOOKUP($R9,'data for u-p-charts'!$A$2:$F$5000,T$5,FALSE),2) -> 14.71 | U9: =ROUND(VLOOKUP($R9,'data for u-p-charts'!$A$2:$F$5000,U$5,FALSE),2) -> 16.67 | V9: =ROUND(VLOOKUP($R9,'data for u-p-charts'!$A$2:$F$5000,V$5,FALSE),2) -> 17.65 | W9: =CONCATENATE(X$7,$O9,'CDI Data and Charts'!B$1) -> CDICA201901Scotland | X9: =ROUND(VLOOKUP($W9,'data for u-p-charts'!$A$2:$F$5000,X$5,FALSE),2) -> 3.71 | Y9: =ROUND(VLOOKUP($W9,'data for u-p-charts'!$A$2:$F$5000,Y$5,FALSE),2) -> 5 | Z9: =ROUND(VLOOKUP($W9,'data for u-p-charts'!$A$2:$F$5000,Z$5,FALSE),2) -> 6.22 | AA9: =ROUND(VLOOKUP($W9,'data for u-p-charts'!$A$2:$F$5000,AA$5,FALSE),2) -> 6.82
A10: 201502 | B10: 2015-06-24 | C10: =CONCATENATE(A10,'CDI Data and Charts'!B$1) -> 201502Scotland | D10: =VLOOKUP(CONCATENATE(D$5,$C10),'trend data'!$A$2:$O$11161,D$6,FALSE) -> 308 | E10: =ROUND(VLOOKUP(CONCATENATE(E$5,$C10),'trend data'!$A$2:$O$11161,E$6,FALSE),3) -> 18.538 | F10: =ROUND(VLOOKUP(CONCATENATE(F$5,$C10),'trend data'!$A$2:$O$11161,F$6,FALSE),3) -> 16.526 | G10: =ROUND(VLOOKUP(CONCATENATE(G$5,$C10),'trend data'!$A$2:$O$11161,G$6,FALSE),3) -> 20.729 | H10: =IFERROR(VLOOKUP(CONCATENATE(H$5,$C10),'trend data'!$A$2:$O$11161,H$6,FALSE),"-") -> 98 | I10: =IFERROR(ROUND(VLOOKUP(CONCATENATE(I$5,$C10),'trend data'!$A$2:$O$11161,I$6,FALSE),3),"-") -> 7.316 | J10: =IFERROR(ROUND(VLOOKUP(CONCATENATE(J$5,$C10),'trend data'!$A$2:$O$11161,J$6,FALSE),3),"-") -> 5.939 | K10: =IFERROR(ROUND(VLOOKUP(CONCATENATE(K$5,$C10),'trend data'!$A$2:$O$11161,K$6,FALSE),3),"-") -> 8.916 | O10: =YEAR(Q10)&"0"&IF(MONTH(Q10)<4,1,IF(MONTH(Q10)<7,2,IF(MONTH(Q10)<10,3,4))) -> 201902 | P10: 2 | Q10: 2019-06-25 | R10: =CONCATENATE(S$7,$O10,'CDI Data and Charts'!B$1) -> CDIHCAI201902Scotland | S10: =ROUND(VLOOKUP($R10,'data for u-p-charts'!$A$2:$F$5000,S$5,FALSE),2) -> 12.22 | T10: =ROUND(VLOOKUP($R10,'data for u-p-charts'!$A$2:$F$5000,T$5,FALSE),2) -> 14.71 | U10: =ROUND(VLOOKUP($R10,'data for u-p-charts'!$A$2:$F$5000,U$5,FALSE),2) -> 16.69 | V10: =ROUND(VLOOKUP($R10,'data for u-p-charts'!$A$2:$F$5000,V$5,FALSE),2) -> 17.68 | W10: =CONCATENATE(X$7,$O10,'CDI Data and Charts'!B$1) -> CDICA201902Scotland | X10: =ROUND(VLOOKUP($W10,'data for u-p-charts'!$A$2:$F$5000,X$5,FALSE),2) -> 4.85 | Y10: =ROUND(VLOOKUP($W10,'data for u-p-charts'!$A$2:$F$5000,Y$5,FALSE),2) -> 5 | Z10: =ROUND(VLOOKUP($W10,'data for u-p-charts'!$A$2:$F$5000,Z$5,FALSE),2) -> 6.21 | AA10: =ROUND(VLOOKUP($W10,'data for u-p-charts'!$A$2:$F$5000,AA$5,FALSE),2) -> 6.81
A11: 201503 | B11: 2015-09-24 | C11: =CONCATENATE(A11,'CDI Data and Charts'!B$1) -> 201503Scotland | D11: =VLOOKUP(CONCATENATE(D$5,$C11),'trend data'!$A$2:$O$11161,D$6,FALSE) -> 313 | E11: =ROUND(VLOOKUP(CONCATENATE(E$5,$C11),'trend data'!$A$2:$O$11161,E$6,FALSE),3) -> 19.31 | F11: =ROUND(VLOOKUP(CONCATENATE(F$5,$C11),'trend data'!$A$2:$O$11161,F$6,FALSE),3) -> 17.23 | G11: =ROUND(VLOOKUP(CONCATENATE(G$5,$C11),'trend data'!$A$2:$O$11161,G$6,FALSE),3) -> 21.573 | H11: =IFERROR(VLOOKUP(CONCATENATE(H$5,$C11),'trend data'!$A$2:$O$11161,H$6,FALSE),"-") -> 131 | I11: =IFERROR(ROUND(VLOOKUP(CONCATENATE(I$5,$C11),'trend data'!$A$2:$O$11161,I$6,FALSE),3),"-") -> 9.673 | J11: =IFERROR(ROUND(VLOOKUP(CONCATENATE(J$5,$C11),'trend data'!$A$2:$O$11161,J$6,FALSE),3),"-") -> 8.087 | K11: =IFERROR(ROUND(VLOOKUP(CONCATENATE(K$5,$C11),'trend data'!$A$2:$O$11161,K$6,FALSE),3),"-") -> 11.478 | O11: 201903 | P11: 3 | Q11: 2019-09-25 | R11: =CONCATENATE(S$7,$O11,'CDI Data and Charts'!B$1) -> CDIHCAI201903Scotland | S11: =ROUND(VLOOKUP($R11,'data for u-p-charts'!$A$2:$F$5000,S$5,FALSE),2) -> 13.74 | T11: =ROUND(VLOOKUP($R11,'data for u-p-charts'!$A$2:$F$5000,T$5,FALSE),2) -> 14.71 | U11: =ROUND(VLOOKUP($R11,'data for u-p-charts'!$A$2:$F$5000,U$5,FALSE),2) -> 16.69 | V11: =ROUND(VLOOKUP($R11,'data for u-p-charts'!$A$2:$F$5000,V$5,FALSE),2) -> 17.68 | W11: =CONCATENATE(X$7,$O11,'CDI Data and Charts'!B$1) -> CDICA201903Scotland | X11: =ROUND(VLOOKUP($W11,'data for u-p-charts'!$A$2:$F$5000,X$5,FALSE),2) -> 5.23 | Y11: =ROUND(VLOOKUP($W11,'data for u-p-charts'!$A$2:$F$5000,Y$5,FALSE),2) -> 5 | Z11: =ROUND(VLOOKUP($W11,'data for u-p-charts'!$A$2:$F$5000,Z$5,FALSE),2) -> 6.2 | AA11: =ROUND(VLOOKUP($W11,'data for u-p-charts'!$A$2:$F$5000,AA$5,FALSE),2) -> 6.8
A12: 201504 | B12: 2015-12-24 | C12: =CONCATENATE(A12,'CDI Data and Charts'!B$1) -> 201504Scotland | D12: =VLOOKUP(CONCATENATE(D$5,$C12),'trend data'!$A$2:$O$11161,D$6,FALSE) -> 367 | E12: =ROUND(VLOOKUP(CONCATENATE(E$5,$C12),'trend data'!$A$2:$O$11161,E$6,FALSE),3) -> 22.349 | F12: =ROUND(VLOOKUP(CONCATENATE(F$5,$C12),'trend data'!$A$2:$O$11161,F$6,FALSE),3) -> 20.12 | G12: =ROUND(VLOOKUP(CONCATENATE(G$5,$C12),'trend data'!$A$2:$O$11161,G$6,FALSE),3) -> 24.756 | H12: =IFERROR(VLOOKUP(CONCATENATE(H$5,$C12),'trend data'!$A$2:$O$11161,H$6,FALSE),"-") -> 116 | I12: =IFERROR(ROUND(VLOOKUP(CONCATENATE(I$5,$C12),'trend data'!$A$2:$O$11161,I$6,FALSE),3),"-") -> 8.565 | J12: =IFERROR(ROUND(VLOOKUP(CONCATENATE(J$5,$C12),'trend data'!$A$2:$O$11161,J$6,FALSE),3),"-") -> 7.078 | K12: =IFERROR(ROUND(VLOOKUP(CONCATENATE(K$5,$C12),'trend data'!$A$2:$O$11161,K$6,FALSE),3),"-") -> 10.273 | O12: 201904 | P12: 4 | Q12: 2019-12-26 | R12: =CONCATENATE(S$7,$O12,'CDI Data and Charts'!B$1) -> CDIHCAI201904Scotland | S12: =ROUND(VLOOKUP($R12,'data for u-p-charts'!$A$2:$F$5000,S$5,FALSE),2) -> 15.08 | T12: =ROUND(VLOOKUP($R12,'data for u-p-charts'!$A$2:$F$5000,T$5,FALSE),2) -> 14.71 | U12: =ROUND(VLOOKUP($R12,'data for u-p-charts'!$A$2:$F$5000,U$5,FALSE),2) -> 16.67 | V12: =ROUND(VLOOKUP($R12,'data for u-p-charts'!$A$2:$F$5000,V$5,FALSE),2) -> 17.65 | W12: =CONCATENATE(X$7,$O12,'CDI Data and Charts'!B$1) -> CDICA201904Scotland | X12: =ROUND(VLOOKUP($W12,'data for u-p-charts'!$A$2:$F$5000,X$5,FALSE),2) -> 4.57 | Y12: =ROUND(VLOOKUP($W12,'data for u-p-charts'!$A$2:$F$5000,Y$5,FALSE),2) -> 5 | Z12: =ROUND(VLOOKUP($W12,'data for u-p-charts'!$A$2:$F$5000,Z$5,FALSE),2) -> 6.2 | AA12: =ROUND(VLOOKUP($W12,'data for u-p-charts'!$A$2:$F$5000,AA$5,FALSE),2) -> 6.8
A13: 201601 | B13: 2016-03-24 | C13: =CONCATENATE(A13,'CDI Data and Charts'!B$1) -> 201601Scotland | D13: =VLOOKUP(CONCATENATE(D$5,$C13),'trend data'!$A$2:$O$11161,D$6,FALSE) -> 252 | E13: =ROUND(VLOOKUP(CONCATENATE(E$5,$C13),'trend data'!$A$2:$O$11161,E$6,FALSE),3) -> 15.05 | F13: =ROUND(VLOOKUP(CONCATENATE(F$5,$C13),'trend data'!$A$2:$O$11161,F$6,FALSE),3) -> 13.249 | G13: =ROUND(VLOOKUP(CONCATENATE(G$5,$C13),'trend data'!$A$2:$O$11161,G$6,FALSE),3) -> 17.027 | H13: =IFERROR(VLOOKUP(CONCATENATE(H$5,$C13),'trend data'!$A$2:$O$11161,H$6,FALSE),"-") -> 97 | I13: =IFERROR(ROUND(VLOOKUP(CONCATENATE(I$5,$C13),'trend data'!$A$2:$O$11161,I$6,FALSE),3),"-") -> 7.218 | J13: =IFERROR(ROUND(VLOOKUP(CONCATENATE(J$5,$C13),'trend data'!$A$2:$O$11161,J$6,FALSE),3),"-") -> 5.853 | K13: =IFERROR(ROUND(VLOOKUP(CONCATENATE(K$5,$C13),'trend data'!$A$2:$O$11161,K$6,FALSE),3),"-") -> 8.806 | O13: 202001 | P13: 5 | Q13: 2020-03-27 | R13: =CONCATENATE(S$7,$O13,'CDI Data and Charts'!B$1) -> CDIHCAI202001Scotland | S13: =ROUND(VLOOKUP($R13,'data for u-p-charts'!$A$2:$F$5000,S$5,FALSE),2) -> 13.62 | T13: =ROUND(VLOOKUP($R13,'data for u-p-charts'!$A$2:$F$5000,T$5,FALSE),2) -> 14.71 | U13: =ROUND(VLOOKUP($R13,'data for u-p-charts'!$A$2:$F$5000,U$5,FALSE),2) -> 16.71 | V13: =ROUND(VLOOKUP($R13,'data for u-p-charts'!$A$2:$F$5000,V$5,FALSE),2) -> 17.71 | W13: =CONCATENATE(X$7,$O13,'CDI Data and Charts'!B$1) -> CDICA202001Scotland | X13: =ROUND(VLOOKUP($W13,'data for u-p-charts'!$A$2:$F$5000,X$5,FALSE),2) -> 3.38 | Y13: =ROUND(VLOOKUP($W13,'data for u-p-charts'!$A$2:$F$5000,Y$5,FALSE),2) -> 5 | Z13: =ROUND(VLOOKUP($W13,'data for u-p-charts'!$A$2:$F$5000,Z$5,FALSE),2) -> 6.21 | AA13: =ROUND(VLOOKUP($W13,'data for u-p-charts'!$A$2:$F$5000,AA$5,FALSE),2) -> 6.82
A14: 201602 | B14: 2016-06-24 | C14: =CONCATENATE(A14,'CDI Data and Charts'!B$1) -> 201602Scotland | D14: =VLOOKUP(CONCATENATE(D$5,$C14),'trend data'!$A$2:$O$11161,D$6,FALSE) -> 250 | E14: =ROUND(VLOOKUP(CONCATENATE(E$5,$C14),'trend data'!$A$2:$O$11161,E$6,FALSE),3) -> 15.575 | F14: =ROUND(VLOOKUP(CONCATENATE(F$5,$C14),'trend data'!$A$2:$O$11161,F$6,FALSE),3) -> 13.704 | G14: =ROUND(VLOOKUP(CONCATENATE(G$5,$C14),'trend data'!$A$2:$O$11161,G$6,FALSE),3) -> 17.631 | H14: =IFERROR(VLOOKUP(CONCATENATE(H$5,$C14),'trend data'!$A$2:$O$11161,H$6,FALSE),"-") -> 91 | I14: =IFERROR(ROUND(VLOOKUP(CONCATENATE(I$5,$C14),'trend data'!$A$2:$O$11161,I$6,FALSE),3),"-") -> 6.772 | J14: =IFERROR(ROUND(VLOOKUP(CONCATENATE(J$5,$C14),'trend data'!$A$2:$O$11161,J$6,FALSE),3),"-") -> 5.452 | K14: =IFERROR(ROUND(VLOOKUP(CONCATENATE(K$5,$C14),'trend data'!$A$2:$O$11161,K$6,FALSE),3),"-") -> 8.314 | O14: 202002 | P14: 6 | Q14: 2020-06-27 | R14: =CONCATENATE(S$7,$O14,'CDI Data and Charts'!B$1) -> CDIHCAI202002Scotland | S14: =ROUND(VLOOKUP($R14,'data for u-p-charts'!$A$2:$F$5000,S$5,FALSE),2) -> 15.36 | T14: =ROUND(VLOOKUP($R14,'data for u-p-charts'!$A$2:$F$5000,T$5,FALSE),2) -> 14.71 | U14: =ROUND(VLOOKUP($R14,'data for u-p-charts'!$A$2:$F$5000,U$5,FALSE),2) -> 17.04 | V14: =ROUND(VLOOKUP($R14,'data for u-p-charts'!$A$2:$F$5000,V$5,FALSE),2) -> 18.21 | W14: =CONCATENATE(X$7,$O14,'CDI Data and Charts'!B$1) -> CDICA202002Scotland | X14: =ROUND(VLOOKUP($W14,'data for u-p-charts'!$A$2:$F$5000,X$5,FALSE),2) -> 5.89 | Y14: =ROUND(VLOOKUP($W14,'data for u-p-charts'!$A$2:$F$5000,Y$5,FALSE),2) -> 5 | Z14: =ROUND(VLOOKUP($W14,'data for u-p-charts'!$A$2:$F$5000,Z$5,FALSE),2) -> 6.21 | AA14: =ROUND(VLOOKUP($W14,'data for u-p-charts'!$A$2:$F$5000,AA$5,FALSE),2) -> 6.82
A15: 201603 | B15: 2016-09-24 | C15: =CONCATENATE(A15,'CDI Data and Charts'!B$1) -> 201603Scotland | D15: =VLOOKUP(CONCATENATE(D$5,$C15),'trend data'!$A$2:$O$11161,D$6,FALSE) -> 263 | E15: =ROUND(VLOOKUP(CONCATENATE(E$5,$C15),'trend data'!$A$2:$O$11161,E$6,FALSE),3) -> 16.563 | F15: =ROUND(VLOOKUP(CONCATENATE(F$5,$C15),'trend data'!$A$2:$O$11161,F$6,FALSE),3) -> 14.621 | G15: =ROUND(VLOOKUP(CONCATENATE(G$5,$C15),'trend data'!$A$2:$O$11161,G$6,FALSE),3) -> 18.69 | H15: =IFERROR(VLOOKUP(CONCATENATE(H$5,$C15),'trend data'!$A$2:$O$11161,H$6,FALSE),"-") -> 119 | I15: =IFERROR(ROUND(VLOOKUP(CONCATENATE(I$5,$C15),'trend data'!$A$2:$O$11161,I$6,FALSE),3),"-") -> 8.759 | J15: =IFERROR(ROUND(VLOOKUP(CONCATENATE(J$5,$C15),'trend data'!$A$2:$O$11161,J$6,FALSE),3),"-") -> 7.256 | K15: =IFERROR(ROUND(VLOOKUP(CONCATENATE(K$5,$C15),'trend data'!$A$2:$O$11161,K$6,FALSE),3),"-") -> 10.482 | O15: 202003 | P15: 7 | Q15: 2020-09-27 | R15: =CONCATENATE(S$7,$O15,'CDI Data and Charts'!B$1) -> CDIHCAI202003Scotland | S15: =ROUND(VLOOKUP($R15,'data for u-p-charts'!$A$2:$F$5000,S$5,FALSE),2) -> 17.41 | T15: =ROUND(VLOOKUP($R15,'data for u-p-charts'!$A$2:$F$5000,T$5,FALSE),2) -> 14.71 | U15: =ROUND(VLOOKUP($R15,'data for u-p-charts'!$A$2:$F$5000,U$5,FALSE),2) -> 16.84 | V15: =ROUND(VLOOKUP($R15,'data for u-p-charts'!$A$2:$F$5000,V$5,FALSE),2) -> 17.9 | W15: =CONCATENATE(X$7,$O15,'CDI Data and Charts'!B$1) -> CDICA202003Scotland | X15: =ROUND(VLOOKUP($W15,'data for u-p-charts'!$A$2:$F$5000,X$5,FALSE),2) -> 6.55 | Y15: =ROUND(VLOOKUP($W15,'data for u-p-charts'!$A$2:$F$5000,Y$5,FALSE),2) -> 5 | Z15: =ROUND(VLOOKUP($W15,'data for u-p-charts'!$A$2:$F$5000,Z$5,FALSE),2) -> 6.2 | AA15: =ROUND(VLOOKUP($W15,'data for u-p-charts'!$A$2:$F$5000,AA$5,FALSE),2) -> 6.81
A16: 201604 | B16: 2016-12-24 | C16: =CONCATENATE(A16,'CDI Data and Charts'!B$1) -> 201604Scotland | D16: =VLOOKUP(CONCATENATE(D$5,$C16),'trend data'!$A$2:$O$11161,D$6,FALSE) -> 233 | E16: =ROUND(VLOOKUP(CONCATENATE(E$5,$C16),'trend data'!$A$2:$O$11161,E$6,FALSE),3) -> 14.639 | F16: =ROUND(VLOOKUP(CONCATENATE(F$5,$C16),'trend data'!$A$2:$O$11161,F$6,FALSE),3) -> 12.819 | G16: =ROUND(VLOOKUP(CONCATENATE(G$5,$C16),'trend data'!$A$2:$O$11161,G$6,FALSE),3) -> 16.644 | H16: =IFERROR(VLOOKUP(CONCATENATE(H$5,$C16),'trend data'!$A$2:$O$11161,H$6,FALSE),"-") -> 94 | I16: =IFERROR(ROUND(VLOOKUP(CONCATENATE(I$5,$C16),'trend data'!$A$2:$O$11161,I$6,FALSE),3),"-") -> 6.919 | J16: =IFERROR(ROUND(VLOOKUP(CONCATENATE(J$5,$C16),'trend data'!$A$2:$O$11161,J$6,FALSE),3),"-") -> 5.591 | K16: =IFERROR(ROUND(VLOOKUP(CONCATENATE(K$5,$C16),'trend data'!$A$2:$O$11161,K$6,FALSE),3),"-") -> 8.467 | O16: 202004 | P16: 8 | Q16: 2020-12-28 | R16: =CONCATENATE(S$7,$O16,'CDI Data and Charts'!B$1) -> CDIHCAI202004Scotland | S16: =ROUND(VLOOKUP($R16,'data for u-p-charts'!$A$2:$F$5000,S$5,FALSE),2) -> 16.35 | T16: =ROUND(VLOOKUP($R16,'data for u-p-charts'!$A$2:$F$5000,T$5,FALSE),2) -> 14.71 | U16: =ROUND(VLOOKUP($R16,'data for u-p-charts'!$A$2:$F$5000,U$5,FALSE),2) -> 16.79 | V16: =ROUND(VLOOKUP($R16,'data for u-p-charts'!$A$2:$F$5000,V$5,FALSE),2) -> 17.83 | W16: =CONCATENATE(X$7,$O16,'CDI Data and Charts'!B$1) -> CDICA202004Scotland | X16: =ROUND(VLOOKUP($W16,'data for u-p-charts'!$A$2:$F$5000,X$5,FALSE),2) -> 4.08 | Y16: =ROUND(VLOOKUP($W16,'data for u-p-charts'!$A$2:$F$5000,Y$5,FALSE),2) -> 5 | Z16: =ROUND(VLOOKUP($W16,'data for u-p-charts'!$A$2:$F$5000,Z$5,FALSE),2) -> 6.2 | AA16: =ROUND(VLOOKUP($W16,'data for u-p-charts'!$A$2:$F$5000,AA$5,FALSE),2) -> 6.81
A17: 201701 | B17: 2017-03-01 | C17: =CONCATENATE(A17,'CDI Data and Charts'!B$1) -> 201701Scotland | D17: =VLOOKUP(CONCATENATE(D$5,$C17),'trend data'!$A$2:$O$11161,D$6,FALSE) -> 257 | E17: =ROUND(VLOOKUP(CONCATENATE(E$5,$C17),'trend data'!$A$2:$O$11161,E$6,FALSE),3) -> 16.252 | F17: =ROUND(VLOOKUP(CONCATENATE(F$5,$C17),'trend data'!$A$2:$O$11161,F$6,FALSE),3) -> 14.326 | G17: =ROUND(VLOOKUP(CONCATENATE(G$5,$C17),'trend data'!$A$2:$O$11161,G$6,FALSE),3) -> 18.365 | H17: =IFERROR(VLOOKUP(CONCATENATE(H$5,$C17),'trend data'!$A$2:$O$11161,H$6,FALSE),"-") -> 74 | I17: =IFERROR(ROUND(VLOOKUP(CONCATENATE(I$5,$C17),'trend data'!$A$2:$O$11161,I$6,FALSE),3),"-") -> 5.532 | J17: =IFERROR(ROUND(VLOOKUP(CONCATENATE(J$5,$C17),'trend data'!$A$2:$O$11161,J$6,FALSE),3),"-") -> 4.344 | K17: =IFERROR(ROUND(VLOOKUP(CONCATENATE(K$5,$C17),'trend data'!$A$2:$O$11161,K$6,FALSE),3),"-") -> 6.945 | O17: 202101 | P17: 9 | Q17: 2021-03-30 | R17: =CONCATENATE(S$7,$O17,'CDI Data and Charts'!B$1) -> CDIHCAI202101Scotland | S17: =ROUND(VLOOKUP($R17,'data for u-p-charts'!$A$2:$F$5000,S$5,FALSE),2) -> 15.75 | T17: =ROUND(VLOOKUP($R17,'data for u-p-charts'!$A$2:$F$5000,T$5,FALSE),2) -> 14.71 | U17: =ROUND(VLOOKUP($R17,'data for u-p-charts'!$A$2:$F$5000,U$5,FALSE),2) -> 16.8 | V17: =ROUND(VLOOKUP($R17,'data for u-p-charts'!$A$2:$F$5000,V$5,FALSE),2) -> 17.84 | W17: =CONCATENATE(X$7,$O17,'CDI Data and Charts'!B$1) -> CDICA202101Scotland | X17: =ROUND(VLOOKUP($W17,'data for u-p-charts'!$A$2:$F$5000,X$5,FALSE),2) -> 3.64 | Y17: =ROUND(VLOOKUP($W17,'data for u-p-charts'!$A$2:$F$5000,Y$5,FALSE),2) -> 5 | Z17: =ROUND(VLOOKUP($W17,'data for u-p-charts'!$A$2:$F$5000,Z$5,FALSE),2) -> 6.22 | AA17: =ROUND(VLOOKUP($W17,'data for u-p-charts'!$A$2:$F$5000,AA$5,FALSE),2) -> 6.82
A18: 201702 | B18: 2017-06-01 | C18: =CONCATENATE(A18,'CDI Data and Charts'!B$1) -> 201702Scotland | D18: =VLOOKUP(CONCATENATE(D$5,$C18),'trend data'!$A$2:$O$11161,D$6,FALSE) -> 238 | E18: =ROUND(VLOOKUP(CONCATENATE(E$5,$C18),'trend data'!$A$2:$O$11161,E$6,FALSE),3) -> 15.349 | F18: =ROUND(VLOOKUP(CONCATENATE(F$5,$C18),'trend data'!$A$2:$O$11161,F$6,FALSE),3) -> 13.461 | G18: =ROUND(VLOOKUP(CONCATENATE(G$5,$C18),'trend data'!$A$2:$O$11161,G$6,FALSE),3) -> 17.428 | H18: =IFERROR(VLOOKUP(CONCATENATE(H$5,$C18),'trend data'!$A$2:$O$11161,H$6,FALSE),"-") -> 100 | I18: =IFERROR(ROUND(VLOOKUP(CONCATENATE(I$5,$C18),'trend data'!$A$2:$O$11161,I$6,FALSE),3),"-") -> 7.394 | J18: =IFERROR(ROUND(VLOOKUP(CONCATENATE(J$5,$C18),'trend data'!$A$2:$O$11161,J$6,FALSE),3),"-") -> 6.016 | K18: =IFERROR(ROUND(VLOOKUP(CONCATENATE(K$5,$C18),'trend data'!$A$2:$O$11161,K$6,FALSE),3),"-") -> 8.993 | O18: 202102 | P18: 10 | Q18: 2021-06-30 | R18: =CONCATENATE(S$7,$O18,'CDI Data and Charts'!B$1) -> CDIHCAI202102Scotland | S18: =ROUND(VLOOKUP($R18,'data for u-p-charts'!$A$2:$F$5000,S$5,FALSE),2) -> 14.56 | T18: =ROUND(VLOOKUP($R18,'data for u-p-charts'!$A$2:$F$5000,T$5,FALSE),2) -> 14.71 | U18: =ROUND(VLOOKUP($R18,'data for u-p-charts'!$A$2:$F$5000,U$5,FALSE),2) -> 16.77 | V18: =ROUND(VLOOKUP($R18,'data for u-p-charts'!$A$2:$F$5000,V$5,FALSE),2) -> 17.79 | W18: =CONCATENATE(X$7,$O18,'CDI Data and Charts'!B$1) -> CDICA202102Scotland | X18: =ROUND(VLOOKUP($W18,'data for u-p-charts'!$A$2:$F$5000,X$5,FALSE),2) -> 5.43 | Y18: =ROUND(VLOOKUP($W18,'data for u-p-charts'!$A$2:$F$5000,Y$5,FALSE),2) -> 5 | Z18: =ROUND(VLOOKUP($W18,'data for u-p-charts'!$A$2:$F$5000,Z$5,FALSE),2) -> 6.21 | AA18: =ROUND(VLOOKUP($W18,'data for u-p-charts'!$A$2:$F$5000,AA$5,FALSE),2) -> 6.81
A19: 201703 | B19: 2017-09-01 | C19: =CONCATENATE(A19,'CDI Data and Charts'!B$1) -> 201703Scotland | D19: =VLOOKUP(CONCATENATE(D$5,$C19),'trend data'!$A$2:$O$11161,D$6,FALSE) -> 288 | E19: =ROUND(VLOOKUP(CONCATENATE(E$5,$C19),'trend data'!$A$2:$O$11161,E$6,FALSE),3) -> 18.716 | F19: =ROUND(VLOOKUP(CONCATENATE(F$5,$C19),'trend data'!$A$2:$O$11161,F$6,FALSE),3) -> 16.616 | G19: =ROUND(VLOOKUP(CONCATENATE(G$5,$C19),'trend data'!$A$2:$O$11161,G$6,FALSE),3) -> 21.007 | H19: =IFERROR(VLOOKUP(CONCATENATE(H$5,$C19),'trend data'!$A$2:$O$11161,H$6,FALSE),"-") -> 103 | I19: =IFERROR(ROUND(VLOOKUP(CONCATENATE(I$5,$C19),'trend data'!$A$2:$O$11161,I$6,FALSE),3),"-") -> 7.533 | J19: =IFERROR(ROUND(VLOOKUP(CONCATENATE(J$5,$C19),'trend data'!$A$2:$O$11161,J$6,FALSE),3),"-") -> 6.148 | K19: =IFERROR(ROUND(VLOOKUP(CONCATENATE(K$5,$C19),'trend data'!$A$2:$O$11161,K$6,FALSE),3),"-") -> 9.136 | O19: 202103 | P19: 11 | Q19: =Q20-92 -> 2021-09-30 | R19: =CONCATENATE(S$7,$O19,'CDI Data and Charts'!B$1) -> CDIHCAI202103Scotland | S19: =ROUND(VLOOKUP($R19,'data for u-p-charts'!$A$2:$F$5000,S$5,FALSE),2) -> 16.82 | T19: =ROUND(VLOOKUP($R19,'data for u-p-charts'!$A$2:$F$5000,T$5,FALSE),2) -> 14.71 | U19: =ROUND(VLOOKUP($R19,'data for u-p-charts'!$A$2:$F$5000,U$5,FALSE),2) -> 16.72 | V19: =ROUND(VLOOKUP($R19,'data for u-p-charts'!$A$2:$F$5000,V$5,FALSE),2) -> 17.73 | W19: =CONCATENATE(X$7,$O19,'CDI Data and Charts'!B$1) -> CDICA202103Scotland | X19: =ROUND(VLOOKUP($W19,'data for u-p-charts'!$A$2:$F$5000,X$5,FALSE),2) -> 6.31 | Y19: =ROUND(VLOOKUP($W19,'data for u-p-charts'!$A$2:$F$5000,Y$5,FALSE),2) -> 5 | Z19: =ROUND(VLOOKUP($W19,'data for u-p-charts'!$A$2:$F$5000,Z$5,FALSE),2) -> 6.2 | AA19: =ROUND(VLOOKUP($W19,'data for u-p-charts'!$A$2:$F$5000,AA$5,FALSE),2) -> 6.8
A20: 201704 | B20: 2017-12-01 | C20: =CONCATENATE(A20,'CDI Data and Charts'!B$1) -> 201704Scotland | D20: =VLOOKUP(CONCATENATE(D$5,$C20),'trend data'!$A$2:$O$11161,D$6,FALSE) -> 235 | E20: =ROUND(VLOOKUP(CONCATENATE(E$5,$C20),'trend data'!$A$2:$O$11161,E$6,FALSE),3) -> 14.921 | F20: =ROUND(VLOOKUP(CONCATENATE(F$5,$C20),'trend data'!$A$2:$O$11161,F$6,FALSE),3) -> 13.074 | G20: =ROUND(VLOOKUP(CONCATENATE(G$5,$C20),'trend data'!$A$2:$O$11161,G$6,FALSE),3) -> 16.956 | H20: =IFERROR(VLOOKUP(CONCATENATE(H$5,$C20),'trend data'!$A$2:$O$11161,H$6,FALSE),"-") -> 74 | I20: =IFERROR(ROUND(VLOOKUP(CONCATENATE(I$5,$C20),'trend data'!$A$2:$O$11161,I$6,FALSE),3),"-") -> 5.412 | J20: =IFERROR(ROUND(VLOOKUP(CONCATENATE(J$5,$C20),'trend data'!$A$2:$O$11161,J$6,FALSE),3),"-") -> 4.249 | K20: =IFERROR(ROUND(VLOOKUP(CONCATENATE(K$5,$C20),'trend data'!$A$2:$O$11161,K$6,FALSE),3),"-") -> 6.794 | O20: 202104 | P20: 12 | Q20: =Q5 -> 2021-12-31 | R20: =CONCATENATE(S$7,$O20,'CDI Data and Charts'!B$1) -> CDIHCAI202104Scotland | S20: =ROUND(VLOOKUP($R20,'data for u-p-charts'!$A$2:$F$5000,S$5,FALSE),2) -> 13.26 | T20: =ROUND(VLOOKUP($R20,'data for u-p-charts'!$A$2:$F$5000,T$5,FALSE),2) -> 14.71 | U20: =ROUND(VLOOKUP($R20,'data for u-p-charts'!$A$2:$F$5000,U$5,FALSE),2) -> 16.7 | V20: =ROUND(VLOOKUP($R20,'data for u-p-charts'!$A$2:$F$5000,V$5,FALSE),2) -> 17.69 | W20: =CONCATENATE(X$7,$O20,'CDI Data and Charts'!B$1) -> CDICA202104Scotland | X20: =ROUND(VLOOKUP($W20,'data for u-p-charts'!$A$2:$F$5000,X$5,FALSE),2) -> 4.79 | Y20: =ROUND(VLOOKUP($W20,'data for u-p-charts'!$A$2:$F$5000,Y$5,FALSE),2) -> 5 | Z20: =ROUND(VLOOKUP($W20,'data for u-p-charts'!$A$2:$F$5000,Z$5,FALSE),2) -> 6.2 | AA20: =ROUND(VLOOKUP($W20,'data for u-p-charts'!$A$2:$F$5000,AA$5,FALSE),2) -> 6.8
A21: 201801 | B21: 2018-03-01 | C21: =CONCATENATE(A21,'CDI Data and Charts'!B$1) -> 201801Scotland | D21: =IFERROR(VLOOKUP(CONCATENATE(D$5,$C21),'trend data'!$A$2:$O$11161,D$6,FALSE),"-") -> 228 | E21: =ROUND(VLOOKUP(CONCATENATE(E$5,$C21),'trend data'!$A$2:$O$11161,E$6,FALSE),3) -> 14.383 | F21: =ROUND(VLOOKUP(CONCATENATE(F$5,$C21),'trend data'!$A$2:$O$11161,F$6,FALSE),3) -> 12.576 | G21: =ROUND(VLOOKUP(CONCATENATE(G$5,$C21),'trend data'!$A$2:$O$11161,G$6,FALSE),3) -> 16.376 | H21: =IFERROR(VLOOKUP(CONCATENATE(H$5,$C21),'trend data'!$A$2:$O$11161,H$6,FALSE),"-") -> 86 | I21: =IFERROR(ROUND(VLOOKUP(CONCATENATE(I$5,$C21),'trend data'!$A$2:$O$11161,I$6,FALSE),3),"-") -> 6.414 | J21: =IFERROR(ROUND(VLOOKUP(CONCATENATE(J$5,$C21),'trend data'!$A$2:$O$11161,J$6,FALSE),3),"-") -> 5.13 | K21: =IFERROR(ROUND(VLOOKUP(CONCATENATE(K$5,$C21),'trend data'!$A$2:$O$11161,K$6,FALSE),3),"-") -> 7.921
A22: 201802 | B22: 2018-06-01 | C22: =CONCATENATE(A22,'CDI Data and Charts'!B$1) -> 201802Scotland | D22: =IFERROR(VLOOKUP(CONCATENATE(D$5,$C22),'trend data'!$A$2:$O$11161,D$6,FALSE),"-") -> 244 | E22: =ROUND(VLOOKUP(CONCATENATE(E$5,$C22),'trend data'!$A$2:$O$11161,E$6,FALSE),3) -> 15.996 | F22: =ROUND(VLOOKUP(CONCATENATE(F$5,$C22),'trend data'!$A$2:$O$11161,F$6,FALSE),3) -> 14.052 | G22: =ROUND(VLOOKUP(CONCATENATE(G$5,$C22),'trend data'!$A$2:$O$11161,G$6,FALSE),3) -> 18.135 | H22: =IFERROR(VLOOKUP(CONCATENATE(H$5,$C22),'trend data'!$A$2:$O$11161,H$6,FALSE),"-") -> 102 | I22: =IFERROR(ROUND(VLOOKUP(CONCATENATE(I$5,$C22),'trend data'!$A$2:$O$11161,I$6,FALSE),3),"-") -> 7.523 | J22: =IFERROR(ROUND(VLOOKUP(CONCATENATE(J$5,$C22),'trend data'!$A$2:$O$11161,J$6,FALSE),3),"-") -> 6.134 | K22: =IFERROR(ROUND(VLOOKUP(CONCATENATE(K$5,$C22),'trend data'!$A$2:$O$11161,K$6,FALSE),3),"-") -> 9.133
A23: 201803 | B23: 2018-09-01 | C23: =CONCATENATE(A23,'CDI Data and Charts'!B$1) -> 201803Scotland | D23: =IFERROR(VLOOKUP(CONCATENATE(D$5,$C23),'trend data'!$A$2:$O$11161,D$6,FALSE),"-") -> 255 | E23: =ROUND(VLOOKUP(CONCATENATE(E$5,$C23),'trend data'!$A$2:$O$11161,E$6,FALSE),3) -> 16.869 | F23: =ROUND(VLOOKUP(CONCATENATE(F$5,$C23),'trend data'!$A$2:$O$11161,F$6,FALSE),3) -> 14.862 | G23: =ROUND(VLOOKUP(CONCATENATE(G$5,$C23),'trend data'!$A$2:$O$11161,G$6,FALSE),3) -> 19.072 | H23: =IFERROR(VLOOKUP(CONCATENATE(H$5,$C23),'trend data'!$A$2:$O$11161,H$6,FALSE),"-") -> 92 | I23: =IFERROR(ROUND(VLOOKUP(CONCATENATE(I$5,$C23),'trend data'!$A$2:$O$11161,I$6,FALSE),3),"-") -> 6.712 | J23: =IFERROR(ROUND(VLOOKUP(CONCATENATE(J$5,$C23),'trend data'!$A$2:$O$11161,J$6,FALSE),3),"-") -> 5.411 | K23: =IFERROR(ROUND(VLOOKUP(CONCATENATE(K$5,$C23),'trend data'!$A$2:$O$11161,K$6,FALSE),3),"-") -> 8.232
A24: 201804 | B24: 2018-12-01 | C24: =CONCATENATE(A24,'CDI Data and Charts'!B$1) -> 201804Scotland | D24: =IFERROR(VLOOKUP(CONCATENATE(D$5,$C24),'trend data'!$A$2:$O$11161,D$6,FALSE),"-") -> 220 | E24: =ROUND(VLOOKUP(CONCATENATE(E$5,$C24),'trend data'!$A$2:$O$11161,E$6,FALSE),3) -> 14.453 | F24: =ROUND(VLOOKUP(CONCATENATE(F$5,$C24),'trend data'!$A$2:$O$11161,F$6,FALSE),3) -> 12.606 | G24: =ROUND(VLOOKUP(CONCATENATE(G$5,$C24),'trend data'!$A$2:$O$11161,G$6,FALSE),3) -> 16.494 | H24: =IFERROR(VLOOKUP(CONCATENATE(H$5,$C24),'trend data'!$A$2:$O$11161,H$6,FALSE),"-") -> 86 | I24: =IFERROR(ROUND(VLOOKUP(CONCATENATE(I$5,$C24),'trend data'!$A$2:$O$11161,I$6,FALSE),3),"-") -> 6.274 | J24: =IFERROR(ROUND(VLOOKUP(CONCATENATE(J$5,$C24),'trend data'!$A$2:$O$11161,J$6,FALSE),3),"-") -> 5.018 | K24: =IFERROR(ROUND(VLOOKUP(CONCATENATE(K$5,$C24),'trend data'!$A$2:$O$11161,K$6,FALSE),3),"-") -> 7.749
A25: 201901 | B25: 2019-03-01 | C25: =CONCATENATE(A25,'CDI Data and Charts'!B$1) -> 201901Scotland | D25: =IFERROR(VLOOKUP(CONCATENATE(D$5,$C25),'trend data'!$A$2:$O$11161,D$6,FALSE),"-") -> 186 | E25: =ROUND(VLOOKUP(CONCATENATE(E$5,$C25),'trend data'!$A$2:$O$11161,E$6,FALSE),3) -> 12.09 | F25: =ROUND(VLOOKUP(CONCATENATE(F$5,$C25),'trend data'!$A$2:$O$11161,F$6,FALSE),3) -> 10.414 | G25: =ROUND(VLOOKUP(CONCATENATE(G$5,$C25),'trend data'!$A$2:$O$11161,G$6,FALSE),3) -> 13.958 | H25: =IFERROR(VLOOKUP(CONCATENATE(H$5,$C25),'trend data'!$A$2:$O$11161,H$6,FALSE),"-") -> 50 | I25: =IFERROR(ROUND(VLOOKUP(CONCATENATE(I$5,$C25),'trend data'!$A$2:$O$11161,I$6,FALSE),3),"-") -> 3.712 | J25: =IFERROR(ROUND(VLOOKUP(CONCATENATE(J$5,$C25),'trend data'!$A$2:$O$11161,J$6,FALSE),3),"-") -> 2.755 | K25: =IFERROR(ROUND(VLOOKUP(CONCATENATE(K$5,$C25),'trend data'!$A$2:$O$11161,K$6,FALSE),3),"-") -> 4.893
A26: 201902 | B26: 2019-06-01 | C26: =CONCATENATE(A26,'CDI Data and Charts'!B$1) -> 201902Scotland | D26: =IFERROR(VLOOKUP(CONCATENATE(D$5,$C26),'trend data'!$A$2:$O$11161,D$6,FALSE),"-") -> 184 | E26: =ROUND(VLOOKUP(CONCATENATE(E$5,$C26),'trend data'!$A$2:$O$11161,E$6,FALSE),3) -> 12.215 | F26: =ROUND(VLOOKUP(CONCATENATE(F$5,$C26),'trend data'!$A$2:$O$11161,F$6,FALSE),3) -> 10.514 | G26: =ROUND(VLOOKUP(CONCATENATE(G$5,$C26),'trend data'!$A$2:$O$11161,G$6,FALSE),3) -> 14.114 | H26: =IFERROR(VLOOKUP(CONCATENATE(H$5,$C26),'trend data'!$A$2:$O$11161,H$6,FALSE),"-") -> 66 | I26: =IFERROR(ROUND(VLOOKUP(CONCATENATE(I$5,$C26),'trend data'!$A$2:$O$11161,I$6,FALSE),3),"-") -> 4.846 | J26: =IFERROR(ROUND(VLOOKUP(CONCATENATE(J$5,$C26),'trend data'!$A$2:$O$11161,J$6,FALSE),3),"-") -> 3.747 | K26: =IFERROR(ROUND(VLOOKUP(CONCATENATE(K$5,$C26),'trend data'!$A$2:$O$11161,K$6,FALSE),3),"-") -> 6.165
A27: 201903 | B27: 2019-09-01 | C27: =CONCATENATE(A27,'CDI Data and Charts'!B$1) -> 201903Scotland | D27: =IFERROR(VLOOKUP(CONCATENATE(D$5,$C27),'trend data'!$A$2:$O$11161,D$6,FALSE),"-") -> 207 | E27: =ROUND(VLOOKUP(CONCATENATE(E$5,$C27),'trend data'!$A$2:$O$11161,E$6,FALSE),3) -> 13.736 | F27: =ROUND(VLOOKUP(CONCATENATE(F$5,$C27),'trend data'!$A$2:$O$11161,F$6,FALSE),3) -> 11.928 | G27: =ROUND(VLOOKUP(CONCATENATE(G$5,$C27),'trend data'!$A$2:$O$11161,G$6,FALSE),3) -> 15.74 | H27: =IFERROR(VLOOKUP(CONCATENATE(H$5,$C27),'trend data'!$A$2:$O$11161,H$6,FALSE),"-") -> 72 | I27: =IFERROR(ROUND(VLOOKUP(CONCATENATE(I$5,$C27),'trend data'!$A$2:$O$11161,I$6,FALSE),3),"-") -> 5.229 | J27: =IFERROR(ROUND(VLOOKUP(CONCATENATE(J$5,$C27),'trend data'!$A$2:$O$11161,J$6,FALSE),3),"-") -> 4.091 | K27: =IFERROR(ROUND(VLOOKUP(CONCATENATE(K$5,$C27),'trend data'!$A$2:$O$11161,K$6,FALSE),3),"-") -> 6.585
A28: 201904 | B28: 2019-12-01 | C28: =CONCATENATE(A28,'CDI Data and Charts'!B$1) -> 201904Scotland | D28: =IFERROR(VLOOKUP(CONCATENATE(D$5,$C28),'trend data'!$A$2:$O$11161,D$6,FALSE),"-") -> 231 | E28: =ROUND(VLOOKUP(CONCATENATE(E$5,$C28),'trend data'!$A$2:$O$11161,E$6,FALSE),3) -> 15.084 | F28: =ROUND(VLOOKUP(CONCATENATE(F$5,$C28),'trend data'!$A$2:$O$11161,F$6,FALSE),3) -> 13.201 | G28: =ROUND(VLOOKUP(CONCATENATE(G$5,$C28),'trend data'!$A$2:$O$11161,G$6,FALSE),3) -> 17.159 | H28: =IFERROR(VLOOKUP(CONCATENATE(H$5,$C28),'trend data'!$A$2:$O$11161,H$6,FALSE),"-") -> 63 | I28: =IFERROR(ROUND(VLOOKUP(CONCATENATE(I$5,$C28),'trend data'!$A$2:$O$11161,I$6,FALSE),3),"-") -> 4.575 | J28: =IFERROR(ROUND(VLOOKUP(CONCATENATE(J$5,$C28),'trend data'!$A$2:$O$11161,J$6,FALSE),3),"-") -> 3.515 | K28: =IFERROR(ROUND(VLOOKUP(CONCATENATE(K$5,$C28),'trend data'!$A$2:$O$11161,K$6,FALSE),3),"-") -> 5.854
A29: 202001 | B29: 2020-03-01 | C29: =CONCATENATE(A29,'CDI Data and Charts'!B$1) -> 202001Scotland | D29: =IFERROR(VLOOKUP(CONCATENATE(D$5,$C29),'trend data'!$A$2:$O$11161,D$6,FALSE),"-") -> 201 | E29: =ROUND(VLOOKUP(CONCATENATE(E$5,$C29),'trend data'!$A$2:$O$11161,E$6,FALSE),3) -> 13.618 | F29: =ROUND(VLOOKUP(CONCATENATE(F$5,$C29),'trend data'!$A$2:$O$11161,F$6,FALSE),3) -> 11.801 | G29: =ROUND(VLOOKUP(CONCATENATE(G$5,$C29),'trend data'!$A$2:$O$11161,G$6,FALSE),3) -> 15.637 | H29: =IFERROR(VLOOKUP(CONCATENATE(H$5,$C29),'trend data'!$A$2:$O$11161,H$6,FALSE),"-") -> 46 | I29: =IFERROR(ROUND(VLOOKUP(CONCATENATE(I$5,$C29),'trend data'!$A$2:$O$11161,I$6,FALSE),3),"-") -> 3.385 | J29: =IFERROR(ROUND(VLOOKUP(CONCATENATE(J$5,$C29),'trend data'!$A$2:$O$11161,J$6,FALSE),3),"-") -> 2.478 | K29: =IFERROR(ROUND(VLOOKUP(CONCATENATE(K$5,$C29),'trend data'!$A$2:$O$11161,K$6,FALSE),3),"-") -> 4.515
A30: 202002 | B30: 2020-06-01 | C30: =CONCATENATE(A30,'CDI Data and Charts'!B$1) -> 202002Scotland | D30: =IFERROR(VLOOKUP(CONCATENATE(D$5,$C30),'trend data'!$A$2:$O$11161,D$6,FALSE),"-") -> 166 | E30: =ROUND(VLOOKUP(CONCATENATE(E$5,$C30),'trend data'!$A$2:$O$11161,E$6,FALSE),3) -> 15.357 | F30: =ROUND(VLOOKUP(CONCATENATE(F$5,$C30),'trend data'!$A$2:$O$11161,F$6,FALSE),3) -> 13.109 | G30: =ROUND(VLOOKUP(CONCATENATE(G$5,$C30),'trend data'!$A$2:$O$11161,G$6,FALSE),3) -> 17.879 | H30: =IFERROR(VLOOKUP(CONCATENATE(H$5,$C30),'trend data'!$A$2:$O$11161,H$6,FALSE),"-") -> 80 | I30: =IFERROR(ROUND(VLOOKUP(CONCATENATE(I$5,$C30),'trend data'!$A$2:$O$11161,I$6,FALSE),3),"-") -> 5.887 | J30: =IFERROR(ROUND(VLOOKUP(CONCATENATE(J$5,$C30),'trend data'!$A$2:$O$11161,J$6,FALSE),3),"-") -> 4.667 | K30: =IFERROR(ROUND(VLOOKUP(CONCATENATE(K$5,$C30),'trend data'!$A$2:$O$11161,K$6,FALSE),3),"-") -> 7.326
A31: 202003 | B31: 2020-09-01 | C31: =CONCATENATE(A31,'CDI Data and Charts'!B$1) -> 202003Scotland | D31: =IFERROR(VLOOKUP(CONCATENATE(D$5,$C31),'trend data'!$A$2:$O$11161,D$6,FALSE),"-") -> 227 | E31: =ROUND(VLOOKUP(CONCATENATE(E$5,$C31),'trend data'!$A$2:$O$11161,E$6,FALSE),4) -> 17.4082 | F31: =ROUND(VLOOKUP(CONCATENATE(F$5,$C31),'trend data'!$A$2:$O$11161,F$6,FALSE),4) -> 15.217 | G31: =ROUND(VLOOKUP(CONCATENATE(G$5,$C31),'trend data'!$A$2:$O$11161,G$6,FALSE),4) -> 19.8263 | H31: =IFERROR(VLOOKUP(CONCATENATE(H$5,$C31),'trend data'!$A$2:$O$11161,H$6,FALSE),"-") -> 90 | I31: =IFERROR(ROUND(VLOOKUP(CONCATENATE(I$5,$C31),'trend data'!$A$2:$O$11161,I$6,FALSE),4),"-") -> 6.5504 | J31: =IFERROR(ROUND(VLOOKUP(CONCATENATE(J$5,$C31),'trend data'!$A$2:$O$11161,J$6,FALSE),4),"-") -> 5.2671 | K31: =IFERROR(ROUND(VLOOKUP(CONCATENATE(K$5,$C31),'trend data'!$A$2:$O$11161,K$6,FALSE),4),"-") -> 8.0516
A32: 202004 | B32: 2020-12-31 | C32: =CONCATENATE(A32,'CDI Data and Charts'!B$1) -> 202004Scotland | D32: =IFERROR(VLOOKUP(CONCATENATE(D$5,$C32),'trend data'!$A$2:$O$11161,D$6,FALSE),"-") -> 222 | E32: =ROUND(VLOOKUP(CONCATENATE(E$5,$C32),'trend data'!$A$2:$O$11161,E$6,FALSE),4) -> 16.3501 | F32: =ROUND(VLOOKUP(CONCATENATE(F$5,$C32),'trend data'!$A$2:$O$11161,F$6,FALSE),4) -> 14.2698 | G32: =ROUND(VLOOKUP(CONCATENATE(G$5,$C32),'trend data'!$A$2:$O$11161,G$6,FALSE),4) -> 18.6483 | H32: =IFERROR(VLOOKUP(CONCATENATE(H$5,$C32),'trend data'!$A$2:$O$11161,H$6,FALSE),"-") -> 56 | I32: =IFERROR(ROUND(VLOOKUP(CONCATENATE(I$5,$C32),'trend data'!$A$2:$O$11161,I$6,FALSE),4),"-") -> 4.0758 | J32: =IFERROR(ROUND(VLOOKUP(CONCATENATE(J$5,$C32),'trend data'!$A$2:$O$11161,J$6,FALSE),4),"-") -> 3.0786 | K32: =IFERROR(ROUND(VLOOKUP(CONCATENATE(K$5,$C32),'trend data'!$A$2:$O$11161,K$6,FALSE),4),"-") -> 5.2929
A33: 202101 | B33: 2021-03-31 | C33: =CONCATENATE(A33,'CDI Data and Charts'!B$1) -> 202101Scotland | D33: =IFERROR(VLOOKUP(CONCATENATE(D$5,$C33),'trend data'!$A$2:$O$11161,D$6,FALSE),"-") -> 213 | E33: =ROUND(VLOOKUP(CONCATENATE(E$5,$C33),'trend data'!$A$2:$O$11161,E$6,FALSE),4) -> 15.7464 | F33: =ROUND(VLOOKUP(CONCATENATE(F$5,$C33),'trend data'!$A$2:$O$11161,F$6,FALSE),4) -> 13.7025 | G33: =ROUND(VLOOKUP(CONCATENATE(G$5,$C33),'trend data'!$A$2:$O$11161,G$6,FALSE),4) -> 18.0092 | H33: =IFERROR(VLOOKUP(CONCATENATE(H$5,$C33),'trend data'!$A$2:$O$11161,H$6,FALSE),"-") -> 49 | I33: =IFERROR(ROUND(VLOOKUP(CONCATENATE(I$5,$C33),'trend data'!$A$2:$O$11161,I$6,FALSE),4),"-") -> 3.6356 | J33: =IFERROR(ROUND(VLOOKUP(CONCATENATE(J$5,$C33),'trend data'!$A$2:$O$11161,J$6,FALSE),4),"-") -> 2.6894 | K33: =IFERROR(ROUND(VLOOKUP(CONCATENATE(K$5,$C33),'trend data'!$A$2:$O$11161,K$6,FALSE),4),"-") -> 4.8066
A34: 202102 | B34: 2021-06-30 | C34: =CONCATENATE(A34,'CDI Data and Charts'!B$1) -> 202102Scotland | D34: =IFERROR(VLOOKUP(CONCATENATE(D$5,$C34),'trend data'!$A$2:$O$11161,D$6,FALSE),"-") -> 203 | E34: =ROUND(VLOOKUP(CONCATENATE(E$5,$C34),'trend data'!$A$2:$O$11161,E$6,FALSE),4) -> 14.56 | F34: =ROUND(VLOOKUP(CONCATENATE(F$5,$C34),'trend data'!$A$2:$O$11161,F$6,FALSE),4) -> 12.6258 | G34: =ROUND(VLOOKUP(CONCATENATE(G$5,$C34),'trend data'!$A$2:$O$11161,G$6,FALSE),4) -> 16.7067 | H34: =IFERROR(VLOOKUP(CONCATENATE(H$5,$C34),'trend data'!$A$2:$O$11161,H$6,FALSE),"-") -> 74 | I34: =IFERROR(ROUND(VLOOKUP(CONCATENATE(I$5,$C34),'trend data'!$A$2:$O$11161,I$6,FALSE),4),"-") -> 5.4302 | J34: =IFERROR(ROUND(VLOOKUP(CONCATENATE(J$5,$C34),'trend data'!$A$2:$O$11161,J$6,FALSE),4),"-") -> 4.2637 | K34: =IFERROR(ROUND(VLOOKUP(CONCATENATE(K$5,$C34),'trend data'!$A$2:$O$11161,K$6,FALSE),4),"-") -> 6.8172
A35: 202103 | B35: 2021-09-01 | C35: =CONCATENATE(A35,'CDI Data and Charts'!B$1) -> 202103Scotland | D35: =IFERROR(VLOOKUP(CONCATENATE(D$5,$C35),'trend data'!$A$2:$O$11161,D$6,FALSE),"-") -> 245 | E35: =ROUND(VLOOKUP(CONCATENATE(E$5,$C35),'trend data'!$A$2:$O$11161,E$6,FALSE),4) -> 16.8227 | F35: =ROUND(VLOOKUP(CONCATENATE(F$5,$C35),'trend data'!$A$2:$O$11161,F$6,FALSE),4) -> 14.7819 | G35: =ROUND(VLOOKUP(CONCATENATE(G$5,$C35),'trend data'!$A$2:$O$11161,G$6,FALSE),4) -> 19.0665 | H35: =IFERROR(VLOOKUP(CONCATENATE(H$5,$C35),'trend data'!$A$2:$O$11161,H$6,FALSE),"-") -> 87 | I35: =IFERROR(ROUND(VLOOKUP(CONCATENATE(I$5,$C35),'trend data'!$A$2:$O$11161,I$6,FALSE),4),"-") -> 6.3147 | J35: =IFERROR(ROUND(VLOOKUP(CONCATENATE(J$5,$C35),'trend data'!$A$2:$O$11161,J$6,FALSE),4),"-") -> 5.0577 | K35: =IFERROR(ROUND(VLOOKUP(CONCATENATE(K$5,$C35),'trend data'!$A$2:$O$11161,K$6,FALSE),4),"-") -> 7.7893
A36: 202104 | B36: 2021-12-31 | C36: =CONCATENATE(A36,'CDI Data and Charts'!B$1) -> 202104Scotland | D36: =IFERROR(VLOOKUP(CONCATENATE(D$5,$C36),'trend data'!$A$2:$O$11161,D$6,FALSE),"-") -> 198 | E36: =ROUND(VLOOKUP(CONCATENATE(E$5,$C36),'trend data'!$A$2:$O$11161,E$6,FALSE),4) -> 13.2552 | F36: =ROUND(VLOOKUP(CONCATENATE(F$5,$C36),'trend data'!$A$2:$O$11161,F$6,FALSE),4) -> 11.473 | G36: =ROUND(VLOOKUP(CONCATENATE(G$5,$C36),'trend data'!$A$2:$O$11161,G$6,FALSE),4) -> 15.2358 | H36: =IFERROR(VLOOKUP(CONCATENATE(H$5,$C36),'trend data'!$A$2:$O$11161,H$6,FALSE),"-") -> 66 | I36: =IFERROR(ROUND(VLOOKUP(CONCATENATE(I$5,$C36),'trend data'!$A$2:$O$11161,I$6,FALSE),4),"-") -> 4.7905 | J36: =IFERROR(ROUND(VLOOKUP(CONCATENATE(J$5,$C36),'trend data'!$A$2:$O$11161,J$6,FALSE),4),"-") -> 3.7048 | K36: =IFERROR(ROUND(VLOOKUP(CONCATENATE(K$5,$C36),'trend data'!$A$2:$O$11161,K$6,FALSE),4),"-") -> 6.0948

Sheet data for u-p-charts (hidden)
A1: ref | B1: cases | C1: rate | D1: av | E1: uwl2 | F1: uwl3 | G1: aboveUCL
A2: CDICA201901Ayrshire & Arran | B2: 1 | C2: 1.097995331 | D2: 7.325255673 | E2: 12.99732638 | F2: 15.83336173 | G2: -
A3: CDICA201902Ayrshire & Arran | B3: 8 | C3: 8.687435588 | D3: 7.325255673 | E3: 12.96607506 | F3: 15.78648476 | G3: -
A4: CDICA201904Ayrshire & Arran | B4: 6 | C4: 6.444755205 | D4: 7.325255673 | E4: 12.93533468 | F4: 15.74037418 | G4: -
A5: CDICA202102Ayrshire & Arran | B5: 7 | C5: 7.629805994 | D5: 7.325255673 | E5: 12.97656549 | F5: 15.8022204 | G5: -
A6: CDICA202003Ayrshire & Arran | B6: 7 | C6: 7.567549685 | D6: 7.325255673 | E6: 12.953462 | F6: 15.76756516 | G6: -
A7: CDICA202104Ayrshire & Arran | B7: 6 | C7: 6.46874856 | D7: 7.325255673 | E7: 12.94576793 | F7: 15.75602406 | G7: -
A8: CDICA202004Ayrshire & Arran | B8: 8 | C8: 8.648628212 | D8: 7.325255673 | E8: 12.953462 | F8: 15.76756516 | G8: -
A9: CDICA202101Ayrshire & Arran | B9: 6 | C9: 6.612498528 | D9: 7.325255673 | E9: 13.00787493 | F9: 15.84918455 | G9: -
A10: CDICA202001Ayrshire & Arran | B10: 9 | C10: 9.836626593 | D10: 7.325255673 | E10: 12.98430172 | F10: 15.81382474 | G10: -
A11: CDICA202002Ayrshire & Arran | B11: 8 | C11: 8.743668082 | D11: 7.325255673 | E11: 12.98430172 | F11: 15.81382474 | G11: -
A12: CDICA202103Ayrshire & Arran | B12: 9 | C12: 9.70312284 | D12: 7.325255673 | E12: 12.94576793 | F12: 15.75602406 | G12: -
A13: CDICA201903Ayrshire & Arran | B13: 7 | C13: 7.518881073 | D13: 7.325255673 | E13: 12.93533468 | F13: 15.74037418 | G13: -
A14: CDIHCAI201901Ayrshire & Arran | B14: 17 | C14: 15.22478954 | D14: 19.93647442 | E14: 28.38742114 | F14: 32.6128945 | G14: -
A15: CDIHCAI202104Ayrshire & Arran | B15: 26 | C15: 23.17311206 | D15: 19.93647442 | E15: 28.36709768 | F15: 32.58240931 | G15: -
A16: CDIHCAI201902Ayrshire & Arran | B16: 15 | C16: 13.66369102 | D16: 19.93647442 | E16: 28.45947587 | F16: 32.72097659 | G16: -
A17: CDIHCAI202001Ayrshire & Arran | B17: 17 | C17: 15.82204849 | D17: 19.93647442 | E17: 28.55158925 | F17: 32.85914666 | G17: -
A18: CDIHCAI201903Ayrshire & Arran | B18: 21 | C18: 18.97533207 | D18: 19.93647442 | E18: 28.42513601 | F18: 32.66946681 | G18: -
A19: CDIHCAI201904Ayrshire & Arran | B19: 21 | C19: 18.8339118 | D19: 19.93647442 | E19: 28.3934445 | F19: 32.62192955 | G19: -
A20: CDIHCAI202003Ayrshire & Arran | B20: 20 | C20: 20.46936248 | D20: 19.93647442 | E20: 28.97070844 | F20: 33.48782545 | G20: -
A21: CDIHCAI202102Ayrshire & Arran | B21: 21 | C21: 20.55236939 | D21: 19.93647442 | E21: 28.77084223 | F21: 33.18802613 | G21: -
A22: CDIHCAI202004Ayrshire & Arran | B22: 30 | C22: 29.19083019 | D22: 19.93647442 | E22: 28.74527486 | F22: 33.14967508 | G22: -
A23: CDIHCAI202002Ayrshire & Arran | B23: 13 | C23: 15.87922021 | D23: 19.93647442 | E23: 29.80601836 | F23: 34.74079034 | G23: -
A24: CDIHCAI202103Ayrshire & Arran | B24: 29 | C24: 26.78513702 | D24: 19.93647442 | E24: 28.51874322 | F24: 32.80987762 | G24: -
A25: CDIHCAI202101Ayrshire & Arran | B25: 25 | C25: 25.15267675 | D25: 19.93647442 | E25: 28.89375701 | F25: 33.37239831 | G25: -
A26: ECBCOM202101Ayrshire & Arran | B26: 47 | C26: 51.79790514 | D26: 55.52724671 | E26: 71.17277508 | F26: 78.99553926 | G26: -
A27: ECBCOM201903Ayrshire & Arran | B27: 55 | C27: 59.07692271 | D27: 55.52724671 | E27: 70.97305546 | F27: 78.69595984 | G27: -
A28: ECBCOM202002Ayrshire & Arran | B28: 45 | C28: 49.18313296 | D28: 55.52724671 | E28: 71.10787273 | F28: 78.89818574 | G28: -
A29: ECBCOM202004Ayrshire & Arran | B29: 51 | C29: 55.13500485 | D29: 55.52724671 | E29: 71.02296406 | F29: 78.77082273 | G29: -
A30: ECBCOM201904Ayrshire & Arran | B30: 41 | C30: 44.03916057 | D30: 55.52724671 | E30: 70.97305546 | F30: 78.69595984 | G30: -
A31: ECBCOM202104Ayrshire & Arran | B31: 59 | C31: 63.60936084 | D31: 55.52724671 | E31: 71.00178056 | F31: 78.73904749 | G31: -
A32: ECBCOM202003Ayrshire & Arran | B32: 64 | C32: 69.18902569 | D32: 55.52724671 | E32: 71.02296406 | F32: 78.77082273 | G32: -
A33: ECBCOM202102Ayrshire & Arran | B33: 51 | C33: 55.58858653 | D33: 55.52724671 | E33: 71.08657316 | F33: 78.86623639 | G33: -
A34: ECBCOM202103Ayrshire & Arran | B34: 59 | C34: 63.60936084 | D34: 55.52724671 | E34: 71.00178056 | F34: 78.73904749 | G34: -
A35: ECBCOM201902Ayrshire & Arran | B35: 57 | C35: 61.89797856 | D35: 55.52724671 | E35: 71.05769066 | F35: 78.82291264 | G35: -
A36: ECBCOM202001Ayrshire & Arran | B36: 52 | C36: 56.83384253 | D36: 55.52724671 | E36: 71.10787273 | F36: 78.89818574 | G36: -
A37: ECBCOM201901Ayrshire & Arran | B37: 43 | C37: 47.21379924 | D37: 55.52724671 | E37: 71.14373256 | F37: 78.95197549 | G37: -
A38: ECBHCAI201903Ayrshire & Arran | B38: 50 | C38: 45.17936207 | D38: 46.33236655 | E38: 59.27305204 | F38: 65.74339479 | G38: -
A39: ECBHCAI202004Ayrshire & Arran | B39: 56 | C39: 54.48954968 | D39: 46.33236655 | E39: 59.76109319 | F39: 66.47545651 | G39: -
A40: ECBHCAI202102Ayrshire & Arran | B40: 50 | C40: 48.93421284 | D40: 46.33236655 | E40: 59.8000698 | F40: 66.53392143 | G40: -
A41: ECBHCAI202003Ayrshire & Arran | B41: 60 | C41: 61.40808745 | D41: 46.33236655 | E41: 60.10475926 | F41: 66.99095562 | G41: -
A42: ECBHCAI202104Ayrshire & Arran | B42: 55 | C42: 49.02004474 | D42: 46.33236655 | E42: 59.18457451 | F42: 65.61067849 | G42: -
A43: ECBHCAI201902Ayrshire & Arran | B43: 46 | C43: 41.90198579 | D43: 46.33236655 | E43: 59.32540202 | F43: 65.82191976 | G43: -
A44: ECBHCAI202002Ayrshire & Arran | B44: 36 | C44: 43.97322519 | D44: 46.33236655 | E44: 61.37816178 | F44: 68.9010594 | G44: -
A45: ECBHCAI201901Ayrshire & Arran | B45: 52 | C45: 46.56994447 | D45: 46.33236655 | E45: 59.21555696 | F45: 65.65715217 | G45: -
A46: ECBHCAI202103Ayrshire & Arran | B46: 54 | C46: 49.87577238 | D46: 46.33236655 | E46: 59.41575315 | F46: 65.95744645 | G46: -
A47: ECBHCAI202001Ayrshire & Arran | B47: 50 | C47: 46.53543674 | D47: 46.33236655 | E47: 59.46582584 | F47: 66.03255549 | G47: -
A48: ECBHCAI202101Ayrshire & Arran | B48: 41 | C48: 41.25038987 | D48: 46.33236655 | E48: 59.98744934 | F48: 66.81499074 | G48: -
A49: ECBHCAI201904Ayrshire & Arran | B49: 46 | C49: 41.25523538 | D49: 46.33236655 | E49: 59.22473938 | F49: 65.67092579 | G49: -
A50: SABCAUN201901Ayrshire & Arran | B50: 11 | C50: 12.07794864 | D50: 12.57050048 | E50: 20.00080352 | F50: 23.71595504 | G50: -
A51: SABCAUN202103Ayrshire & Arran | B51: 17 | C51: 18.32812092 | D51: 12.57050048 | E51: 19.93326295 | F51: 23.61464419 | G51: -
A52: SABCAUN202102Ayrshire & Arran | B52: 8 | C52: 8.719778279 | D52: 12.57050048 | E52: 19.97360715 | F52: 23.67516049 | G52: -
A53: SABCAUN202001Ayrshire & Arran | B53: 15 | C53: 16.39437765 | D53: 12.57050048 | E53: 19.98374146 | F53: 23.69036195 | G53: -
A54: SABCAUN202104Ayrshire & Arran | B54: 12 | C54: 12.93749712 | D54: 12.57050048 | E54: 19.93326295 | F54: 23.61464419 | G54: -
A55: SABCAUN202003Ayrshire & Arran | B55: 15 | C55: 16.2161779 | D55: 12.57050048 | E55: 19.94334203 | F55: 23.6297628 | G55: -
A56: SABCAUN202101Ayrshire & Arran | B56: 9 | C56: 9.918747792 | D56: 12.57050048 | E56: 20.01462191 | F56: 23.73668263 | G56: -
A57: SABCAUN201904Ayrshire & Arran | B57: 9 | C57: 9.667132808 | D57: 12.57050048 | E57: 19.91959558 | F57: 23.59414314 | G57: -
A58: SABCAUN201902Ayrshire & Arran | B58: 15 | C58: 16.28894173 | D58: 12.57050048 | E58: 19.9598649 | F58: 23.65454711 | G58: -
A59: SABCAUN202004Ayrshire & Arran | B59: 12 | C59: 12.97294232 | D59: 12.57050048 | E59: 19.94334203 | F59: 23.6297628 | G59: -
A60: SABCAUN201903Ayrshire & Arran | B60: 8 | C60: 8.59300694 | D60: 12.57050048 | E60: 19.91959558 | F60: 23.59414314 | G60: -
A61: SABCAUN202002Ayrshire & Arran | B61: 13 | C61: 14.20846063 | D61: 12.57050048 | E61: 19.98374146 | F61: 23.69036195 | G61: -
A62: SABHCAI202102Ayrshire & Arran | B62: 18 | C62: 17.61631662 | D62: 17.0656221 | E62: 25.23920288 | F62: 29.32599327 | G62: -
A63: SABHCAI202104Ayrshire & Arran | B63: 15 | C63: 13.36910311 | D63: 17.0656221 | E63: 24.86565734 | F63: 28.76567496 | G63: -
A64: SABHCAI202003Ayrshire & Arran | B64: 16 | C64: 16.37548999 | D64: 17.0656221 | E64: 25.42411963 | F64: 29.6033684 | G64: -
A65: SABHCAI201903Ayrshire & Arran | B65: 22 | C65: 19.87891931 | D65: 17.0656221 | E65: 24.91935456 | F65: 28.84622079 | G65: -
A66: SABHCAI201901Ayrshire & Arran | B66: 11 | C66: 9.851334408 | D66: 17.0656221 | E66: 24.88446066 | F66: 28.79387994 | G66: -
A67: SABHCAI202004Ayrshire & Arran | B67: 25 | C67: 24.32569182 | D67: 17.0656221 | E67: 25.21554788 | F67: 29.29051077 | G67: -
A68: SABHCAI201904Ayrshire & Arran | B68: 16 | C68: 14.34964709 | D68: 17.0656221 | E68: 24.89003349 | F68: 28.80223919 | G68: -
A69: SABHCAI202101Ayrshire & Arran | B69: 12 | C69: 12.07328484 | D69: 17.0656221 | E69: 25.35292397 | F69: 29.4965749 | G69: -
A70: SABHCAI202001Ayrshire & Arran | B70: 19 | C70: 17.68346596 | D70: 17.0656221 | E70: 25.03634943 | F70: 29.0217131 | G70: -
A71: SABHCAI202103Ayrshire & Arran | B71: 17 | C71: 15.70163205 | D71: 17.0656221 | E71: 25.0059602 | F71: 28.97612925 | G71: -
A72: SABHCAI202002Ayrshire & Arran | B72: 23 | C72: 28.09400498 | D72: 17.0656221 | E72: 26.19695061 | F72: 30.76261487 | G72: -
A73: SABHCAI201902Ayrshire & Arran | B73: 18 | C73: 16.39642922 | D73: 17.0656221 | E73: 24.95112589 | F73: 28.89387778 | G73: -
A74: SSICSEC201901Ayrshire & Arran | B74: 3 | C74: 1.176470588 | D74: 1.157742402 | E74: 2.497533857 | F74: 3.167429584 | G74: -
A75: SSICSEC201902Ayrshire & Arran | B75: 2 | C75: 0.7168458781 | D75: 1.157742402 | E75: 2.43861281 | F75: 3.079048013 | G75: -
A76: SSICSEC201904Ayrshire & Arran | B76: 2 | C76: 0.796812749 | D76: 1.157742402 | E76: 2.508167289 | F76: 3.183379732 | G76: -
A77: SSICSEC201903Ayrshire & Arran | B77: 5 | C77: 1.650165017 | D77: 1.157742402 | E77: 2.386838895 | F77: 3.001387141 | G77: -
A78: SSIHIP201901Ayrshire & Arran | B78: 0 | C78: 0 | D78: 0 | E78: 0 | F78: 0 | G78: -
A79: SSIHIP201904Ayrshire & Arran | B79: 0 | C79: 0 | D79: 0 | E79: 0 | F79: 0 | G79: -
A80: SSIHIP201902Ayrshire & Arran | B80: 0 | C80: 0 | D80: 0 | E80: 0 | F80: 0 | G80: -
A81: SSIHIP201903Ayrshire & Arran | B81: 0 | C81: 0 | D81: 0 | E81: 0 | F81: 0 | G81: -
A82: CDICA202104Borders | B82: 1 | C82: 3.442720674 | D82: 3.757251912 | E82: 10.95035106 | F82: 14.54690063 | G82: -
A83: CDICA201903Borders | B83: 0 | C83: 0 | D83: 3.757251912 | E83: 10.94193935 | F83: 14.53428307 | G83: -
A84: CDICA201901Borders | B84: 1 | C84: 3.510999529 | D84: 3.757251912 | E84: 11.02133057 | F84: 14.6533699 | G84: -
A85: CDICA202002Borders | B85: 0 | C85: 0 | D85: 3.757251912 | E85: 10.99966637 | F85: 14.6208736 | G85: -
A86: CDICA202103Borders | B86: 1 | C86: 3.442720674 | D86: 3.757251912 | E86: 10.95035106 | F86: 14.54690063 | G86: -
A87: CDICA202003Borders | B87: 4 | C87: 13.80861114 | D87: 3.757251912 | E87: 10.96019788 | F87: 14.56167086 | G87: -
A88: CDICA202001Borders | B88: 3 | C88: 10.47026559 | D88: 3.757251912 | E88: 10.99966637 | F88: 14.6208736 | G88: -
A89: CDICA202004Borders | B89: 0 | C89: 0 | D89: 3.757251912 | E89: 10.96019788 | F89: 14.56167086 | G89: -
A90: CDICA202102Borders | B90: 1 | C90: 3.480552769 | D90: 3.757251912 | E90: 10.9897656 | F90: 14.60602244 | G90: -
A91: CDICA201902Borders | B91: 0 | C91: 0 | D91: 3.757251912 | E91: 10.98130779 | F91: 14.59333574 | G91: -
A92: CDICA201904Borders | B92: 2 | C92: 6.869346904 | D92: 3.757251912 | E92: 10.94193935 | F92: 14.53428307 | G92: -
A93: CDICA202101Borders | B93: 0 | C93: 0 | D93: 3.757251912 | E93: 11.02983523 | F93: 14.66612689 | G93: -
A94: CDIHCAI201902Borders | B94: 4 | C94: 13.44718618 | D94: 10.05783254 | E94: 21.6875164 | F94: 27.50235833 | G94: -
A95: CDIHCAI202004Borders | B95: 3 | C95: 11.0452487 | D95: 10.05783254 | E95: 22.22835768 | F95: 28.31362026 | G95: -
A96: CDIHCAI201904Borders | B96: 3 | C96: 10.19887812 | D96: 10.05783254 | E96: 21.75276638 | F96: 27.6002333 | G96: -
A97: CDIHCAI202104Borders | B97: 2 | C97: 6.563833279 | D97: 10.05783254 | E97: 21.54851885 | F97: 27.293862 | G97: -
A98: CDIHCAI202001Borders | B98: 3 | C98: 10.39681164 | D98: 10.05783254 | E98: 21.86570508 | F98: 27.76964135 | G98: -
A99: CDIHCAI202101Borders | B99: 0 | C99: 0 | D99: 10.05783254 | E99: 22.00883098 | F99: 27.9843302 | G99: -
A100: CDIHCAI201901Borders | B100: 6 | C100: 20.41510718 | D100: 10.05783254 | E100: 21.75773935 | F100: 27.60769276 | G100: -
A101: CDIHCAI202103Borders | B101: 3 | C101: 10.12145749 | D101: 10.05783254 | E101: 21.70829316 | F101: 27.53352346 | G101: -
A102: CDIHCAI201903Borders | B102: 4 | C102: 13.81120088 | D102: 10.05783254 | E102: 21.84387282 | F102: 27.73689297 | G102: -
A103: CDIHCAI202102Borders | B103: 2 | C103: 6.759954032 | D103: 10.05783254 | E103: 21.71892045 | F103: 27.5494644 | G103: -
A104: CDIHCAI202003Borders | B104: 2 | C104: 7.906700929 | D104: 10.05783254 | E104: 22.66927765 | F104: 28.9750002 | G104: -
A105: CDIHCAI202002Borders | B105: 4 | C105: 19.38360147 | D105: 10.05783254 | E105: 24.02053348 | F105: 31.00188395 | G105: -
A106: ECBCOM202004Borders | B106: 8 | C106: 27.61722228 | D106: 45.08702294 | E106: 70.0387597 | F106: 82.51462808 | G106: -
A107: ECBCOM202003Borders | B107: 8 | C107: 27.61722228 | D107: 45.08702294 | E107: 70.0387597 | F107: 82.51462808 | G107: -
A108: ECBCOM202101Borders | B108: 10 | C108: 35.19225578 | D108: 45.08702294 | E108: 70.27999056 | F108: 82.87647437 | G108: -
A109: ECBCOM201904Borders | B109: 12 | C109: 41.21608142 | D109: 45.08702294 | E109: 69.9755103 | F109: 82.41975398 | G109: -
A110: ECBCOM201901Borders | B110: 16 | C110: 56.17599246 | D110: 45.08702294 | E110: 70.25052956 | F110: 82.83228287 | G110: -
A111: ECBCOM202001Borders | B111: 13 | C111: 45.37115089 | D111: 45.08702294 | E111: 70.17548257 | F111: 82.71971238 | G111: -
A112: ECBCOM202102Borders | B112: 10 | C112: 34.80552769 | D112: 45.08702294 | E112: 70.14118528 | F112: 82.66826644 | G112: -
A113: ECBCOM202104Borders | B113: 12 | C113: 41.31264808 | D113: 45.08702294 | E113: 70.00464931 | F113: 82.4634625 | G113: -
A114: ECBCOM202002Borders | B114: 7 | C114: 24.43061971 | D114: 45.08702294 | E114: 70.17548257 | F114: 82.71971238 | G114: -
A115: ECBCOM201902Borders | B115: 19 | C115: 65.97592521 | D115: 45.08702294 | E115: 70.11188659 | F115: 82.62431842 | G115: -
A116: ECBCOM202103Borders | B116: 18 | C116: 61.96897213 | D116: 45.08702294 | E116: 70.00464931 | F116: 82.4634625 | G116: -
A117: ECBCOM201903Borders | B117: 24 | C117: 82.43216285 | D117: 45.08702294 | E117: 69.9755103 | F117: 82.41975398 | G117: aboveUCL
A118: ECBHCAI201902Borders | B118: 15 | C118: 50.42694816 | D118: 43.7811534 | E118: 68.04498081 | F118: 80.17689452 | G118: -
A119: ECBHCAI201903Borders | B119: 8 | C119: 27.62240177 | D119: 43.7811534 | E119: 68.37119822 | F119: 80.66622063 | G119: -
A120: ECBHCAI202001Borders | B120: 10 | C120: 34.65603881 | D120: 43.7811534 | E120: 68.41674839 | F120: 80.73454588 | G120: -
A121: ECBHCAI202004Borders | B121: 12 | C121: 44.18099481 | D121: 43.7811534 | E121: 69.17337603 | F121: 81.86948735 | G121: -
A122: ECBHCAI202102Borders | B122: 19 | C122: 64.21956331 | D122: 43.7811534 | E122: 68.11050129 | F122: 80.27517524 | G122: -
A123: ECBHCAI202103Borders | B123: 14 | C123: 47.23346829 | D123: 43.7811534 | E123: 68.08832882 | F123: 80.24191654 | G123: -
A124: ECBHCAI201901Borders | B124: 9 | C124: 30.62266077 | D124: 43.7811534 | E124: 68.1914919 | F124: 80.39666116 | G124: -
A125: ECBHCAI202104Borders | B125: 12 | C125: 39.38299967 | D125: 43.7811534 | E125: 67.75498044 | F125: 79.74189397 | G125: -
A126: ECBHCAI202002Borders | B126: 14 | C126: 67.84260516 | D126: 43.7811534 | E126: 72.91251844 | F126: 87.47820097 | G126: -
A127: ECBHCAI201904Borders | B127: 14 | C127: 47.59476458 | D127: 43.7811534 | E127: 68.18111645 | F127: 80.38109797 | G127: -
A128: ECBHCAI202003Borders | B128: 13 | C128: 51.39355604 | D128: 43.7811534 | E128: 70.09329836 | F128: 83.24937084 | G128: -
A129: ECBHCAI202101Borders | B129: 9 | C129: 31.95115024 | D129: 43.7811534 | E129: 68.71536203 | F129: 81.18246634 | G129: -
A130: SABCAUN201901Borders | B130: 3 | C130: 10.53299859 | D130: 11.27175574 | E130: 23.85350904 | F130: 30.1443857 | G130: -
A131: SABCAUN202001Borders | B131: 3 | C131: 10.47026559 | D131: 11.27175574 | E131: 23.81598555 | F131: 30.08810046 | G131: -
A132: SABCAUN201902Borders | B132: 3 | C132: 10.41725135 | D132: 11.27175574 | E132: 23.78418756 | F132: 30.04040347 | G132: -
A133: SABCAUN202102Borders | B133: 3 | C133: 10.44165831 | D133: 11.27175574 | E133: 23.7988369 | F133: 30.06237749 | G133: -
A134: SABCAUN201904Borders | B134: 2 | C134: 6.869346904 | D134: 11.27175574 | E134: 23.71599941 | F134: 29.93812125 | G134: -
A135: SABCAUN202101Borders | B135: 4 | C135: 14.07690231 | D135: 11.27175574 | E135: 23.86823954 | F135: 30.16648145 | G135: -
A136: SABCAUN202104Borders | B136: 3 | C136: 10.32816202 | D136: 11.27175574 | E136: 23.73056892 | F136: 29.95997551 | G136: -
A137: SABCAUN202103Borders | B137: 6 | C137: 20.65632404 | D137: 11.27175574 | E137: 23.73056892 | F137: 29.95997551 | G137: -
A138: SABCAUN202004Borders | B138: 4 | C138: 13.80861114 | D138: 11.27175574 | E138: 23.74762412 | F138: 29.98555831 | G138: -
A139: SABCAUN201903Borders | B139: 2 | C139: 6.869346904 | D139: 11.27175574 | E139: 23.71599941 | F139: 29.93812125 | G139: -
A140: SABCAUN202002Borders | B140: 5 | C140: 17.45044265 | D140: 11.27175574 | E140: 23.81598555 | F140: 30.08810046 | G140: -
A141: SABCAUN202003Borders | B141: 1 | C141: 3.452152785 | D141: 11.27175574 | E141: 23.74762412 | F141: 29.98555831 | G141: -
A142: SABHCAI202003Borders | B142: 2 | C142: 7.906700929 | D142: 13.60765579 | E142: 28.27678423 | F142: 35.61134845 | G142: -
A143: SABHCAI202002Borders | B143: 5 | C143: 24.22950184 | D143: 13.60765579 | E143: 29.84851096 | F143: 37.96893854 | G143: -
A144: SABHCAI202104Borders | B144: 4 | C144: 13.12766656 | D144: 13.60765579 | E144: 26.97316243 | F144: 33.65591575 | G144: -
A145: SABHCAI201901Borders | B145: 3 | C145: 10.20755359 | D145: 13.60765579 | E145: 27.21651935 | F145: 34.02095113 | G145: -
A146: SABHCAI202103Borders | B146: 7 | C146: 23.61673414 | D146: 13.60765579 | E146: 27.15900551 | F146: 33.93468038 | G146: -
A147: SABHCAI201903Borders | B147: 0 | C147: 0 | D147: 13.60765579 | E147: 27.31670636 | F147: 34.17123164 | G147: -
A148: SABHCAI202001Borders | B148: 3 | C148: 10.39681164 | D148: 13.60765579 | E148: 27.34210076 | F148: 34.20932325 | G148: -
A149: SABHCAI202101Borders | B149: 7 | C149: 24.85089463 | D149: 13.60765579 | E149: 27.50857909 | F149: 34.45904074 | G149: -
A150: SABHCAI201904Borders | B150: 2 | C150: 6.799252082 | D150: 13.60765579 | E150: 27.21073499 | F150: 34.01227459 | G150: -
A151: SABHCAI202004Borders | B151: 5 | C151: 18.40874784 | D151: 13.60765579 | E151: 27.76392377 | F151: 34.84205776 | G151: -
A152: SABHCAI202102Borders | B152: 6 | C152: 20.2798621 | D152: 13.60765579 | E152: 27.17136675 | F152: 33.95322224 | G152: -
A153: SABHCAI201902Borders | B153: 2 | C153: 6.723593088 | D153: 13.60765579 | E153: 27.13483882 | F153: 33.89843033 | G153: -
A154: SSICSEC201903Borders | B154: 1 | C154: 1.754385965 | D154: 0.3039513678 | E154: 1.762206762 | F154: 2.49133446 | G154: -
A155: SSICSEC201901Borders | B155: 0 | C155: 0 | D155: 0.3039513678 | E155: 1.639059875 | F155: 2.306614129 | G155: -
A156: SSICSEC201904Borders | B156: 0 | C156: 0 | D156: 0.3039513678 | E156: 1.691028925 | F156: 2.384567703 | G156: -
A157: SSICSEC201902Borders | B157: 0 | C157: 0 | D157: 0.3039513678 | E157: 1.583789836 | F157: 2.22370907 | G157: -
A158: SSIHIP201902Borders | B158: 2 | C158: 2.06185567 | D158: 1.711491443 | E158: 4.34529189 | F158: 5.662192113 | G158: -
A159: SSIHIP201901Borders | B159: 1 | C159: 1.639344262 | D159: 1.711491443 | E159: 5.032758644 | F159: 6.693392245 | G159: -
A160: SSIHIP201904Borders | B160: 2 | C160: 2.222222222 | D160: 1.711491443 | E160: 4.445799734 | F160: 5.81295388 | G160: -
A161: SSIHIP201903Borders | B161: 1 | C161: 1.351351351 | D161: 1.711491443 | E161: 4.726946599 | F161: 6.234674177 | G161: -
A162: CDICA202002Dumfries & Galloway | B162: 2 | C162: 5.424476394 | D162: 8.079610605 | E162: 17.44205227 | F162: 22.12327311 | G162: -
A163: CDICA201904Dumfries & Galloway | B163: 2 | C163: 5.330365853 | D163: 8.079610605 | E163: 17.3604813 | F163: 22.00091665 | G163: -
A164: CDICA201901Dumfries & Galloway | B164: 1 | C164: 2.724409214 | D164: 8.079610605 | E164: 17.46303547 | F164: 22.15474791 | G164: -
A165: CDICA202003Dumfries & Galloway | B165: 6 | C165: 16.09654408 | D165: 8.079610605 | E165: 17.39103041 | F165: 22.04674032 | G165: -
A166: CDICA202104Dumfries & Galloway | B166: 5 | C166: 13.37713704 | D166: 8.079610605 | E166: 17.37830119 | F166: 22.02764649 | G166: -
A167: CDICA202004Dumfries & Galloway | B167: 3 | C167: 8.04827204 | D167: 8.079610605 | E167: 17.39103041 | F167: 22.04674032 | G167: -
A168: CDICA202103Dumfries & Galloway | B168: 2 | C168: 5.350854817 | D168: 8.079610605 | E168: 17.37830119 | F168: 22.02764649 | G168: -
A169: CDICA202001Dumfries & Galloway | B169: 2 | C169: 5.424476394 | D169: 8.079610605 | E169: 17.44205227 | F169: 22.12327311 | G169: -
A170: CDICA202102Dumfries & Galloway | B170: 9 | C170: 24.34344939 | D170: 8.079610605 | E170: 17.4292533 | F170: 22.10407465 | G170: aboveUCL
A171: CDICA202101Dumfries & Galloway | B171: 0 | C171: 0 | D171: 8.079610605 | E171: 17.48105227 | F171: 22.18177311 | G171: -
A172: CDICA201903Dumfries & Galloway | B172: 5 | C172: 13.32591463 | D172: 8.079610605 | E172: 17.3604813 | F172: 22.00091665 | G172: -
A173: CDICA201902Dumfries & Galloway | B173: 4 | C173: 10.7778826 | D173: 8.079610605 | E173: 17.41133577 | F173: 22.07719835 | G173: -
A174: CDIHCAI202104Dumfries & Galloway | B174: 3 | C174: 6.684491979 | D174: 18.44524802 | E174: 31.26695422 | F174: 37.67780732 | G174: -
A175: CDIHCAI201902Dumfries & Galloway | B175: 6 | C175: 13.13859023 | D175: 18.44524802 | E175: 31.15599296 | F175: 37.51136543 | G175: -
A176: CDIHCAI202001Dumfries & Galloway | B176: 12 | C176: 27.06726215 | D176: 18.44524802 | E176: 31.34566614 | F176: 37.79587521 | G176: -
A177: CDIHCAI202004Dumfries & Galloway | B177: 8 | C177: 21.31457651 | D177: 18.44524802 | E177: 32.46581595 | F177: 39.47609991 | G177: -
A178: CDIHCAI202002Dumfries & Galloway | B178: 3 | C178: 11.07501477 | D178: 18.44524802 | E178: 34.94904129 | F178: 43.20093792 | G178: -
A179: CDIHCAI201904Dumfries & Galloway | B179: 6 | C179: 12.91489087 | D179: 18.44524802 | E179: 31.047321 | F179: 37.34835749 | G179: -
A180: CDIHCAI202102Dumfries & Galloway | B180: 6 | C180: 14.92574442 | D180: 18.44524802 | E180: 31.99291836 | F180: 38.76675354 | G180: -
A181: CDIHCAI202103Dumfries & Galloway | B181: 10 | C181: 23.70904263 | D181: 18.44524802 | E181: 31.67127042 | F181: 38.28428162 | G181: -
A182: CDIHCAI201901Dumfries & Galloway | B182: 3 | C182: 6.50096431 | D182: 18.44524802 | E182: 31.08971448 | F182: 37.41194771 | G182: -
A183: CDIHCAI202101Dumfries & Galloway | B183: 8 | C183: 21.53605944 | D183: 18.44524802 | E183: 32.53847259 | F183: 39.58508488 | G183: -
A184: CDIHCAI201903Dumfries & Galloway | B184: 7 | C184: 15.19295047 | D184: 18.44524802 | E184: 31.09972751 | F184: 37.42696725 | G184: -
A185: CDIHCAI202003Dumfries & Galloway | B185: 10 | C185: 27.22792496 | D185: 18.44524802 | E185: 32.61882666 | F185: 39.70561598 | G185: -
A186: ECBCOM202001Dumfries & Galloway | B186: 20 | C186: 54.24476394 | D186: 59.92377865 | E186: 85.42103822 | F186: 98.169668 | G186: -
A187: ECBCOM201904Dumfries & Galloway | B187: 21 | C187: 55.96884146 | D187: 59.92377865 | E187: 85.19889145 | F187: 97.83644785 | G187: -
A188: ECBCOM202003Dumfries & Galloway | B188: 23 | C188: 61.70341898 | D188: 59.92377865 | E188: 85.28208754 | F188: 97.96124198 | G188: -
A189: ECBCOM201902Dumfries & Galloway | B189: 20 | C189: 53.88941302 | D189: 59.92377865 | E189: 85.33738626 | F189: 98.04419006 | G189: -
A190: ECBCOM201901Dumfries & Galloway | B190: 18 | C190: 49.03936585 | D190: 59.92377865 | E190: 85.47818294 | F190: 98.25538509 | G190: -
A191: ECBCOM202004Dumfries & Galloway | B191: 23 | C191: 61.70341898 | D191: 59.92377865 | E191: 85.28208754 | F191: 97.96124198 | G191: -
A192: ECBCOM202002Dumfries & Galloway | B192: 22 | C192: 59.66924033 | D192: 59.92377865 | E192: 85.42103822 | F192: 98.169668 | G192: -
A193: ECBCOM201903Dumfries & Galloway | B193: 29 | C193: 77.29030487 | D193: 59.92377865 | E193: 85.19889145 | F193: 97.83644785 | G193: -
A194: ECBCOM202104Dumfries & Galloway | B194: 28 | C194: 74.91196744 | D194: 59.92377865 | E194: 85.24742135 | F194: 97.90924269 | G194: -
A195: ECBCOM202101Dumfries & Galloway | B195: 21 | C195: 57.43250837 | D195: 59.92377865 | E195: 85.5272491 | F195: 98.32898432 | G195: -
A196: ECBCOM202103Dumfries & Galloway | B196: 22 | C196: 58.85940299 | D196: 59.92377865 | E196: 85.24742135 | F196: 97.90924269 | G196: -
A197: ECBCOM202102Dumfries & Galloway | B197: 25 | C197: 67.62069275 | D197: 59.92377865 | E197: 85.38618207 | F197: 98.11738378 | G197: -
A198: ECBHCAI201903Dumfries & Galloway | B198: 12 | C198: 26.04505795 | D198: 34.2554606 | E198: 51.50060926 | F198: 60.12318359 | G198: -
A199: ECBHCAI201902Dumfries & Galloway | B199: 15 | C199: 32.84647557 | D199: 34.2554606 | E199: 51.57728614 | F199: 60.23819891 | G199: -
A200: ECBHCAI201904Dumfries & Galloway | B200: 18 | C200: 38.74467261 | D200: 34.2554606 | E200: 51.42919123 | F200: 60.01605654 | G200: -
... 1072 more rows

Sheet trend data (hidden)
A1: ref | B1: cases | C1: OCBD | D1: rate | E1: lower | F1: upper
A2: CDICA201404Ayrshire & Arran | B2: 9 | C2: 93547.61644 | D2: 9.620768912 | E2: 4.390086183 | F2: 18.26443485
A3: CDICA201404Borders | B3: 0 | C3: 28744.32877 | D3: 0 | E3: 0 | F3: 12.76111724
A4: CDICA201404Dumfries & Galloway | B4: 5 | C4: 37798.13699 | D4: 13.22816519 | E4: 4.262934604 | F4: 30.87004414
A5: CDICA201404Fife | B5: 5 | C5: 92567.12329 | D5: 5.401485779 | E5: 1.74069346 | F5: 12.605233
A6: CDICA201404Forth Valley | B6: 5 | C6: 75717.26027 | D6: 6.603514155 | E6: 2.128061495 | F6: 15.41035892
A7: CDICA201404Grampian | B7: 7 | C7: 147255.4521 | D7: 4.753644026 | E7: 1.904431287 | F7: 9.794824746
A8: CDICA201404Greater Glasgow & Clyde | B8: 19 | C8: 287995.2877 | D8: 6.597330169 | E8: 3.970158244 | F8: 10.30313934
A9: CDICA201404Highland | B9: 9 | C9: 80841.53425 | D9: 11.13289114 | E9: 5.08008788 | F9: 21.13510539
A10: CDICA201404Lanarkshire | B10: 18 | C10: 164667.3973 | D10: 10.93112559 | E10: 6.475105069 | F10: 17.27691447
A11: CDICA201404Lothian | B11: 21 | C11: 216293.2603 | D11: 9.70904039 | E11: 6.007712236 | F11: 14.84209798
A12: CDICA201404Orkney | B12: 0 | C12: 5439.342466 | D12: 0 | E12: 0 | F12: 67.43641379
A13: CDICA201404Shetland | B13: 0 | C13: 5852.712329 | D13: 0 | E13: 0 | F13: 62.67346294
A14: CDICA201404Tayside | B14: 20 | C14: 104300.274 | D14: 19.17540505 | E14: 11.70784356 | F14: 29.61650306
A15: CDICA201404Western Isles | B15: 3 | C15: 6868.493151 | D15: 43.67770243 | E15: 8.778507217 | F15: 127.6187619
A16: CDICA201501Ayrshire & Arran | B16: 6 | C16: 91378.35616 | D16: 6.566106299 | E16: 2.3976583 | F16: 14.2921101
A17: CDICA201501Borders | B17: 1 | C17: 28116.9863 | D17: 3.556568934 | E17: 0.04648483408 | F17: 19.78823858
A18: CDICA201501Dumfries & Galloway | B18: 5 | C18: 36904.93151 | D18: 13.54832483 | E18: 4.366109882 | F18: 31.61718798
A19: CDICA201501Fife | B19: 4 | C19: 90759.45205 | D19: 4.407254462 | E19: 1.185684097 | F19: 11.28354391
A20: CDICA201501Forth Valley | B20: 4 | C20: 74626.0274 | D20: 5.360060209 | E20: 1.44201752 | F20: 13.72293686
A21: CDICA201501Grampian | B21: 6 | C21: 144941.9178 | D21: 4.139589217 | E21: 1.511599111 | F21: 9.010433604
A22: CDICA201501Greater Glasgow & Clyde | B22: 14 | C22: 283534.5205 | D22: 4.937670367 | E22: 2.697181506 | F22: 8.285123745
A23: CDICA201501Highland | B23: 9 | C23: 79150.68493 | D23: 11.37071651 | E23: 5.188610796 | F23: 21.58660216
A24: CDICA201501Lanarkshire | B24: 6 | C24: 161381.0959 | D24: 3.717907582 | E24: 1.357619199 | F24: 8.092580607
A25: CDICA201501Lothian | B25: 29 | C25: 213978.0822 | D25: 13.55278994 | E25: 9.07456808 | F25: 19.46488765
A26: CDICA201501Orkney | B26: 1 | C26: 5343.287671 | D26: 18.71506948 | E26: 0.2446084739 | F26: 104.1279578
A27: CDICA201501Shetland | B27: 1 | C27: 5720.547945 | D27: 17.48084291 | E27: 0.2284769668 | F27: 97.26089848
A28: CDICA201501Tayside | B28: 5 | C28: 102338.6301 | D28: 4.885740598 | E28: 1.574488401 | F28: 11.40165894
A29: CDICA201501Western Isles | B29: 1 | C29: 6674.794521 | D29: 14.9817346 | E29: 0.1958132852 | F29: 83.35621887
A30: CDICA201502Ayrshire & Arran | B30: 10 | C30: 92393.67123 | D30: 10.82325214 | E30: 5.181502317 | F30: 19.90572149
A31: CDICA201502Borders | B31: 3 | C31: 28429.39726 | D31: 10.55245728 | E31: 2.120872143 | F31: 30.8324719
A32: CDICA201502Dumfries & Galloway | B32: 3 | C32: 37314.9863 | D32: 8.039665286 | E32: 1.615841855 | F32: 23.49052429
A33: CDICA201502Fife | B33: 2 | C33: 91767.89041 | D33: 2.179411547 | E33: 0.2447624698 | F33: 7.868744728
A34: CDICA201502Forth Valley | B34: 5 | C34: 75455.20548 | D34: 6.62644806 | E34: 2.135452221 | F34: 15.46387886
A35: CDICA201502Grampian | B35: 9 | C35: 146552.3836 | D35: 6.141148838 | E35: 2.802288768 | F35: 11.65859131
A36: CDICA201502Greater Glasgow & Clyde | B36: 13 | C36: 286684.9041 | D36: 4.534595235 | E36: 2.412110158 | F36: 7.754824238
A37: CDICA201502Highland | B37: 11 | C37: 80030.13699 | D37: 13.74482216 | E37: 6.851937664 | F37: 24.59499806
A38: CDICA201502Lanarkshire | B38: 11 | C38: 163174.2192 | D38: 6.741261 | E38: 3.360589146 | F38: 12.06281895
A39: CDICA201502Lothian | B39: 17 | C39: 216355.6164 | D39: 7.857434108 | E39: 4.574585923 | F39: 12.58128223
A40: CDICA201502Orkney | B40: 0 | C40: 5402.657534 | D40: 0 | E40: 0 | F40: 67.89431811
A41: CDICA201502Shetland | B41: 0 | C41: 5784.109589 | D41: 0 | E41: 0 | F41: 63.41680489
A42: CDICA201502Tayside | B42: 14 | C42: 103475.726 | D42: 13.52974319 | E42: 7.390564864 | F42: 22.70212231
A43: CDICA201502Western Isles | B43: 0 | C43: 6748.958904 | D43: 0 | E43: 0 | F43: 54.35056791
A44: CDICA201503Ayrshire & Arran | B44: 17 | C44: 93408.9863 | D44: 18.19953376 | E44: 10.59574026 | F44: 29.14099788
A45: CDICA201503Borders | B45: 1 | C45: 28741.80822 | D45: 3.479252218 | E45: 0.04547429421 | F45: 19.35805948
A46: CDICA201503Dumfries & Galloway | B46: 2 | C46: 37725.0411 | D46: 5.301518413 | E46: 0.5953959188 | F46: 19.14108197
A47: CDICA201503Fife | B47: 6 | C47: 92776.32877 | D47: 6.467166873 | E47: 2.361529896 | F47: 14.07675367
A48: CDICA201503Forth Valley | B48: 4 | C48: 76284.38356 | D48: 5.243537161 | E48: 1.410669313 | F48: 13.42461215
A49: CDICA201503Grampian | B49: 14 | C49: 148162.8493 | D49: 9.449062342 | E49: 5.161510248 | F49: 15.85497714
A50: CDICA201503Greater Glasgow & Clyde | B50: 17 | C50: 289835.2877 | D50: 5.865400358 | E50: 3.41482697 | F50: 9.391648248
A51: CDICA201503Highland | B51: 7 | C51: 80909.58904 | D51: 8.651632128 | E51: 3.466064942 | F51: 17.82658104
A52: CDICA201503Lanarkshire | B52: 18 | C52: 164967.3425 | D52: 10.91125051 | E52: 6.463331971 | F52: 17.24550142
A53: CDICA201503Lothian | B53: 33 | C53: 218733.1507 | D53: 15.08687636 | E53: 10.38334343 | F53: 21.18838409
A54: CDICA201503Orkney | B54: 0 | C54: 5462.027397 | D54: 0 | E54: 0 | F54: 67.15633639
A55: CDICA201503Shetland | B55: 1 | C55: 5847.671233 | D55: 17.10082459 | E55: 0.2235100762 | F55: 95.14653112
A56: CDICA201503Tayside | B56: 11 | C56: 104612.8219 | D56: 10.51496346 | E56: 5.241819309 | F56: 18.81548579
A57: CDICA201503Western Isles | B57: 0 | C57: 6823.123288 | D57: 0 | E57: 0 | F57: 53.75980087
A58: CDICA201504Ayrshire & Arran | B58: 7 | C58: 93408.9863 | D58: 7.493925667 | E58: 3.002258146 | F58: 15.44114119
A59: CDICA201504Borders | B59: 2 | C59: 28741.80822 | D59: 6.958504436 | E59: 0.7814865138 | F59: 25.1236143
A60: CDICA201504Dumfries & Galloway | B60: 4 | C60: 37725.0411 | D60: 10.60303683 | E60: 2.85253603 | F60: 27.14611389
A61: CDICA201504Fife | B61: 7 | C61: 92776.32877 | D61: 7.545028018 | E61: 3.022731054 | F61: 15.54643695
A62: CDICA201504Forth Valley | B62: 3 | C62: 76284.38356 | D62: 3.932652871 | E62: 0.7903992125 | F62: 11.49053779
A63: CDICA201504Grampian | B63: 15 | C63: 148162.8493 | D63: 10.12399537 | E63: 5.662127426 | F63: 16.69907409
A64: CDICA201504Greater Glasgow & Clyde | B64: 25 | C64: 289835.2877 | D64: 8.625588761 | E64: 5.580456178 | F64: 12.73367468
A65: CDICA201504Highland | B65: 9 | C65: 80909.58904 | D65: 11.12352702 | E65: 5.075814909 | F65: 21.1173282
A66: CDICA201504Lanarkshire | B66: 19 | C66: 164967.3425 | D66: 11.5174311 | E66: 6.93098918 | F66: 17.98692719
A67: CDICA201504Lothian | B67: 18 | C67: 218733.1507 | D67: 8.229205287 | E67: 4.87460952 | F67: 13.00646257
A68: CDICA201504Orkney | B68: 0 | C68: 5462.027397 | D68: 0 | E68: 0 | F68: 67.15633639
A69: CDICA201504Shetland | B69: 0 | C69: 5847.671233 | D69: 0 | E69: 0 | F69: 62.72749179
A70: CDICA201504Tayside | B70: 7 | C70: 104612.8219 | D70: 6.691340384 | E70: 2.68072197 | F70: 13.78742414
A71: CDICA201504Western Isles | B71: 0 | C71: 6823.123288 | D71: 0 | E71: 0 | F71: 53.75980087
A72: CDICA201601Ayrshire & Arran | B72: 10 | C72: 92133.77049 | D72: 10.85378352 | E72: 5.19611885 | F72: 19.96187367
A73: CDICA201601Borders | B73: 0 | C73: 28476.03825 | D73: 0 | E73: 0 | F73: 12.88134768
A74: CDICA201601Dumfries & Galloway | B74: 2 | C74: 37175.7377 | D74: 5.379852892 | E74: 0.6041934039 | F74: 19.42390786
A75: CDICA201601Fife | B75: 5 | C75: 92076.5847 | D75: 5.430262228 | E75: 1.749967016 | F75: 12.67238746
A76: CDICA201601Forth Valley | B76: 1 | C76: 75704.04372 | D76: 1.320933402 | E76: 0.01726477714 | F76: 7.349483669
A77: CDICA201601Grampian | B77: 19 | C77: 146221.5847 | D77: 12.99397763 | E77: 7.819549132 | F77: 20.29286979
A78: CDICA201601Greater Glasgow & Clyde | B78: 19 | C78: 288755.929 | D78: 6.579951473 | E78: 3.959700048 | F78: 10.2759988
A79: CDICA201601Highland | B79: 2 | C79: 80035.2459 | D79: 2.498899051 | E79: 0.2806430499 | F79: 9.022251331
A80: CDICA201601Lanarkshire | B80: 12 | C80: 163225.6557 | D80: 7.351785444 | E80: 3.794397112 | F80: 12.84297896
A81: CDICA201601Lothian | B81: 16 | C81: 218797.8142 | D81: 7.312687313 | E81: 4.177102853 | F81: 11.87609453
A82: CDICA201601Orkney | B82: 0 | C82: 5432.650273 | D82: 0 | E82: 0 | F82: 67.51948511
A83: CDICA201601Shetland | B83: 0 | C83: 5768.306011 | D83: 0 | E83: 0 | F83: 63.59054956
A84: CDICA201601Tayside | B84: 11 | C84: 103299.918 | D84: 10.64860477 | E84: 5.3084409 | F84: 19.05462368
A85: CDICA201601Western Isles | B85: 0 | C85: 6688.251366 | D85: 0 | E85: 0 | F85: 54.84389404
A86: CDICA201602Ayrshire & Arran | B86: 5 | C86: 92133.77049 | D86: 5.426891761 | E86: 1.748880842 | F86: 12.66452193
A87: CDICA201602Borders | B87: 0 | C87: 28476.03825 | D87: 0 | E87: 0 | F87: 12.88134768
A88: CDICA201602Dumfries & Galloway | B88: 5 | C88: 37175.7377 | D88: 13.44963223 | E88: 4.334305009 | F88: 31.38687297
A89: CDICA201602Fife | B89: 4 | C89: 92076.5847 | D89: 4.344209783 | E89: 1.168723181 | F89: 11.12213562
A90: CDICA201602Forth Valley | B90: 5 | C90: 75704.04372 | D90: 6.604667009 | E90: 2.128433017 | F90: 15.41304929
A91: CDICA201602Grampian | B91: 8 | C91: 146221.5847 | D91: 5.471148474 | E91: 2.355762024 | F91: 10.78100578
A92: CDICA201602Greater Glasgow & Clyde | B92: 15 | C92: 288755.929 | D92: 5.194698531 | E92: 2.905280372 | F92: 8.568421115
A93: CDICA201602Highland | B93: 2 | C93: 80035.2459 | D93: 2.498899051 | E93: 0.2806430499 | F93: 9.022251331
A94: CDICA201602Lanarkshire | B94: 14 | C94: 163225.6557 | D94: 8.577083018 | E94: 4.685195239 | F94: 14.39184654
A95: CDICA201602Lothian | B95: 23 | C95: 218797.8142 | D95: 10.51198801 | E95: 6.661512273 | F95: 15.77393961
A96: CDICA201602Orkney | B96: 0 | C96: 5432.650273 | D96: 0 | E96: 0 | F96: 67.51948511
A97: CDICA201602Shetland | B97: 0 | C97: 5768.306011 | D97: 0 | E97: 0 | F97: 63.59054956
A98: CDICA201602Tayside | B98: 10 | C98: 103299.918 | D98: 9.680549792 | E98: 4.634447255 | F98: 17.80410597
A99: CDICA201602Western Isles | B99: 0 | C99: 6688.251366 | D99: 0 | E99: 0 | F99: 54.84389404
A100: CDICA201603Ayrshire & Arran | B100: 9 | C100: 93146.22951 | D100: 9.662226853 | E100: 4.409003999 | F100: 18.34314019
A101: CDICA201603Borders | B101: 0 | C101: 28788.96175 | D101: 0 | E101: 0 | F101: 12.74133303
A102: CDICA201603Dumfries & Galloway | B102: 2 | C102: 37584.2623 | D102: 5.32137623 | E102: 0.5976260843 | F102: 19.21277843
A103: CDICA201603Fife | B103: 6 | C103: 93088.4153 | D103: 6.445485167 | E103: 2.353612674 | F103: 14.02956021
A104: CDICA201603Forth Valley | B104: 4 | C104: 76535.95628 | D104: 5.22630172 | E104: 1.406032461 | F104: 13.38048562
A105: CDICA201603Grampian | B105: 20 | C105: 147828.4153 | D105: 13.52919867 | E105: 8.260463923 | F105: 20.89591083
A106: CDICA201603Greater Glasgow & Clyde | B106: 20 | C106: 291929.071 | D106: 6.850979222 | E106: 4.182972553 | F106: 10.58136955
A107: CDICA201603Highland | B107: 8 | C107: 80914.7541 | D107: 9.886948418 | E107: 4.257113059 | F107: 19.4824265
A108: CDICA201603Lanarkshire | B108: 15 | C108: 165019.3443 | D108: 9.089843416 | E108: 5.083749038 | F108: 14.99328706
A109: CDICA201603Lothian | B109: 20 | C109: 221202.1858 | D109: 9.041501976 | E109: 5.520430492 | F109: 13.96464222
A110: CDICA201603Orkney | B110: 0 | C110: 5492.349727 | D110: 0 | E110: 0 | F110: 66.78557767
A111: CDICA201603Shetland | B111: 1 | C111: 5831.693989 | D111: 17.14767616 | E111: 0.2241224326 | F111: 95.40720655
A112: CDICA201603Tayside | B112: 14 | C112: 104435.082 | D112: 13.40545699 | E112: 7.322674054 | F112: 22.4935773
A113: CDICA201603Western Isles | B113: 0 | C113: 6761.748634 | D113: 0 | E113: 0 | F113: 54.24776476
A114: CDICA201604Ayrshire & Arran | B114: 7 | C114: 93146.22951 | D114: 7.51506533 | E114: 3.010727235 | F114: 15.4846992
A115: CDICA201604Borders | B115: 1 | C115: 28788.96175 | D115: 3.47355354 | E115: 0.04539981172 | F115: 19.32635285
A116: CDICA201604Dumfries & Galloway | B116: 8 | C116: 37584.2623 | D116: 21.28550492 | E116: 9.165092923 | F116: 41.94350648
A117: CDICA201604Fife | B117: 4 | C117: 93088.4153 | D117: 4.296990111 | E117: 1.156019668 | F117: 11.00124284
A118: CDICA201604Forth Valley | B118: 4 | C118: 76535.95628 | D118: 5.22630172 | E118: 1.406032461 | F118: 13.38048562
A119: CDICA201604Grampian | B119: 12 | C119: 147828.4153 | D119: 8.117519203 | E119: 4.189606954 | F119: 14.18065436
A120: CDICA201604Greater Glasgow & Clyde | B120: 12 | C120: 291929.071 | D120: 4.110587533 | E120: 2.121552864 | F120: 7.180866416
A121: CDICA201604Highland | B121: 9 | C121: 80914.7541 | D121: 11.12281697 | E121: 5.075490903 | F121: 21.11598021
A122: CDICA201604Lanarkshire | B122: 13 | C122: 165019.3443 | D122: 7.877864294 | E122: 4.190512163 | F122: 13.47230564
A123: CDICA201604Lothian | B123: 16 | C123: 221202.1858 | D123: 7.233201581 | E123: 4.131699561 | F123: 11.74700654
A124: CDICA201604Orkney | B124: 0 | C124: 5492.349727 | D124: 0 | E124: 0 | F124: 66.78557767
A125: CDICA201604Shetland | B125: 0 | C125: 5831.693989 | D125: 0 | E125: 0 | F125: 62.89934793
A126: CDICA201604Tayside | B126: 8 | C126: 104435.082 | D126: 7.66026114 | E126: 3.298348121 | F126: 15.09469538
A127: CDICA201604Western Isles | B127: 0 | C127: 6761.748634 | D127: 0 | E127: 0 | F127: 54.24776476
A128: CDICA201701Ayrshire & Arran | B128: 12 | C128: 91333.9726 | D128: 13.13859417 | E128: 6.781079801 | F128: 22.95206923
A129: CDICA201701Borders | B129: 0 | C129: 28361.09589 | D129: 0 | E129: 0 | F129: 12.93355344
A130: CDICA201701Dumfries & Galloway | B130: 2 | C130: 36789.0411 | D130: 5.436401549 | E130: 0.6105441957 | F130: 19.62807625
A131: CDICA201701Fife | B131: 3 | C131: 91580.54795 | D131: 3.275804816 | E131: 0.6583834455 | F131: 9.571340331
A132: CDICA201701Forth Valley | B132: 2 | C132: 75348.49315 | D132: 2.654333108 | E132: 0.2980993324 | F132: 9.583444521
A133: CDICA201701Grampian | B133: 9 | C133: 144586.8493 | D133: 6.224632491 | E133: 2.840383481 | F133: 11.81707987
A134: CDICA201701Greater Glasgow & Clyde | B134: 16 | C134: 288273.6986 | D134: 5.550280888 | E134: 3.170393201 | F134: 9.01387652
A135: CDICA201701Highland | B135: 4 | C135: 79394.79452 | D135: 5.038113675 | E135: 1.355404213 | F135: 12.89868269
A136: CDICA201701Lanarkshire | B136: 10 | C136: 162278.6301 | D136: 6.162240827 | E136: 2.950098982 | F136: 11.3333634
A137: CDICA201701Lothian | B137: 10 | C137: 219316.4384 | D137: 4.559621739 | E137: 2.18286429 | F137: 8.385886171
A138: CDICA201701Orkney | B138: 0 | C138: 5424.657534 | D138: 0 | E138: 0 | F138: 67.61896893
A139: CDICA201701Shetland | B139: 0 | C139: 5690.958904 | D139: 0 | E139: 0 | F139: 64.45482307
A140: CDICA201701Tayside | B140: 6 | C140: 102597.5342 | D140: 5.848093762 | E140: 2.135471146 | F140: 12.72924868
A141: CDICA201701Western Isles | B141: 0 | C141: 6645.205479 | D141: 0 | E141: 0 | F141: 55.19915831
A142: CDICA201702Ayrshire & Arran | B142: 4 | C142: 92348.79452 | D142: 4.331404672 | E142: 1.165278221 | F142: 11.08935171
A143: CDICA201702Borders | B143: 2 | C143: 28676.21918 | D143: 6.97442012 | E143: 0.7832739514 | F143: 25.18107772
A144: CDICA201702Dumfries & Galloway | B144: 12 | C144: 37197.80822 | D144: 32.25996524 | E144: 16.64998521 | F144: 56.35556938
A145: CDICA201702Fife | B145: 2 | C145: 92598.10959 | D145: 2.159871307 | E145: 0.2425679704 | F145: 7.798194877
A146: CDICA201702Forth Valley | B146: 7 | C146: 76185.69863 | D146: 9.188076143 | E146: 3.680978125 | F146: 18.9319173
A147: CDICA201702Grampian | B147: 17 | C147: 146193.3699 | D147: 11.62843432 | E147: 6.770056386 | F147: 18.61938797
A148: CDICA201702Greater Glasgow & Clyde | B148: 22 | C148: 291476.7397 | D148: 7.547772087 | E148: 4.728462746 | F148: 11.42801306
A149: CDICA201702Highland | B149: 8 | C149: 80276.9589 | D149: 9.965499577 | E149: 4.290935544 | F149: 19.6372131
A150: CDICA201702Lanarkshire | B150: 6 | C150: 164081.726 | D150: 3.656714337 | E150: 1.33527407 | F150: 7.959384378
A151: CDICA201702Lothian | B151: 9 | C151: 221753.2877 | D151: 4.058564405 | E151: 1.851977496 | F151: 7.70493355
A152: CDICA201702Orkney | B152: 1 | C152: 5484.931507 | D152: 18.23176823 | E152: 0.2382916617 | F152: 101.4389391
A153: CDICA201702Shetland | B153: 0 | C153: 5754.191781 | D153: 0 | E153: 0 | F153: 63.74652831
A154: CDICA201702Tayside | B154: 10 | C154: 103737.5068 | D154: 9.639714992 | E154: 4.614898084 | F154: 17.72900413
A155: CDICA201702Western Isles | B155: 0 | C155: 6719.041096 | D155: 0 | E155: 0 | F155: 54.59257415
A156: CDICA201703Ayrshire & Arran | B156: 7 | C156: 93363.61644 | D156: 7.497567326 | E156: 3.003717088 | F156: 15.44864478
A157: CDICA201703Borders | B157: 1 | C157: 28991.34247 | D157: 3.449305603 | E157: 0.04508288792 | F157: 19.19144081
A158: CDICA201703Dumfries & Galloway | B158: 4 | C158: 37606.57534 | D158: 10.63643781 | E158: 2.861521901 | F158: 27.23162779
A159: CDICA201703Fife | B159: 7 | C159: 93615.67123 | D159: 7.477380558 | E159: 2.995629753 | F159: 15.4070502
A160: CDICA201703Forth Valley | B160: 8 | C160: 77022.90411 | D160: 10.38652086 | E160: 4.472218496 | F160: 20.46684382
A161: CDICA201703Grampian | B161: 15 | C161: 147799.8904 | D161: 10.14885732 | E161: 5.67603217 | F161: 16.74008277
A162: CDICA201703Greater Glasgow & Clyde | B162: 27 | C162: 294679.7808 | D162: 9.162488151 | E162: 6.036662144 | F162: 13.33153479
A163: CDICA201703Highland | B163: 4 | C163: 81159.12329 | D163: 4.928589465 | E163: 1.325938904 | F163: 12.61827655
A164: CDICA201703Lanarkshire | B164: 11 | C164: 165884.8219 | D164: 6.631106977 | E164: 3.305676213 | F164: 11.86570924
A165: CDICA201703Lothian | B165: 11 | C165: 224190.137 | D165: 4.90654948 | E165: 2.445966256 | F165: 8.779784385
A166: CDICA201703Orkney | B166: 1 | C166: 5545.205479 | D166: 18.03359684 | E166: 0.2357015349 | F166: 100.3363419
A167: CDICA201703Shetland | B167: 0 | C167: 5817.424658 | D167: 0 | E167: 0 | F167: 63.05363126
A168: CDICA201703Tayside | B168: 7 | C168: 104877.4795 | D168: 6.674454837 | E168: 2.673957188 | F168: 13.75263167
A169: CDICA201703Western Isles | B169: 0 | C169: 6792.876712 | D169: 0 | E169: 0 | F169: 53.99917661
A170: CDICA201704Ayrshire & Arran | B170: 6 | C170: 93363.61644 | D170: 6.426486279 | E170: 2.346675101 | F170: 13.98820629
A171: CDICA201704Borders | B171: 1 | C171: 28991.34247 | D171: 3.449305603 | E171: 0.04508288792 | F171: 19.19144081
A172: CDICA201704Dumfries & Galloway | B172: 1 | C172: 37606.57534 | D172: 2.659109453 | E172: 0.03475491802 | F172: 14.79490296
A173: CDICA201704Fife | B173: 4 | C173: 93615.67123 | D173: 4.27278889 | E173: 1.149508811 | F173: 10.93928237
A174: CDICA201704Forth Valley | B174: 5 | C174: 77022.90411 | D174: 6.491575536 | E174: 2.091987935 | F174: 15.1491322
A175: CDICA201704Grampian | B175: 7 | C175: 147799.8904 | D175: 4.736133417 | E175: 1.897416089 | F175: 9.758744352
A176: CDICA201704Greater Glasgow & Clyde | B176: 17 | C176: 294679.7808 | D176: 5.768974021 | E176: 3.358687707 | F176: 9.237250904
A177: CDICA201704Highland | B177: 7 | C177: 81159.12329 | D177: 8.625031563 | E177: 3.455408076 | F177: 17.7717709
A178: CDICA201704Lanarkshire | B178: 9 | C178: 165884.8219 | D178: 5.425451163 | E178: 2.475706298 | F178: 10.29988354
A179: CDICA201704Lothian | B179: 15 | C179: 224190.137 | D179: 6.690749291 | E179: 3.741988581 | F179: 11.03608942
A180: CDICA201704Orkney | B180: 0 | C180: 5545.205479 | D180: 0 | E180: 0 | F180: 66.14899134
A181: CDICA201704Shetland | B181: 0 | C181: 5817.424658 | D181: 0 | E181: 0 | F181: 63.05363126
A182: CDICA201704Tayside | B182: 2 | C182: 104877.4795 | D182: 1.906987096 | E182: 0.2141673849 | F182: 6.885158831
A183: CDICA201704Western Isles | B183: 0 | C183: 6792.876712 | D183: 0 | E183: 0 | F183: 53.99917661
A184: CDICA201801Ayrshire & Arran | B184: 8 | C184: 91151.50685 | D184: 8.776596544 | E184: 3.779018782 | F184: 17.29445627
A185: CDICA201801Borders | B185: 0 | C185: 28422.73973 | D185: 0 | E185: 0 | F185: 12.90550287
A186: CDICA201801Dumfries & Galloway | B186: 4 | C186: 36687.94521 | D186: 10.90276378 | E186: 2.933171601 | F186: 27.91348102
A187: CDICA201801Fife | B187: 2 | C187: 91703.83562 | D187: 2.180933858 | E187: 0.2449334355 | F187: 7.874241017
A188: CDICA201801Forth Valley | B188: 0 | C188: 75469.31507 | D188: 0 | E188: 0 | F188: 4.860382646
A189: CDICA201801Grampian | B189: 12 | C189: 144135.6164 | D189: 8.325492544 | E189: 4.296945974 | F189: 14.54396709
A190: CDICA201801Greater Glasgow & Clyde | B190: 17 | C190: 289721.0959 | D190: 5.867712169 | E190: 3.416172903 | F190: 9.395349908
A191: CDICA201801Highland | B191: 15 | C191: 79347.94521 | D191: 18.90408121 | E191: 10.57263588 | F191: 31.18143
A192: CDICA201801Lanarkshire | B192: 10 | C192: 162542.4658 | D192: 6.152238403 | E192: 2.945310441 | F192: 11.31496732
A193: CDICA201801Lothian | B193: 12 | C193: 221367.9452 | D193: 5.420839042 | E193: 2.797798734 | F193: 9.469770612
A194: CDICA201801Orkney | B194: 1 | C194: 5471.506849 | D194: 18.27650093 | E194: 0.238876324 | F194: 101.6878254
A195: CDICA201801Shetland | B195: 0 | C195: 5668.767123 | D195: 0 | E195: 0 | F195: 64.7071473
A196: CDICA201801Tayside | B196: 4 | C196: 102595.0685 | D196: 3.898822876 | E196: 1.048900698 | F196: 9.981846859
A197: CDICA201801Western Isles | B197: 1 | C197: 6615.616438 | D197: 15.11574937 | E197: 0.1975648763 | F197: 84.1018578
A198: CDICA201802Ayrshire & Arran | B198: 9 | C198: 92164.30137 | D198: 9.765169232 | E198: 4.45597799 | F198: 18.53856993
A199: CDICA201802Borders | B199: 1 | C199: 28738.54795 | D199: 3.479646925 | E199: 0.04547945309 | F199: 19.36025557
A200: CDICA201802Dumfries & Galloway | B200: 5 | C200: 37095.58904 | D200: 13.47869148 | E200: 4.3436697 | F200: 31.45468739
... 3024 more rows

Sheet year end comp (hidden)
A1: ref | B1: p | C1: lp | D1: pc | E1: r | F1: rl | G1: ru | H1: s | I1: direction
A2: CDICA Ayrshire & Arran | B2: 7.608902416 | C2: 8.695888475 | D2: -12.5 | E2: 0.875 | F2: 0.526907863 | G2: 1.453052903 | H2: Non Significant | I2: -
A3: CDIHCAI Ayrshire & Arran | B3: 23.93143762 | C3: 20.52376652 | D3: 16.60353664 | E3: 1.166035366 | F3: 0.8695816863 | G3: 1.563554634 | H3: Non Significant | I3: -
A4: ECBCOM Ayrshire & Arran | B4: 58.69724721 | C4: 57.61026115 | D4: 1.886792453 | E4: 1.018867925 | F4: 0.8429931099 | G4: 1.231435744 | H4: Non Significant | I4: -
A5: ECBHCAI Ayrshire & Arran | B5: 47.38898538 | C5: 51.82251047 | D5: -8.555210948 | E5: 0.9144478905 | F5: 0.7520525751 | G5: 1.11191022 | H5: Non Significant | I5: -
A6: SABCAUN Ayrshire & Arran | B6: 12.50033968 | C6: 14.94605832 | D6: -16.36363636 | E6: 0.8363636364 | F6: 0.5653534064 | G6: 1.237286491 | H6: Non Significant | I6: -
A7: SABHCAI Ayrshire & Arran | B7: 14.69058547 | C7: 21.29340777 | D7: -31.00876277 | E7: 0.6899123723 | F7: 0.4964871292 | G7: 0.9586936972 | H7: Significant | I7: Decrease
A8: CDICA Borders | B8: 2.603262756 | C8: 6.074279764 | D8: -57.14285714 | E8: 0.4285714286 | F8: 0.1108224003 | G8: 1.657367725 | H8: Non Significant | I8: -
A9: CDIHCAI Borders | B9: 5.939048395 | C9: 11.77082209 | D9: -49.54431944 | E9: 0.5045568056 | F9: 0.1986440431 | G9: 1.281576664 | H9: Non Significant | I9: -
A10: ECBCOM Borders | B10: 43.3877126 | C10: 31.23915307 | D10: 38.88888889 | E10: 1.388888889 | F10: 0.9049141063 | G10: 2.131707675 | H10: Non Significant | I10: -
A11: ECBHCAI Borders | B11: 45.81551619 | C11: 48.06419022 | D11: -4.678481044 | E11: 0.9532151896 | F11: 0.647510948 | G11: 1.403249166 | H11: Non Significant | I11: -
A12: SABCAUN Borders | B12: 13.88406803 | C12: 11.28080528 | D12: 23.07692308 | E12: 1.230769231 | F12: 0.5920211791 | G12: 2.558680251 | H12: Non Significant | I12: -
A13: SABHCAI Borders | B13: 20.36245164 | C13: 14.71352762 | D13: 38.39272382 | E13: 1.383927238 | F13: 0.7260113036 | G13: 2.638050663 | H13: Non Significant | I13: -
A14: CDICA Dumfries & Galloway | B14: 10.78966889 | C14: 8.766605975 | D14: 23.07692308 | E14: 1.230769231 | F14: 0.5920211791 | G14: 2.558680251 | H14: Non Significant | I14: -
A15: CDIHCAI Dumfries & Galloway | B15: 16.42295808 | C15: 22.65207781 | D15: -27.49910973 | E15: 0.7250089027 | F15: 0.4359661593 | G15: 1.205685115 | H15: Non Significant | I15: -
A16: ECBCOM Dumfries & Galloway | B16: 64.73801335 | C16: 59.34317891 | D16: 9.090909091 | E16: 1.090909091 | F16: 0.8168919959 | G16: 1.456842092 | H16: Non Significant | I16: -
A17: ECBHCAI Dumfries & Galloway | B17: 35.27894698 | C17: 35.00775662 | D17: 0.7746579326 | E17: 1.007746579 | F17: 0.6917519532 | G17: 1.468088617 | H17: Non Significant | I17: -
A18: SABCAUN Dumfries & Galloway | B18: 18.20756626 | C18: 10.78966889 | D18: 68.75 | E18: 1.6875 | F18: 0.9092621104 | G18: 3.131832084 | H18: Non Significant | I18: -
A19: SABHCAI Dumfries & Galloway | B19: 16.42295808 | C19: 15.78781181 | D19: 4.023016472 | E19: 1.040230165 | F19: 0.5964783901 | G19: 1.814112319 | H19: Non Significant | I19: -
A20: CDICA Fife | B20: 3.742014808 | C20: 2.67286772 | D20: 40 | E20: 1.4 | F20: 0.6218571586 | G20: 3.15184922 | H20: Non Significant | I20: -
A21: CDIHCAI Fife | B21: 9.417397274 | C21: 8.222142559 | D21: 14.53702252 | E21: 1.145370225 | F21: 0.6762875427 | G21: 1.939815345 | H21: Non Significant | I21: -
A22: ECBCOM Fife | B22: 37.1528613 | C22: 36.61828776 | D22: 1.459854015 | E22: 1.01459854 | F22: 0.8013403947 | G22: 1.284610391 | H22: Non Significant | I22: -
A23: ECBHCAI Fife | B23: 38.58095012 | C23: 45.38622692 | D23: -14.99414528 | E23: 0.8500585472 | F23: 0.6680037689 | G23: 1.081729726 | H23: Non Significant | I23: -
A24: SABCAUN Fife | B24: 10.15689734 | C24: 9.889610563 | D24: 2.702702703 | E24: 1.027027027 | F24: 0.6531068039 | G24: 1.615026069 | H24: Non Significant | I24: -
A25: SABHCAI Fife | B25: 13.36662839 | C25: 14.79985661 | D25: -9.684068262 | E25: 0.9031593174 | F25: 0.5960672931 | G25: 1.368464202 | H25: Non Significant | I25: -
A26: CDICA Forth Valley | B26: 0.6537443206 | C26: 1.634360801 | D26: -60 | E26: 0.4 | F26: 0.07760337318 | G26: 2.061766047 | H26: Non Significant | I26: -
A27: CDIHCAI Forth Valley | B27: 10.26970367 | C27: 13.78678183 | D27: -25.5105086 | E27: 0.744894914 | F27: 0.4581241839 | G27: 1.211174726 | H27: Non Significant | I27: -
A28: ECBCOM Forth Valley | B28: 34.97532115 | C28: 55.56826725 | D28: -37.05882353 | E28: 0.6294117647 | F28: 0.4941884944 | G28: 0.8016357605 | H28: Significant | I28: Decrease
A29: ECBHCAI Forth Valley | B29: 50.99439062 | C29: 56.63759022 | D29: -9.963700046 | E29: 0.9003629995 | F29: 0.716851984 | G29: 1.130852044 | H29: Non Significant | I29: -
A30: SABCAUN Forth Valley | B30: 9.479292649 | C30: 12.42114209 | D30: -23.68421053 | E30: 0.7631578947 | F30: 0.4706810375 | G30: 1.237377174 | H30: Non Significant | I30: -
A31: SABHCAI Forth Valley | B31: 18.76876877 | C31: 20.49386488 | D31: -8.417622168 | E31: 0.9158237783 | F31: 0.6280106305 | G31: 1.335539802 | H31: Non Significant | I31: -
A32: CDIHCAI Golden Jubilee | B32: 2.033429582 | C32: 14.87431206 | D32: -86.32925292 | E32: 0.1367074708 | F32: 0.01645783132 | G32: 1.135564718 | H32: Non Significant | I32: -
A33: ECBHCAI Golden Jubilee | B33: 6.100288747 | C33: 7.437156032 | D33: -17.97551751 | E33: 0.8202448249 | F33: 0.1655493875 | G33: 4.064053531 | H33: Non Significant | I33: -
A34: SABHCAI Golden Jubilee | B34: 28.46801415 | C34: 17.35336407 | D34: 64.04896498 | E34: 1.64048965 | F34: 0.6621196935 | G34: 4.06453141 | H34: Non Significant | I34: -
A35: CDICA Grampian | B35: 3.757151396 | C35: 7.001963966 | D35: -46.34146341 | E35: 0.5365853659 | F35: 0.319652234 | G35: 0.9007409436 | H35: Significant | I35: Decrease
A36: CDIHCAI Grampian | B36: 11.3883927 | C36: 13.73369686 | D36: -17.07700548 | E36: 0.8292299452 | F36: 0.5749462369 | G36: 1.195976698 | H36: Non Significant | I36: -
A37: ECBCOM Grampian | B37: 33.13124413 | C37: 28.6909743 | D37: 15.47619048 | E37: 1.154761905 | F37: 0.9392534485 | G37: 1.419718031 | H37: Non Significant | I37: -
A38: ECBHCAI Grampian | B38: 36.90682819 | C38: 40.07537773 | D38: -7.906474567 | E38: 0.9209352543 | F38: 0.7475054914 | G38: 1.134602692 | H38: Non Significant | I38: -
A39: SABCAUN Grampian | B39: 10.07599693 | C39: 10.75911536 | D39: -6.349206349 | E39: 0.9365079365 | F39: 0.6565947195 | G39: 1.335751094 | H39: Non Significant | I39: -
A40: SABHCAI Grampian | B40: 20.45692762 | C40: 17.33597801 | D40: 18.00273174 | E40: 1.180027317 | F40: 0.8749228083 | G40: 1.591528369 | H40: Non Significant | I40: -
A41: CDICA Greater Glasgow & Clyde | B41: 4.640410381 | C41: 3.290472816 | D41: 41.02564103 | E41: 1.41025641 | F41: 0.9356320144 | G41: 2.125646742 | H41: Non Significant | I41: -
A42: CDIHCAI Greater Glasgow & Clyde | B42: 16.08095363 | C42: 17.16065808 | D42: -6.291742684 | E42: 0.9370825732 | F42: 0.7882871127 | G42: 1.11396436 | H42: Non Significant | I42: -
A43: ECBCOM Greater Glasgow & Clyde | B43: 38.22010732 | C43: 33.32658365 | D43: 14.6835443 | E43: 1.146835443 | F43: 1.002079194 | G43: 1.312502586 | H43: Significant | I43: Increase
A44: ECBHCAI Greater Glasgow & Clyde | B44: 34.02456598 | C44: 36.9458874 | D44: -7.907027327 | E44: 0.9209297267 | F44: 0.8181369426 | G44: 1.036637655 | H44: Non Significant | I44: -
A45: SABCAUN Greater Glasgow & Clyde | B45: 6.834058925 | C45: 6.665316729 | D45: 2.53164557 | E45: 1.025316456 | F45: 0.7520698133 | G45: 1.397840753 | H45: Non Significant | I45: -
A46: SABHCAI Greater Glasgow & Clyde | B46: 18.99911896 | C46: 19.71793262 | D46: -3.645481856 | E46: 0.9635451814 | F46: 0.8209110731 | G46: 1.130962107 | H46: Non Significant | I46: -
A47: CDICA Highland | B47: 5.921585738 | C47: 7.168235367 | D47: -17.39130435 | E47: 0.8260869565 | F47: 0.4499196164 | G47: 1.516759072 | H47: Non Significant | I47: -
A48: CDIHCAI Highland | B48: 20.9112921 | C48: 21.63494901 | D48: -3.344851503 | E48: 0.966551485 | F48: 0.6649619853 | G48: 1.404925084 | H48: Non Significant | I48: -
A49: ECBCOM Highland | B49: 35.84117684 | C49: 30.85457832 | D49: 16.16161616 | E49: 1.161616162 | F49: 0.8878916803 | G49: 1.51972604 | H49: Non Significant | I49: -
A50: ECBHCAI Highland | B50: 28.61545234 | C50: 27.34984121 | D50: 4.627489889 | E50: 1.046274899 | F50: 0.754844925 | G50: 1.450219943 | H50: Non Significant | I50: -
A51: SABCAUN Highland | B51: 10.90818425 | C51: 11.53150907 | D51: -5.405405405 | E51: 0.9459459459 | F51: 0.5958748505 | G51: 1.50168065 | H51: Non Significant | I51: -
A52: SABHCAI Highland | B52: 17.24264436 | C52: 9.796958045 | D52: 75.99998166 | E52: 1.759999817 | F52: 1.076353766 | G52: 2.877863629 | H52: Significant | I52: Increase
A53: CDICA Lanarkshire | B53: 5.287328539 | C53: 4.229862832 | D53: 25 | E53: 1.25 | F53: 0.7604787191 | G53: 2.054626856 | H53: Non Significant | I53: -
A54: CDIHCAI Lanarkshire | B54: 20.84338935 | C54: 18.9460303 | D54: 10.01454673 | E54: 1.100145467 | F54: 0.8365831146 | G54: 1.446742144 | H54: Non Significant | I54: -
A55: ECBCOM Lanarkshire | B55: 44.41355973 | C55: 51.21155357 | D55: -13.27433628 | E55: 0.8672566372 | F55: 0.7418401008 | G55: 1.013876271 | H55: Non Significant | I55: -
A56: ECBHCAI Lanarkshire | B56: 38.57855398 | C56: 46.85577385 | D56: -17.66531463 | E56: 0.8233468537 | F56: 0.6830290603 | G56: 0.9924907752 | H56: Significant | I56: Decrease
A57: SABCAUN Lanarkshire | B57: 12.08532238 | C57: 9.97039096 | D57: 21.21212121 | E57: 1.212121212 | F57: 0.8749824026 | G57: 1.679162722 | H57: Non Significant | I57: -
A58: SABHCAI Lanarkshire | B58: 19.19785862 | C58: 18.9460303 | D58: 1.329187775 | E58: 1.013291878 | F58: 0.7665226763 | G58: 1.339504311 | H58: Non Significant | I58: -
A59: CDICA Lothian | B59: 7.232955978 | C59: 5.917873073 | D59: 22.22222222 | E59: 1.222222222 | F59: 0.8530155791 | G59: 1.751230807 | H59: Non Significant | I59: -
A60: CDIHCAI Lothian | B60: 14.06520332 | C60: 14.07110522 | D60: -0.04194336208 | E60: 0.9995805664 | F60: 0.78182202 | G60: 1.277990749 | H60: Non Significant | I60: -
A61: ECBCOM Lothian | B61: 34.74010674 | C61: 31.89076045 | D61: 8.934707904 | E61: 1.089347079 | F61: 0.9290952226 | G61: 1.277239437 | H61: Non Significant | I61: -
A62: ECBHCAI Lothian | B62: 31.19725549 | C62: 31.83299213 | D62: -1.997099858 | E62: 0.9800290014 | F62: 0.8316771931 | G62: 1.154843311 | H62: Non Significant | I62: -
A63: SABCAUN Lothian | B63: 9.643941303 | C63: 10.95902421 | D63: -12 | E63: 0.88 | F63: 0.6607941273 | G63: 1.171923248 | H63: Non Significant | I63: -
A64: SABHCAI Lothian | B64: 15.12273741 | C64: 14.417116 | D64: 4.894331194 | E64: 1.048943312 | F64: 0.8251329578 | G64: 1.333460337 | H64: Non Significant | I64: -
A65: CDICA Orkney | B65: 8.928571429 | C65: 13.39285714 | D65: -33.33333333 | E65: 0.6666666667 | F65: 0.1113928508 | G65: 3.989883024 | H65: Non Significant | I65: -
A66: CDIHCAI Orkney | B66: 0 | C66: 0 | D66: 0 | E66: 0 | F66: 0 | G66: 0
A67: ECBCOM Orkney | B67: 44.64285714 | C67: 31.25 | D67: 42.85714286 | E67: 1.428571429 | F67: 0.5437728897 | G67: 3.753067439 | H67: Non Significant | I67: -
A68: ECBHCAI Orkney | B68: 57.86080344 | C68: 18.11430124 | D68: 219.4205654 | E68: 3.194205654 | F68: 0.6635456225 | G68: 15.37641032 | H68: Non Significant | I68: -
A69: SABCAUN Orkney | B69: 0 | C69: 22.32142857 | D69: -100 | E69: 0 | F69: 0 | G69: 0
A70: SABHCAI Orkney | B70: 0 | C70: 27.17145186 | D70: -100 | E70: 0 | F70: 0 | G70: 0
A71: CDICA Scotland | B71: 5.049396268 | C71: 4.976216612 | D71: 1.470588235 | E71: 1.014705882 | F71: 0.8582500721 | G71: 1.199683007 | H71: Non Significant | I71: -
A72: CDIHCAI Scotland | B72: 15.07803189 | C72: 15.63615285 | D72: -3.569426401 | E72: 0.964305736 | F72: 0.8762014029 | G72: 1.061269189 | H72: Non Significant | I72: -
A73: ECBCOM Scotland | B73: 39.86461764 | C73: 39.09623125 | D73: 1.965372017 | E73: 1.01965372 | F73: 0.9605893494 | G73: 1.08234982 | H73: Non Significant | I73: -
A74: ECBHCAI Scotland | B74: 37.08950102 | C74: 39.64607875 | D74: -6.448500851 | E74: 0.9355149915 | F74: 0.8804885019 | G74: 0.9939803841 | H74: Significant | I74: Decrease
A75: SABCAUN Scotland | B75: 10.17197219 | C75: 10.26344676 | D75: -0.8912655971 | E75: 0.991087344 | F75: 0.8814003058 | G75: 1.114424532 | H75: Non Significant | I75: -
A76: SABHCAI Scotland | B76: 18.14980788 | C76: 18.01223491 | D76: 0.76377516 | E76: 1.007637752 | F76: 0.9224512936 | G76: 1.100691002 | H76: Non Significant | I76: -
A77: CDICA Shetland | B77: 0 | C77: 8.745080892 | D77: -100 | E77: 0 | F77: 0 | G77: 0
A78: CDIHCAI Shetland | B78: 44.78781771 | C78: 24.05580948 | D78: 86.18295824 | E78: 1.861829582 | F78: 0.3410077275 | G78: 10.16519309 | H78: Non Significant | I78: -
A79: ECBCOM Shetland | B79: 34.98032357 | C79: 26.23524268 | D79: 33.33333333 | E79: 1.333333333 | F79: 0.4626248057 | G79: 3.842806862 | H79: Non Significant | I79: -
A80: ECBHCAI Shetland | B80: 100.7725899 | C80: 72.16742843 | D80: 39.63721868 | E80: 1.396372187 | F80: 0.4970159683 | G80: 3.923124021 | H80: Non Significant | I80: -
A81: SABCAUN Shetland | B81: 13.11762134 | C81: 8.745080892 | D81: 50 | E81: 1.5 | F81: 0.2506339143 | G81: 8.977236803 | H81: Non Significant | I81: -
A82: SABHCAI Shetland | B82: 33.59086329 | C82: 48.11161896 | D82: -30.18139066 | E82: 0.6981860934 | F82: 0.1562583848 | G82: 3.119601049 | H82: Non Significant | I82: -
A83: CDICA Tayside | B83: 2.880806626 | C83: 3.120873845 | D83: -7.692307692 | E83: 0.9230769231 | F83: 0.421190244 | G83: 2.02300746 | H83: Non Significant | I83: -
A84: CDIHCAI Tayside | B84: 8.920055716 | C84: 8.809818669 | D84: 1.251297574 | E84: 1.012512976 | F84: 0.641515073 | G84: 1.598064596 | H84: Non Significant | I84: -
A85: ECBCOM Tayside | B85: 39.61109111 | C85: 40.33129276 | D85: -1.785714286 | E85: 0.9821428571 | F85: 0.7922788227 | G85: 1.217506469 | H85: Non Significant | I85: -
A86: ECBHCAI Tayside | B86: 43.91412045 | C86: 39.77003856 | D86: 10.4201103 | E86: 1.104201103 | F86: 0.8945750935 | G86: 1.362948829 | H86: Non Significant | I86: -
A87: SABCAUN Tayside | B87: 12.48349538 | C87: 11.04309207 | D87: 13.04347826 | E87: 1.130434783 | F87: 0.7602395323 | G87: 1.680894959 | H87: Non Significant | I87: -
A88: SABHCAI Tayside | B88: 23.10065711 | C88: 21.89869212 | D88: 5.488752409 | E88: 1.054887524 | F88: 0.7919498084 | G88: 1.405124008 | H88: Non Significant | I88: -
A89: CDICA Western Isles | B89: 7.547169811 | C89: 7.547169811 | D89: 0 | E89: 1 | F89: 0.1408584209 | G89: 7.099327065 | H89: Non Significant | I89: -
A90: CDIHCAI Western Isles | B90: 12.5749256 | C90: 10.60445387 | D90: 18.58154839 | E90: 1.185815484 | F90: 0.198137051 | G90: 7.096897603 | H90: Non Significant | I90: -
A91: ECBCOM Western Isles | B91: 56.60377358 | C91: 79.24528302 | D91: -28.57142857 | E91: 0.7142857143 | F91: 0.3682205601 | G91: 1.385593682 | H91: Non Significant | I91: -
A92: ECBHCAI Western Isles | B92: 50.29970239 | C92: 42.41781548 | D92: 18.58154839 | E92: 1.185815484 | F92: 0.4847205205 | G92: 2.900967264 | H92: Non Significant | I92: -
A93: SABCAUN Western Isles | B93: 7.547169811 | C93: 15.09433962 | D93: -50 | E93: 0.5 | F93: 0.09157866292 | G93: 2.729893537 | H93: Non Significant | I93: -
A94: SABHCAI Western Isles | B94: 33.53313493 | C94: 31.81336161 | D94: 5.405820793 | E94: 1.054058208 | F94: 0.3657251052 | G94: 3.037906586 | H94: Non Significant | I94: -

Sheet quarter comp (hidden)
A1: ref | B1: p | C1: lp | D1: pc | E1: r | F1: rl | G1: ru | H1: s | I1: direction
A2: CDICA Scotland | B2: 4.790483463 | C2: 6.314728201 | D2: -24.13793103 | E2: 0.7586206897 | F2: 0.550904066 | G2: 1.044656205 | H2: Non Significant | I2: -
A3: CDIHCAI Scotland | B3: 13.25522125 | C3: 16.8227174 | D3: -21.20642023 | E3: 0.7879357977 | F3: 0.6533511034 | G3: 0.9502437787 | H3: Significant | I3: Decrease
A4: ECBCOM Scotland | B4: 39.84811244 | C4: 41.08202485 | D4: -3.003533569 | E4: 0.9699646643 | F4: 0.8625138929 | G4: 1.090801502 | H4: Non Significant | I4: -
A5: ECBHCAI Scotland | B5: 34.075291 | C5: 41.4731482 | D5: -17.83770348 | E5: 0.8216229652 | F5: 0.7302238043 | G5: 0.9244621894 | H5: Significant | I5: Decrease
A6: SABCAUN Scotland | B6: 9.871299257 | C6: 9.580966926 | D6: 3.03030303 | E6: 1.03030303 | F6: 0.8108876045 | G6: 1.309089359 | H6: Non Significant | I6: -
A7: SABHCAI Scotland | B7: 17.33890053 | C7: 18.33332876 | D7: -5.424155333 | E7: 0.9457584467 | F7: 0.7971535343 | G7: 1.122066203 | H7: Non Significant | I7: -
